Workbook

Sheet Velkomst

Sheet Tabel 1 B
A1: ='[1]Tabel 1 B DATA'!G1 -> Tabel 1. Forsikrede medlemmer
A3: ='[1]Tabel 1 B DATA'!G2 -> Bornholm
C5: ='[1]Tabel 1 B DATA'!I4 -> Mænd | E5: ='[1]Tabel 1 B DATA'!K4 -> Kvinder | G5: ='[1]Tabel 1 B DATA'!M4 -> I alt
A7: ='[1]Tabel 1 B DATA'!G6 -> Civ. ing. | C7: ='[1]Tabel 1 B DATA'!I6 -> 29 | E7: ='[1]Tabel 1 B DATA'!K6 -> 5 | G7: ='[1]Tabel 1 B DATA'!M6 -> 34
A8: ='[1]Tabel 1 B DATA'!G7 -> Diplom ing. | C8: ='[1]Tabel 1 B DATA'!I7 -> 55 | E8: ='[1]Tabel 1 B DATA'!K7 -> 8 | G8: ='[1]Tabel 1 B DATA'!M7 -> 63
A9: ='[1]Tabel 1 B DATA'!G8 -> Cand. Scient. Tek. | C9: ='[1]Tabel 1 B DATA'!I8 -> 16 | E9: ='[1]Tabel 1 B DATA'!K8 -> 16 | G9: ='[1]Tabel 1 B DATA'!M8 -> 32
A10: ='[1]Tabel 1 B DATA'!G9 -> MA. Hum. | C10: ='[1]Tabel 1 B DATA'!I9 -> 39 | E10: ='[1]Tabel 1 B DATA'!K9 -> 86 | G10: ='[1]Tabel 1 B DATA'!M9 -> 125
A11: ='[1]Tabel 1 B DATA'!G10 -> MA. Nat. | C11: ='[1]Tabel 1 B DATA'!I10 -> 25 | E11: ='[1]Tabel 1 B DATA'!K10 -> 21 | G11: ='[1]Tabel 1 B DATA'!M10 -> 46
A12: ='[1]Tabel 1 B DATA'!G11 -> MA. Ph.d. | C12: ='[1]Tabel 1 B DATA'!I11 -> 4 | E12: ='[1]Tabel 1 B DATA'!K11 -> 3 | G12: ='[1]Tabel 1 B DATA'!M11 -> 7
A13: ='[1]Tabel 1 B DATA'!G12 -> MA. Samf. | C13: ='[1]Tabel 1 B DATA'!I12 -> 4 | E13: ='[1]Tabel 1 B DATA'!K12 -> 11 | G13: ='[1]Tabel 1 B DATA'!M12 -> 15
A14: ='[1]Tabel 1 B DATA'!G13 -> Øvrige Mag. | C14: ='[1]Tabel 1 B DATA'!I13 -> 7 | E14: ='[1]Tabel 1 B DATA'!K13 -> 9 | G14: ='[1]Tabel 1 B DATA'!M13 -> 16
A15: ='[1]Tabel 1 B DATA'!G14 -> Agronom | C15: ='[1]Tabel 1 B DATA'!I14 -> 3 | E15: ='[1]Tabel 1 B DATA'!K14 -> 7 | G15: ='[1]Tabel 1 B DATA'!M14 -> 10
A16: ='[1]Tabel 1 B DATA'!G15 -> Landsk. Arkt. | C16: ='[1]Tabel 1 B DATA'!I15 -> 1 | E16: ='[1]Tabel 1 B DATA'!K15 -> 2 | G16: ='[1]Tabel 1 B DATA'!M15 -> 3
A17: ='[1]Tabel 1 B DATA'!G16 -> Hortonom | C17: ='[1]Tabel 1 B DATA'!I16 -> 1 | E17: ='[1]Tabel 1 B DATA'!K16 -> 1 | G17: ='[1]Tabel 1 B DATA'!M16 -> 2
A18: ='[1]Tabel 1 B DATA'!G17 -> Forstkand. | C18: ='[1]Tabel 1 B DATA'!I17 -> 1 | E18: ='[1]Tabel 1 B DATA'!K17 -> 0 | G18: ='[1]Tabel 1 B DATA'!M17 -> 1
A19: ='[1]Tabel 1 B DATA'!G18 -> Jordbrugsakad. | C19: ='[1]Tabel 1 B DATA'!I18 -> 6 | E19: ='[1]Tabel 1 B DATA'!K18 -> 10 | G19: ='[1]Tabel 1 B DATA'!M18 -> 16
A20: ='[1]Tabel 1 B DATA'!G19 -> Mejeriing. | C20: ='[1]Tabel 1 B DATA'!I19 -> 0 | E20: ='[1]Tabel 1 B DATA'!K19 -> 0 | G20: ='[1]Tabel 1 B DATA'!M19 -> 0
A21: ='[1]Tabel 1 B DATA'!G20 -> Levn.m.kand. | C21: ='[1]Tabel 1 B DATA'!I20 -> 0 | E21: ='[1]Tabel 1 B DATA'!K20 -> 1 | G21: ='[1]Tabel 1 B DATA'!M20 -> 1
A22: ='[1]Tabel 1 B DATA'!G21 -> Dyrlæge | C22: ='[1]Tabel 1 B DATA'!I21 -> 5 | E22: ='[1]Tabel 1 B DATA'!K21 -> 10 | G22: ='[1]Tabel 1 B DATA'!M21 -> 15
A23: ='[1]Tabel 1 B DATA'!G22 -> Farmaceut | C23: ='[1]Tabel 1 B DATA'!I22 -> 1 | E23: ='[1]Tabel 1 B DATA'!K22 -> 6 | G23: ='[1]Tabel 1 B DATA'!M22 -> 7
A24: ='[1]Tabel 1 B DATA'!G23 -> Læge | C24: ='[1]Tabel 1 B DATA'!I23 -> 9 | E24: ='[1]Tabel 1 B DATA'!K23 -> 22 | G24: ='[1]Tabel 1 B DATA'!M23 -> 31
A25: ='[1]Tabel 1 B DATA'!G24 -> Tandlæge | C25: ='[1]Tabel 1 B DATA'!I24 -> 1 | E25: ='[1]Tabel 1 B DATA'!K24 -> 9 | G25: ='[1]Tabel 1 B DATA'!M24 -> 10
A26: ='[1]Tabel 1 B DATA'!G25 -> Arkitekt | C26: ='[1]Tabel 1 B DATA'!I25 -> 9 | E26: ='[1]Tabel 1 B DATA'!K25 -> 5 | G26: ='[1]Tabel 1 B DATA'!M25 -> 14
A27: ='[1]Tabel 1 B DATA'!G26 -> Landinspek. | C27: ='[1]Tabel 1 B DATA'!I26 -> 1 | E27: ='[1]Tabel 1 B DATA'!K26 -> 0 | G27: ='[1]Tabel 1 B DATA'!M26 -> 1
A28: ='[1]Tabel 1 B DATA'!G27 -> Bibliotekar | C28: ='[1]Tabel 1 B DATA'!I27 -> 6 | E28: ='[1]Tabel 1 B DATA'!K27 -> 10 | G28: ='[1]Tabel 1 B DATA'!M27 -> 16
A29: ='[1]Tabel 1 B DATA'!G28 -> Musikudd. | C29: ='[1]Tabel 1 B DATA'!I28 -> 0 | E29: ='[1]Tabel 1 B DATA'!K28 -> 2 | G29: ='[1]Tabel 1 B DATA'!M28 -> 2
A30: ='[1]Tabel 1 B DATA'!G29 -> Teolog | C30: ='[1]Tabel 1 B DATA'!I29 -> 9 | E30: ='[1]Tabel 1 B DATA'!K29 -> 3 | G30: ='[1]Tabel 1 B DATA'!M29 -> 12
A31: ='[1]Tabel 1 B DATA'!G30 -> Psykolog | C31: ='[1]Tabel 1 B DATA'!I30 -> 7 | E31: ='[1]Tabel 1 B DATA'!K30 -> 24 | G31: ='[1]Tabel 1 B DATA'!M30 -> 31
A32: ='[1]Tabel 1 B DATA'!G31 -> Jurist | C32: ='[1]Tabel 1 B DATA'!I31 -> 11 | E32: ='[1]Tabel 1 B DATA'!K31 -> 21 | G32: ='[1]Tabel 1 B DATA'!M31 -> 32
A33: ='[1]Tabel 1 B DATA'!G32 -> Økonom | C33: ='[1]Tabel 1 B DATA'!I32 -> 7 | E33: ='[1]Tabel 1 B DATA'!K32 -> 3 | G33: ='[1]Tabel 1 B DATA'!M32 -> 10
A34: ='[1]Tabel 1 B DATA'!G33 -> Samf. Adm. | C34: ='[1]Tabel 1 B DATA'!I33 -> 28 | E34: ='[1]Tabel 1 B DATA'!K33 -> 27 | G34: ='[1]Tabel 1 B DATA'!M33 -> 55
A35: ='[1]Tabel 1 B DATA'!G34 -> Cand. Merc. | C35: ='[1]Tabel 1 B DATA'!I34 -> 13 | E35: ='[1]Tabel 1 B DATA'!K34 -> 19 | G35: ='[1]Tabel 1 B DATA'!M34 -> 32
A36: ='[1]Tabel 1 B DATA'!G35 -> HA | C36: ='[1]Tabel 1 B DATA'!I35 -> 6 | E36: ='[1]Tabel 1 B DATA'!K35 -> 6 | G36: ='[1]Tabel 1 B DATA'!M35 -> 12
A37: ='[1]Tabel 1 B DATA'!G36 -> HD | C37: ='[1]Tabel 1 B DATA'!I36 -> 8 | E37: ='[1]Tabel 1 B DATA'!K36 -> 1 | G37: ='[1]Tabel 1 B DATA'!M36 -> 9
A38: ='[1]Tabel 1 B DATA'!G37 -> Komm. og Sprog | C38: ='[1]Tabel 1 B DATA'!I37 -> 4 | E38: ='[1]Tabel 1 B DATA'!K37 -> 11 | G38: ='[1]Tabel 1 B DATA'!M37 -> 15
A39: ='[1]Tabel 1 B DATA'!G38 -> Bygningskonst. | C39: ='[1]Tabel 1 B DATA'!I38 -> 28 | E39: ='[1]Tabel 1 B DATA'!K38 -> 0 | G39: ='[1]Tabel 1 B DATA'!M38 -> 28
A40: ='[1]Tabel 1 B DATA'!G39 -> Cand. IT. | C40: ='[1]Tabel 1 B DATA'!I39 -> 2 | E40: ='[1]Tabel 1 B DATA'!K39 -> 0 | G40: ='[1]Tabel 1 B DATA'!M39 -> 2
A41: ='[1]Tabel 1 B DATA'!G40 -> Bac. Samf. | C41: ='[1]Tabel 1 B DATA'!I40 -> 4 | E41: ='[1]Tabel 1 B DATA'!K40 -> 1 | G41: ='[1]Tabel 1 B DATA'!M40 -> 5
A42: ='[1]Tabel 1 B DATA'!G41 -> Bac. Hum. | C42: ='[1]Tabel 1 B DATA'!I41 -> 8 | E42: ='[1]Tabel 1 B DATA'!K41 -> 5 | G42: ='[1]Tabel 1 B DATA'!M41 -> 13
A43: ='[1]Tabel 1 B DATA'!G42 -> Bac. Nat. | C43: ='[1]Tabel 1 B DATA'!I42 -> 3 | E43: ='[1]Tabel 1 B DATA'!K42 -> 7 | G43: ='[1]Tabel 1 B DATA'!M42 -> 10
A44: ='[1]Tabel 1 B DATA'!G43 -> Andre | C44: ='[1]Tabel 1 B DATA'!I43 -> 66 | E44: ='[1]Tabel 1 B DATA'!K43 -> 43 | G44: ='[1]Tabel 1 B DATA'!M43 -> 109
A46: ='[1]Tabel 1 B DATA'!G45 -> Total | C46: ='[1]Tabel 1 B DATA'!I45 -> 421 | E46: ='[1]Tabel 1 B DATA'!K45 -> 405 | G46: ='[1]Tabel 1 B DATA'!M45 -> 826
A48: ='[1]Tabel 1 B DATA'!G47 -> Ingeniører i alt | C48: ='[1]Tabel 1 B DATA'!I47 -> 84 | E48: ='[1]Tabel 1 B DATA'!K47 -> 13 | G48: ='[1]Tabel 1 B DATA'!M47 -> 97
A49: ='[1]Tabel 1 B DATA'!G48 -> Magistre i alt | C49: ='[1]Tabel 1 B DATA'!I48 -> 79 | E49: ='[1]Tabel 1 B DATA'!K48 -> 130 | G49: ='[1]Tabel 1 B DATA'!M48 -> 209
A50: ='[1]Tabel 1 B DATA'!G49 -> DJØF'ere i alt | C50: ='[1]Tabel 1 B DATA'!I49 -> 65 | E50: ='[1]Tabel 1 B DATA'!K49 -> 76 | G50: ='[1]Tabel 1 B DATA'!M49 -> 141
A57: ='[1]Tabel 1 B DATA'!G115 -> Bornholm
C59: ='[1]Tabel 1 B DATA'!I117 -> Mænd | E59: ='[1]Tabel 1 B DATA'!K117 -> Kvinder | G59: ='[1]Tabel 1 B DATA'!M117 -> I alt
A61: ='[1]Tabel 1 B DATA'!G119 -> Civ. ing. | C61: ='[1]Tabel 1 B DATA'!I119 -> 29 | E61: ='[1]Tabel 1 B DATA'!K119 -> 5 | G61: ='[1]Tabel 1 B DATA'!M119 -> 34
A62: ='[1]Tabel 1 B DATA'!G120 -> Diplom ing. | C62: ='[1]Tabel 1 B DATA'!I120 -> 55 | E62: ='[1]Tabel 1 B DATA'!K120 -> 8 | G62: ='[1]Tabel 1 B DATA'!M120 -> 63
A63: ='[1]Tabel 1 B DATA'!G121 -> Cand. Scient. Tek. | C63: ='[1]Tabel 1 B DATA'!I121 -> 16 | E63: ='[1]Tabel 1 B DATA'!K121 -> 16 | G63: ='[1]Tabel 1 B DATA'!M121 -> 32
A64: ='[1]Tabel 1 B DATA'!G122 -> MA. Hum. | C64: ='[1]Tabel 1 B DATA'!I122 -> 39 | E64: ='[1]Tabel 1 B DATA'!K122 -> 86 | G64: ='[1]Tabel 1 B DATA'!M122 -> 125
A65: ='[1]Tabel 1 B DATA'!G123 -> MA. Nat. | C65: ='[1]Tabel 1 B DATA'!I123 -> 25 | E65: ='[1]Tabel 1 B DATA'!K123 -> 21 | G65: ='[1]Tabel 1 B DATA'!M123 -> 46
A66: ='[1]Tabel 1 B DATA'!G124 -> MA. Ph.d. | C66: ='[1]Tabel 1 B DATA'!I124 -> 4 | E66: ='[1]Tabel 1 B DATA'!K124 -> 3 | G66: ='[1]Tabel 1 B DATA'!M124 -> 7
A67: ='[1]Tabel 1 B DATA'!G125 -> MA. Samf. | C67: ='[1]Tabel 1 B DATA'!I125 -> 4 | E67: ='[1]Tabel 1 B DATA'!K125 -> 11 | G67: ='[1]Tabel 1 B DATA'!M125 -> 15
A68: ='[1]Tabel 1 B DATA'!G126 -> Øvrige Mag. | C68: ='[1]Tabel 1 B DATA'!I126 -> 7 | E68: ='[1]Tabel 1 B DATA'!K126 -> 9 | G68: ='[1]Tabel 1 B DATA'!M126 -> 16
A69: ='[1]Tabel 1 B DATA'!G127 -> Agronom | C69: ='[1]Tabel 1 B DATA'!I127 -> 3 | E69: ='[1]Tabel 1 B DATA'!K127 -> 7 | G69: ='[1]Tabel 1 B DATA'!M127 -> 10
A70: ='[1]Tabel 1 B DATA'!G128 -> Landsk. Arkt. | C70: ='[1]Tabel 1 B DATA'!I128 -> 1 | E70: ='[1]Tabel 1 B DATA'!K128 -> 2 | G70: ='[1]Tabel 1 B DATA'!M128 -> 3
A71: ='[1]Tabel 1 B DATA'!G129 -> Hortonom | C71: ='[1]Tabel 1 B DATA'!I129 -> 1 | E71: ='[1]Tabel 1 B DATA'!K129 -> 1 | G71: ='[1]Tabel 1 B DATA'!M129 -> 2
A72: ='[1]Tabel 1 B DATA'!G130 -> Forstkand. | C72: ='[1]Tabel 1 B DATA'!I130 -> 1 | E72: ='[1]Tabel 1 B DATA'!K130 -> 0 | G72: ='[1]Tabel 1 B DATA'!M130 -> 1
A73: ='[1]Tabel 1 B DATA'!G131 -> Jordbrugsakad. | C73: ='[1]Tabel 1 B DATA'!I131 -> 6 | E73: ='[1]Tabel 1 B DATA'!K131 -> 10 | G73: ='[1]Tabel 1 B DATA'!M131 -> 16
A74: ='[1]Tabel 1 B DATA'!G132 -> Mejeriing. | C74: ='[1]Tabel 1 B DATA'!I132 -> 0 | E74: ='[1]Tabel 1 B DATA'!K132 -> 0 | G74: ='[1]Tabel 1 B DATA'!M132 -> 0
A75: ='[1]Tabel 1 B DATA'!G133 -> Levn.m.kand. | C75: ='[1]Tabel 1 B DATA'!I133 -> 0 | E75: ='[1]Tabel 1 B DATA'!K133 -> 1 | G75: ='[1]Tabel 1 B DATA'!M133 -> 1
A76: ='[1]Tabel 1 B DATA'!G134 -> Dyrlæge | C76: ='[1]Tabel 1 B DATA'!I134 -> 5 | E76: ='[1]Tabel 1 B DATA'!K134 -> 10 | G76: ='[1]Tabel 1 B DATA'!M134 -> 15
A77: ='[1]Tabel 1 B DATA'!G135 -> Farmaceut | C77: ='[1]Tabel 1 B DATA'!I135 -> 1 | E77: ='[1]Tabel 1 B DATA'!K135 -> 6 | G77: ='[1]Tabel 1 B DATA'!M135 -> 7
A78: ='[1]Tabel 1 B DATA'!G136 -> Læge | C78: ='[1]Tabel 1 B DATA'!I136 -> 8 | E78: ='[1]Tabel 1 B DATA'!K136 -> 22 | G78: ='[1]Tabel 1 B DATA'!M136 -> 30
A79: ='[1]Tabel 1 B DATA'!G137 -> Tandlæge | C79: ='[1]Tabel 1 B DATA'!I137 -> 1 | E79: ='[1]Tabel 1 B DATA'!K137 -> 9 | G79: ='[1]Tabel 1 B DATA'!M137 -> 10
A80: ='[1]Tabel 1 B DATA'!G138 -> Arkitekt | C80: ='[1]Tabel 1 B DATA'!I138 -> 9 | E80: ='[1]Tabel 1 B DATA'!K138 -> 5 | G80: ='[1]Tabel 1 B DATA'!M138 -> 14
A81: ='[1]Tabel 1 B DATA'!G139 -> Landinspek. | C81: ='[1]Tabel 1 B DATA'!I139 -> 1 | E81: ='[1]Tabel 1 B DATA'!K139 -> 0 | G81: ='[1]Tabel 1 B DATA'!M139 -> 1
A82: ='[1]Tabel 1 B DATA'!G140 -> Bibliotekar | C82: ='[1]Tabel 1 B DATA'!I140 -> 6 | E82: ='[1]Tabel 1 B DATA'!K140 -> 10 | G82: ='[1]Tabel 1 B DATA'!M140 -> 16
A83: ='[1]Tabel 1 B DATA'!G141 -> Musikudd. | C83: ='[1]Tabel 1 B DATA'!I141 -> 0 | E83: ='[1]Tabel 1 B DATA'!K141 -> 2 | G83: ='[1]Tabel 1 B DATA'!M141 -> 2
A84: ='[1]Tabel 1 B DATA'!G142 -> Teolog | C84: ='[1]Tabel 1 B DATA'!I142 -> 9 | E84: ='[1]Tabel 1 B DATA'!K142 -> 3 | G84: ='[1]Tabel 1 B DATA'!M142 -> 12
A85: ='[1]Tabel 1 B DATA'!G143 -> Psykolog | C85: ='[1]Tabel 1 B DATA'!I143 -> 7 | E85: ='[1]Tabel 1 B DATA'!K143 -> 24 | G85: ='[1]Tabel 1 B DATA'!M143 -> 31
A86: ='[1]Tabel 1 B DATA'!G144 -> Jurist | C86: ='[1]Tabel 1 B DATA'!I144 -> 11 | E86: ='[1]Tabel 1 B DATA'!K144 -> 21 | G86: ='[1]Tabel 1 B DATA'!M144 -> 32
A87: ='[1]Tabel 1 B DATA'!G145 -> Økonom | C87: ='[1]Tabel 1 B DATA'!I145 -> 7 | E87: ='[1]Tabel 1 B DATA'!K145 -> 3 | G87: ='[1]Tabel 1 B DATA'!M145 -> 10
A88: ='[1]Tabel 1 B DATA'!G146 -> Samf. Adm. | C88: ='[1]Tabel 1 B DATA'!I146 -> 28 | E88: ='[1]Tabel 1 B DATA'!K146 -> 27 | G88: ='[1]Tabel 1 B DATA'!M146 -> 55
A89: ='[1]Tabel 1 B DATA'!G147 -> Cand. Merc. | C89: ='[1]Tabel 1 B DATA'!I147 -> 13 | E89: ='[1]Tabel 1 B DATA'!K147 -> 19 | G89: ='[1]Tabel 1 B DATA'!M147 -> 32
A90: ='[1]Tabel 1 B DATA'!G148 -> HA | C90: ='[1]Tabel 1 B DATA'!I148 -> 6 | E90: ='[1]Tabel 1 B DATA'!K148 -> 6 | G90: ='[1]Tabel 1 B DATA'!M148 -> 12
A91: ='[1]Tabel 1 B DATA'!G149 -> HD | C91: ='[1]Tabel 1 B DATA'!I149 -> 8 | E91: ='[1]Tabel 1 B DATA'!K149 -> 1 | G91: ='[1]Tabel 1 B DATA'!M149 -> 9
A92: ='[1]Tabel 1 B DATA'!G150 -> Komm. og Sprog | C92: ='[1]Tabel 1 B DATA'!I150 -> 4 | E92: ='[1]Tabel 1 B DATA'!K150 -> 11 | G92: ='[1]Tabel 1 B DATA'!M150 -> 15
A93: ='[1]Tabel 1 B DATA'!G151 -> Bygningskonst. | C93: ='[1]Tabel 1 B DATA'!I151 -> 28 | E93: ='[1]Tabel 1 B DATA'!K151 -> 0 | G93: ='[1]Tabel 1 B DATA'!M151 -> 28
A94: Cand. IT. | C94: ='[1]Tabel 1 B DATA'!I152 -> 2 | E94: ='[1]Tabel 1 B DATA'!K152 -> 0 | G94: ='[1]Tabel 1 B DATA'!M152 -> 2
A95: ='[1]Tabel 1 B DATA'!G153 -> Bac. Samf. | C95: ='[1]Tabel 1 B DATA'!I153 -> 4 | E95: ='[1]Tabel 1 B DATA'!K153 -> 1 | G95: ='[1]Tabel 1 B DATA'!M153 -> 5
A96: ='[1]Tabel 1 B DATA'!G154 -> Bac. Hum. | C96: ='[1]Tabel 1 B DATA'!I154 -> 8 | E96: ='[1]Tabel 1 B DATA'!K154 -> 5 | G96: ='[1]Tabel 1 B DATA'!M154 -> 13
A97: ='[1]Tabel 1 B DATA'!G155 -> Bac. Nat. | C97: ='[1]Tabel 1 B DATA'!I155 -> 3 | E97: ='[1]Tabel 1 B DATA'!K155 -> 7 | G97: ='[1]Tabel 1 B DATA'!M155 -> 10
A98: ='[1]Tabel 1 B DATA'!G156 -> Andre | C98: ='[1]Tabel 1 B DATA'!I156 -> 66 | E98: ='[1]Tabel 1 B DATA'!K156 -> 43 | G98: ='[1]Tabel 1 B DATA'!M156 -> 109
A100: ='[1]Tabel 1 B DATA'!G158 -> Total | C100: ='[1]Tabel 1 B DATA'!I158 -> 420 | E100: ='[1]Tabel 1 B DATA'!K158 -> 405 | G100: ='[1]Tabel 1 B DATA'!M158 -> 825
A102: ='[1]Tabel 1 B DATA'!G160 -> Ingeniører i alt | C102: ='[1]Tabel 1 B DATA'!I160 -> 84 | E102: ='[1]Tabel 1 B DATA'!K160 -> 13 | G102: ='[1]Tabel 1 B DATA'!M160 -> 97
A103: ='[1]Tabel 1 B DATA'!G161 -> Magistre i alt | C103: ='[1]Tabel 1 B DATA'!I161 -> 79 | E103: ='[1]Tabel 1 B DATA'!K161 -> 130 | G103: ='[1]Tabel 1 B DATA'!M161 -> 209
A104: ='[1]Tabel 1 B DATA'!G162 -> DJØF'ere i alt | C104: ='[1]Tabel 1 B DATA'!I162 -> 65 | E104: ='[1]Tabel 1 B DATA'!K162 -> 76 | G104: ='[1]Tabel 1 B DATA'!M162 -> 141
A111: ='[1]Tabel 1 B DATA'!G170 -> Christiansø
C113: ='[1]Tabel 1 B DATA'!I172 -> Mænd | E113: ='[1]Tabel 1 B DATA'!K172 -> Kvinder | G113: ='[1]Tabel 1 B DATA'!M172 -> I alt
A115: ='[1]Tabel 1 B DATA'!G174 -> Civ. ing. | C115: ='[1]Tabel 1 B DATA'!I174 -> 0 | E115: ='[1]Tabel 1 B DATA'!K174 -> 0 | G115: ='[1]Tabel 1 B DATA'!M174 -> 0
A116: ='[1]Tabel 1 B DATA'!G175 -> Diplom ing. | C116: ='[1]Tabel 1 B DATA'!I175 -> 0 | E116: ='[1]Tabel 1 B DATA'!K175 -> 0 | G116: ='[1]Tabel 1 B DATA'!M175 -> 0
A117: ='[1]Tabel 1 B DATA'!G176 -> Cand. Scient. Tek. | C117: ='[1]Tabel 1 B DATA'!I176 -> 0 | E117: ='[1]Tabel 1 B DATA'!K176 -> 0 | G117: ='[1]Tabel 1 B DATA'!M176 -> 0
A118: ='[1]Tabel 1 B DATA'!G177 -> MA. Hum. | C118: ='[1]Tabel 1 B DATA'!I177 -> 0 | E118: ='[1]Tabel 1 B DATA'!K177 -> 0 | G118: ='[1]Tabel 1 B DATA'!M177 -> 0
A119: ='[1]Tabel 1 B DATA'!G178 -> MA. Nat. | C119: ='[1]Tabel 1 B DATA'!I178 -> 0 | E119: ='[1]Tabel 1 B DATA'!K178 -> 0 | G119: ='[1]Tabel 1 B DATA'!M178 -> 0
A120: ='[1]Tabel 1 B DATA'!G179 -> MA. Ph.d. | C120: ='[1]Tabel 1 B DATA'!I179 -> 0 | E120: ='[1]Tabel 1 B DATA'!K179 -> 0 | G120: ='[1]Tabel 1 B DATA'!M179 -> 0
A121: ='[1]Tabel 1 B DATA'!G180 -> MA. Samf. | C121: ='[1]Tabel 1 B DATA'!I180 -> 0 | E121: ='[1]Tabel 1 B DATA'!K180 -> 0 | G121: ='[1]Tabel 1 B DATA'!M180 -> 0
A122: ='[1]Tabel 1 B DATA'!G181 -> Øvrige Mag. | C122: ='[1]Tabel 1 B DATA'!I181 -> 0 | E122: ='[1]Tabel 1 B DATA'!K181 -> 0 | G122: ='[1]Tabel 1 B DATA'!M181 -> 0
A123: ='[1]Tabel 1 B DATA'!G182 -> Agronom | C123: ='[1]Tabel 1 B DATA'!I182 -> 0 | E123: ='[1]Tabel 1 B DATA'!K182 -> 0 | G123: ='[1]Tabel 1 B DATA'!M182 -> 0
A124: ='[1]Tabel 1 B DATA'!G183 -> Landsk. Arkt. | C124: ='[1]Tabel 1 B DATA'!I183 -> 0 | E124: ='[1]Tabel 1 B DATA'!K183 -> 0 | G124: ='[1]Tabel 1 B DATA'!M183 -> 0
A125: ='[1]Tabel 1 B DATA'!G184 -> Hortonom | C125: ='[1]Tabel 1 B DATA'!I184 -> 0 | E125: ='[1]Tabel 1 B DATA'!K184 -> 0 | G125: ='[1]Tabel 1 B DATA'!M184 -> 0
A126: ='[1]Tabel 1 B DATA'!G185 -> Forstkand. | C126: ='[1]Tabel 1 B DATA'!I185 -> 0 | E126: ='[1]Tabel 1 B DATA'!K185 -> 0 | G126: ='[1]Tabel 1 B DATA'!M185 -> 0
A127: ='[1]Tabel 1 B DATA'!G186 -> Jordbrugsakad. | C127: ='[1]Tabel 1 B DATA'!I186 -> 0 | E127: ='[1]Tabel 1 B DATA'!K186 -> 0 | G127: ='[1]Tabel 1 B DATA'!M186 -> 0
A128: ='[1]Tabel 1 B DATA'!G187 -> Mejeriing. | C128: ='[1]Tabel 1 B DATA'!I187 -> 0 | E128: ='[1]Tabel 1 B DATA'!K187 -> 0 | G128: ='[1]Tabel 1 B DATA'!M187 -> 0
A129: ='[1]Tabel 1 B DATA'!G188 -> Levn.m.kand. | C129: ='[1]Tabel 1 B DATA'!I188 -> 0 | E129: ='[1]Tabel 1 B DATA'!K188 -> 0 | G129: ='[1]Tabel 1 B DATA'!M188 -> 0
A130: ='[1]Tabel 1 B DATA'!G189 -> Dyrlæge | C130: ='[1]Tabel 1 B DATA'!I189 -> 0 | E130: ='[1]Tabel 1 B DATA'!K189 -> 0 | G130: ='[1]Tabel 1 B DATA'!M189 -> 0
A131: ='[1]Tabel 1 B DATA'!G190 -> Farmaceut | C131: ='[1]Tabel 1 B DATA'!I190 -> 0 | E131: ='[1]Tabel 1 B DATA'!K190 -> 0 | G131: ='[1]Tabel 1 B DATA'!M190 -> 0
A132: ='[1]Tabel 1 B DATA'!G191 -> Læge | C132: ='[1]Tabel 1 B DATA'!I191 -> 1 | E132: ='[1]Tabel 1 B DATA'!K191 -> 0 | G132: ='[1]Tabel 1 B DATA'!M191 -> 1
A133: ='[1]Tabel 1 B DATA'!G192 -> Tandlæge | C133: ='[1]Tabel 1 B DATA'!I192 -> 0 | E133: ='[1]Tabel 1 B DATA'!K192 -> 0 | G133: ='[1]Tabel 1 B DATA'!M192 -> 0
A134: ='[1]Tabel 1 B DATA'!G193 -> Arkitekt | C134: ='[1]Tabel 1 B DATA'!I193 -> 0 | E134: ='[1]Tabel 1 B DATA'!K193 -> 0 | G134: ='[1]Tabel 1 B DATA'!M193 -> 0
A135: ='[1]Tabel 1 B DATA'!G194 -> Landinspek. | C135: ='[1]Tabel 1 B DATA'!I194 -> 0 | E135: ='[1]Tabel 1 B DATA'!K194 -> 0 | G135: ='[1]Tabel 1 B DATA'!M194 -> 0
A136: ='[1]Tabel 1 B DATA'!G195 -> Bibliotekar | C136: ='[1]Tabel 1 B DATA'!I195 -> 0 | E136: ='[1]Tabel 1 B DATA'!K195 -> 0 | G136: ='[1]Tabel 1 B DATA'!M195 -> 0
A137: ='[1]Tabel 1 B DATA'!G196 -> Musikudd. | C137: ='[1]Tabel 1 B DATA'!I196 -> 0 | E137: ='[1]Tabel 1 B DATA'!K196 -> 0 | G137: ='[1]Tabel 1 B DATA'!M196 -> 0
A138: ='[1]Tabel 1 B DATA'!G197 -> Teolog | C138: ='[1]Tabel 1 B DATA'!I197 -> 0 | E138: ='[1]Tabel 1 B DATA'!K197 -> 0 | G138: ='[1]Tabel 1 B DATA'!M197 -> 0
A139: ='[1]Tabel 1 B DATA'!G198 -> Psykolog | C139: ='[1]Tabel 1 B DATA'!I198 -> 0 | E139: ='[1]Tabel 1 B DATA'!K198 -> 0 | G139: ='[1]Tabel 1 B DATA'!M198 -> 0
A140: ='[1]Tabel 1 B DATA'!G199 -> Jurist | C140: ='[1]Tabel 1 B DATA'!I199 -> 0 | E140: ='[1]Tabel 1 B DATA'!K199 -> 0 | G140: ='[1]Tabel 1 B DATA'!M199 -> 0
A141: ='[1]Tabel 1 B DATA'!G200 -> Økonom | C141: ='[1]Tabel 1 B DATA'!I200 -> 0 | E141: ='[1]Tabel 1 B DATA'!K200 -> 0 | G141: ='[1]Tabel 1 B DATA'!M200 -> 0
A142: ='[1]Tabel 1 B DATA'!G201 -> Samf. Adm. | C142: ='[1]Tabel 1 B DATA'!I201 -> 0 | E142: ='[1]Tabel 1 B DATA'!K201 -> 0 | G142: ='[1]Tabel 1 B DATA'!M201 -> 0
A143: ='[1]Tabel 1 B DATA'!G202 -> Cand. Merc. | C143: ='[1]Tabel 1 B DATA'!I202 -> 0 | E143: ='[1]Tabel 1 B DATA'!K202 -> 0 | G143: ='[1]Tabel 1 B DATA'!M202 -> 0
A144: ='[1]Tabel 1 B DATA'!G203 -> HA | C144: ='[1]Tabel 1 B DATA'!I203 -> 0 | E144: ='[1]Tabel 1 B DATA'!K203 -> 0 | G144: ='[1]Tabel 1 B DATA'!M203 -> 0
A145: ='[1]Tabel 1 B DATA'!G204 -> HD | C145: ='[1]Tabel 1 B DATA'!I204 -> 0 | E145: ='[1]Tabel 1 B DATA'!K204 -> 0 | G145: ='[1]Tabel 1 B DATA'!M204 -> 0
A146: ='[1]Tabel 1 B DATA'!G205 -> Komm. og Sprog | C146: ='[1]Tabel 1 B DATA'!I205 -> 0 | E146: ='[1]Tabel 1 B DATA'!K205 -> 0 | G146: ='[1]Tabel 1 B DATA'!M205 -> 0
A147: ='[1]Tabel 1 B DATA'!G206 -> Bygnigskonst | C147: ='[1]Tabel 1 B DATA'!I206 -> 0 | E147: ='[1]Tabel 1 B DATA'!K206 -> 0 | G147: ='[1]Tabel 1 B DATA'!M206 -> 0
A148: ='[1]Tabel 1 B DATA'!G207 -> Cand. IT. | C148: ='[1]Tabel 1 B DATA'!I207 -> 0 | E148: ='[1]Tabel 1 B DATA'!K207 -> 0 | G148: ='[1]Tabel 1 B DATA'!M207 -> 0
A149: ='[1]Tabel 1 B DATA'!G208 -> Bac. Samf. | C149: ='[1]Tabel 1 B DATA'!I208 -> 0 | E149: ='[1]Tabel 1 B DATA'!K208 -> 0 | G149: ='[1]Tabel 1 B DATA'!M208 -> 0
A150: ='[1]Tabel 1 B DATA'!G209 -> Bac. Hum. | C150: ='[1]Tabel 1 B DATA'!I209 -> 0 | E150: ='[1]Tabel 1 B DATA'!K209 -> 0 | G150: ='[1]Tabel 1 B DATA'!M209 -> 0
A151: ='[1]Tabel 1 B DATA'!G210 -> Bac. Nat. | C151: ='[1]Tabel 1 B DATA'!I210 -> 0 | E151: ='[1]Tabel 1 B DATA'!K210 -> 0 | G151: ='[1]Tabel 1 B DATA'!M210 -> 0
A152: ='[1]Tabel 1 B DATA'!G211 -> Andre | C152: ='[1]Tabel 1 B DATA'!I211 -> 0 | E152: ='[1]Tabel 1 B DATA'!K211 -> 0 | G152: ='[1]Tabel 1 B DATA'!M211 -> 0
A154: ='[1]Tabel 1 B DATA'!G213 -> Total | C154: ='[1]Tabel 1 B DATA'!I213 -> 1 | E154: ='[1]Tabel 1 B DATA'!K213 -> 0 | G154: ='[1]Tabel 1 B DATA'!M213 -> 1
A156: ='[1]Tabel 1 B DATA'!G215 -> Ingeniører i alt | C156: ='[1]Tabel 1 B DATA'!I215 -> 0 | E156: ='[1]Tabel 1 B DATA'!K215 -> 0 | G156: ='[1]Tabel 1 B DATA'!M215 -> 0
A157: ='[1]Tabel 1 B DATA'!G216 -> Magistre i alt | C157: ='[1]Tabel 1 B DATA'!I216 -> 0 | E157: ='[1]Tabel 1 B DATA'!K216 -> 0 | G157: ='[1]Tabel 1 B DATA'!M216 -> 0
A158: ='[1]Tabel 1 B DATA'!G217 -> DJØF'ere i alt | C158: ='[1]Tabel 1 B DATA'!I217 -> 0 | E158: ='[1]Tabel 1 B DATA'!K217 -> 0 | G158: ='[1]Tabel 1 B DATA'!M217 -> 0

Sheet Tabel 2 B
A1: ='[1]Tabel 2 B DATA'!I1 -> Tabel 2. Antal bruttoledighedsberørte og gennemsnitlig antal ledige brutto
A3: ='[1]Tabel 2 B DATA'!I3 -> Bornholm
C5: ='[1]Tabel 2 B DATA'!K5 -> Mænd | F5: ='[1]Tabel 2 B DATA'!N5 -> Kvinder | I5: ='[1]Tabel 2 B DATA'!Q5 -> I alt
C6: ='[1]Tabel 2 B DATA'!K6 -> Ledigheds- berørte | D6: ='[1]Tabel 2 B DATA'!L6 -> Gns. brutto- ledighed | F6: ='[1]Tabel 2 B DATA'!N6 -> Ledigheds- berørte | G6: ='[1]Tabel 2 B DATA'!O6 -> Gns. brutto- ledighed | I6: ='[1]Tabel 2 B DATA'!Q6 -> Ledigheds- berørte | J6: ='[1]Tabel 2 B DATA'!R6 -> Gns. brutto- ledighed
A9: ='[1]Tabel 2 B DATA'!I9 -> Civ. ing. | C9: ='[1]Tabel 2 B DATA'!K9 -> 2 | D9: ='[1]Tabel 2 B DATA'!L9 -> 1.999625772 | F9: ='[1]Tabel 2 B DATA'!N9 -> 1 | G9: ='[1]Tabel 2 B DATA'!O9 -> 0.374851868 | I9: ='[1]Tabel 2 B DATA'!Q9 -> 3 | J9: ='[1]Tabel 2 B DATA'!R9 -> 2.37447764
A10: ='[1]Tabel 2 B DATA'!I10 -> Diplom ing. | C10: ='[1]Tabel 2 B DATA'!K10 -> 4 | D10: ='[1]Tabel 2 B DATA'!L10 -> 3.090500842 | F10: ='[1]Tabel 2 B DATA'!N10 -> 1 | G10: ='[1]Tabel 2 B DATA'!O10 -> 0.9343229589 | I10: ='[1]Tabel 2 B DATA'!Q10 -> 5 | J10: ='[1]Tabel 2 B DATA'!R10 -> 4.024823801
A11: ='[1]Tabel 2 B DATA'!I11 -> Cand. Scient. Tek. | C11: ='[1]Tabel 2 B DATA'!K11 -> 1 | D11: ='[1]Tabel 2 B DATA'!L11 -> 0.2401297324 | F11: ='[1]Tabel 2 B DATA'!N11 -> 4 | G11: ='[1]Tabel 2 B DATA'!O11 -> 2.325204266 | I11: ='[1]Tabel 2 B DATA'!Q11 -> 5 | J11: ='[1]Tabel 2 B DATA'!R11 -> 2.565333999
A12: ='[1]Tabel 2 B DATA'!I12 -> MA. Hum. | C12: ='[1]Tabel 2 B DATA'!K12 -> 7 | D12: ='[1]Tabel 2 B DATA'!L12 -> 6.424873698 | F12: ='[1]Tabel 2 B DATA'!N12 -> 11 | G12: ='[1]Tabel 2 B DATA'!O12 -> 8.470654276 | I12: ='[1]Tabel 2 B DATA'!Q12 -> 18 | J12: ='[1]Tabel 2 B DATA'!R12 -> 14.89552797
A13: ='[1]Tabel 2 B DATA'!I13 -> MA. Nat. | C13: ='[1]Tabel 2 B DATA'!K13 -> 3 | D13: ='[1]Tabel 2 B DATA'!L13 -> 2.179879 | F13: ='[1]Tabel 2 B DATA'!N13 -> 0 | G13: ='[1]Tabel 2 B DATA'!O13 -> 0 | I13: ='[1]Tabel 2 B DATA'!Q13 -> 3 | J13: ='[1]Tabel 2 B DATA'!R13 -> 2.179879
A14: ='[1]Tabel 2 B DATA'!I14 -> MA. Ph.d. | C14: ='[1]Tabel 2 B DATA'!K14 -> 0 | D14: ='[1]Tabel 2 B DATA'!L14 -> 0 | F14: ='[1]Tabel 2 B DATA'!N14 -> 1 | G14: ='[1]Tabel 2 B DATA'!O14 -> 0.9998128859 | I14: ='[1]Tabel 2 B DATA'!Q14 -> 1 | J14: ='[1]Tabel 2 B DATA'!R14 -> 0.9998128859
A15: ='[1]Tabel 2 B DATA'!I15 -> MA. Samf. | C15: ='[1]Tabel 2 B DATA'!K15 -> 1 | D15: ='[1]Tabel 2 B DATA'!L15 -> 0.9998128859 | F15: ='[1]Tabel 2 B DATA'!N15 -> 0 | G15: ='[1]Tabel 2 B DATA'!O15 -> 0 | I15: ='[1]Tabel 2 B DATA'!Q15 -> 1 | J15: ='[1]Tabel 2 B DATA'!R15 -> 0.9998128859
A16: ='[1]Tabel 2 B DATA'!I16 -> Øvrige Mag. | C16: ='[1]Tabel 2 B DATA'!K16 -> 2 | D16: ='[1]Tabel 2 B DATA'!L16 -> 1.676542132 | F16: ='[1]Tabel 2 B DATA'!N16 -> 3 | G16: ='[1]Tabel 2 B DATA'!O16 -> 2.999438658 | I16: ='[1]Tabel 2 B DATA'!Q16 -> 5 | J16: ='[1]Tabel 2 B DATA'!R16 -> 4.67598079
A17: ='[1]Tabel 2 B DATA'!I17 -> Agronom | C17: ='[1]Tabel 2 B DATA'!K17 -> 0 | D17: ='[1]Tabel 2 B DATA'!L17 -> 0 | F17: ='[1]Tabel 2 B DATA'!N17 -> 0 | G17: ='[1]Tabel 2 B DATA'!O17 -> 0 | I17: ='[1]Tabel 2 B DATA'!Q17 -> 0 | J17: ='[1]Tabel 2 B DATA'!R17 -> 0
A18: ='[1]Tabel 2 B DATA'!I18 -> Landsk. Arkt. | C18: ='[1]Tabel 2 B DATA'!K18 -> 0 | D18: ='[1]Tabel 2 B DATA'!L18 -> 0 | F18: ='[1]Tabel 2 B DATA'!N18 -> 0 | G18: ='[1]Tabel 2 B DATA'!O18 -> 0 | I18: ='[1]Tabel 2 B DATA'!Q18 -> 0 | J18: ='[1]Tabel 2 B DATA'!R18 -> 0
A19: ='[1]Tabel 2 B DATA'!I19 -> Hortonom | C19: ='[1]Tabel 2 B DATA'!K19 -> 0 | D19: ='[1]Tabel 2 B DATA'!L19 -> 0 | F19: ='[1]Tabel 2 B DATA'!N19 -> 0 | G19: ='[1]Tabel 2 B DATA'!O19 -> 0 | I19: ='[1]Tabel 2 B DATA'!Q19 -> 0 | J19: ='[1]Tabel 2 B DATA'!R19 -> 0
A20: ='[1]Tabel 2 B DATA'!I20 -> Forstkand. | C20: ='[1]Tabel 2 B DATA'!K20 -> 0 | D20: ='[1]Tabel 2 B DATA'!L20 -> 0 | F20: ='[1]Tabel 2 B DATA'!N20 -> 0 | G20: ='[1]Tabel 2 B DATA'!O20 -> 0 | I20: ='[1]Tabel 2 B DATA'!Q20 -> 0 | J20: ='[1]Tabel 2 B DATA'!R20 -> 0
A21: ='[1]Tabel 2 B DATA'!I21 -> Jordbrugsakad. | C21: ='[1]Tabel 2 B DATA'!K21 -> 0 | D21: ='[1]Tabel 2 B DATA'!L21 -> 0 | F21: ='[1]Tabel 2 B DATA'!N21 -> 0 | G21: ='[1]Tabel 2 B DATA'!O21 -> 0 | I21: ='[1]Tabel 2 B DATA'!Q21 -> 0 | J21: ='[1]Tabel 2 B DATA'!R21 -> 0
A22: ='[1]Tabel 2 B DATA'!I22 -> Mejeriing. | C22: ='[1]Tabel 2 B DATA'!K22 -> 0 | D22: ='[1]Tabel 2 B DATA'!L22 -> 0 | F22: ='[1]Tabel 2 B DATA'!N22 -> 0 | G22: ='[1]Tabel 2 B DATA'!O22 -> 0 | I22: ='[1]Tabel 2 B DATA'!Q22 -> 0 | J22: ='[1]Tabel 2 B DATA'!R22 -> 0
A23: ='[1]Tabel 2 B DATA'!I23 -> Levn.m.kand. | C23: ='[1]Tabel 2 B DATA'!K23 -> 0 | D23: ='[1]Tabel 2 B DATA'!L23 -> 0 | F23: ='[1]Tabel 2 B DATA'!N23 -> 1 | G23: ='[1]Tabel 2 B DATA'!O23 -> 0.9998128859 | I23: ='[1]Tabel 2 B DATA'!Q23 -> 1 | J23: ='[1]Tabel 2 B DATA'!R23 -> 0.9998128859
A24: ='[1]Tabel 2 B DATA'!I24 -> Dyrlæge | C24: ='[1]Tabel 2 B DATA'!K24 -> 0 | D24: ='[1]Tabel 2 B DATA'!L24 -> 0 | F24: ='[1]Tabel 2 B DATA'!N24 -> 0 | G24: ='[1]Tabel 2 B DATA'!O24 -> 0 | I24: ='[1]Tabel 2 B DATA'!Q24 -> 0 | J24: ='[1]Tabel 2 B DATA'!R24 -> 0
A25: ='[1]Tabel 2 B DATA'!I25 -> Farmaceut | C25: ='[1]Tabel 2 B DATA'!K25 -> 0 | D25: ='[1]Tabel 2 B DATA'!L25 -> 0 | F25: ='[1]Tabel 2 B DATA'!N25 -> 0 | G25: ='[1]Tabel 2 B DATA'!O25 -> 0 | I25: ='[1]Tabel 2 B DATA'!Q25 -> 0 | J25: ='[1]Tabel 2 B DATA'!R25 -> 0
A26: ='[1]Tabel 2 B DATA'!I26 -> Læge | C26: ='[1]Tabel 2 B DATA'!K26 -> 0 | D26: ='[1]Tabel 2 B DATA'!L26 -> 0 | F26: ='[1]Tabel 2 B DATA'!N26 -> 1 | G26: ='[1]Tabel 2 B DATA'!O26 -> 0.9998128859 | I26: ='[1]Tabel 2 B DATA'!Q26 -> 1 | J26: ='[1]Tabel 2 B DATA'!R26 -> 0.9998128859
A27: ='[1]Tabel 2 B DATA'!I27 -> Tandlæge | C27: ='[1]Tabel 2 B DATA'!K27 -> 0 | D27: ='[1]Tabel 2 B DATA'!L27 -> 0 | F27: ='[1]Tabel 2 B DATA'!N27 -> 0 | G27: ='[1]Tabel 2 B DATA'!O27 -> 0 | I27: ='[1]Tabel 2 B DATA'!Q27 -> 0 | J27: ='[1]Tabel 2 B DATA'!R27 -> 0
A28: ='[1]Tabel 2 B DATA'!I28 -> Arkitekt | C28: ='[1]Tabel 2 B DATA'!K28 -> 0 | D28: ='[1]Tabel 2 B DATA'!L28 -> 0 | F28: ='[1]Tabel 2 B DATA'!N28 -> 1 | G28: ='[1]Tabel 2 B DATA'!O28 -> 0.4259963825 | I28: ='[1]Tabel 2 B DATA'!Q28 -> 1 | J28: ='[1]Tabel 2 B DATA'!R28 -> 0.4259963825
A29: ='[1]Tabel 2 B DATA'!I29 -> Landinspek. | C29: ='[1]Tabel 2 B DATA'!K29 -> 0 | D29: ='[1]Tabel 2 B DATA'!L29 -> 0 | F29: ='[1]Tabel 2 B DATA'!N29 -> 0 | G29: ='[1]Tabel 2 B DATA'!O29 -> 0 | I29: ='[1]Tabel 2 B DATA'!Q29 -> 0 | J29: ='[1]Tabel 2 B DATA'!R29 -> 0
A30: ='[1]Tabel 2 B DATA'!I30 -> Bibliotekar | C30: ='[1]Tabel 2 B DATA'!K30 -> 0 | D30: ='[1]Tabel 2 B DATA'!L30 -> 0 | F30: ='[1]Tabel 2 B DATA'!N30 -> 1 | G30: ='[1]Tabel 2 B DATA'!O30 -> 0.9998128859 | I30: ='[1]Tabel 2 B DATA'!Q30 -> 1 | J30: ='[1]Tabel 2 B DATA'!R30 -> 0.9998128859
A31: ='[1]Tabel 2 B DATA'!I31 -> Musikudd. | C31: ='[1]Tabel 2 B DATA'!K31 -> 0 | D31: ='[1]Tabel 2 B DATA'!L31 -> 0 | F31: ='[1]Tabel 2 B DATA'!N31 -> 1 | G31: ='[1]Tabel 2 B DATA'!O31 -> 0.9998128859 | I31: ='[1]Tabel 2 B DATA'!Q31 -> 1 | J31: ='[1]Tabel 2 B DATA'!R31 -> 0.9998128859
A32: ='[1]Tabel 2 B DATA'!I32 -> Teolog | C32: ='[1]Tabel 2 B DATA'!K32 -> 0 | D32: ='[1]Tabel 2 B DATA'!L32 -> 0 | F32: ='[1]Tabel 2 B DATA'!N32 -> 0 | G32: ='[1]Tabel 2 B DATA'!O32 -> 0 | I32: ='[1]Tabel 2 B DATA'!Q32 -> 0 | J32: ='[1]Tabel 2 B DATA'!R32 -> 0
A33: ='[1]Tabel 2 B DATA'!I33 -> Psykolog | C33: ='[1]Tabel 2 B DATA'!K33 -> 0 | D33: ='[1]Tabel 2 B DATA'!L33 -> 0 | F33: ='[1]Tabel 2 B DATA'!N33 -> 1 | G33: ='[1]Tabel 2 B DATA'!O33 -> 0.8501216242 | I33: ='[1]Tabel 2 B DATA'!Q33 -> 1 | J33: ='[1]Tabel 2 B DATA'!R33 -> 0.8501216242
A34: ='[1]Tabel 2 B DATA'!I34 -> Jurist | C34: ='[1]Tabel 2 B DATA'!K34 -> 0 | D34: ='[1]Tabel 2 B DATA'!L34 -> 0 | F34: ='[1]Tabel 2 B DATA'!N34 -> 0 | G34: ='[1]Tabel 2 B DATA'!O34 -> 0 | I34: ='[1]Tabel 2 B DATA'!Q34 -> 0 | J34: ='[1]Tabel 2 B DATA'!R34 -> 0
A35: ='[1]Tabel 2 B DATA'!I35 -> Økonom | C35: ='[1]Tabel 2 B DATA'!K35 -> 0 | D35: ='[1]Tabel 2 B DATA'!L35 -> 0 | F35: ='[1]Tabel 2 B DATA'!N35 -> 0 | G35: ='[1]Tabel 2 B DATA'!O35 -> 0 | I35: ='[1]Tabel 2 B DATA'!Q35 -> 0 | J35: ='[1]Tabel 2 B DATA'!R35 -> 0
A36: ='[1]Tabel 2 B DATA'!I36 -> Samf. Adm. | C36: ='[1]Tabel 2 B DATA'!K36 -> 2 | D36: ='[1]Tabel 2 B DATA'!L36 -> 1.999625772 | F36: ='[1]Tabel 2 B DATA'!N36 -> 1 | G36: ='[1]Tabel 2 B DATA'!O36 -> 0.9998128859 | I36: ='[1]Tabel 2 B DATA'!Q36 -> 3 | J36: ='[1]Tabel 2 B DATA'!R36 -> 2.999438658
A37: ='[1]Tabel 2 B DATA'!I37 -> Cand. Merc. | C37: ='[1]Tabel 2 B DATA'!K37 -> 2 | D37: ='[1]Tabel 2 B DATA'!L37 -> 1.999625772 | F37: ='[1]Tabel 2 B DATA'!N37 -> 2 | G37: ='[1]Tabel 2 B DATA'!O37 -> 1.538077715 | I37: ='[1]Tabel 2 B DATA'!Q37 -> 4 | J37: ='[1]Tabel 2 B DATA'!R37 -> 3.537703487
A38: ='[1]Tabel 2 B DATA'!I38 -> HA | C38: ='[1]Tabel 2 B DATA'!K38 -> 0 | D38: ='[1]Tabel 2 B DATA'!L38 -> 0 | F38: ='[1]Tabel 2 B DATA'!N38 -> 1 | G38: ='[1]Tabel 2 B DATA'!O38 -> 0.2326451693 | I38: ='[1]Tabel 2 B DATA'!Q38 -> 1 | J38: ='[1]Tabel 2 B DATA'!R38 -> 0.2326451693
A39: ='[1]Tabel 2 B DATA'!I39 -> HD | C39: ='[1]Tabel 2 B DATA'!K39 -> 0 | D39: ='[1]Tabel 2 B DATA'!L39 -> 0 | F39: ='[1]Tabel 2 B DATA'!N39 -> 0 | G39: ='[1]Tabel 2 B DATA'!O39 -> 0 | I39: ='[1]Tabel 2 B DATA'!Q39 -> 0 | J39: ='[1]Tabel 2 B DATA'!R39 -> 0
A40: ='[1]Tabel 2 B DATA'!I40 -> Komm. og Sprog | C40: ='[1]Tabel 2 B DATA'!K40 -> 0 | D40: ='[1]Tabel 2 B DATA'!L40 -> 0 | F40: ='[1]Tabel 2 B DATA'!N40 -> 4 | G40: ='[1]Tabel 2 B DATA'!O40 -> 2.930206449 | I40: ='[1]Tabel 2 B DATA'!Q40 -> 4 | J40: ='[1]Tabel 2 B DATA'!R40 -> 2.930206449
A41: ='[1]Tabel 2 B DATA'!I41 -> Bygningskonst. | C41: ='[1]Tabel 2 B DATA'!K41 -> 0 | D41: ='[1]Tabel 2 B DATA'!L41 -> 0 | F41: ='[1]Tabel 2 B DATA'!N41 -> 0 | G41: ='[1]Tabel 2 B DATA'!O41 -> 0 | I41: ='[1]Tabel 2 B DATA'!Q41 -> 0 | J41: ='[1]Tabel 2 B DATA'!R41 -> 0
A42: ='[1]Tabel 2 B DATA'!I42 -> Cand. IT. | C42: ='[1]Tabel 2 B DATA'!K42 -> 0 | D42: ='[1]Tabel 2 B DATA'!L42 -> 0 | F42: ='[1]Tabel 2 B DATA'!N42 -> 0 | G42: ='[1]Tabel 2 B DATA'!O42 -> 0 | I42: ='[1]Tabel 2 B DATA'!Q42 -> 0 | J42: ='[1]Tabel 2 B DATA'!R42 -> 0
A43: ='[1]Tabel 2 B DATA'!I43 -> Bac. Samf. | C43: ='[1]Tabel 2 B DATA'!K43 -> 0 | D43: ='[1]Tabel 2 B DATA'!L43 -> 0 | F43: ='[1]Tabel 2 B DATA'!N43 -> 0 | G43: ='[1]Tabel 2 B DATA'!O43 -> 0 | I43: ='[1]Tabel 2 B DATA'!Q43 -> 0 | J43: ='[1]Tabel 2 B DATA'!R43 -> 0
A44: ='[1]Tabel 2 B DATA'!I44 -> Bac. Hum. | C44: ='[1]Tabel 2 B DATA'!K44 -> 2 | D44: ='[1]Tabel 2 B DATA'!L44 -> 1.999625772 | F44: ='[1]Tabel 2 B DATA'!N44 -> 1 | G44: ='[1]Tabel 2 B DATA'!O44 -> 0.1690263831 | I44: ='[1]Tabel 2 B DATA'!Q44 -> 3 | J44: ='[1]Tabel 2 B DATA'!R44 -> 2.168652155
A45: ='[1]Tabel 2 B DATA'!I45 -> Bac. Nat. | C45: ='[1]Tabel 2 B DATA'!K45 -> 1 | D45: ='[1]Tabel 2 B DATA'!L45 -> 0.9998128859 | F45: ='[1]Tabel 2 B DATA'!N45 -> 1 | G45: ='[1]Tabel 2 B DATA'!O45 -> 0.9998128859 | I45: ='[1]Tabel 2 B DATA'!Q45 -> 2 | J45: ='[1]Tabel 2 B DATA'!R45 -> 1.999625772
A46: ='[1]Tabel 2 B DATA'!I46 -> Andre | C46: ='[1]Tabel 2 B DATA'!K46 -> 6 | D46: ='[1]Tabel 2 B DATA'!L46 -> 4.324830038 | F46: ='[1]Tabel 2 B DATA'!N46 -> 6 | G46: ='[1]Tabel 2 B DATA'!O46 -> 4.067236325 | I46: ='[1]Tabel 2 B DATA'!Q46 -> 12 | J46: ='[1]Tabel 2 B DATA'!R46 -> 8.392066363
A48: ='[1]Tabel 2 B DATA'!I48 -> Total | C48: ='[1]Tabel 2 B DATA'!K48 -> 33 | D48: ='[1]Tabel 2 B DATA'!L48 -> 27.9348843 | F48: ='[1]Tabel 2 B DATA'!N48 -> 43 | G48: ='[1]Tabel 2 B DATA'!O48 -> 32.31647228 | I48: ='[1]Tabel 2 B DATA'!Q48 -> 76 | J48: ='[1]Tabel 2 B DATA'!R48 -> 60.25135658
A50: ='[1]Tabel 2 B DATA'!I50 -> Ingeniører i alt | C50: ='[1]Tabel 2 B DATA'!K50 -> 6 | D50: ='[1]Tabel 2 B DATA'!L50 -> 5.090126614 | F50: ='[1]Tabel 2 B DATA'!N50 -> 2 | G50: ='[1]Tabel 2 B DATA'!O50 -> 1.309174827 | I50: ='[1]Tabel 2 B DATA'!Q50 -> 8 | J50: ='[1]Tabel 2 B DATA'!R50 -> 6.399301441
A51: ='[1]Tabel 2 B DATA'!I51 -> Magistre i alt | C51: ='[1]Tabel 2 B DATA'!K51 -> 13 | D51: ='[1]Tabel 2 B DATA'!L51 -> 11.28110772 | F51: ='[1]Tabel 2 B DATA'!N51 -> 15 | G51: ='[1]Tabel 2 B DATA'!O51 -> 12.46990582 | I51: ='[1]Tabel 2 B DATA'!Q51 -> 28 | J51: ='[1]Tabel 2 B DATA'!R51 -> 23.75101353
A52: ='[1]Tabel 2 B DATA'!I52 -> DJØF'ere i alt | C52: ='[1]Tabel 2 B DATA'!K52 -> 4 | D52: ='[1]Tabel 2 B DATA'!L52 -> 3.999251544 | F52: ='[1]Tabel 2 B DATA'!N52 -> 4 | G52: ='[1]Tabel 2 B DATA'!O52 -> 2.77053577 | I52: ='[1]Tabel 2 B DATA'!Q52 -> 8 | J52: ='[1]Tabel 2 B DATA'!R52 -> 6.769787314
A57: ='[1]Tabel 2 B DATA'!I106 -> Bornholm
C59: ='[1]Tabel 2 B DATA'!K108 -> Mænd | F59: ='[1]Tabel 2 B DATA'!N108 -> Kvinder | I59: ='[1]Tabel 2 B DATA'!Q108 -> I alt
C60: ='[1]Tabel 2 B DATA'!K109 -> Ledigheds- berørte | D60: ='[1]Tabel 2 B DATA'!L109 -> Gns. brutto- ledighed | F60: ='[1]Tabel 2 B DATA'!N109 -> Ledigheds- berørte | G60: ='[1]Tabel 2 B DATA'!O109 -> Gns. brutto- ledighed | I60: ='[1]Tabel 2 B DATA'!Q109 -> Ledigheds- berørte | J60: ='[1]Tabel 2 B DATA'!R109 -> Gns. brutto- ledighed
A63: ='[1]Tabel 2 B DATA'!I112 -> Civ. ing. | C63: ='[1]Tabel 2 B DATA'!K112 -> 2 | D63: ='[1]Tabel 2 B DATA'!L112 -> 1.999625772 | F63: ='[1]Tabel 2 B DATA'!N112 -> 1 | G63: ='[1]Tabel 2 B DATA'!O112 -> 0.374851868 | I63: ='[1]Tabel 2 B DATA'!Q112 -> 3 | J63: ='[1]Tabel 2 B DATA'!R112 -> 2.37447764
A64: ='[1]Tabel 2 B DATA'!I113 -> Diplom ing. | C64: ='[1]Tabel 2 B DATA'!K113 -> 4 | D64: ='[1]Tabel 2 B DATA'!L113 -> 3.090500842 | F64: ='[1]Tabel 2 B DATA'!N113 -> 1 | G64: ='[1]Tabel 2 B DATA'!O113 -> 0.9343229589 | I64: ='[1]Tabel 2 B DATA'!Q113 -> 5 | J64: ='[1]Tabel 2 B DATA'!R113 -> 4.024823801
A65: ='[1]Tabel 2 B DATA'!I114 -> Cand. Scient. Tek. | C65: ='[1]Tabel 2 B DATA'!K114 -> 1 | D65: ='[1]Tabel 2 B DATA'!L114 -> 0.2401297324 | F65: ='[1]Tabel 2 B DATA'!N114 -> 4 | G65: ='[1]Tabel 2 B DATA'!O114 -> 2.325204266 | I65: ='[1]Tabel 2 B DATA'!Q114 -> 5 | J65: ='[1]Tabel 2 B DATA'!R114 -> 2.565333999
A66: ='[1]Tabel 2 B DATA'!I115 -> MA. Hum. | C66: ='[1]Tabel 2 B DATA'!K115 -> 7 | D66: ='[1]Tabel 2 B DATA'!L115 -> 6.424873698 | F66: ='[1]Tabel 2 B DATA'!N115 -> 11 | G66: ='[1]Tabel 2 B DATA'!O115 -> 8.470654276 | I66: ='[1]Tabel 2 B DATA'!Q115 -> 18 | J66: ='[1]Tabel 2 B DATA'!R115 -> 14.89552797
A67: ='[1]Tabel 2 B DATA'!I116 -> MA. Nat. | C67: ='[1]Tabel 2 B DATA'!K116 -> 3 | D67: ='[1]Tabel 2 B DATA'!L116 -> 2.179879 | F67: ='[1]Tabel 2 B DATA'!N116 -> 0 | G67: ='[1]Tabel 2 B DATA'!O116 -> 0 | I67: ='[1]Tabel 2 B DATA'!Q116 -> 3 | J67: ='[1]Tabel 2 B DATA'!R116 -> 2.179879
A68: ='[1]Tabel 2 B DATA'!I117 -> MA. Ph.d. | C68: ='[1]Tabel 2 B DATA'!K117 -> 0 | D68: ='[1]Tabel 2 B DATA'!L117 -> 0 | F68: ='[1]Tabel 2 B DATA'!N117 -> 1 | G68: ='[1]Tabel 2 B DATA'!O117 -> 0.9998128859 | I68: ='[1]Tabel 2 B DATA'!Q117 -> 1 | J68: ='[1]Tabel 2 B DATA'!R117 -> 0.9998128859
A69: ='[1]Tabel 2 B DATA'!I118 -> MA. Samf. | C69: ='[1]Tabel 2 B DATA'!K118 -> 1 | D69: ='[1]Tabel 2 B DATA'!L118 -> 0.9998128859 | F69: ='[1]Tabel 2 B DATA'!N118 -> 0 | G69: ='[1]Tabel 2 B DATA'!O118 -> 0 | I69: ='[1]Tabel 2 B DATA'!Q118 -> 1 | J69: ='[1]Tabel 2 B DATA'!R118 -> 0.9998128859
A70: ='[1]Tabel 2 B DATA'!I119 -> Øvrige Mag. | C70: ='[1]Tabel 2 B DATA'!K119 -> 2 | D70: ='[1]Tabel 2 B DATA'!L119 -> 1.676542132 | F70: ='[1]Tabel 2 B DATA'!N119 -> 3 | G70: ='[1]Tabel 2 B DATA'!O119 -> 2.999438658 | I70: ='[1]Tabel 2 B DATA'!Q119 -> 5 | J70: ='[1]Tabel 2 B DATA'!R119 -> 4.67598079
A71: ='[1]Tabel 2 B DATA'!I120 -> Agronom | C71: ='[1]Tabel 2 B DATA'!K120 -> 0 | D71: ='[1]Tabel 2 B DATA'!L120 -> 0 | F71: ='[1]Tabel 2 B DATA'!N120 -> 0 | G71: ='[1]Tabel 2 B DATA'!O120 -> 0 | I71: ='[1]Tabel 2 B DATA'!Q120 -> 0 | J71: ='[1]Tabel 2 B DATA'!R120 -> 0
A72: ='[1]Tabel 2 B DATA'!I121 -> Landsk. Arkt. | C72: ='[1]Tabel 2 B DATA'!K121 -> 0 | D72: ='[1]Tabel 2 B DATA'!L121 -> 0 | F72: ='[1]Tabel 2 B DATA'!N121 -> 0 | G72: ='[1]Tabel 2 B DATA'!O121 -> 0 | I72: ='[1]Tabel 2 B DATA'!Q121 -> 0 | J72: ='[1]Tabel 2 B DATA'!R121 -> 0
A73: ='[1]Tabel 2 B DATA'!I122 -> Hortonom | C73: ='[1]Tabel 2 B DATA'!K122 -> 0 | D73: ='[1]Tabel 2 B DATA'!L122 -> 0 | F73: ='[1]Tabel 2 B DATA'!N122 -> 0 | G73: ='[1]Tabel 2 B DATA'!O122 -> 0 | I73: ='[1]Tabel 2 B DATA'!Q122 -> 0 | J73: ='[1]Tabel 2 B DATA'!R122 -> 0
A74: ='[1]Tabel 2 B DATA'!I123 -> Forstkand. | C74: ='[1]Tabel 2 B DATA'!K123 -> 0 | D74: ='[1]Tabel 2 B DATA'!L123 -> 0 | F74: ='[1]Tabel 2 B DATA'!N123 -> 0 | G74: ='[1]Tabel 2 B DATA'!O123 -> 0 | I74: ='[1]Tabel 2 B DATA'!Q123 -> 0 | J74: ='[1]Tabel 2 B DATA'!R123 -> 0
A75: ='[1]Tabel 2 B DATA'!I124 -> Jordbrugsakad. | C75: ='[1]Tabel 2 B DATA'!K124 -> 0 | D75: ='[1]Tabel 2 B DATA'!L124 -> 0 | F75: ='[1]Tabel 2 B DATA'!N124 -> 0 | G75: ='[1]Tabel 2 B DATA'!O124 -> 0 | I75: ='[1]Tabel 2 B DATA'!Q124 -> 0 | J75: ='[1]Tabel 2 B DATA'!R124 -> 0
A76: ='[1]Tabel 2 B DATA'!I125 -> Mejeriing. | C76: ='[1]Tabel 2 B DATA'!K125 -> 0 | D76: ='[1]Tabel 2 B DATA'!L125 -> 0 | F76: ='[1]Tabel 2 B DATA'!N125 -> 0 | G76: ='[1]Tabel 2 B DATA'!O125 -> 0 | I76: ='[1]Tabel 2 B DATA'!Q125 -> 0 | J76: ='[1]Tabel 2 B DATA'!R125 -> 0
A77: ='[1]Tabel 2 B DATA'!I126 -> Levn.m.kand. | C77: ='[1]Tabel 2 B DATA'!K126 -> 0 | D77: ='[1]Tabel 2 B DATA'!L126 -> 0 | F77: ='[1]Tabel 2 B DATA'!N126 -> 1 | G77: ='[1]Tabel 2 B DATA'!O126 -> 0.9998128859 | I77: ='[1]Tabel 2 B DATA'!Q126 -> 1 | J77: ='[1]Tabel 2 B DATA'!R126 -> 0.9998128859
A78: ='[1]Tabel 2 B DATA'!I127 -> Dyrlæge | C78: ='[1]Tabel 2 B DATA'!K127 -> 0 | D78: ='[1]Tabel 2 B DATA'!L127 -> 0 | F78: ='[1]Tabel 2 B DATA'!N127 -> 0 | G78: ='[1]Tabel 2 B DATA'!O127 -> 0 | I78: ='[1]Tabel 2 B DATA'!Q127 -> 0 | J78: ='[1]Tabel 2 B DATA'!R127 -> 0
A79: ='[1]Tabel 2 B DATA'!I128 -> Farmaceut | C79: ='[1]Tabel 2 B DATA'!K128 -> 0 | D79: ='[1]Tabel 2 B DATA'!L128 -> 0 | F79: ='[1]Tabel 2 B DATA'!N128 -> 0 | G79: ='[1]Tabel 2 B DATA'!O128 -> 0 | I79: ='[1]Tabel 2 B DATA'!Q128 -> 0 | J79: ='[1]Tabel 2 B DATA'!R128 -> 0
A80: ='[1]Tabel 2 B DATA'!I129 -> Læge | C80: ='[1]Tabel 2 B DATA'!K129 -> 0 | D80: ='[1]Tabel 2 B DATA'!L129 -> 0 | F80: ='[1]Tabel 2 B DATA'!N129 -> 1 | G80: ='[1]Tabel 2 B DATA'!O129 -> 0.9998128859 | I80: ='[1]Tabel 2 B DATA'!Q129 -> 1 | J80: ='[1]Tabel 2 B DATA'!R129 -> 0.9998128859
A81: ='[1]Tabel 2 B DATA'!I130 -> Tandlæge | C81: ='[1]Tabel 2 B DATA'!K130 -> 0 | D81: ='[1]Tabel 2 B DATA'!L130 -> 0 | F81: ='[1]Tabel 2 B DATA'!N130 -> 0 | G81: ='[1]Tabel 2 B DATA'!O130 -> 0 | I81: ='[1]Tabel 2 B DATA'!Q130 -> 0 | J81: ='[1]Tabel 2 B DATA'!R130 -> 0
A82: ='[1]Tabel 2 B DATA'!I131 -> Arkitekt | C82: ='[1]Tabel 2 B DATA'!K131 -> 0 | D82: ='[1]Tabel 2 B DATA'!L131 -> 0 | F82: ='[1]Tabel 2 B DATA'!N131 -> 1 | G82: ='[1]Tabel 2 B DATA'!O131 -> 0.4259963825 | I82: ='[1]Tabel 2 B DATA'!Q131 -> 1 | J82: ='[1]Tabel 2 B DATA'!R131 -> 0.4259963825
A83: ='[1]Tabel 2 B DATA'!I132 -> Landinspek. | C83: ='[1]Tabel 2 B DATA'!K132 -> 0 | D83: ='[1]Tabel 2 B DATA'!L132 -> 0 | F83: ='[1]Tabel 2 B DATA'!N132 -> 0 | G83: ='[1]Tabel 2 B DATA'!O132 -> 0 | I83: ='[1]Tabel 2 B DATA'!Q132 -> 0 | J83: ='[1]Tabel 2 B DATA'!R132 -> 0
A84: ='[1]Tabel 2 B DATA'!I133 -> Bibliotekar | C84: ='[1]Tabel 2 B DATA'!K133 -> 0 | D84: ='[1]Tabel 2 B DATA'!L133 -> 0 | F84: ='[1]Tabel 2 B DATA'!N133 -> 1 | G84: ='[1]Tabel 2 B DATA'!O133 -> 0.9998128859 | I84: ='[1]Tabel 2 B DATA'!Q133 -> 1 | J84: ='[1]Tabel 2 B DATA'!R133 -> 0.9998128859
A85: ='[1]Tabel 2 B DATA'!I134 -> Musikudd. | C85: ='[1]Tabel 2 B DATA'!K134 -> 0 | D85: ='[1]Tabel 2 B DATA'!L134 -> 0 | F85: ='[1]Tabel 2 B DATA'!N134 -> 1 | G85: ='[1]Tabel 2 B DATA'!O134 -> 0.9998128859 | I85: ='[1]Tabel 2 B DATA'!Q134 -> 1 | J85: ='[1]Tabel 2 B DATA'!R134 -> 0.9998128859
A86: ='[1]Tabel 2 B DATA'!I135 -> Teolog | C86: ='[1]Tabel 2 B DATA'!K135 -> 0 | D86: ='[1]Tabel 2 B DATA'!L135 -> 0 | F86: ='[1]Tabel 2 B DATA'!N135 -> 0 | G86: ='[1]Tabel 2 B DATA'!O135 -> 0 | I86: ='[1]Tabel 2 B DATA'!Q135 -> 0 | J86: ='[1]Tabel 2 B DATA'!R135 -> 0
A87: ='[1]Tabel 2 B DATA'!I136 -> Psykolog | C87: ='[1]Tabel 2 B DATA'!K136 -> 0 | D87: ='[1]Tabel 2 B DATA'!L136 -> 0 | F87: ='[1]Tabel 2 B DATA'!N136 -> 1 | G87: ='[1]Tabel 2 B DATA'!O136 -> 0.8501216242 | I87: ='[1]Tabel 2 B DATA'!Q136 -> 1 | J87: ='[1]Tabel 2 B DATA'!R136 -> 0.8501216242
A88: ='[1]Tabel 2 B DATA'!I137 -> Jurist | C88: ='[1]Tabel 2 B DATA'!K137 -> 0 | D88: ='[1]Tabel 2 B DATA'!L137 -> 0 | F88: ='[1]Tabel 2 B DATA'!N137 -> 0 | G88: ='[1]Tabel 2 B DATA'!O137 -> 0 | I88: ='[1]Tabel 2 B DATA'!Q137 -> 0 | J88: ='[1]Tabel 2 B DATA'!R137 -> 0
A89: ='[1]Tabel 2 B DATA'!I138 -> Økonom | C89: ='[1]Tabel 2 B DATA'!K138 -> 0 | D89: ='[1]Tabel 2 B DATA'!L138 -> 0 | F89: ='[1]Tabel 2 B DATA'!N138 -> 0 | G89: ='[1]Tabel 2 B DATA'!O138 -> 0 | I89: ='[1]Tabel 2 B DATA'!Q138 -> 0 | J89: ='[1]Tabel 2 B DATA'!R138 -> 0
A90: ='[1]Tabel 2 B DATA'!I139 -> Samf. Adm. | C90: ='[1]Tabel 2 B DATA'!K139 -> 2 | D90: ='[1]Tabel 2 B DATA'!L139 -> 1.999625772 | F90: ='[1]Tabel 2 B DATA'!N139 -> 1 | G90: ='[1]Tabel 2 B DATA'!O139 -> 0.9998128859 | I90: ='[1]Tabel 2 B DATA'!Q139 -> 3 | J90: ='[1]Tabel 2 B DATA'!R139 -> 2.999438658
A91: ='[1]Tabel 2 B DATA'!I140 -> Cand. Merc. | C91: ='[1]Tabel 2 B DATA'!K140 -> 2 | D91: ='[1]Tabel 2 B DATA'!L140 -> 1.999625772 | F91: ='[1]Tabel 2 B DATA'!N140 -> 2 | G91: ='[1]Tabel 2 B DATA'!O140 -> 1.538077715 | I91: ='[1]Tabel 2 B DATA'!Q140 -> 4 | J91: ='[1]Tabel 2 B DATA'!R140 -> 3.537703487
A92: ='[1]Tabel 2 B DATA'!I141 -> HA | C92: ='[1]Tabel 2 B DATA'!K141 -> 0 | D92: ='[1]Tabel 2 B DATA'!L141 -> 0 | F92: ='[1]Tabel 2 B DATA'!N141 -> 1 | G92: ='[1]Tabel 2 B DATA'!O141 -> 0.2326451693 | I92: ='[1]Tabel 2 B DATA'!Q141 -> 1 | J92: ='[1]Tabel 2 B DATA'!R141 -> 0.2326451693
A93: ='[1]Tabel 2 B DATA'!I142 -> HD | C93: ='[1]Tabel 2 B DATA'!K142 -> 0 | D93: ='[1]Tabel 2 B DATA'!L142 -> 0 | F93: ='[1]Tabel 2 B DATA'!N142 -> 0 | G93: ='[1]Tabel 2 B DATA'!O142 -> 0 | I93: ='[1]Tabel 2 B DATA'!Q142 -> 0 | J93: ='[1]Tabel 2 B DATA'!R142 -> 0
A94: ='[1]Tabel 2 B DATA'!I143 -> Komm. og Sprog | C94: ='[1]Tabel 2 B DATA'!K143 -> 0 | D94: ='[1]Tabel 2 B DATA'!L143 -> 0 | F94: ='[1]Tabel 2 B DATA'!N143 -> 4 | G94: ='[1]Tabel 2 B DATA'!O143 -> 2.930206449 | I94: ='[1]Tabel 2 B DATA'!Q143 -> 4 | J94: ='[1]Tabel 2 B DATA'!R143 -> 2.930206449
A95: ='[1]Tabel 2 B DATA'!I144 -> Bygningskonst. | C95: ='[1]Tabel 2 B DATA'!K144 -> 0 | D95: ='[1]Tabel 2 B DATA'!L144 -> 0 | F95: ='[1]Tabel 2 B DATA'!N144 -> 0 | G95: ='[1]Tabel 2 B DATA'!O144 -> 0 | I95: ='[1]Tabel 2 B DATA'!Q144 -> 0 | J95: ='[1]Tabel 2 B DATA'!R144 -> 0
A96: ='[1]Tabel 2 B DATA'!I145 -> Cand. IT. | C96: ='[1]Tabel 2 B DATA'!K145 -> 0 | D96: ='[1]Tabel 2 B DATA'!L145 -> 0 | F96: ='[1]Tabel 2 B DATA'!N145 -> 0 | G96: ='[1]Tabel 2 B DATA'!O145 -> 0 | I96: ='[1]Tabel 2 B DATA'!Q145 -> 0 | J96: ='[1]Tabel 2 B DATA'!R145 -> 0
A97: ='[1]Tabel 2 B DATA'!I146 -> Bac. Samf. | C97: ='[1]Tabel 2 B DATA'!K146 -> 0 | D97: ='[1]Tabel 2 B DATA'!L146 -> 0 | F97: ='[1]Tabel 2 B DATA'!N146 -> 0 | G97: ='[1]Tabel 2 B DATA'!O146 -> 0 | I97: ='[1]Tabel 2 B DATA'!Q146 -> 0 | J97: ='[1]Tabel 2 B DATA'!R146 -> 0
A98: ='[1]Tabel 2 B DATA'!I147 -> Bac. Hum. | C98: ='[1]Tabel 2 B DATA'!K147 -> 2 | D98: ='[1]Tabel 2 B DATA'!L147 -> 1.999625772 | F98: ='[1]Tabel 2 B DATA'!N147 -> 1 | G98: ='[1]Tabel 2 B DATA'!O147 -> 0.1690263831 | I98: ='[1]Tabel 2 B DATA'!Q147 -> 3 | J98: ='[1]Tabel 2 B DATA'!R147 -> 2.168652155
A99: ='[1]Tabel 2 B DATA'!I148 -> Bac. Nat. | C99: ='[1]Tabel 2 B DATA'!K148 -> 1 | D99: ='[1]Tabel 2 B DATA'!L148 -> 0.9998128859 | F99: ='[1]Tabel 2 B DATA'!N148 -> 1 | G99: ='[1]Tabel 2 B DATA'!O148 -> 0.9998128859 | I99: ='[1]Tabel 2 B DATA'!Q148 -> 2 | J99: ='[1]Tabel 2 B DATA'!R148 -> 1.999625772
A100: ='[1]Tabel 2 B DATA'!I149 -> Andre | C100: ='[1]Tabel 2 B DATA'!K149 -> 6 | D100: ='[1]Tabel 2 B DATA'!L149 -> 4.324830038 | F100: ='[1]Tabel 2 B DATA'!N149 -> 6 | G100: ='[1]Tabel 2 B DATA'!O149 -> 4.067236325 | I100: ='[1]Tabel 2 B DATA'!Q149 -> 12 | J100: ='[1]Tabel 2 B DATA'!R149 -> 8.392066363
A102: ='[1]Tabel 2 B DATA'!I151 -> Total | C102: ='[1]Tabel 2 B DATA'!K151 -> 33 | D102: ='[1]Tabel 2 B DATA'!L151 -> 27.9348843 | F102: ='[1]Tabel 2 B DATA'!N151 -> 43 | G102: ='[1]Tabel 2 B DATA'!O151 -> 32.31647228 | I102: ='[1]Tabel 2 B DATA'!Q151 -> 76 | J102: ='[1]Tabel 2 B DATA'!R151 -> 60.25135658
A104: ='[1]Tabel 2 B DATA'!I153 -> Ingeniører i alt | C104: ='[1]Tabel 2 B DATA'!K153 -> 6 | D104: ='[1]Tabel 2 B DATA'!L153 -> 5.090126614 | F104: ='[1]Tabel 2 B DATA'!N153 -> 2 | G104: ='[1]Tabel 2 B DATA'!O153 -> 1.309174827 | I104: ='[1]Tabel 2 B DATA'!Q153 -> 8 | J104: ='[1]Tabel 2 B DATA'!R153 -> 6.399301441
A105: ='[1]Tabel 2 B DATA'!I154 -> Magistre i alt | C105: ='[1]Tabel 2 B DATA'!K154 -> 13 | D105: ='[1]Tabel 2 B DATA'!L154 -> 11.28110772 | F105: ='[1]Tabel 2 B DATA'!N154 -> 15 | G105: ='[1]Tabel 2 B DATA'!O154 -> 12.46990582 | I105: ='[1]Tabel 2 B DATA'!Q154 -> 28 | J105: ='[1]Tabel 2 B DATA'!R154 -> 23.75101353
A106: ='[1]Tabel 2 B DATA'!I155 -> DJØF'ere i alt | C106: ='[1]Tabel 2 B DATA'!K155 -> 4 | D106: ='[1]Tabel 2 B DATA'!L155 -> 3.999251544 | F106: ='[1]Tabel 2 B DATA'!N155 -> 4 | G106: ='[1]Tabel 2 B DATA'!O155 -> 2.77053577 | I106: ='[1]Tabel 2 B DATA'!Q155 -> 8 | J106: ='[1]Tabel 2 B DATA'!R155 -> 6.769787314
A111: ='[1]Tabel 2 B DATA'!I158 -> Christiansø
C113: ='[1]Tabel 2 B DATA'!K160 -> Mænd | F113: ='[1]Tabel 2 B DATA'!N160 -> Kvinder | I113: ='[1]Tabel 2 B DATA'!Q160 -> I alt
C114: ='[1]Tabel 2 B DATA'!K161 -> Ledigheds- berørte | D114: ='[1]Tabel 2 B DATA'!L161 -> Gns. brutto- ledighed | F114: ='[1]Tabel 2 B DATA'!N161 -> Ledigheds- berørte | G114: ='[1]Tabel 2 B DATA'!O161 -> Gns. brutto- ledighed | I114: ='[1]Tabel 2 B DATA'!Q161 -> Ledigheds- berørte | J114: ='[1]Tabel 2 B DATA'!R161 -> Gns. brutto- ledighed
A117: ='[1]Tabel 2 B DATA'!I164 -> Civ. ing. | C117: ='[1]Tabel 2 B DATA'!K164 -> 0 | D117: ='[1]Tabel 2 B DATA'!L164 -> 0 | F117: ='[1]Tabel 2 B DATA'!N164 -> 0 | G117: ='[1]Tabel 2 B DATA'!O164 -> 0 | I117: ='[1]Tabel 2 B DATA'!Q164 -> 0 | J117: ='[1]Tabel 2 B DATA'!R164 -> 0
A118: ='[1]Tabel 2 B DATA'!I165 -> Diplom ing. | C118: ='[1]Tabel 2 B DATA'!K165 -> 0 | D118: ='[1]Tabel 2 B DATA'!L165 -> 0 | F118: ='[1]Tabel 2 B DATA'!N165 -> 0 | G118: ='[1]Tabel 2 B DATA'!O165 -> 0 | I118: ='[1]Tabel 2 B DATA'!Q165 -> 0 | J118: ='[1]Tabel 2 B DATA'!R165 -> 0
A119: ='[1]Tabel 2 B DATA'!I166 -> Cand. Scient. Tek. | C119: ='[1]Tabel 2 B DATA'!K166 -> 0 | D119: ='[1]Tabel 2 B DATA'!L166 -> 0 | F119: ='[1]Tabel 2 B DATA'!N166 -> 0 | G119: ='[1]Tabel 2 B DATA'!O166 -> 0 | I119: ='[1]Tabel 2 B DATA'!Q166 -> 0 | J119: ='[1]Tabel 2 B DATA'!R166 -> 0
A120: ='[1]Tabel 2 B DATA'!I167 -> MA. Hum. | C120: ='[1]Tabel 2 B DATA'!K167 -> 0 | D120: ='[1]Tabel 2 B DATA'!L167 -> 0 | F120: ='[1]Tabel 2 B DATA'!N167 -> 0 | G120: ='[1]Tabel 2 B DATA'!O167 -> 0 | I120: ='[1]Tabel 2 B DATA'!Q167 -> 0 | J120: ='[1]Tabel 2 B DATA'!R167 -> 0
A121: ='[1]Tabel 2 B DATA'!I168 -> MA. Nat. | C121: ='[1]Tabel 2 B DATA'!K168 -> 0 | D121: ='[1]Tabel 2 B DATA'!L168 -> 0 | F121: ='[1]Tabel 2 B DATA'!N168 -> 0 | G121: ='[1]Tabel 2 B DATA'!O168 -> 0 | I121: ='[1]Tabel 2 B DATA'!Q168 -> 0 | J121: ='[1]Tabel 2 B DATA'!R168 -> 0
A122: ='[1]Tabel 2 B DATA'!I169 -> MA. Ph.d. | C122: ='[1]Tabel 2 B DATA'!K169 -> 0 | D122: ='[1]Tabel 2 B DATA'!L169 -> 0 | F122: ='[1]Tabel 2 B DATA'!N169 -> 0 | G122: ='[1]Tabel 2 B DATA'!O169 -> 0 | I122: ='[1]Tabel 2 B DATA'!Q169 -> 0 | J122: ='[1]Tabel 2 B DATA'!R169 -> 0
A123: ='[1]Tabel 2 B DATA'!I170 -> MA. Samf. | C123: ='[1]Tabel 2 B DATA'!K170 -> 0 | D123: ='[1]Tabel 2 B DATA'!L170 -> 0 | F123: ='[1]Tabel 2 B DATA'!N170 -> 0 | G123: ='[1]Tabel 2 B DATA'!O170 -> 0 | I123: ='[1]Tabel 2 B DATA'!Q170 -> 0 | J123: ='[1]Tabel 2 B DATA'!R170 -> 0
A124: ='[1]Tabel 2 B DATA'!I171 -> Øvrige Mag. | C124: ='[1]Tabel 2 B DATA'!K171 -> 0 | D124: ='[1]Tabel 2 B DATA'!L171 -> 0 | F124: ='[1]Tabel 2 B DATA'!N171 -> 0 | G124: ='[1]Tabel 2 B DATA'!O171 -> 0 | I124: ='[1]Tabel 2 B DATA'!Q171 -> 0 | J124: ='[1]Tabel 2 B DATA'!R171 -> 0
A125: ='[1]Tabel 2 B DATA'!I172 -> Agronom | C125: ='[1]Tabel 2 B DATA'!K172 -> 0 | D125: ='[1]Tabel 2 B DATA'!L172 -> 0 | F125: ='[1]Tabel 2 B DATA'!N172 -> 0 | G125: ='[1]Tabel 2 B DATA'!O172 -> 0 | I125: ='[1]Tabel 2 B DATA'!Q172 -> 0 | J125: ='[1]Tabel 2 B DATA'!R172 -> 0
A126: ='[1]Tabel 2 B DATA'!I173 -> Landsk. Arkt. | C126: ='[1]Tabel 2 B DATA'!K173 -> 0 | D126: ='[1]Tabel 2 B DATA'!L173 -> 0 | F126: ='[1]Tabel 2 B DATA'!N173 -> 0 | G126: ='[1]Tabel 2 B DATA'!O173 -> 0 | I126: ='[1]Tabel 2 B DATA'!Q173 -> 0 | J126: ='[1]Tabel 2 B DATA'!R173 -> 0
A127: ='[1]Tabel 2 B DATA'!I174 -> Hortonom | C127: ='[1]Tabel 2 B DATA'!K174 -> 0 | D127: ='[1]Tabel 2 B DATA'!L174 -> 0 | F127: ='[1]Tabel 2 B DATA'!N174 -> 0 | G127: ='[1]Tabel 2 B DATA'!O174 -> 0 | I127: ='[1]Tabel 2 B DATA'!Q174 -> 0 | J127: ='[1]Tabel 2 B DATA'!R174 -> 0
A128: ='[1]Tabel 2 B DATA'!I175 -> Forstkand. | C128: ='[1]Tabel 2 B DATA'!K175 -> 0 | D128: ='[1]Tabel 2 B DATA'!L175 -> 0 | F128: ='[1]Tabel 2 B DATA'!N175 -> 0 | G128: ='[1]Tabel 2 B DATA'!O175 -> 0 | I128: ='[1]Tabel 2 B DATA'!Q175 -> 0 | J128: ='[1]Tabel 2 B DATA'!R175 -> 0
A129: ='[1]Tabel 2 B DATA'!I176 -> Jordbrugsakad. | C129: ='[1]Tabel 2 B DATA'!K176 -> 0 | D129: ='[1]Tabel 2 B DATA'!L176 -> 0 | F129: ='[1]Tabel 2 B DATA'!N176 -> 0 | G129: ='[1]Tabel 2 B DATA'!O176 -> 0 | I129: ='[1]Tabel 2 B DATA'!Q176 -> 0 | J129: ='[1]Tabel 2 B DATA'!R176 -> 0
A130: ='[1]Tabel 2 B DATA'!I177 -> Mejeriing. | C130: ='[1]Tabel 2 B DATA'!K177 -> 0 | D130: ='[1]Tabel 2 B DATA'!L177 -> 0 | F130: ='[1]Tabel 2 B DATA'!N177 -> 0 | G130: ='[1]Tabel 2 B DATA'!O177 -> 0 | I130: ='[1]Tabel 2 B DATA'!Q177 -> 0 | J130: ='[1]Tabel 2 B DATA'!R177 -> 0
A131: ='[1]Tabel 2 B DATA'!I178 -> Levn.m.kand. | C131: ='[1]Tabel 2 B DATA'!K178 -> 0 | D131: ='[1]Tabel 2 B DATA'!L178 -> 0 | F131: ='[1]Tabel 2 B DATA'!N178 -> 0 | G131: ='[1]Tabel 2 B DATA'!O178 -> 0 | I131: ='[1]Tabel 2 B DATA'!Q178 -> 0 | J131: ='[1]Tabel 2 B DATA'!R178 -> 0
A132: ='[1]Tabel 2 B DATA'!I179 -> Dyrlæge | C132: ='[1]Tabel 2 B DATA'!K179 -> 0 | D132: ='[1]Tabel 2 B DATA'!L179 -> 0 | F132: ='[1]Tabel 2 B DATA'!N179 -> 0 | G132: ='[1]Tabel 2 B DATA'!O179 -> 0 | I132: ='[1]Tabel 2 B DATA'!Q179 -> 0 | J132: ='[1]Tabel 2 B DATA'!R179 -> 0
A133: ='[1]Tabel 2 B DATA'!I180 -> Farmaceut | C133: ='[1]Tabel 2 B DATA'!K180 -> 0 | D133: ='[1]Tabel 2 B DATA'!L180 -> 0 | F133: ='[1]Tabel 2 B DATA'!N180 -> 0 | G133: ='[1]Tabel 2 B DATA'!O180 -> 0 | I133: ='[1]Tabel 2 B DATA'!Q180 -> 0 | J133: ='[1]Tabel 2 B DATA'!R180 -> 0
A134: ='[1]Tabel 2 B DATA'!I181 -> Læge | C134: ='[1]Tabel 2 B DATA'!K181 -> 0 | D134: ='[1]Tabel 2 B DATA'!L181 -> 0 | F134: ='[1]Tabel 2 B DATA'!N181 -> 0 | G134: ='[1]Tabel 2 B DATA'!O181 -> 0 | I134: ='[1]Tabel 2 B DATA'!Q181 -> 0 | J134: ='[1]Tabel 2 B DATA'!R181 -> 0
A135: ='[1]Tabel 2 B DATA'!I182 -> Tandlæge | C135: ='[1]Tabel 2 B DATA'!K182 -> 0 | D135: ='[1]Tabel 2 B DATA'!L182 -> 0 | F135: ='[1]Tabel 2 B DATA'!N182 -> 0 | G135: ='[1]Tabel 2 B DATA'!O182 -> 0 | I135: ='[1]Tabel 2 B DATA'!Q182 -> 0 | J135: ='[1]Tabel 2 B DATA'!R182 -> 0
A136: ='[1]Tabel 2 B DATA'!I183 -> Arkitekt | C136: ='[1]Tabel 2 B DATA'!K183 -> 0 | D136: ='[1]Tabel 2 B DATA'!L183 -> 0 | F136: ='[1]Tabel 2 B DATA'!N183 -> 0 | G136: ='[1]Tabel 2 B DATA'!O183 -> 0 | I136: ='[1]Tabel 2 B DATA'!Q183 -> 0 | J136: ='[1]Tabel 2 B DATA'!R183 -> 0
A137: ='[1]Tabel 2 B DATA'!I184 -> Landinspek. | C137: ='[1]Tabel 2 B DATA'!K184 -> 0 | D137: ='[1]Tabel 2 B DATA'!L184 -> 0 | F137: ='[1]Tabel 2 B DATA'!N184 -> 0 | G137: ='[1]Tabel 2 B DATA'!O184 -> 0 | I137: ='[1]Tabel 2 B DATA'!Q184 -> 0 | J137: ='[1]Tabel 2 B DATA'!R184 -> 0
A138: ='[1]Tabel 2 B DATA'!I185 -> Bibliotekar | C138: ='[1]Tabel 2 B DATA'!K185 -> 0 | D138: ='[1]Tabel 2 B DATA'!L185 -> 0 | F138: ='[1]Tabel 2 B DATA'!N185 -> 0 | G138: ='[1]Tabel 2 B DATA'!O185 -> 0 | I138: ='[1]Tabel 2 B DATA'!Q185 -> 0 | J138: ='[1]Tabel 2 B DATA'!R185 -> 0
A139: ='[1]Tabel 2 B DATA'!I186 -> Musikudd. | C139: ='[1]Tabel 2 B DATA'!K186 -> 0 | D139: ='[1]Tabel 2 B DATA'!L186 -> 0 | F139: ='[1]Tabel 2 B DATA'!N186 -> 0 | G139: ='[1]Tabel 2 B DATA'!O186 -> 0 | I139: ='[1]Tabel 2 B DATA'!Q186 -> 0 | J139: ='[1]Tabel 2 B DATA'!R186 -> 0
A140: ='[1]Tabel 2 B DATA'!I187 -> Teolog | C140: ='[1]Tabel 2 B DATA'!K187 -> 0 | D140: ='[1]Tabel 2 B DATA'!L187 -> 0 | F140: ='[1]Tabel 2 B DATA'!N187 -> 0 | G140: ='[1]Tabel 2 B DATA'!O187 -> 0 | I140: ='[1]Tabel 2 B DATA'!Q187 -> 0 | J140: ='[1]Tabel 2 B DATA'!R187 -> 0
A141: ='[1]Tabel 2 B DATA'!I188 -> Psykolog | C141: ='[1]Tabel 2 B DATA'!K188 -> 0 | D141: ='[1]Tabel 2 B DATA'!L188 -> 0 | F141: ='[1]Tabel 2 B DATA'!N188 -> 0 | G141: ='[1]Tabel 2 B DATA'!O188 -> 0 | I141: ='[1]Tabel 2 B DATA'!Q188 -> 0 | J141: ='[1]Tabel 2 B DATA'!R188 -> 0
A142: ='[1]Tabel 2 B DATA'!I189 -> Jurist | C142: ='[1]Tabel 2 B DATA'!K189 -> 0 | D142: ='[1]Tabel 2 B DATA'!L189 -> 0 | F142: ='[1]Tabel 2 B DATA'!N189 -> 0 | G142: ='[1]Tabel 2 B DATA'!O189 -> 0 | I142: ='[1]Tabel 2 B DATA'!Q189 -> 0 | J142: ='[1]Tabel 2 B DATA'!R189 -> 0
A143: ='[1]Tabel 2 B DATA'!I190 -> Økonom | C143: ='[1]Tabel 2 B DATA'!K190 -> 0 | D143: ='[1]Tabel 2 B DATA'!L190 -> 0 | F143: ='[1]Tabel 2 B DATA'!N190 -> 0 | G143: ='[1]Tabel 2 B DATA'!O190 -> 0 | I143: ='[1]Tabel 2 B DATA'!Q190 -> 0 | J143: ='[1]Tabel 2 B DATA'!R190 -> 0
A144: ='[1]Tabel 2 B DATA'!I191 -> Samf. Adm. | C144: ='[1]Tabel 2 B DATA'!K191 -> 0 | D144: ='[1]Tabel 2 B DATA'!L191 -> 0 | F144: ='[1]Tabel 2 B DATA'!N191 -> 0 | G144: ='[1]Tabel 2 B DATA'!O191 -> 0 | I144: ='[1]Tabel 2 B DATA'!Q191 -> 0 | J144: ='[1]Tabel 2 B DATA'!R191 -> 0
A145: ='[1]Tabel 2 B DATA'!I192 -> Cand. Merc. | C145: ='[1]Tabel 2 B DATA'!K192 -> 0 | D145: ='[1]Tabel 2 B DATA'!L192 -> 0 | F145: ='[1]Tabel 2 B DATA'!N192 -> 0 | G145: ='[1]Tabel 2 B DATA'!O192 -> 0 | I145: ='[1]Tabel 2 B DATA'!Q192 -> 0 | J145: ='[1]Tabel 2 B DATA'!R192 -> 0
A146: ='[1]Tabel 2 B DATA'!I193 -> HA | C146: ='[1]Tabel 2 B DATA'!K193 -> 0 | D146: ='[1]Tabel 2 B DATA'!L193 -> 0 | F146: ='[1]Tabel 2 B DATA'!N193 -> 0 | G146: ='[1]Tabel 2 B DATA'!O193 -> 0 | I146: ='[1]Tabel 2 B DATA'!Q193 -> 0 | J146: ='[1]Tabel 2 B DATA'!R193 -> 0
A147: ='[1]Tabel 2 B DATA'!I194 -> HD | C147: ='[1]Tabel 2 B DATA'!K194 -> 0 | D147: ='[1]Tabel 2 B DATA'!L194 -> 0 | F147: ='[1]Tabel 2 B DATA'!N194 -> 0 | G147: ='[1]Tabel 2 B DATA'!O194 -> 0 | I147: ='[1]Tabel 2 B DATA'!Q194 -> 0 | J147: ='[1]Tabel 2 B DATA'!R194 -> 0
A148: ='[1]Tabel 2 B DATA'!I195 -> Komm. og Sprog | C148: ='[1]Tabel 2 B DATA'!K195 -> 0 | D148: ='[1]Tabel 2 B DATA'!L195 -> 0 | F148: ='[1]Tabel 2 B DATA'!N195 -> 0 | G148: ='[1]Tabel 2 B DATA'!O195 -> 0 | I148: ='[1]Tabel 2 B DATA'!Q195 -> 0 | J148: ='[1]Tabel 2 B DATA'!R195 -> 0
A149: ='[1]Tabel 2 B DATA'!I196 -> Bygningskonst | C149: ='[1]Tabel 2 B DATA'!K196 -> 0 | D149: ='[1]Tabel 2 B DATA'!L196 -> 0 | F149: ='[1]Tabel 2 B DATA'!N196 -> 0 | G149: ='[1]Tabel 2 B DATA'!O196 -> 0 | I149: ='[1]Tabel 2 B DATA'!Q196 -> 0 | J149: ='[1]Tabel 2 B DATA'!R196 -> 0
A150: ='[1]Tabel 2 B DATA'!I197 -> Cand. IT. | C150: ='[1]Tabel 2 B DATA'!K197 -> 0 | D150: ='[1]Tabel 2 B DATA'!L197 -> 0 | F150: ='[1]Tabel 2 B DATA'!N197 -> 0 | G150: ='[1]Tabel 2 B DATA'!O197 -> 0 | I150: ='[1]Tabel 2 B DATA'!Q197 -> 0 | J150: ='[1]Tabel 2 B DATA'!R197 -> 0
A151: ='[1]Tabel 2 B DATA'!I198 -> Bac. Samf. | C151: ='[1]Tabel 2 B DATA'!K198 -> 0 | D151: ='[1]Tabel 2 B DATA'!L198 -> 0 | F151: ='[1]Tabel 2 B DATA'!N198 -> 0 | G151: ='[1]Tabel 2 B DATA'!O198 -> 0 | I151: ='[1]Tabel 2 B DATA'!Q198 -> 0 | J151: ='[1]Tabel 2 B DATA'!R198 -> 0
A152: ='[1]Tabel 2 B DATA'!I199 -> Bac. Hum. | C152: ='[1]Tabel 2 B DATA'!K199 -> 0 | D152: ='[1]Tabel 2 B DATA'!L199 -> 0 | F152: ='[1]Tabel 2 B DATA'!N199 -> 0 | G152: ='[1]Tabel 2 B DATA'!O199 -> 0 | I152: ='[1]Tabel 2 B DATA'!Q199 -> 0 | J152: ='[1]Tabel 2 B DATA'!R199 -> 0
A153: ='[1]Tabel 2 B DATA'!I200 -> Bac. Nat. | C153: ='[1]Tabel 2 B DATA'!K200 -> 0 | D153: ='[1]Tabel 2 B DATA'!L200 -> 0 | F153: ='[1]Tabel 2 B DATA'!N200 -> 0 | G153: ='[1]Tabel 2 B DATA'!O200 -> 0 | I153: ='[1]Tabel 2 B DATA'!Q200 -> 0 | J153: ='[1]Tabel 2 B DATA'!R200 -> 0
A154: ='[1]Tabel 2 B DATA'!I201 -> Andre | C154: ='[1]Tabel 2 B DATA'!K201 -> 0 | D154: ='[1]Tabel 2 B DATA'!L201 -> 0 | F154: ='[1]Tabel 2 B DATA'!N201 -> 0 | G154: ='[1]Tabel 2 B DATA'!O201 -> 0 | I154: ='[1]Tabel 2 B DATA'!Q201 -> 0 | J154: ='[1]Tabel 2 B DATA'!R201 -> 0
A156: ='[1]Tabel 2 B DATA'!I203 -> Total | C156: ='[1]Tabel 2 B DATA'!K203 -> 0 | D156: ='[1]Tabel 2 B DATA'!L203 -> 0 | F156: ='[1]Tabel 2 B DATA'!N203 -> 0 | G156: ='[1]Tabel 2 B DATA'!O203 -> 0 | I156: ='[1]Tabel 2 B DATA'!Q203 -> 0 | J156: ='[1]Tabel 2 B DATA'!R203 -> 0
A158: ='[1]Tabel 2 B DATA'!I205 -> Ingeniører i alt | C158: ='[1]Tabel 2 B DATA'!K205 -> 0 | D158: ='[1]Tabel 2 B DATA'!L205 -> 0 | F158: ='[1]Tabel 2 B DATA'!N205 -> 0 | G158: ='[1]Tabel 2 B DATA'!O205 -> 0 | I158: ='[1]Tabel 2 B DATA'!Q205 -> 0 | J158: ='[1]Tabel 2 B DATA'!R205 -> 0
A159: ='[1]Tabel 2 B DATA'!I206 -> Magistre i alt | C159: ='[1]Tabel 2 B DATA'!K206 -> 0 | D159: ='[1]Tabel 2 B DATA'!L206 -> 0 | F159: ='[1]Tabel 2 B DATA'!N206 -> 0 | G159: ='[1]Tabel 2 B DATA'!O206 -> 0 | I159: ='[1]Tabel 2 B DATA'!Q206 -> 0 | J159: ='[1]Tabel 2 B DATA'!R206 -> 0
A160: ='[1]Tabel 2 B DATA'!I207 -> DJØF'ere i alt | C160: ='[1]Tabel 2 B DATA'!K207 -> 0 | D160: ='[1]Tabel 2 B DATA'!L207 -> 0 | F160: ='[1]Tabel 2 B DATA'!N207 -> 0 | G160: ='[1]Tabel 2 B DATA'!O207 -> 0 | I160: ='[1]Tabel 2 B DATA'!Q207 -> 0 | J160: ='[1]Tabel 2 B DATA'!R207 -> 0

Sheet Tabel 3 B
A1: Tabel 3. Ledige i procent af forsikrede
A3: Bornholm
C5: Mænd | F5: Kvinder | I5: I alt
C6: Ledigheds- berørte | D6: Gns. brutto- ledighed | F6: Ledigheds- berørte | G6: Gns. brutto- ledighed | I6: Ledigheds- berørte | J6: Gns. brutto- ledighed
A9: Civ. ing. | C9: =IF(OR('Tabel 1 B'!C7<5, 'Tabel 2 B'!C9<0.5),"-",IFERROR('Tabel 2 B'!C9/'Tabel 1 B'!C7*100,"-")) -> 6.896551724 | D9: =IF(OR('Tabel 1 B'!C7<5,'Tabel 2 B'!D9<0.5),"-",IFERROR('Tabel 2 B'!D9/'Tabel 1 B'!C7*100,"-")) -> 6.895261282 | F9: =IF(OR('Tabel 1 B'!E7<5, 'Tabel 2 B'!F9<0.5),"-",IFERROR('Tabel 2 B'!F9/'Tabel 1 B'!E7*100,"-")) -> 20 | G9: =IF(OR('Tabel 1 B'!E7<5,'Tabel 2 B'!G9<0.5),"-",IFERROR('Tabel 2 B'!G9/'Tabel 1 B'!E7*100,"-")) -> - | I9: =IF(OR('Tabel 1 B'!G7<5,'Tabel 2 B'!I9<0.5),"-",IFERROR('Tabel 2 B'!I9/'Tabel 1 B'!G7*100,"-")) -> 8.823529412 | J9: =IF(OR('Tabel 1 B'!G7<5,'Tabel 2 B'!J9<0.5),"-",IFERROR('Tabel 2 B'!J9/'Tabel 1 B'!G7*100,"-")) -> 6.983757764
A10: Diplom ing. | C10: =IF(OR('Tabel 1 B'!C8<5, 'Tabel 2 B'!C10<0.5),"-",IFERROR('Tabel 2 B'!C10/'Tabel 1 B'!C8*100,"-")) -> 7.272727273 | D10: =IF(OR('Tabel 1 B'!C8<5,'Tabel 2 B'!D10<0.5),"-",IFERROR('Tabel 2 B'!D10/'Tabel 1 B'!C8*100,"-")) -> 5.61909244 | F10: =IF(OR('Tabel 1 B'!E8<5, 'Tabel 2 B'!F10<0.5),"-",IFERROR('Tabel 2 B'!F10/'Tabel 1 B'!E8*100,"-")) -> 12.5 | G10: =IF(OR('Tabel 1 B'!E8<5,'Tabel 2 B'!G10<0.5),"-",IFERROR('Tabel 2 B'!G10/'Tabel 1 B'!E8*100,"-")) -> 11.67903699 | I10: =IF(OR('Tabel 1 B'!G8<5,'Tabel 2 B'!I10<0.5),"-",IFERROR('Tabel 2 B'!I10/'Tabel 1 B'!G8*100,"-")) -> 7.936507937 | J10: =IF(OR('Tabel 1 B'!G8<5,'Tabel 2 B'!J10<0.5),"-",IFERROR('Tabel 2 B'!J10/'Tabel 1 B'!G8*100,"-")) -> 6.388609208
A11: Cand. Scient. Tek. | C11: =IF(OR('Tabel 1 B'!C9<5, 'Tabel 2 B'!C11<0.5),"-",IFERROR('Tabel 2 B'!C11/'Tabel 1 B'!C9*100,"-")) -> 6.25 | D11: =IF(OR('Tabel 1 B'!C9<5,'Tabel 2 B'!D11<0.5),"-",IFERROR('Tabel 2 B'!D11/'Tabel 1 B'!C9*100,"-")) -> - | F11: =IF(OR('Tabel 1 B'!E9<5, 'Tabel 2 B'!F11<0.5),"-",IFERROR('Tabel 2 B'!F11/'Tabel 1 B'!E9*100,"-")) -> 25 | G11: =IF(OR('Tabel 1 B'!E9<5,'Tabel 2 B'!G11<0.5),"-",IFERROR('Tabel 2 B'!G11/'Tabel 1 B'!E9*100,"-")) -> 14.53252666 | I11: =IF(OR('Tabel 1 B'!G9<5,'Tabel 2 B'!I11<0.5),"-",IFERROR('Tabel 2 B'!I11/'Tabel 1 B'!G9*100,"-")) -> 15.625 | J11: =IF(OR('Tabel 1 B'!G9<5,'Tabel 2 B'!J11<0.5),"-",IFERROR('Tabel 2 B'!J11/'Tabel 1 B'!G9*100,"-")) -> 8.016668746
A12: MA. Hum. | C12: =IF(OR('Tabel 1 B'!C10<5, 'Tabel 2 B'!C12<0.5),"-",IFERROR('Tabel 2 B'!C12/'Tabel 1 B'!C10*100,"-")) -> 17.94871795 | D12: =IF(OR('Tabel 1 B'!C10<5,'Tabel 2 B'!D12<0.5),"-",IFERROR('Tabel 2 B'!D12/'Tabel 1 B'!C10*100,"-")) -> 16.47403512 | F12: =IF(OR('Tabel 1 B'!E10<5, 'Tabel 2 B'!F12<0.5),"-",IFERROR('Tabel 2 B'!F12/'Tabel 1 B'!E10*100,"-")) -> 12.79069767 | G12: =IF(OR('Tabel 1 B'!E10<5,'Tabel 2 B'!G12<0.5),"-",IFERROR('Tabel 2 B'!G12/'Tabel 1 B'!E10*100,"-")) -> 9.849597995 | I12: =IF(OR('Tabel 1 B'!G10<5,'Tabel 2 B'!I12<0.5),"-",IFERROR('Tabel 2 B'!I12/'Tabel 1 B'!G10*100,"-")) -> 14.4 | J12: =IF(OR('Tabel 1 B'!G10<5,'Tabel 2 B'!J12<0.5),"-",IFERROR('Tabel 2 B'!J12/'Tabel 1 B'!G10*100,"-")) -> 11.91642238
A13: MA. Nat. | C13: =IF(OR('Tabel 1 B'!C11<5, 'Tabel 2 B'!C13<0.5),"-",IFERROR('Tabel 2 B'!C13/'Tabel 1 B'!C11*100,"-")) -> 12 | D13: =IF(OR('Tabel 1 B'!C11<5,'Tabel 2 B'!D13<0.5),"-",IFERROR('Tabel 2 B'!D13/'Tabel 1 B'!C11*100,"-")) -> 8.719515998 | F13: =IF(OR('Tabel 1 B'!E11<5, 'Tabel 2 B'!F13<0.5),"-",IFERROR('Tabel 2 B'!F13/'Tabel 1 B'!E11*100,"-")) -> - | G13: =IF(OR('Tabel 1 B'!E11<5,'Tabel 2 B'!G13<0.5),"-",IFERROR('Tabel 2 B'!G13/'Tabel 1 B'!E11*100,"-")) -> - | I13: =IF(OR('Tabel 1 B'!G11<5,'Tabel 2 B'!I13<0.5),"-",IFERROR('Tabel 2 B'!I13/'Tabel 1 B'!G11*100,"-")) -> 6.52173913 | J13: =IF(OR('Tabel 1 B'!G11<5,'Tabel 2 B'!J13<0.5),"-",IFERROR('Tabel 2 B'!J13/'Tabel 1 B'!G11*100,"-")) -> 4.73886739
A14: MA. Ph.d. | C14: =IF(OR('Tabel 1 B'!C12<5, 'Tabel 2 B'!C14<0.5),"-",IFERROR('Tabel 2 B'!C14/'Tabel 1 B'!C12*100,"-")) -> - | D14: =IF(OR('Tabel 1 B'!C12<5,'Tabel 2 B'!D14<0.5),"-",IFERROR('Tabel 2 B'!D14/'Tabel 1 B'!C12*100,"-")) -> - | F14: =IF(OR('Tabel 1 B'!E12<5, 'Tabel 2 B'!F14<0.5),"-",IFERROR('Tabel 2 B'!F14/'Tabel 1 B'!E12*100,"-")) -> - | G14: =IF(OR('Tabel 1 B'!E12<5,'Tabel 2 B'!G14<0.5),"-",IFERROR('Tabel 2 B'!G14/'Tabel 1 B'!E12*100,"-")) -> - | I14: =IF(OR('Tabel 1 B'!G12<5,'Tabel 2 B'!I14<0.5),"-",IFERROR('Tabel 2 B'!I14/'Tabel 1 B'!G12*100,"-")) -> 14.28571429 | J14: =IF(OR('Tabel 1 B'!G12<5,'Tabel 2 B'!J14<0.5),"-",IFERROR('Tabel 2 B'!J14/'Tabel 1 B'!G12*100,"-")) -> 14.28304123
A15: MA. Samf. | C15: =IF(OR('Tabel 1 B'!C13<5, 'Tabel 2 B'!C15<0.5),"-",IFERROR('Tabel 2 B'!C15/'Tabel 1 B'!C13*100,"-")) -> - | D15: =IF(OR('Tabel 1 B'!C13<5,'Tabel 2 B'!D15<0.5),"-",IFERROR('Tabel 2 B'!D15/'Tabel 1 B'!C13*100,"-")) -> - | F15: =IF(OR('Tabel 1 B'!E13<5, 'Tabel 2 B'!F15<0.5),"-",IFERROR('Tabel 2 B'!F15/'Tabel 1 B'!E13*100,"-")) -> - | G15: =IF(OR('Tabel 1 B'!E13<5,'Tabel 2 B'!G15<0.5),"-",IFERROR('Tabel 2 B'!G15/'Tabel 1 B'!E13*100,"-")) -> - | I15: =IF(OR('Tabel 1 B'!G13<5,'Tabel 2 B'!I15<0.5),"-",IFERROR('Tabel 2 B'!I15/'Tabel 1 B'!G13*100,"-")) -> 6.666666667 | J15: =IF(OR('Tabel 1 B'!G13<5,'Tabel 2 B'!J15<0.5),"-",IFERROR('Tabel 2 B'!J15/'Tabel 1 B'!G13*100,"-")) -> 6.665419239
A16: Øvrige Mag. | C16: =IF(OR('Tabel 1 B'!C14<5, 'Tabel 2 B'!C16<0.5),"-",IFERROR('Tabel 2 B'!C16/'Tabel 1 B'!C14*100,"-")) -> 28.57142857 | D16: =IF(OR('Tabel 1 B'!C14<5,'Tabel 2 B'!D16<0.5),"-",IFERROR('Tabel 2 B'!D16/'Tabel 1 B'!C14*100,"-")) -> 23.95060188 | F16: =IF(OR('Tabel 1 B'!E14<5, 'Tabel 2 B'!F16<0.5),"-",IFERROR('Tabel 2 B'!F16/'Tabel 1 B'!E14*100,"-")) -> 33.33333333 | G16: =IF(OR('Tabel 1 B'!E14<5,'Tabel 2 B'!G16<0.5),"-",IFERROR('Tabel 2 B'!G16/'Tabel 1 B'!E14*100,"-")) -> 33.3270962 | I16: =IF(OR('Tabel 1 B'!G14<5,'Tabel 2 B'!I16<0.5),"-",IFERROR('Tabel 2 B'!I16/'Tabel 1 B'!G14*100,"-")) -> 31.25 | J16: =IF(OR('Tabel 1 B'!G14<5,'Tabel 2 B'!J16<0.5),"-",IFERROR('Tabel 2 B'!J16/'Tabel 1 B'!G14*100,"-")) -> 29.22487994
A17: Agronom | C17: =IF(OR('Tabel 1 B'!C15<5, 'Tabel 2 B'!C17<0.5),"-",IFERROR('Tabel 2 B'!C17/'Tabel 1 B'!C15*100,"-")) -> - | D17: =IF(OR('Tabel 1 B'!C15<5,'Tabel 2 B'!D17<0.5),"-",IFERROR('Tabel 2 B'!D17/'Tabel 1 B'!C15*100,"-")) -> - | F17: =IF(OR('Tabel 1 B'!E15<5, 'Tabel 2 B'!F17<0.5),"-",IFERROR('Tabel 2 B'!F17/'Tabel 1 B'!E15*100,"-")) -> - | G17: =IF(OR('Tabel 1 B'!E15<5,'Tabel 2 B'!G17<0.5),"-",IFERROR('Tabel 2 B'!G17/'Tabel 1 B'!E15*100,"-")) -> - | I17: =IF(OR('Tabel 1 B'!G15<5,'Tabel 2 B'!I17<0.5),"-",IFERROR('Tabel 2 B'!I17/'Tabel 1 B'!G15*100,"-")) -> - | J17: =IF(OR('Tabel 1 B'!G15<5,'Tabel 2 B'!J17<0.5),"-",IFERROR('Tabel 2 B'!J17/'Tabel 1 B'!G15*100,"-")) -> -
A18: Landsk. Arkt. | C18: =IF(OR('Tabel 1 B'!C16<5, 'Tabel 2 B'!C18<0.5),"-",IFERROR('Tabel 2 B'!C18/'Tabel 1 B'!C16*100,"-")) -> - | D18: =IF(OR('Tabel 1 B'!C16<5,'Tabel 2 B'!D18<0.5),"-",IFERROR('Tabel 2 B'!D18/'Tabel 1 B'!C16*100,"-")) -> - | F18: =IF(OR('Tabel 1 B'!E16<5, 'Tabel 2 B'!F18<0.5),"-",IFERROR('Tabel 2 B'!F18/'Tabel 1 B'!E16*100,"-")) -> - | G18: =IF(OR('Tabel 1 B'!E16<5,'Tabel 2 B'!G18<0.5),"-",IFERROR('Tabel 2 B'!G18/'Tabel 1 B'!E16*100,"-")) -> - | I18: =IF(OR('Tabel 1 B'!G16<5,'Tabel 2 B'!I18<0.5),"-",IFERROR('Tabel 2 B'!I18/'Tabel 1 B'!G16*100,"-")) -> - | J18: =IF(OR('Tabel 1 B'!G16<5,'Tabel 2 B'!J18<0.5),"-",IFERROR('Tabel 2 B'!J18/'Tabel 1 B'!G16*100,"-")) -> -
A19: Hortonom | C19: =IF(OR('Tabel 1 B'!C17<5, 'Tabel 2 B'!C19<0.5),"-",IFERROR('Tabel 2 B'!C19/'Tabel 1 B'!C17*100,"-")) -> - | D19: =IF(OR('Tabel 1 B'!C17<5,'Tabel 2 B'!D19<0.5),"-",IFERROR('Tabel 2 B'!D19/'Tabel 1 B'!C17*100,"-")) -> - | F19: =IF(OR('Tabel 1 B'!E17<5, 'Tabel 2 B'!F19<0.5),"-",IFERROR('Tabel 2 B'!F19/'Tabel 1 B'!E17*100,"-")) -> - | G19: =IF(OR('Tabel 1 B'!E17<5,'Tabel 2 B'!G19<0.5),"-",IFERROR('Tabel 2 B'!G19/'Tabel 1 B'!E17*100,"-")) -> - | I19: =IF(OR('Tabel 1 B'!G17<5,'Tabel 2 B'!I19<0.5),"-",IFERROR('Tabel 2 B'!I19/'Tabel 1 B'!G17*100,"-")) -> - | J19: =IF(OR('Tabel 1 B'!G17<5,'Tabel 2 B'!J19<0.5),"-",IFERROR('Tabel 2 B'!J19/'Tabel 1 B'!G17*100,"-")) -> -
A20: Forstkand. | C20: =IF(OR('Tabel 1 B'!C18<5, 'Tabel 2 B'!C20<0.5),"-",IFERROR('Tabel 2 B'!C20/'Tabel 1 B'!C18*100,"-")) -> - | D20: =IF(OR('Tabel 1 B'!C18<5,'Tabel 2 B'!D20<0.5),"-",IFERROR('Tabel 2 B'!D20/'Tabel 1 B'!C18*100,"-")) -> - | F20: =IF(OR('Tabel 1 B'!E18<5, 'Tabel 2 B'!F20<0.5),"-",IFERROR('Tabel 2 B'!F20/'Tabel 1 B'!E18*100,"-")) -> - | G20: =IF(OR('Tabel 1 B'!E18<5,'Tabel 2 B'!G20<0.5),"-",IFERROR('Tabel 2 B'!G20/'Tabel 1 B'!E18*100,"-")) -> - | I20: =IF(OR('Tabel 1 B'!G18<5,'Tabel 2 B'!I20<0.5),"-",IFERROR('Tabel 2 B'!I20/'Tabel 1 B'!G18*100,"-")) -> - | J20: =IF(OR('Tabel 1 B'!G18<5,'Tabel 2 B'!J20<0.5),"-",IFERROR('Tabel 2 B'!J20/'Tabel 1 B'!G18*100,"-")) -> -
A21: Jordbrugsakad. | C21: =IF(OR('Tabel 1 B'!C19<5, 'Tabel 2 B'!C21<0.5),"-",IFERROR('Tabel 2 B'!C21/'Tabel 1 B'!C19*100,"-")) -> - | D21: =IF(OR('Tabel 1 B'!C19<5,'Tabel 2 B'!D21<0.5),"-",IFERROR('Tabel 2 B'!D21/'Tabel 1 B'!C19*100,"-")) -> - | F21: =IF(OR('Tabel 1 B'!E19<5, 'Tabel 2 B'!F21<0.5),"-",IFERROR('Tabel 2 B'!F21/'Tabel 1 B'!E19*100,"-")) -> - | G21: =IF(OR('Tabel 1 B'!E19<5,'Tabel 2 B'!G21<0.5),"-",IFERROR('Tabel 2 B'!G21/'Tabel 1 B'!E19*100,"-")) -> - | I21: =IF(OR('Tabel 1 B'!G19<5,'Tabel 2 B'!I21<0.5),"-",IFERROR('Tabel 2 B'!I21/'Tabel 1 B'!G19*100,"-")) -> - | J21: =IF(OR('Tabel 1 B'!G19<5,'Tabel 2 B'!J21<0.5),"-",IFERROR('Tabel 2 B'!J21/'Tabel 1 B'!G19*100,"-")) -> -
A22: Mejeriing. | C22: =IF(OR('Tabel 1 B'!C20<5, 'Tabel 2 B'!C22<0.5),"-",IFERROR('Tabel 2 B'!C22/'Tabel 1 B'!C20*100,"-")) -> - | D22: =IF(OR('Tabel 1 B'!C20<5,'Tabel 2 B'!D22<0.5),"-",IFERROR('Tabel 2 B'!D22/'Tabel 1 B'!C20*100,"-")) -> - | F22: =IF(OR('Tabel 1 B'!E20<5, 'Tabel 2 B'!F22<0.5),"-",IFERROR('Tabel 2 B'!F22/'Tabel 1 B'!E20*100,"-")) -> - | G22: =IF(OR('Tabel 1 B'!E20<5,'Tabel 2 B'!G22<0.5),"-",IFERROR('Tabel 2 B'!G22/'Tabel 1 B'!E20*100,"-")) -> - | I22: =IF(OR('Tabel 1 B'!G20<5,'Tabel 2 B'!I22<0.5),"-",IFERROR('Tabel 2 B'!I22/'Tabel 1 B'!G20*100,"-")) -> - | J22: =IF(OR('Tabel 1 B'!G20<5,'Tabel 2 B'!J22<0.5),"-",IFERROR('Tabel 2 B'!J22/'Tabel 1 B'!G20*100,"-")) -> -
A23: Levn.m.kand. | C23: =IF(OR('Tabel 1 B'!C21<5, 'Tabel 2 B'!C23<0.5),"-",IFERROR('Tabel 2 B'!C23/'Tabel 1 B'!C21*100,"-")) -> - | D23: =IF(OR('Tabel 1 B'!C21<5,'Tabel 2 B'!D23<0.5),"-",IFERROR('Tabel 2 B'!D23/'Tabel 1 B'!C21*100,"-")) -> - | F23: =IF(OR('Tabel 1 B'!E21<5, 'Tabel 2 B'!F23<0.5),"-",IFERROR('Tabel 2 B'!F23/'Tabel 1 B'!E21*100,"-")) -> - | G23: =IF(OR('Tabel 1 B'!E21<5,'Tabel 2 B'!G23<0.5),"-",IFERROR('Tabel 2 B'!G23/'Tabel 1 B'!E21*100,"-")) -> - | I23: =IF(OR('Tabel 1 B'!G21<5,'Tabel 2 B'!I23<0.5),"-",IFERROR('Tabel 2 B'!I23/'Tabel 1 B'!G21*100,"-")) -> - | J23: =IF(OR('Tabel 1 B'!G21<5,'Tabel 2 B'!J23<0.5),"-",IFERROR('Tabel 2 B'!J23/'Tabel 1 B'!G21*100,"-")) -> -
A24: Dyrlæge | C24: =IF(OR('Tabel 1 B'!C22<5, 'Tabel 2 B'!C24<0.5),"-",IFERROR('Tabel 2 B'!C24/'Tabel 1 B'!C22*100,"-")) -> - | D24: =IF(OR('Tabel 1 B'!C22<5,'Tabel 2 B'!D24<0.5),"-",IFERROR('Tabel 2 B'!D24/'Tabel 1 B'!C22*100,"-")) -> - | F24: =IF(OR('Tabel 1 B'!E22<5, 'Tabel 2 B'!F24<0.5),"-",IFERROR('Tabel 2 B'!F24/'Tabel 1 B'!E22*100,"-")) -> - | G24: =IF(OR('Tabel 1 B'!E22<5,'Tabel 2 B'!G24<0.5),"-",IFERROR('Tabel 2 B'!G24/'Tabel 1 B'!E22*100,"-")) -> - | I24: =IF(OR('Tabel 1 B'!G22<5,'Tabel 2 B'!I24<0.5),"-",IFERROR('Tabel 2 B'!I24/'Tabel 1 B'!G22*100,"-")) -> - | J24: =IF(OR('Tabel 1 B'!G22<5,'Tabel 2 B'!J24<0.5),"-",IFERROR('Tabel 2 B'!J24/'Tabel 1 B'!G22*100,"-")) -> -
A25: Farmaceut | C25: =IF(OR('Tabel 1 B'!C23<5, 'Tabel 2 B'!C25<0.5),"-",IFERROR('Tabel 2 B'!C25/'Tabel 1 B'!C23*100,"-")) -> - | D25: =IF(OR('Tabel 1 B'!C23<5,'Tabel 2 B'!D25<0.5),"-",IFERROR('Tabel 2 B'!D25/'Tabel 1 B'!C23*100,"-")) -> - | F25: =IF(OR('Tabel 1 B'!E23<5, 'Tabel 2 B'!F25<0.5),"-",IFERROR('Tabel 2 B'!F25/'Tabel 1 B'!E23*100,"-")) -> - | G25: =IF(OR('Tabel 1 B'!E23<5,'Tabel 2 B'!G25<0.5),"-",IFERROR('Tabel 2 B'!G25/'Tabel 1 B'!E23*100,"-")) -> - | I25: =IF(OR('Tabel 1 B'!G23<5,'Tabel 2 B'!I25<0.5),"-",IFERROR('Tabel 2 B'!I25/'Tabel 1 B'!G23*100,"-")) -> - | J25: =IF(OR('Tabel 1 B'!G23<5,'Tabel 2 B'!J25<0.5),"-",IFERROR('Tabel 2 B'!J25/'Tabel 1 B'!G23*100,"-")) -> -
A26: Læge | C26: =IF(OR('Tabel 1 B'!C24<5, 'Tabel 2 B'!C26<0.5),"-",IFERROR('Tabel 2 B'!C26/'Tabel 1 B'!C24*100,"-")) -> - | D26: =IF(OR('Tabel 1 B'!C24<5,'Tabel 2 B'!D26<0.5),"-",IFERROR('Tabel 2 B'!D26/'Tabel 1 B'!C24*100,"-")) -> - | F26: =IF(OR('Tabel 1 B'!E24<5, 'Tabel 2 B'!F26<0.5),"-",IFERROR('Tabel 2 B'!F26/'Tabel 1 B'!E24*100,"-")) -> 4.545454545 | G26: =IF(OR('Tabel 1 B'!E24<5,'Tabel 2 B'!G26<0.5),"-",IFERROR('Tabel 2 B'!G26/'Tabel 1 B'!E24*100,"-")) -> 4.544604027 | I26: =IF(OR('Tabel 1 B'!G24<5,'Tabel 2 B'!I26<0.5),"-",IFERROR('Tabel 2 B'!I26/'Tabel 1 B'!G24*100,"-")) -> 3.225806452 | J26: =IF(OR('Tabel 1 B'!G24<5,'Tabel 2 B'!J26<0.5),"-",IFERROR('Tabel 2 B'!J26/'Tabel 1 B'!G24*100,"-")) -> 3.225202858
A27: Tandlæge | C27: =IF(OR('Tabel 1 B'!C25<5, 'Tabel 2 B'!C27<0.5),"-",IFERROR('Tabel 2 B'!C27/'Tabel 1 B'!C25*100,"-")) -> - | D27: =IF(OR('Tabel 1 B'!C25<5,'Tabel 2 B'!D27<0.5),"-",IFERROR('Tabel 2 B'!D27/'Tabel 1 B'!C25*100,"-")) -> - | F27: =IF(OR('Tabel 1 B'!E25<5, 'Tabel 2 B'!F27<0.5),"-",IFERROR('Tabel 2 B'!F27/'Tabel 1 B'!E25*100,"-")) -> - | G27: =IF(OR('Tabel 1 B'!E25<5,'Tabel 2 B'!G27<0.5),"-",IFERROR('Tabel 2 B'!G27/'Tabel 1 B'!E25*100,"-")) -> - | I27: =IF(OR('Tabel 1 B'!G25<5,'Tabel 2 B'!I27<0.5),"-",IFERROR('Tabel 2 B'!I27/'Tabel 1 B'!G25*100,"-")) -> - | J27: =IF(OR('Tabel 1 B'!G25<5,'Tabel 2 B'!J27<0.5),"-",IFERROR('Tabel 2 B'!J27/'Tabel 1 B'!G25*100,"-")) -> -
A28: Arkitekt | C28: =IF(OR('Tabel 1 B'!C26<5, 'Tabel 2 B'!C28<0.5),"-",IFERROR('Tabel 2 B'!C28/'Tabel 1 B'!C26*100,"-")) -> - | D28: =IF(OR('Tabel 1 B'!C26<5,'Tabel 2 B'!D28<0.5),"-",IFERROR('Tabel 2 B'!D28/'Tabel 1 B'!C26*100,"-")) -> - | F28: =IF(OR('Tabel 1 B'!E26<5, 'Tabel 2 B'!F28<0.5),"-",IFERROR('Tabel 2 B'!F28/'Tabel 1 B'!E26*100,"-")) -> 20 | G28: =IF(OR('Tabel 1 B'!E26<5,'Tabel 2 B'!G28<0.5),"-",IFERROR('Tabel 2 B'!G28/'Tabel 1 B'!E26*100,"-")) -> - | I28: =IF(OR('Tabel 1 B'!G26<5,'Tabel 2 B'!I28<0.5),"-",IFERROR('Tabel 2 B'!I28/'Tabel 1 B'!G26*100,"-")) -> 7.142857143 | J28: =IF(OR('Tabel 1 B'!G26<5,'Tabel 2 B'!J28<0.5),"-",IFERROR('Tabel 2 B'!J28/'Tabel 1 B'!G26*100,"-")) -> -
A29: Landinspek. | C29: =IF(OR('Tabel 1 B'!C27<5, 'Tabel 2 B'!C29<0.5),"-",IFERROR('Tabel 2 B'!C29/'Tabel 1 B'!C27*100,"-")) -> - | D29: =IF(OR('Tabel 1 B'!C27<5,'Tabel 2 B'!D29<0.5),"-",IFERROR('Tabel 2 B'!D29/'Tabel 1 B'!C27*100,"-")) -> - | F29: =IF(OR('Tabel 1 B'!E27<5, 'Tabel 2 B'!F29<0.5),"-",IFERROR('Tabel 2 B'!F29/'Tabel 1 B'!E27*100,"-")) -> - | G29: =IF(OR('Tabel 1 B'!E27<5,'Tabel 2 B'!G29<0.5),"-",IFERROR('Tabel 2 B'!G29/'Tabel 1 B'!E27*100,"-")) -> - | I29: =IF(OR('Tabel 1 B'!G27<5,'Tabel 2 B'!I29<0.5),"-",IFERROR('Tabel 2 B'!I29/'Tabel 1 B'!G27*100,"-")) -> - | J29: =IF(OR('Tabel 1 B'!G27<5,'Tabel 2 B'!J29<0.5),"-",IFERROR('Tabel 2 B'!J29/'Tabel 1 B'!G27*100,"-")) -> -
A30: Bibliotekar | C30: =IF(OR('Tabel 1 B'!C28<5, 'Tabel 2 B'!C30<0.5),"-",IFERROR('Tabel 2 B'!C30/'Tabel 1 B'!C28*100,"-")) -> - | D30: =IF(OR('Tabel 1 B'!C28<5,'Tabel 2 B'!D30<0.5),"-",IFERROR('Tabel 2 B'!D30/'Tabel 1 B'!C28*100,"-")) -> - | F30: =IF(OR('Tabel 1 B'!E28<5, 'Tabel 2 B'!F30<0.5),"-",IFERROR('Tabel 2 B'!F30/'Tabel 1 B'!E28*100,"-")) -> 10 | G30: =IF(OR('Tabel 1 B'!E28<5,'Tabel 2 B'!G30<0.5),"-",IFERROR('Tabel 2 B'!G30/'Tabel 1 B'!E28*100,"-")) -> 9.998128859 | I30: =IF(OR('Tabel 1 B'!G28<5,'Tabel 2 B'!I30<0.5),"-",IFERROR('Tabel 2 B'!I30/'Tabel 1 B'!G28*100,"-")) -> 6.25 | J30: =IF(OR('Tabel 1 B'!G28<5,'Tabel 2 B'!J30<0.5),"-",IFERROR('Tabel 2 B'!J30/'Tabel 1 B'!G28*100,"-")) -> 6.248830537
A31: Musikudd. | C31: =IF(OR('Tabel 1 B'!C29<5, 'Tabel 2 B'!C31<0.5),"-",IFERROR('Tabel 2 B'!C31/'Tabel 1 B'!C29*100,"-")) -> - | D31: =IF(OR('Tabel 1 B'!C29<5,'Tabel 2 B'!D31<0.5),"-",IFERROR('Tabel 2 B'!D31/'Tabel 1 B'!C29*100,"-")) -> - | F31: =IF(OR('Tabel 1 B'!E29<5, 'Tabel 2 B'!F31<0.5),"-",IFERROR('Tabel 2 B'!F31/'Tabel 1 B'!E29*100,"-")) -> - | G31: =IF(OR('Tabel 1 B'!E29<5,'Tabel 2 B'!G31<0.5),"-",IFERROR('Tabel 2 B'!G31/'Tabel 1 B'!E29*100,"-")) -> - | I31: =IF(OR('Tabel 1 B'!G29<5,'Tabel 2 B'!I31<0.5),"-",IFERROR('Tabel 2 B'!I31/'Tabel 1 B'!G29*100,"-")) -> - | J31: =IF(OR('Tabel 1 B'!G29<5,'Tabel 2 B'!J31<0.5),"-",IFERROR('Tabel 2 B'!J31/'Tabel 1 B'!G29*100,"-")) -> -
A32: Teolog | C32: =IF(OR('Tabel 1 B'!C30<5, 'Tabel 2 B'!C32<0.5),"-",IFERROR('Tabel 2 B'!C32/'Tabel 1 B'!C30*100,"-")) -> - | D32: =IF(OR('Tabel 1 B'!C30<5,'Tabel 2 B'!D32<0.5),"-",IFERROR('Tabel 2 B'!D32/'Tabel 1 B'!C30*100,"-")) -> - | F32: =IF(OR('Tabel 1 B'!E30<5, 'Tabel 2 B'!F32<0.5),"-",IFERROR('Tabel 2 B'!F32/'Tabel 1 B'!E30*100,"-")) -> - | G32: =IF(OR('Tabel 1 B'!E30<5,'Tabel 2 B'!G32<0.5),"-",IFERROR('Tabel 2 B'!G32/'Tabel 1 B'!E30*100,"-")) -> - | I32: =IF(OR('Tabel 1 B'!G30<5,'Tabel 2 B'!I32<0.5),"-",IFERROR('Tabel 2 B'!I32/'Tabel 1 B'!G30*100,"-")) -> - | J32: =IF(OR('Tabel 1 B'!G30<5,'Tabel 2 B'!J32<0.5),"-",IFERROR('Tabel 2 B'!J32/'Tabel 1 B'!G30*100,"-")) -> -
A33: Psykolog | C33: =IF(OR('Tabel 1 B'!C31<5, 'Tabel 2 B'!C33<0.5),"-",IFERROR('Tabel 2 B'!C33/'Tabel 1 B'!C31*100,"-")) -> - | D33: =IF(OR('Tabel 1 B'!C31<5,'Tabel 2 B'!D33<0.5),"-",IFERROR('Tabel 2 B'!D33/'Tabel 1 B'!C31*100,"-")) -> - | F33: =IF(OR('Tabel 1 B'!E31<5, 'Tabel 2 B'!F33<0.5),"-",IFERROR('Tabel 2 B'!F33/'Tabel 1 B'!E31*100,"-")) -> 4.166666667 | G33: =IF(OR('Tabel 1 B'!E31<5,'Tabel 2 B'!G33<0.5),"-",IFERROR('Tabel 2 B'!G33/'Tabel 1 B'!E31*100,"-")) -> 3.542173434 | I33: =IF(OR('Tabel 1 B'!G31<5,'Tabel 2 B'!I33<0.5),"-",IFERROR('Tabel 2 B'!I33/'Tabel 1 B'!G31*100,"-")) -> 3.225806452 | J33: =IF(OR('Tabel 1 B'!G31<5,'Tabel 2 B'!J33<0.5),"-",IFERROR('Tabel 2 B'!J33/'Tabel 1 B'!G31*100,"-")) -> 2.74232782
A34: Jurist | C34: =IF(OR('Tabel 1 B'!C32<5, 'Tabel 2 B'!C34<0.5),"-",IFERROR('Tabel 2 B'!C34/'Tabel 1 B'!C32*100,"-")) -> - | D34: =IF(OR('Tabel 1 B'!C32<5,'Tabel 2 B'!D34<0.5),"-",IFERROR('Tabel 2 B'!D34/'Tabel 1 B'!C32*100,"-")) -> - | F34: =IF(OR('Tabel 1 B'!E32<5, 'Tabel 2 B'!F34<0.5),"-",IFERROR('Tabel 2 B'!F34/'Tabel 1 B'!E32*100,"-")) -> - | G34: =IF(OR('Tabel 1 B'!E32<5,'Tabel 2 B'!G34<0.5),"-",IFERROR('Tabel 2 B'!G34/'Tabel 1 B'!E32*100,"-")) -> - | I34: =IF(OR('Tabel 1 B'!G32<5,'Tabel 2 B'!I34<0.5),"-",IFERROR('Tabel 2 B'!I34/'Tabel 1 B'!G32*100,"-")) -> - | J34: =IF(OR('Tabel 1 B'!G32<5,'Tabel 2 B'!J34<0.5),"-",IFERROR('Tabel 2 B'!J34/'Tabel 1 B'!G32*100,"-")) -> -
A35: Økonom | C35: =IF(OR('Tabel 1 B'!C33<5, 'Tabel 2 B'!C35<0.5),"-",IFERROR('Tabel 2 B'!C35/'Tabel 1 B'!C33*100,"-")) -> - | D35: =IF(OR('Tabel 1 B'!C33<5,'Tabel 2 B'!D35<0.5),"-",IFERROR('Tabel 2 B'!D35/'Tabel 1 B'!C33*100,"-")) -> - | F35: =IF(OR('Tabel 1 B'!E33<5, 'Tabel 2 B'!F35<0.5),"-",IFERROR('Tabel 2 B'!F35/'Tabel 1 B'!E33*100,"-")) -> - | G35: =IF(OR('Tabel 1 B'!E33<5,'Tabel 2 B'!G35<0.5),"-",IFERROR('Tabel 2 B'!G35/'Tabel 1 B'!E33*100,"-")) -> - | I35: =IF(OR('Tabel 1 B'!G33<5,'Tabel 2 B'!I35<0.5),"-",IFERROR('Tabel 2 B'!I35/'Tabel 1 B'!G33*100,"-")) -> - | J35: =IF(OR('Tabel 1 B'!G33<5,'Tabel 2 B'!J35<0.5),"-",IFERROR('Tabel 2 B'!J35/'Tabel 1 B'!G33*100,"-")) -> -
A36: Samf. Adm. | C36: =IF(OR('Tabel 1 B'!C34<5, 'Tabel 2 B'!C36<0.5),"-",IFERROR('Tabel 2 B'!C36/'Tabel 1 B'!C34*100,"-")) -> 7.142857143 | D36: =IF(OR('Tabel 1 B'!C34<5,'Tabel 2 B'!D36<0.5),"-",IFERROR('Tabel 2 B'!D36/'Tabel 1 B'!C34*100,"-")) -> 7.141520614 | F36: =IF(OR('Tabel 1 B'!E34<5, 'Tabel 2 B'!F36<0.5),"-",IFERROR('Tabel 2 B'!F36/'Tabel 1 B'!E34*100,"-")) -> 3.703703704 | G36: =IF(OR('Tabel 1 B'!E34<5,'Tabel 2 B'!G36<0.5),"-",IFERROR('Tabel 2 B'!G36/'Tabel 1 B'!E34*100,"-")) -> 3.703010689 | I36: =IF(OR('Tabel 1 B'!G34<5,'Tabel 2 B'!I36<0.5),"-",IFERROR('Tabel 2 B'!I36/'Tabel 1 B'!G34*100,"-")) -> 5.454545455 | J36: =IF(OR('Tabel 1 B'!G34<5,'Tabel 2 B'!J36<0.5),"-",IFERROR('Tabel 2 B'!J36/'Tabel 1 B'!G34*100,"-")) -> 5.453524832
A37: Cand. Merc. | C37: =IF(OR('Tabel 1 B'!C35<5, 'Tabel 2 B'!C37<0.5),"-",IFERROR('Tabel 2 B'!C37/'Tabel 1 B'!C35*100,"-")) -> 15.38461538 | D37: =IF(OR('Tabel 1 B'!C35<5,'Tabel 2 B'!D37<0.5),"-",IFERROR('Tabel 2 B'!D37/'Tabel 1 B'!C35*100,"-")) -> 15.38173671 | F37: =IF(OR('Tabel 1 B'!E35<5, 'Tabel 2 B'!F37<0.5),"-",IFERROR('Tabel 2 B'!F37/'Tabel 1 B'!E35*100,"-")) -> 10.52631579 | G37: =IF(OR('Tabel 1 B'!E35<5,'Tabel 2 B'!G37<0.5),"-",IFERROR('Tabel 2 B'!G37/'Tabel 1 B'!E35*100,"-")) -> 8.095145867 | I37: =IF(OR('Tabel 1 B'!G35<5,'Tabel 2 B'!I37<0.5),"-",IFERROR('Tabel 2 B'!I37/'Tabel 1 B'!G35*100,"-")) -> 12.5 | J37: =IF(OR('Tabel 1 B'!G35<5,'Tabel 2 B'!J37<0.5),"-",IFERROR('Tabel 2 B'!J37/'Tabel 1 B'!G35*100,"-")) -> 11.0553234
A38: HA | C38: =IF(OR('Tabel 1 B'!C36<5, 'Tabel 2 B'!C38<0.5),"-",IFERROR('Tabel 2 B'!C38/'Tabel 1 B'!C36*100,"-")) -> - | D38: =IF(OR('Tabel 1 B'!C36<5,'Tabel 2 B'!D38<0.5),"-",IFERROR('Tabel 2 B'!D38/'Tabel 1 B'!C36*100,"-")) -> - | F38: =IF(OR('Tabel 1 B'!E36<5, 'Tabel 2 B'!F38<0.5),"-",IFERROR('Tabel 2 B'!F38/'Tabel 1 B'!E36*100,"-")) -> 16.66666667 | G38: =IF(OR('Tabel 1 B'!E36<5,'Tabel 2 B'!G38<0.5),"-",IFERROR('Tabel 2 B'!G38/'Tabel 1 B'!E36*100,"-")) -> - | I38: =IF(OR('Tabel 1 B'!G36<5,'Tabel 2 B'!I38<0.5),"-",IFERROR('Tabel 2 B'!I38/'Tabel 1 B'!G36*100,"-")) -> 8.333333333 | J38: =IF(OR('Tabel 1 B'!G36<5,'Tabel 2 B'!J38<0.5),"-",IFERROR('Tabel 2 B'!J38/'Tabel 1 B'!G36*100,"-")) -> -
A39: HD | C39: =IF(OR('Tabel 1 B'!C37<5, 'Tabel 2 B'!C39<0.5),"-",IFERROR('Tabel 2 B'!C39/'Tabel 1 B'!C37*100,"-")) -> - | D39: =IF(OR('Tabel 1 B'!C37<5,'Tabel 2 B'!D39<0.5),"-",IFERROR('Tabel 2 B'!D39/'Tabel 1 B'!C37*100,"-")) -> - | F39: =IF(OR('Tabel 1 B'!E37<5, 'Tabel 2 B'!F39<0.5),"-",IFERROR('Tabel 2 B'!F39/'Tabel 1 B'!E37*100,"-")) -> - | G39: =IF(OR('Tabel 1 B'!E37<5,'Tabel 2 B'!G39<0.5),"-",IFERROR('Tabel 2 B'!G39/'Tabel 1 B'!E37*100,"-")) -> - | I39: =IF(OR('Tabel 1 B'!G37<5,'Tabel 2 B'!I39<0.5),"-",IFERROR('Tabel 2 B'!I39/'Tabel 1 B'!G37*100,"-")) -> - | J39: =IF(OR('Tabel 1 B'!G37<5,'Tabel 2 B'!J39<0.5),"-",IFERROR('Tabel 2 B'!J39/'Tabel 1 B'!G37*100,"-")) -> -
A40: Komm. og Sprog | C40: =IF(OR('Tabel 1 B'!C38<5, 'Tabel 2 B'!C40<0.5),"-",IFERROR('Tabel 2 B'!C40/'Tabel 1 B'!C38*100,"-")) -> - | D40: =IF(OR('Tabel 1 B'!C38<5,'Tabel 2 B'!D40<0.5),"-",IFERROR('Tabel 2 B'!D40/'Tabel 1 B'!C38*100,"-")) -> - | F40: =IF(OR('Tabel 1 B'!E38<5, 'Tabel 2 B'!F40<0.5),"-",IFERROR('Tabel 2 B'!F40/'Tabel 1 B'!E38*100,"-")) -> 36.36363636 | G40: =IF(OR('Tabel 1 B'!E38<5,'Tabel 2 B'!G40<0.5),"-",IFERROR('Tabel 2 B'!G40/'Tabel 1 B'!E38*100,"-")) -> 26.63824045 | I40: =IF(OR('Tabel 1 B'!G38<5,'Tabel 2 B'!I40<0.5),"-",IFERROR('Tabel 2 B'!I40/'Tabel 1 B'!G38*100,"-")) -> 26.66666667 | J40: =IF(OR('Tabel 1 B'!G38<5,'Tabel 2 B'!J40<0.5),"-",IFERROR('Tabel 2 B'!J40/'Tabel 1 B'!G38*100,"-")) -> 19.53470966
A41: Bygningskonst. | C41: =IF(OR('Tabel 1 B'!C39<5, 'Tabel 2 B'!C41<0.5),"-",IFERROR('Tabel 2 B'!C41/'Tabel 1 B'!C39*100,"-")) -> - | D41: =IF(OR('Tabel 1 B'!C39<5,'Tabel 2 B'!D41<0.5),"-",IFERROR('Tabel 2 B'!D41/'Tabel 1 B'!C39*100,"-")) -> - | F41: =IF(OR('Tabel 1 B'!E39<5, 'Tabel 2 B'!F41<0.5),"-",IFERROR('Tabel 2 B'!F41/'Tabel 1 B'!E39*100,"-")) -> - | G41: =IF(OR('Tabel 1 B'!E39<5,'Tabel 2 B'!G41<0.5),"-",IFERROR('Tabel 2 B'!G41/'Tabel 1 B'!E39*100,"-")) -> - | I41: =IF(OR('Tabel 1 B'!G39<5,'Tabel 2 B'!I41<0.5),"-",IFERROR('Tabel 2 B'!I41/'Tabel 1 B'!G39*100,"-")) -> - | J41: =IF(OR('Tabel 1 B'!G39<5,'Tabel 2 B'!J41<0.5),"-",IFERROR('Tabel 2 B'!J41/'Tabel 1 B'!G39*100,"-")) -> -
A42: Cand. IT. | C42: =IF(OR('Tabel 1 B'!C40<5, 'Tabel 2 B'!C42<0.5),"-",IFERROR('Tabel 2 B'!C42/'Tabel 1 B'!C40*100,"-")) -> - | D42: =IF(OR('Tabel 1 B'!C40<5,'Tabel 2 B'!D42<0.5),"-",IFERROR('Tabel 2 B'!D42/'Tabel 1 B'!C40*100,"-")) -> - | F42: =IF(OR('Tabel 1 B'!E40<5, 'Tabel 2 B'!F42<0.5),"-",IFERROR('Tabel 2 B'!F42/'Tabel 1 B'!E40*100,"-")) -> - | G42: =IF(OR('Tabel 1 B'!E40<5,'Tabel 2 B'!G42<0.5),"-",IFERROR('Tabel 2 B'!G42/'Tabel 1 B'!E40*100,"-")) -> - | I42: =IF(OR('Tabel 1 B'!G40<5,'Tabel 2 B'!I42<0.5),"-",IFERROR('Tabel 2 B'!I42/'Tabel 1 B'!G40*100,"-")) -> - | J42: =IF(OR('Tabel 1 B'!G40<5,'Tabel 2 B'!J42<0.5),"-",IFERROR('Tabel 2 B'!J42/'Tabel 1 B'!G40*100,"-")) -> -
A43: Bac. Samf. | C43: =IF(OR('Tabel 1 B'!C41<5, 'Tabel 2 B'!C43<0.5),"-",IFERROR('Tabel 2 B'!C43/'Tabel 1 B'!C41*100,"-")) -> - | D43: =IF(OR('Tabel 1 B'!C41<5,'Tabel 2 B'!D43<0.5),"-",IFERROR('Tabel 2 B'!D43/'Tabel 1 B'!C41*100,"-")) -> - | F43: =IF(OR('Tabel 1 B'!E41<5, 'Tabel 2 B'!F43<0.5),"-",IFERROR('Tabel 2 B'!F43/'Tabel 1 B'!E41*100,"-")) -> - | G43: =IF(OR('Tabel 1 B'!E41<5,'Tabel 2 B'!G43<0.5),"-",IFERROR('Tabel 2 B'!G43/'Tabel 1 B'!E41*100,"-")) -> - | I43: =IF(OR('Tabel 1 B'!G41<5,'Tabel 2 B'!I43<0.5),"-",IFERROR('Tabel 2 B'!I43/'Tabel 1 B'!G41*100,"-")) -> - | J43: =IF(OR('Tabel 1 B'!G41<5,'Tabel 2 B'!J43<0.5),"-",IFERROR('Tabel 2 B'!J43/'Tabel 1 B'!G41*100,"-")) -> -
A44: Bac. Hum. | C44: =IF(OR('Tabel 1 B'!C42<5, 'Tabel 2 B'!C44<0.5),"-",IFERROR('Tabel 2 B'!C44/'Tabel 1 B'!C42*100,"-")) -> 25 | D44: =IF(OR('Tabel 1 B'!C42<5,'Tabel 2 B'!D44<0.5),"-",IFERROR('Tabel 2 B'!D44/'Tabel 1 B'!C42*100,"-")) -> 24.99532215 | F44: =IF(OR('Tabel 1 B'!E42<5, 'Tabel 2 B'!F44<0.5),"-",IFERROR('Tabel 2 B'!F44/'Tabel 1 B'!E42*100,"-")) -> 20 | G44: =IF(OR('Tabel 1 B'!E42<5,'Tabel 2 B'!G44<0.5),"-",IFERROR('Tabel 2 B'!G44/'Tabel 1 B'!E42*100,"-")) -> - | I44: =IF(OR('Tabel 1 B'!G42<5,'Tabel 2 B'!I44<0.5),"-",IFERROR('Tabel 2 B'!I44/'Tabel 1 B'!G42*100,"-")) -> 23.07692308 | J44: =IF(OR('Tabel 1 B'!G42<5,'Tabel 2 B'!J44<0.5),"-",IFERROR('Tabel 2 B'!J44/'Tabel 1 B'!G42*100,"-")) -> 16.68193965
A45: Bac. Nat. | C45: =IF(OR('Tabel 1 B'!C43<5, 'Tabel 2 B'!C45<0.5),"-",IFERROR('Tabel 2 B'!C45/'Tabel 1 B'!C43*100,"-")) -> - | D45: =IF(OR('Tabel 1 B'!C43<5,'Tabel 2 B'!D45<0.5),"-",IFERROR('Tabel 2 B'!D45/'Tabel 1 B'!C43*100,"-")) -> - | F45: =IF(OR('Tabel 1 B'!E43<5, 'Tabel 2 B'!F45<0.5),"-",IFERROR('Tabel 2 B'!F45/'Tabel 1 B'!E43*100,"-")) -> 14.28571429 | G45: =IF(OR('Tabel 1 B'!E43<5,'Tabel 2 B'!G45<0.5),"-",IFERROR('Tabel 2 B'!G45/'Tabel 1 B'!E43*100,"-")) -> 14.28304123 | I45: =IF(OR('Tabel 1 B'!G43<5,'Tabel 2 B'!I45<0.5),"-",IFERROR('Tabel 2 B'!I45/'Tabel 1 B'!G43*100,"-")) -> 20 | J45: =IF(OR('Tabel 1 B'!G43<5,'Tabel 2 B'!J45<0.5),"-",IFERROR('Tabel 2 B'!J45/'Tabel 1 B'!G43*100,"-")) -> 19.99625772
A46: Andre | C46: =IF(OR('Tabel 1 B'!C44<5, 'Tabel 2 B'!C46<0.5),"-",IFERROR('Tabel 2 B'!C46/'Tabel 1 B'!C44*100,"-")) -> 9.090909091 | D46: =IF(OR('Tabel 1 B'!C44<5,'Tabel 2 B'!D46<0.5),"-",IFERROR('Tabel 2 B'!D46/'Tabel 1 B'!C44*100,"-")) -> 6.552772785 | F46: =IF(OR('Tabel 1 B'!E44<5, 'Tabel 2 B'!F46<0.5),"-",IFERROR('Tabel 2 B'!F46/'Tabel 1 B'!E44*100,"-")) -> 13.95348837 | G46: =IF(OR('Tabel 1 B'!E44<5,'Tabel 2 B'!G46<0.5),"-",IFERROR('Tabel 2 B'!G46/'Tabel 1 B'!E44*100,"-")) -> 9.458689128 | I46: =IF(OR('Tabel 1 B'!G44<5,'Tabel 2 B'!I46<0.5),"-",IFERROR('Tabel 2 B'!I46/'Tabel 1 B'!G44*100,"-")) -> 11.00917431 | J46: =IF(OR('Tabel 1 B'!G44<5,'Tabel 2 B'!J46<0.5),"-",IFERROR('Tabel 2 B'!J46/'Tabel 1 B'!G44*100,"-")) -> 7.699143452
A48: Total | C48: =IF(OR('Tabel 1 B'!C46<5, 'Tabel 2 B'!C48<0.5),"-",IFERROR('Tabel 2 B'!C48/'Tabel 1 B'!C46*100,"-")) -> 7.83847981 | D48: =IF(OR('Tabel 1 B'!C46<5,'Tabel 2 B'!D48<0.5),"-",IFERROR('Tabel 2 B'!D48/'Tabel 1 B'!C46*100,"-")) -> 6.635364442 | F48: =IF(OR('Tabel 1 B'!E46<5, 'Tabel 2 B'!F48<0.5),"-",IFERROR('Tabel 2 B'!F48/'Tabel 1 B'!E46*100,"-")) -> 10.61728395 | G48: =IF(OR('Tabel 1 B'!E46<5,'Tabel 2 B'!G48<0.5),"-",IFERROR('Tabel 2 B'!G48/'Tabel 1 B'!E46*100,"-")) -> 7.979375871 | I48: =IF(OR('Tabel 1 B'!G46<5,'Tabel 2 B'!I48<0.5),"-",IFERROR('Tabel 2 B'!I48/'Tabel 1 B'!G46*100,"-")) -> 9.200968523 | J48: =IF(OR('Tabel 1 B'!G46<5,'Tabel 2 B'!J48<0.5),"-",IFERROR('Tabel 2 B'!J48/'Tabel 1 B'!G46*100,"-")) -> 7.294353096
A50: Ingeniører i alt | C50: =IF(OR('Tabel 1 B'!C48<5, 'Tabel 2 B'!C50<0.5),"-",IFERROR('Tabel 2 B'!C50/'Tabel 1 B'!C48*100,"-")) -> 7.142857143 | D50: =IF(OR('Tabel 1 B'!C48<5,'Tabel 2 B'!D50<0.5),"-",IFERROR('Tabel 2 B'!D50/'Tabel 1 B'!C48*100,"-")) -> 6.05967454 | F50: =IF(OR('Tabel 1 B'!E48<5, 'Tabel 2 B'!F50<0.5),"-",IFERROR('Tabel 2 B'!F50/'Tabel 1 B'!E48*100,"-")) -> 15.38461538 | G50: =IF(OR('Tabel 1 B'!E48<5,'Tabel 2 B'!G50<0.5),"-",IFERROR('Tabel 2 B'!G50/'Tabel 1 B'!E48*100,"-")) -> 10.07057559 | I50: =IF(OR('Tabel 1 B'!G48<5,'Tabel 2 B'!I50<0.5),"-",IFERROR('Tabel 2 B'!I50/'Tabel 1 B'!G48*100,"-")) -> 8.24742268 | J50: =IF(OR('Tabel 1 B'!G48<5,'Tabel 2 B'!J50<0.5),"-",IFERROR('Tabel 2 B'!J50/'Tabel 1 B'!G48*100,"-")) -> 6.59721798
A51: Magistre i alt | C51: =IF(OR('Tabel 1 B'!C49<5, 'Tabel 2 B'!C51<0.5),"-",IFERROR('Tabel 2 B'!C51/'Tabel 1 B'!C49*100,"-")) -> 16.4556962 | D51: =IF(OR('Tabel 1 B'!C49<5,'Tabel 2 B'!D51<0.5),"-",IFERROR('Tabel 2 B'!D51/'Tabel 1 B'!C49*100,"-")) -> 14.27988318 | F51: =IF(OR('Tabel 1 B'!E49<5, 'Tabel 2 B'!F51<0.5),"-",IFERROR('Tabel 2 B'!F51/'Tabel 1 B'!E49*100,"-")) -> 11.53846154 | G51: =IF(OR('Tabel 1 B'!E49<5,'Tabel 2 B'!G51<0.5),"-",IFERROR('Tabel 2 B'!G51/'Tabel 1 B'!E49*100,"-")) -> 9.592235246 | I51: =IF(OR('Tabel 1 B'!G49<5,'Tabel 2 B'!I51<0.5),"-",IFERROR('Tabel 2 B'!I51/'Tabel 1 B'!G49*100,"-")) -> 13.39712919 | J51: =IF(OR('Tabel 1 B'!G49<5,'Tabel 2 B'!J51<0.5),"-",IFERROR('Tabel 2 B'!J51/'Tabel 1 B'!G49*100,"-")) -> 11.36412131
A52: DJØF'ere i alt | C52: =IF(OR('Tabel 1 B'!C50<5, 'Tabel 2 B'!C52<0.5),"-",IFERROR('Tabel 2 B'!C52/'Tabel 1 B'!C50*100,"-")) -> 6.153846154 | D52: =IF(OR('Tabel 1 B'!C50<5,'Tabel 2 B'!D52<0.5),"-",IFERROR('Tabel 2 B'!D52/'Tabel 1 B'!C50*100,"-")) -> 6.152694683 | F52: =IF(OR('Tabel 1 B'!E50<5, 'Tabel 2 B'!F52<0.5),"-",IFERROR('Tabel 2 B'!F52/'Tabel 1 B'!E50*100,"-")) -> 5.263157895 | G52: =IF(OR('Tabel 1 B'!E50<5,'Tabel 2 B'!G52<0.5),"-",IFERROR('Tabel 2 B'!G52/'Tabel 1 B'!E50*100,"-")) -> 3.645441803 | I52: =IF(OR('Tabel 1 B'!G50<5,'Tabel 2 B'!I52<0.5),"-",IFERROR('Tabel 2 B'!I52/'Tabel 1 B'!G50*100,"-")) -> 5.673758865 | J52: =IF(OR('Tabel 1 B'!G50<5,'Tabel 2 B'!J52<0.5),"-",IFERROR('Tabel 2 B'!J52/'Tabel 1 B'!G50*100,"-")) -> 4.801267598
A57: Bornholm
C59: Mænd | F59: Kvinder | I59: I alt
C60: Ledigheds- berørte | D60: Gns. brutto- ledighed | F60: Ledigheds- berørte | G60: Gns. brutto- ledighed | I60: Ledigheds- berørte | J60: Gns. brutto- ledighed
A63: Civ. ing. | C63: =IF(OR('Tabel 1 B'!C61<5, 'Tabel 2 B'!C63<0.5),"-",IFERROR('Tabel 2 B'!C63/'Tabel 1 B'!C61*100,"-")) -> 6.896551724 | D63: =IF(OR('Tabel 1 B'!C61<5,'Tabel 2 B'!D63<0.5),"-",IFERROR('Tabel 2 B'!D63/'Tabel 1 B'!C61*100,"-")) -> 6.895261282 | F63: =IF(OR('Tabel 1 B'!E61<5, 'Tabel 2 B'!F63<0.5),"-",IFERROR('Tabel 2 B'!F63/'Tabel 1 B'!E61*100,"-")) -> 20 | G63: =IF(OR('Tabel 1 B'!E61<5,'Tabel 2 B'!G63<0.5),"-",IFERROR('Tabel 2 B'!G63/'Tabel 1 B'!E61*100,"-")) -> - | I63: =IF(OR('Tabel 1 B'!G61<5,'Tabel 2 B'!I63<0.5),"-",IFERROR('Tabel 2 B'!I63/'Tabel 1 B'!G61*100,"-")) -> 8.823529412 | J63: =IF(OR('Tabel 1 B'!G61<5,'Tabel 2 B'!J63<0.5),"-",IFERROR('Tabel 2 B'!J63/'Tabel 1 B'!G61*100,"-")) -> 6.983757764
A64: Diplom ing. | C64: =IF(OR('Tabel 1 B'!C62<5, 'Tabel 2 B'!C64<0.5),"-",IFERROR('Tabel 2 B'!C64/'Tabel 1 B'!C62*100,"-")) -> 7.272727273 | D64: =IF(OR('Tabel 1 B'!C62<5,'Tabel 2 B'!D64<0.5),"-",IFERROR('Tabel 2 B'!D64/'Tabel 1 B'!C62*100,"-")) -> 5.61909244 | F64: =IF(OR('Tabel 1 B'!E62<5, 'Tabel 2 B'!F64<0.5),"-",IFERROR('Tabel 2 B'!F64/'Tabel 1 B'!E62*100,"-")) -> 12.5 | G64: =IF(OR('Tabel 1 B'!E62<5,'Tabel 2 B'!G64<0.5),"-",IFERROR('Tabel 2 B'!G64/'Tabel 1 B'!E62*100,"-")) -> 11.67903699 | I64: =IF(OR('Tabel 1 B'!G62<5,'Tabel 2 B'!I64<0.5),"-",IFERROR('Tabel 2 B'!I64/'Tabel 1 B'!G62*100,"-")) -> 7.936507937 | J64: =IF(OR('Tabel 1 B'!G62<5,'Tabel 2 B'!J64<0.5),"-",IFERROR('Tabel 2 B'!J64/'Tabel 1 B'!G62*100,"-")) -> 6.388609208
A65: Cand. Scient. Tek. | C65: =IF(OR('Tabel 1 B'!C63<5, 'Tabel 2 B'!C65<0.5),"-",IFERROR('Tabel 2 B'!C65/'Tabel 1 B'!C63*100,"-")) -> 6.25 | D65: =IF(OR('Tabel 1 B'!C63<5,'Tabel 2 B'!D65<0.5),"-",IFERROR('Tabel 2 B'!D65/'Tabel 1 B'!C63*100,"-")) -> - | F65: =IF(OR('Tabel 1 B'!E63<5, 'Tabel 2 B'!F65<0.5),"-",IFERROR('Tabel 2 B'!F65/'Tabel 1 B'!E63*100,"-")) -> 25 | G65: =IF(OR('Tabel 1 B'!E63<5,'Tabel 2 B'!G65<0.5),"-",IFERROR('Tabel 2 B'!G65/'Tabel 1 B'!E63*100,"-")) -> 14.53252666 | I65: =IF(OR('Tabel 1 B'!G63<5,'Tabel 2 B'!I65<0.5),"-",IFERROR('Tabel 2 B'!I65/'Tabel 1 B'!G63*100,"-")) -> 15.625 | J65: =IF(OR('Tabel 1 B'!G63<5,'Tabel 2 B'!J65<0.5),"-",IFERROR('Tabel 2 B'!J65/'Tabel 1 B'!G63*100,"-")) -> 8.016668746
A66: MA. Hum. | C66: =IF(OR('Tabel 1 B'!C64<5, 'Tabel 2 B'!C66<0.5),"-",IFERROR('Tabel 2 B'!C66/'Tabel 1 B'!C64*100,"-")) -> 17.94871795 | D66: =IF(OR('Tabel 1 B'!C64<5,'Tabel 2 B'!D66<0.5),"-",IFERROR('Tabel 2 B'!D66/'Tabel 1 B'!C64*100,"-")) -> 16.47403512 | F66: =IF(OR('Tabel 1 B'!E64<5, 'Tabel 2 B'!F66<0.5),"-",IFERROR('Tabel 2 B'!F66/'Tabel 1 B'!E64*100,"-")) -> 12.79069767 | G66: =IF(OR('Tabel 1 B'!E64<5,'Tabel 2 B'!G66<0.5),"-",IFERROR('Tabel 2 B'!G66/'Tabel 1 B'!E64*100,"-")) -> 9.849597995 | I66: =IF(OR('Tabel 1 B'!G64<5,'Tabel 2 B'!I66<0.5),"-",IFERROR('Tabel 2 B'!I66/'Tabel 1 B'!G64*100,"-")) -> 14.4 | J66: =IF(OR('Tabel 1 B'!G64<5,'Tabel 2 B'!J66<0.5),"-",IFERROR('Tabel 2 B'!J66/'Tabel 1 B'!G64*100,"-")) -> 11.91642238
A67: MA. Nat. | C67: =IF(OR('Tabel 1 B'!C65<5, 'Tabel 2 B'!C67<0.5),"-",IFERROR('Tabel 2 B'!C67/'Tabel 1 B'!C65*100,"-")) -> 12 | D67: =IF(OR('Tabel 1 B'!C65<5,'Tabel 2 B'!D67<0.5),"-",IFERROR('Tabel 2 B'!D67/'Tabel 1 B'!C65*100,"-")) -> 8.719515998 | F67: =IF(OR('Tabel 1 B'!E65<5, 'Tabel 2 B'!F67<0.5),"-",IFERROR('Tabel 2 B'!F67/'Tabel 1 B'!E65*100,"-")) -> - | G67: =IF(OR('Tabel 1 B'!E65<5,'Tabel 2 B'!G67<0.5),"-",IFERROR('Tabel 2 B'!G67/'Tabel 1 B'!E65*100,"-")) -> - | I67: =IF(OR('Tabel 1 B'!G65<5,'Tabel 2 B'!I67<0.5),"-",IFERROR('Tabel 2 B'!I67/'Tabel 1 B'!G65*100,"-")) -> 6.52173913 | J67: =IF(OR('Tabel 1 B'!G65<5,'Tabel 2 B'!J67<0.5),"-",IFERROR('Tabel 2 B'!J67/'Tabel 1 B'!G65*100,"-")) -> 4.73886739
A68: MA. Ph.d. | C68: =IF(OR('Tabel 1 B'!C66<5, 'Tabel 2 B'!C68<0.5),"-",IFERROR('Tabel 2 B'!C68/'Tabel 1 B'!C66*100,"-")) -> - | D68: =IF(OR('Tabel 1 B'!C66<5,'Tabel 2 B'!D68<0.5),"-",IFERROR('Tabel 2 B'!D68/'Tabel 1 B'!C66*100,"-")) -> - | F68: =IF(OR('Tabel 1 B'!E66<5, 'Tabel 2 B'!F68<0.5),"-",IFERROR('Tabel 2 B'!F68/'Tabel 1 B'!E66*100,"-")) -> - | G68: =IF(OR('Tabel 1 B'!E66<5,'Tabel 2 B'!G68<0.5),"-",IFERROR('Tabel 2 B'!G68/'Tabel 1 B'!E66*100,"-")) -> - | I68: =IF(OR('Tabel 1 B'!G66<5,'Tabel 2 B'!I68<0.5),"-",IFERROR('Tabel 2 B'!I68/'Tabel 1 B'!G66*100,"-")) -> 14.28571429 | J68: =IF(OR('Tabel 1 B'!G66<5,'Tabel 2 B'!J68<0.5),"-",IFERROR('Tabel 2 B'!J68/'Tabel 1 B'!G66*100,"-")) -> 14.28304123
A69: MA. Samf. | C69: =IF(OR('Tabel 1 B'!C67<5, 'Tabel 2 B'!C69<0.5),"-",IFERROR('Tabel 2 B'!C69/'Tabel 1 B'!C67*100,"-")) -> - | D69: =IF(OR('Tabel 1 B'!C67<5,'Tabel 2 B'!D69<0.5),"-",IFERROR('Tabel 2 B'!D69/'Tabel 1 B'!C67*100,"-")) -> - | F69: =IF(OR('Tabel 1 B'!E67<5, 'Tabel 2 B'!F69<0.5),"-",IFERROR('Tabel 2 B'!F69/'Tabel 1 B'!E67*100,"-")) -> - | G69: =IF(OR('Tabel 1 B'!E67<5,'Tabel 2 B'!G69<0.5),"-",IFERROR('Tabel 2 B'!G69/'Tabel 1 B'!E67*100,"-")) -> - | I69: =IF(OR('Tabel 1 B'!G67<5,'Tabel 2 B'!I69<0.5),"-",IFERROR('Tabel 2 B'!I69/'Tabel 1 B'!G67*100,"-")) -> 6.666666667 | J69: =IF(OR('Tabel 1 B'!G67<5,'Tabel 2 B'!J69<0.5),"-",IFERROR('Tabel 2 B'!J69/'Tabel 1 B'!G67*100,"-")) -> 6.665419239
A70: Øvrige Mag. | C70: =IF(OR('Tabel 1 B'!C68<5, 'Tabel 2 B'!C70<0.5),"-",IFERROR('Tabel 2 B'!C70/'Tabel 1 B'!C68*100,"-")) -> 28.57142857 | D70: =IF(OR('Tabel 1 B'!C68<5,'Tabel 2 B'!D70<0.5),"-",IFERROR('Tabel 2 B'!D70/'Tabel 1 B'!C68*100,"-")) -> 23.95060188 | F70: =IF(OR('Tabel 1 B'!E68<5, 'Tabel 2 B'!F70<0.5),"-",IFERROR('Tabel 2 B'!F70/'Tabel 1 B'!E68*100,"-")) -> 33.33333333 | G70: =IF(OR('Tabel 1 B'!E68<5,'Tabel 2 B'!G70<0.5),"-",IFERROR('Tabel 2 B'!G70/'Tabel 1 B'!E68*100,"-")) -> 33.3270962 | I70: =IF(OR('Tabel 1 B'!G68<5,'Tabel 2 B'!I70<0.5),"-",IFERROR('Tabel 2 B'!I70/'Tabel 1 B'!G68*100,"-")) -> 31.25 | J70: =IF(OR('Tabel 1 B'!G68<5,'Tabel 2 B'!J70<0.5),"-",IFERROR('Tabel 2 B'!J70/'Tabel 1 B'!G68*100,"-")) -> 29.22487994
A71: Agronom | C71: =IF(OR('Tabel 1 B'!C69<5, 'Tabel 2 B'!C71<0.5),"-",IFERROR('Tabel 2 B'!C71/'Tabel 1 B'!C69*100,"-")) -> - | D71: =IF(OR('Tabel 1 B'!C69<5,'Tabel 2 B'!D71<0.5),"-",IFERROR('Tabel 2 B'!D71/'Tabel 1 B'!C69*100,"-")) -> - | F71: =IF(OR('Tabel 1 B'!E69<5, 'Tabel 2 B'!F71<0.5),"-",IFERROR('Tabel 2 B'!F71/'Tabel 1 B'!E69*100,"-")) -> - | G71: =IF(OR('Tabel 1 B'!E69<5,'Tabel 2 B'!G71<0.5),"-",IFERROR('Tabel 2 B'!G71/'Tabel 1 B'!E69*100,"-")) -> - | I71: =IF(OR('Tabel 1 B'!G69<5,'Tabel 2 B'!I71<0.5),"-",IFERROR('Tabel 2 B'!I71/'Tabel 1 B'!G69*100,"-")) -> - | J71: =IF(OR('Tabel 1 B'!G69<5,'Tabel 2 B'!J71<0.5),"-",IFERROR('Tabel 2 B'!J71/'Tabel 1 B'!G69*100,"-")) -> -
A72: Landsk. Arkt. | C72: =IF(OR('Tabel 1 B'!C70<5, 'Tabel 2 B'!C72<0.5),"-",IFERROR('Tabel 2 B'!C72/'Tabel 1 B'!C70*100,"-")) -> - | D72: =IF(OR('Tabel 1 B'!C70<5,'Tabel 2 B'!D72<0.5),"-",IFERROR('Tabel 2 B'!D72/'Tabel 1 B'!C70*100,"-")) -> - | F72: =IF(OR('Tabel 1 B'!E70<5, 'Tabel 2 B'!F72<0.5),"-",IFERROR('Tabel 2 B'!F72/'Tabel 1 B'!E70*100,"-")) -> - | G72: =IF(OR('Tabel 1 B'!E70<5,'Tabel 2 B'!G72<0.5),"-",IFERROR('Tabel 2 B'!G72/'Tabel 1 B'!E70*100,"-")) -> - | I72: =IF(OR('Tabel 1 B'!G70<5,'Tabel 2 B'!I72<0.5),"-",IFERROR('Tabel 2 B'!I72/'Tabel 1 B'!G70*100,"-")) -> - | J72: =IF(OR('Tabel 1 B'!G70<5,'Tabel 2 B'!J72<0.5),"-",IFERROR('Tabel 2 B'!J72/'Tabel 1 B'!G70*100,"-")) -> -
A73: Hortonom | C73: =IF(OR('Tabel 1 B'!C71<5, 'Tabel 2 B'!C73<0.5),"-",IFERROR('Tabel 2 B'!C73/'Tabel 1 B'!C71*100,"-")) -> - | D73: =IF(OR('Tabel 1 B'!C71<5,'Tabel 2 B'!D73<0.5),"-",IFERROR('Tabel 2 B'!D73/'Tabel 1 B'!C71*100,"-")) -> - | F73: =IF(OR('Tabel 1 B'!E71<5, 'Tabel 2 B'!F73<0.5),"-",IFERROR('Tabel 2 B'!F73/'Tabel 1 B'!E71*100,"-")) -> - | G73: =IF(OR('Tabel 1 B'!E71<5,'Tabel 2 B'!G73<0.5),"-",IFERROR('Tabel 2 B'!G73/'Tabel 1 B'!E71*100,"-")) -> - | I73: =IF(OR('Tabel 1 B'!G71<5,'Tabel 2 B'!I73<0.5),"-",IFERROR('Tabel 2 B'!I73/'Tabel 1 B'!G71*100,"-")) -> - | J73: =IF(OR('Tabel 1 B'!G71<5,'Tabel 2 B'!J73<0.5),"-",IFERROR('Tabel 2 B'!J73/'Tabel 1 B'!G71*100,"-")) -> -
A74: Forstkand. | C74: =IF(OR('Tabel 1 B'!C72<5, 'Tabel 2 B'!C74<0.5),"-",IFERROR('Tabel 2 B'!C74/'Tabel 1 B'!C72*100,"-")) -> - | D74: =IF(OR('Tabel 1 B'!C72<5,'Tabel 2 B'!D74<0.5),"-",IFERROR('Tabel 2 B'!D74/'Tabel 1 B'!C72*100,"-")) -> - | F74: =IF(OR('Tabel 1 B'!E72<5, 'Tabel 2 B'!F74<0.5),"-",IFERROR('Tabel 2 B'!F74/'Tabel 1 B'!E72*100,"-")) -> - | G74: =IF(OR('Tabel 1 B'!E72<5,'Tabel 2 B'!G74<0.5),"-",IFERROR('Tabel 2 B'!G74/'Tabel 1 B'!E72*100,"-")) -> - | I74: =IF(OR('Tabel 1 B'!G72<5,'Tabel 2 B'!I74<0.5),"-",IFERROR('Tabel 2 B'!I74/'Tabel 1 B'!G72*100,"-")) -> - | J74: =IF(OR('Tabel 1 B'!G72<5,'Tabel 2 B'!J74<0.5),"-",IFERROR('Tabel 2 B'!J74/'Tabel 1 B'!G72*100,"-")) -> -
A75: Jordbrugsakad. | C75: =IF(OR('Tabel 1 B'!C73<5, 'Tabel 2 B'!C75<0.5),"-",IFERROR('Tabel 2 B'!C75/'Tabel 1 B'!C73*100,"-")) -> - | D75: =IF(OR('Tabel 1 B'!C73<5,'Tabel 2 B'!D75<0.5),"-",IFERROR('Tabel 2 B'!D75/'Tabel 1 B'!C73*100,"-")) -> - | F75: =IF(OR('Tabel 1 B'!E73<5, 'Tabel 2 B'!F75<0.5),"-",IFERROR('Tabel 2 B'!F75/'Tabel 1 B'!E73*100,"-")) -> - | G75: =IF(OR('Tabel 1 B'!E73<5,'Tabel 2 B'!G75<0.5),"-",IFERROR('Tabel 2 B'!G75/'Tabel 1 B'!E73*100,"-")) -> - | I75: =IF(OR('Tabel 1 B'!G73<5,'Tabel 2 B'!I75<0.5),"-",IFERROR('Tabel 2 B'!I75/'Tabel 1 B'!G73*100,"-")) -> - | J75: =IF(OR('Tabel 1 B'!G73<5,'Tabel 2 B'!J75<0.5),"-",IFERROR('Tabel 2 B'!J75/'Tabel 1 B'!G73*100,"-")) -> -
A76: Mejeriing. | C76: =IF(OR('Tabel 1 B'!C74<5, 'Tabel 2 B'!C76<0.5),"-",IFERROR('Tabel 2 B'!C76/'Tabel 1 B'!C74*100,"-")) -> - | D76: =IF(OR('Tabel 1 B'!C74<5,'Tabel 2 B'!D76<0.5),"-",IFERROR('Tabel 2 B'!D76/'Tabel 1 B'!C74*100,"-")) -> - | F76: =IF(OR('Tabel 1 B'!E74<5, 'Tabel 2 B'!F76<0.5),"-",IFERROR('Tabel 2 B'!F76/'Tabel 1 B'!E74*100,"-")) -> - | G76: =IF(OR('Tabel 1 B'!E74<5,'Tabel 2 B'!G76<0.5),"-",IFERROR('Tabel 2 B'!G76/'Tabel 1 B'!E74*100,"-")) -> - | I76: =IF(OR('Tabel 1 B'!G74<5,'Tabel 2 B'!I76<0.5),"-",IFERROR('Tabel 2 B'!I76/'Tabel 1 B'!G74*100,"-")) -> - | J76: =IF(OR('Tabel 1 B'!G74<5,'Tabel 2 B'!J76<0.5),"-",IFERROR('Tabel 2 B'!J76/'Tabel 1 B'!G74*100,"-")) -> -
A77: Levn.m.kand. | C77: =IF(OR('Tabel 1 B'!C75<5, 'Tabel 2 B'!C77<0.5),"-",IFERROR('Tabel 2 B'!C77/'Tabel 1 B'!C75*100,"-")) -> - | D77: =IF(OR('Tabel 1 B'!C75<5,'Tabel 2 B'!D77<0.5),"-",IFERROR('Tabel 2 B'!D77/'Tabel 1 B'!C75*100,"-")) -> - | F77: =IF(OR('Tabel 1 B'!E75<5, 'Tabel 2 B'!F77<0.5),"-",IFERROR('Tabel 2 B'!F77/'Tabel 1 B'!E75*100,"-")) -> - | G77: =IF(OR('Tabel 1 B'!E75<5,'Tabel 2 B'!G77<0.5),"-",IFERROR('Tabel 2 B'!G77/'Tabel 1 B'!E75*100,"-")) -> - | I77: =IF(OR('Tabel 1 B'!G75<5,'Tabel 2 B'!I77<0.5),"-",IFERROR('Tabel 2 B'!I77/'Tabel 1 B'!G75*100,"-")) -> - | J77: =IF(OR('Tabel 1 B'!G75<5,'Tabel 2 B'!J77<0.5),"-",IFERROR('Tabel 2 B'!J77/'Tabel 1 B'!G75*100,"-")) -> -
A78: Dyrlæge | C78: =IF(OR('Tabel 1 B'!C76<5, 'Tabel 2 B'!C78<0.5),"-",IFERROR('Tabel 2 B'!C78/'Tabel 1 B'!C76*100,"-")) -> - | D78: =IF(OR('Tabel 1 B'!C76<5,'Tabel 2 B'!D78<0.5),"-",IFERROR('Tabel 2 B'!D78/'Tabel 1 B'!C76*100,"-")) -> - | F78: =IF(OR('Tabel 1 B'!E76<5, 'Tabel 2 B'!F78<0.5),"-",IFERROR('Tabel 2 B'!F78/'Tabel 1 B'!E76*100,"-")) -> - | G78: =IF(OR('Tabel 1 B'!E76<5,'Tabel 2 B'!G78<0.5),"-",IFERROR('Tabel 2 B'!G78/'Tabel 1 B'!E76*100,"-")) -> - | I78: =IF(OR('Tabel 1 B'!G76<5,'Tabel 2 B'!I78<0.5),"-",IFERROR('Tabel 2 B'!I78/'Tabel 1 B'!G76*100,"-")) -> - | J78: =IF(OR('Tabel 1 B'!G76<5,'Tabel 2 B'!J78<0.5),"-",IFERROR('Tabel 2 B'!J78/'Tabel 1 B'!G76*100,"-")) -> -
A79: Farmaceut | C79: =IF(OR('Tabel 1 B'!C77<5, 'Tabel 2 B'!C79<0.5),"-",IFERROR('Tabel 2 B'!C79/'Tabel 1 B'!C77*100,"-")) -> - | D79: =IF(OR('Tabel 1 B'!C77<5,'Tabel 2 B'!D79<0.5),"-",IFERROR('Tabel 2 B'!D79/'Tabel 1 B'!C77*100,"-")) -> - | F79: =IF(OR('Tabel 1 B'!E77<5, 'Tabel 2 B'!F79<0.5),"-",IFERROR('Tabel 2 B'!F79/'Tabel 1 B'!E77*100,"-")) -> - | G79: =IF(OR('Tabel 1 B'!E77<5,'Tabel 2 B'!G79<0.5),"-",IFERROR('Tabel 2 B'!G79/'Tabel 1 B'!E77*100,"-")) -> - | I79: =IF(OR('Tabel 1 B'!G77<5,'Tabel 2 B'!I79<0.5),"-",IFERROR('Tabel 2 B'!I79/'Tabel 1 B'!G77*100,"-")) -> - | J79: =IF(OR('Tabel 1 B'!G77<5,'Tabel 2 B'!J79<0.5),"-",IFERROR('Tabel 2 B'!J79/'Tabel 1 B'!G77*100,"-")) -> -
A80: Læge | C80: =IF(OR('Tabel 1 B'!C78<5, 'Tabel 2 B'!C80<0.5),"-",IFERROR('Tabel 2 B'!C80/'Tabel 1 B'!C78*100,"-")) -> - | D80: =IF(OR('Tabel 1 B'!C78<5,'Tabel 2 B'!D80<0.5),"-",IFERROR('Tabel 2 B'!D80/'Tabel 1 B'!C78*100,"-")) -> - | F80: =IF(OR('Tabel 1 B'!E78<5, 'Tabel 2 B'!F80<0.5),"-",IFERROR('Tabel 2 B'!F80/'Tabel 1 B'!E78*100,"-")) -> 4.545454545 | G80: =IF(OR('Tabel 1 B'!E78<5,'Tabel 2 B'!G80<0.5),"-",IFERROR('Tabel 2 B'!G80/'Tabel 1 B'!E78*100,"-")) -> 4.544604027 | I80: =IF(OR('Tabel 1 B'!G78<5,'Tabel 2 B'!I80<0.5),"-",IFERROR('Tabel 2 B'!I80/'Tabel 1 B'!G78*100,"-")) -> 3.333333333 | J80: =IF(OR('Tabel 1 B'!G78<5,'Tabel 2 B'!J80<0.5),"-",IFERROR('Tabel 2 B'!J80/'Tabel 1 B'!G78*100,"-")) -> 3.33270962
A81: Tandlæge | C81: =IF(OR('Tabel 1 B'!C79<5, 'Tabel 2 B'!C81<0.5),"-",IFERROR('Tabel 2 B'!C81/'Tabel 1 B'!C79*100,"-")) -> - | D81: =IF(OR('Tabel 1 B'!C79<5,'Tabel 2 B'!D81<0.5),"-",IFERROR('Tabel 2 B'!D81/'Tabel 1 B'!C79*100,"-")) -> - | F81: =IF(OR('Tabel 1 B'!E79<5, 'Tabel 2 B'!F81<0.5),"-",IFERROR('Tabel 2 B'!F81/'Tabel 1 B'!E79*100,"-")) -> - | G81: =IF(OR('Tabel 1 B'!E79<5,'Tabel 2 B'!G81<0.5),"-",IFERROR('Tabel 2 B'!G81/'Tabel 1 B'!E79*100,"-")) -> - | I81: =IF(OR('Tabel 1 B'!G79<5,'Tabel 2 B'!I81<0.5),"-",IFERROR('Tabel 2 B'!I81/'Tabel 1 B'!G79*100,"-")) -> - | J81: =IF(OR('Tabel 1 B'!G79<5,'Tabel 2 B'!J81<0.5),"-",IFERROR('Tabel 2 B'!J81/'Tabel 1 B'!G79*100,"-")) -> -
A82: Arkitekt | C82: =IF(OR('Tabel 1 B'!C80<5, 'Tabel 2 B'!C82<0.5),"-",IFERROR('Tabel 2 B'!C82/'Tabel 1 B'!C80*100,"-")) -> - | D82: =IF(OR('Tabel 1 B'!C80<5,'Tabel 2 B'!D82<0.5),"-",IFERROR('Tabel 2 B'!D82/'Tabel 1 B'!C80*100,"-")) -> - | F82: =IF(OR('Tabel 1 B'!E80<5, 'Tabel 2 B'!F82<0.5),"-",IFERROR('Tabel 2 B'!F82/'Tabel 1 B'!E80*100,"-")) -> 20 | G82: =IF(OR('Tabel 1 B'!E80<5,'Tabel 2 B'!G82<0.5),"-",IFERROR('Tabel 2 B'!G82/'Tabel 1 B'!E80*100,"-")) -> - | I82: =IF(OR('Tabel 1 B'!G80<5,'Tabel 2 B'!I82<0.5),"-",IFERROR('Tabel 2 B'!I82/'Tabel 1 B'!G80*100,"-")) -> 7.142857143 | J82: =IF(OR('Tabel 1 B'!G80<5,'Tabel 2 B'!J82<0.5),"-",IFERROR('Tabel 2 B'!J82/'Tabel 1 B'!G80*100,"-")) -> -
A83: Landinspek. | C83: =IF(OR('Tabel 1 B'!C81<5, 'Tabel 2 B'!C83<0.5),"-",IFERROR('Tabel 2 B'!C83/'Tabel 1 B'!C81*100,"-")) -> - | D83: =IF(OR('Tabel 1 B'!C81<5,'Tabel 2 B'!D83<0.5),"-",IFERROR('Tabel 2 B'!D83/'Tabel 1 B'!C81*100,"-")) -> - | F83: =IF(OR('Tabel 1 B'!E81<5, 'Tabel 2 B'!F83<0.5),"-",IFERROR('Tabel 2 B'!F83/'Tabel 1 B'!E81*100,"-")) -> - | G83: =IF(OR('Tabel 1 B'!E81<5,'Tabel 2 B'!G83<0.5),"-",IFERROR('Tabel 2 B'!G83/'Tabel 1 B'!E81*100,"-")) -> - | I83: =IF(OR('Tabel 1 B'!G81<5,'Tabel 2 B'!I83<0.5),"-",IFERROR('Tabel 2 B'!I83/'Tabel 1 B'!G81*100,"-")) -> - | J83: =IF(OR('Tabel 1 B'!G81<5,'Tabel 2 B'!J83<0.5),"-",IFERROR('Tabel 2 B'!J83/'Tabel 1 B'!G81*100,"-")) -> -
A84: Bibliotekar | C84: =IF(OR('Tabel 1 B'!C82<5, 'Tabel 2 B'!C84<0.5),"-",IFERROR('Tabel 2 B'!C84/'Tabel 1 B'!C82*100,"-")) -> - | D84: =IF(OR('Tabel 1 B'!C82<5,'Tabel 2 B'!D84<0.5),"-",IFERROR('Tabel 2 B'!D84/'Tabel 1 B'!C82*100,"-")) -> - | F84: =IF(OR('Tabel 1 B'!E82<5, 'Tabel 2 B'!F84<0.5),"-",IFERROR('Tabel 2 B'!F84/'Tabel 1 B'!E82*100,"-")) -> 10 | G84: =IF(OR('Tabel 1 B'!E82<5,'Tabel 2 B'!G84<0.5),"-",IFERROR('Tabel 2 B'!G84/'Tabel 1 B'!E82*100,"-")) -> 9.998128859 | I84: =IF(OR('Tabel 1 B'!G82<5,'Tabel 2 B'!I84<0.5),"-",IFERROR('Tabel 2 B'!I84/'Tabel 1 B'!G82*100,"-")) -> 6.25 | J84: =IF(OR('Tabel 1 B'!G82<5,'Tabel 2 B'!J84<0.5),"-",IFERROR('Tabel 2 B'!J84/'Tabel 1 B'!G82*100,"-")) -> 6.248830537
A85: Musikudd. | C85: =IF(OR('Tabel 1 B'!C83<5, 'Tabel 2 B'!C85<0.5),"-",IFERROR('Tabel 2 B'!C85/'Tabel 1 B'!C83*100,"-")) -> - | D85: =IF(OR('Tabel 1 B'!C83<5,'Tabel 2 B'!D85<0.5),"-",IFERROR('Tabel 2 B'!D85/'Tabel 1 B'!C83*100,"-")) -> - | F85: =IF(OR('Tabel 1 B'!E83<5, 'Tabel 2 B'!F85<0.5),"-",IFERROR('Tabel 2 B'!F85/'Tabel 1 B'!E83*100,"-")) -> - | G85: =IF(OR('Tabel 1 B'!E83<5,'Tabel 2 B'!G85<0.5),"-",IFERROR('Tabel 2 B'!G85/'Tabel 1 B'!E83*100,"-")) -> - | I85: =IF(OR('Tabel 1 B'!G83<5,'Tabel 2 B'!I85<0.5),"-",IFERROR('Tabel 2 B'!I85/'Tabel 1 B'!G83*100,"-")) -> - | J85: =IF(OR('Tabel 1 B'!G83<5,'Tabel 2 B'!J85<0.5),"-",IFERROR('Tabel 2 B'!J85/'Tabel 1 B'!G83*100,"-")) -> -
A86: Teolog | C86: =IF(OR('Tabel 1 B'!C84<5, 'Tabel 2 B'!C86<0.5),"-",IFERROR('Tabel 2 B'!C86/'Tabel 1 B'!C84*100,"-")) -> - | D86: =IF(OR('Tabel 1 B'!C84<5,'Tabel 2 B'!D86<0.5),"-",IFERROR('Tabel 2 B'!D86/'Tabel 1 B'!C84*100,"-")) -> - | F86: =IF(OR('Tabel 1 B'!E84<5, 'Tabel 2 B'!F86<0.5),"-",IFERROR('Tabel 2 B'!F86/'Tabel 1 B'!E84*100,"-")) -> - | G86: =IF(OR('Tabel 1 B'!E84<5,'Tabel 2 B'!G86<0.5),"-",IFERROR('Tabel 2 B'!G86/'Tabel 1 B'!E84*100,"-")) -> - | I86: =IF(OR('Tabel 1 B'!G84<5,'Tabel 2 B'!I86<0.5),"-",IFERROR('Tabel 2 B'!I86/'Tabel 1 B'!G84*100,"-")) -> - | J86: =IF(OR('Tabel 1 B'!G84<5,'Tabel 2 B'!J86<0.5),"-",IFERROR('Tabel 2 B'!J86/'Tabel 1 B'!G84*100,"-")) -> -
A87: Psykolog | C87: =IF(OR('Tabel 1 B'!C85<5, 'Tabel 2 B'!C87<0.5),"-",IFERROR('Tabel 2 B'!C87/'Tabel 1 B'!C85*100,"-")) -> - | D87: =IF(OR('Tabel 1 B'!C85<5,'Tabel 2 B'!D87<0.5),"-",IFERROR('Tabel 2 B'!D87/'Tabel 1 B'!C85*100,"-")) -> - | F87: =IF(OR('Tabel 1 B'!E85<5, 'Tabel 2 B'!F87<0.5),"-",IFERROR('Tabel 2 B'!F87/'Tabel 1 B'!E85*100,"-")) -> 4.166666667 | G87: =IF(OR('Tabel 1 B'!E85<5,'Tabel 2 B'!G87<0.5),"-",IFERROR('Tabel 2 B'!G87/'Tabel 1 B'!E85*100,"-")) -> 3.542173434 | I87: =IF(OR('Tabel 1 B'!G85<5,'Tabel 2 B'!I87<0.5),"-",IFERROR('Tabel 2 B'!I87/'Tabel 1 B'!G85*100,"-")) -> 3.225806452 | J87: =IF(OR('Tabel 1 B'!G85<5,'Tabel 2 B'!J87<0.5),"-",IFERROR('Tabel 2 B'!J87/'Tabel 1 B'!G85*100,"-")) -> 2.74232782
A88: Jurist | C88: =IF(OR('Tabel 1 B'!C86<5, 'Tabel 2 B'!C88<0.5),"-",IFERROR('Tabel 2 B'!C88/'Tabel 1 B'!C86*100,"-")) -> - | D88: =IF(OR('Tabel 1 B'!C86<5,'Tabel 2 B'!D88<0.5),"-",IFERROR('Tabel 2 B'!D88/'Tabel 1 B'!C86*100,"-")) -> - | F88: =IF(OR('Tabel 1 B'!E86<5, 'Tabel 2 B'!F88<0.5),"-",IFERROR('Tabel 2 B'!F88/'Tabel 1 B'!E86*100,"-")) -> - | G88: =IF(OR('Tabel 1 B'!E86<5,'Tabel 2 B'!G88<0.5),"-",IFERROR('Tabel 2 B'!G88/'Tabel 1 B'!E86*100,"-")) -> - | I88: =IF(OR('Tabel 1 B'!G86<5,'Tabel 2 B'!I88<0.5),"-",IFERROR('Tabel 2 B'!I88/'Tabel 1 B'!G86*100,"-")) -> - | J88: =IF(OR('Tabel 1 B'!G86<5,'Tabel 2 B'!J88<0.5),"-",IFERROR('Tabel 2 B'!J88/'Tabel 1 B'!G86*100,"-")) -> -
A89: Økonom | C89: =IF(OR('Tabel 1 B'!C87<5, 'Tabel 2 B'!C89<0.5),"-",IFERROR('Tabel 2 B'!C89/'Tabel 1 B'!C87*100,"-")) -> - | D89: =IF(OR('Tabel 1 B'!C87<5,'Tabel 2 B'!D89<0.5),"-",IFERROR('Tabel 2 B'!D89/'Tabel 1 B'!C87*100,"-")) -> - | F89: =IF(OR('Tabel 1 B'!E87<5, 'Tabel 2 B'!F89<0.5),"-",IFERROR('Tabel 2 B'!F89/'Tabel 1 B'!E87*100,"-")) -> - | G89: =IF(OR('Tabel 1 B'!E87<5,'Tabel 2 B'!G89<0.5),"-",IFERROR('Tabel 2 B'!G89/'Tabel 1 B'!E87*100,"-")) -> - | I89: =IF(OR('Tabel 1 B'!G87<5,'Tabel 2 B'!I89<0.5),"-",IFERROR('Tabel 2 B'!I89/'Tabel 1 B'!G87*100,"-")) -> - | J89: =IF(OR('Tabel 1 B'!G87<5,'Tabel 2 B'!J89<0.5),"-",IFERROR('Tabel 2 B'!J89/'Tabel 1 B'!G87*100,"-")) -> -
A90: Samf. Adm. | C90: =IF(OR('Tabel 1 B'!C88<5, 'Tabel 2 B'!C90<0.5),"-",IFERROR('Tabel 2 B'!C90/'Tabel 1 B'!C88*100,"-")) -> 7.142857143 | D90: =IF(OR('Tabel 1 B'!C88<5,'Tabel 2 B'!D90<0.5),"-",IFERROR('Tabel 2 B'!D90/'Tabel 1 B'!C88*100,"-")) -> 7.141520614 | F90: =IF(OR('Tabel 1 B'!E88<5, 'Tabel 2 B'!F90<0.5),"-",IFERROR('Tabel 2 B'!F90/'Tabel 1 B'!E88*100,"-")) -> 3.703703704 | G90: =IF(OR('Tabel 1 B'!E88<5,'Tabel 2 B'!G90<0.5),"-",IFERROR('Tabel 2 B'!G90/'Tabel 1 B'!E88*100,"-")) -> 3.703010689 | I90: =IF(OR('Tabel 1 B'!G88<5,'Tabel 2 B'!I90<0.5),"-",IFERROR('Tabel 2 B'!I90/'Tabel 1 B'!G88*100,"-")) -> 5.454545455 | J90: =IF(OR('Tabel 1 B'!G88<5,'Tabel 2 B'!J90<0.5),"-",IFERROR('Tabel 2 B'!J90/'Tabel 1 B'!G88*100,"-")) -> 5.453524832
A91: Cand. Merc. | C91: =IF(OR('Tabel 1 B'!C89<5, 'Tabel 2 B'!C91<0.5),"-",IFERROR('Tabel 2 B'!C91/'Tabel 1 B'!C89*100,"-")) -> 15.38461538 | D91: =IF(OR('Tabel 1 B'!C89<5,'Tabel 2 B'!D91<0.5),"-",IFERROR('Tabel 2 B'!D91/'Tabel 1 B'!C89*100,"-")) -> 15.38173671 | F91: =IF(OR('Tabel 1 B'!E89<5, 'Tabel 2 B'!F91<0.5),"-",IFERROR('Tabel 2 B'!F91/'Tabel 1 B'!E89*100,"-")) -> 10.52631579 | G91: =IF(OR('Tabel 1 B'!E89<5,'Tabel 2 B'!G91<0.5),"-",IFERROR('Tabel 2 B'!G91/'Tabel 1 B'!E89*100,"-")) -> 8.095145867 | I91: =IF(OR('Tabel 1 B'!G89<5,'Tabel 2 B'!I91<0.5),"-",IFERROR('Tabel 2 B'!I91/'Tabel 1 B'!G89*100,"-")) -> 12.5 | J91: =IF(OR('Tabel 1 B'!G89<5,'Tabel 2 B'!J91<0.5),"-",IFERROR('Tabel 2 B'!J91/'Tabel 1 B'!G89*100,"-")) -> 11.0553234
A92: HA | C92: =IF(OR('Tabel 1 B'!C90<5, 'Tabel 2 B'!C92<0.5),"-",IFERROR('Tabel 2 B'!C92/'Tabel 1 B'!C90*100,"-")) -> - | D92: =IF(OR('Tabel 1 B'!C90<5,'Tabel 2 B'!D92<0.5),"-",IFERROR('Tabel 2 B'!D92/'Tabel 1 B'!C90*100,"-")) -> - | F92: =IF(OR('Tabel 1 B'!E90<5, 'Tabel 2 B'!F92<0.5),"-",IFERROR('Tabel 2 B'!F92/'Tabel 1 B'!E90*100,"-")) -> 16.66666667 | G92: =IF(OR('Tabel 1 B'!E90<5,'Tabel 2 B'!G92<0.5),"-",IFERROR('Tabel 2 B'!G92/'Tabel 1 B'!E90*100,"-")) -> - | I92: =IF(OR('Tabel 1 B'!G90<5,'Tabel 2 B'!I92<0.5),"-",IFERROR('Tabel 2 B'!I92/'Tabel 1 B'!G90*100,"-")) -> 8.333333333 | J92: =IF(OR('Tabel 1 B'!G90<5,'Tabel 2 B'!J92<0.5),"-",IFERROR('Tabel 2 B'!J92/'Tabel 1 B'!G90*100,"-")) -> -
A93: HD | C93: =IF(OR('Tabel 1 B'!C91<5, 'Tabel 2 B'!C93<0.5),"-",IFERROR('Tabel 2 B'!C93/'Tabel 1 B'!C91*100,"-")) -> - | D93: =IF(OR('Tabel 1 B'!C91<5,'Tabel 2 B'!D93<0.5),"-",IFERROR('Tabel 2 B'!D93/'Tabel 1 B'!C91*100,"-")) -> - | F93: =IF(OR('Tabel 1 B'!E91<5, 'Tabel 2 B'!F93<0.5),"-",IFERROR('Tabel 2 B'!F93/'Tabel 1 B'!E91*100,"-")) -> - | G93: =IF(OR('Tabel 1 B'!E91<5,'Tabel 2 B'!G93<0.5),"-",IFERROR('Tabel 2 B'!G93/'Tabel 1 B'!E91*100,"-")) -> - | I93: =IF(OR('Tabel 1 B'!G91<5,'Tabel 2 B'!I93<0.5),"-",IFERROR('Tabel 2 B'!I93/'Tabel 1 B'!G91*100,"-")) -> - | J93: =IF(OR('Tabel 1 B'!G91<5,'Tabel 2 B'!J93<0.5),"-",IFERROR('Tabel 2 B'!J93/'Tabel 1 B'!G91*100,"-")) -> -
A94: Komm. og Sprog | C94: =IF(OR('Tabel 1 B'!C92<5, 'Tabel 2 B'!C94<0.5),"-",IFERROR('Tabel 2 B'!C94/'Tabel 1 B'!C92*100,"-")) -> - | D94: =IF(OR('Tabel 1 B'!C92<5,'Tabel 2 B'!D94<0.5),"-",IFERROR('Tabel 2 B'!D94/'Tabel 1 B'!C92*100,"-")) -> - | F94: =IF(OR('Tabel 1 B'!E92<5, 'Tabel 2 B'!F94<0.5),"-",IFERROR('Tabel 2 B'!F94/'Tabel 1 B'!E92*100,"-")) -> 36.36363636 | G94: =IF(OR('Tabel 1 B'!E92<5,'Tabel 2 B'!G94<0.5),"-",IFERROR('Tabel 2 B'!G94/'Tabel 1 B'!E92*100,"-")) -> 26.63824045 | I94: =IF(OR('Tabel 1 B'!G92<5,'Tabel 2 B'!I94<0.5),"-",IFERROR('Tabel 2 B'!I94/'Tabel 1 B'!G92*100,"-")) -> 26.66666667 | J94: =IF(OR('Tabel 1 B'!G92<5,'Tabel 2 B'!J94<0.5),"-",IFERROR('Tabel 2 B'!J94/'Tabel 1 B'!G92*100,"-")) -> 19.53470966
A95: Bygningskonst. | C95: =IF(OR('Tabel 1 B'!C93<5, 'Tabel 2 B'!C95<0.5),"-",IFERROR('Tabel 2 B'!C95/'Tabel 1 B'!C93*100,"-")) -> - | D95: =IF(OR('Tabel 1 B'!C93<5,'Tabel 2 B'!D95<0.5),"-",IFERROR('Tabel 2 B'!D95/'Tabel 1 B'!C93*100,"-")) -> - | F95: =IF(OR('Tabel 1 B'!E93<5, 'Tabel 2 B'!F95<0.5),"-",IFERROR('Tabel 2 B'!F95/'Tabel 1 B'!E93*100,"-")) -> - | G95: =IF(OR('Tabel 1 B'!E93<5,'Tabel 2 B'!G95<0.5),"-",IFERROR('Tabel 2 B'!G95/'Tabel 1 B'!E93*100,"-")) -> - | I95: =IF(OR('Tabel 1 B'!G93<5,'Tabel 2 B'!I95<0.5),"-",IFERROR('Tabel 2 B'!I95/'Tabel 1 B'!G93*100,"-")) -> - | J95: =IF(OR('Tabel 1 B'!G93<5,'Tabel 2 B'!J95<0.5),"-",IFERROR('Tabel 2 B'!J95/'Tabel 1 B'!G93*100,"-")) -> -
A96: Cand. IT. | C96: =IF(OR('Tabel 1 B'!C94<5, 'Tabel 2 B'!C96<0.5),"-",IFERROR('Tabel 2 B'!C96/'Tabel 1 B'!C94*100,"-")) -> - | D96: =IF(OR('Tabel 1 B'!C94<5,'Tabel 2 B'!D96<0.5),"-",IFERROR('Tabel 2 B'!D96/'Tabel 1 B'!C94*100,"-")) -> - | F96: =IF(OR('Tabel 1 B'!E94<5, 'Tabel 2 B'!F96<0.5),"-",IFERROR('Tabel 2 B'!F96/'Tabel 1 B'!E94*100,"-")) -> - | G96: =IF(OR('Tabel 1 B'!E94<5,'Tabel 2 B'!G96<0.5),"-",IFERROR('Tabel 2 B'!G96/'Tabel 1 B'!E94*100,"-")) -> - | I96: =IF(OR('Tabel 1 B'!G94<5,'Tabel 2 B'!I96<0.5),"-",IFERROR('Tabel 2 B'!I96/'Tabel 1 B'!G94*100,"-")) -> - | J96: =IF(OR('Tabel 1 B'!G94<5,'Tabel 2 B'!J96<0.5),"-",IFERROR('Tabel 2 B'!J96/'Tabel 1 B'!G94*100,"-")) -> -
A97: Bac. Samf. | C97: =IF(OR('Tabel 1 B'!C95<5, 'Tabel 2 B'!C97<0.5),"-",IFERROR('Tabel 2 B'!C97/'Tabel 1 B'!C95*100,"-")) -> - | D97: =IF(OR('Tabel 1 B'!C95<5,'Tabel 2 B'!D97<0.5),"-",IFERROR('Tabel 2 B'!D97/'Tabel 1 B'!C95*100,"-")) -> - | F97: =IF(OR('Tabel 1 B'!E95<5, 'Tabel 2 B'!F97<0.5),"-",IFERROR('Tabel 2 B'!F97/'Tabel 1 B'!E95*100,"-")) -> - | G97: =IF(OR('Tabel 1 B'!E95<5,'Tabel 2 B'!G97<0.5),"-",IFERROR('Tabel 2 B'!G97/'Tabel 1 B'!E95*100,"-")) -> - | I97: =IF(OR('Tabel 1 B'!G95<5,'Tabel 2 B'!I97<0.5),"-",IFERROR('Tabel 2 B'!I97/'Tabel 1 B'!G95*100,"-")) -> - | J97: =IF(OR('Tabel 1 B'!G95<5,'Tabel 2 B'!J97<0.5),"-",IFERROR('Tabel 2 B'!J97/'Tabel 1 B'!G95*100,"-")) -> -
A98: Bac. Hum. | C98: =IF(OR('Tabel 1 B'!C96<5, 'Tabel 2 B'!C98<0.5),"-",IFERROR('Tabel 2 B'!C98/'Tabel 1 B'!C96*100,"-")) -> 25 | D98: =IF(OR('Tabel 1 B'!C96<5,'Tabel 2 B'!D98<0.5),"-",IFERROR('Tabel 2 B'!D98/'Tabel 1 B'!C96*100,"-")) -> 24.99532215 | F98: =IF(OR('Tabel 1 B'!E96<5, 'Tabel 2 B'!F98<0.5),"-",IFERROR('Tabel 2 B'!F98/'Tabel 1 B'!E96*100,"-")) -> 20 | G98: =IF(OR('Tabel 1 B'!E96<5,'Tabel 2 B'!G98<0.5),"-",IFERROR('Tabel 2 B'!G98/'Tabel 1 B'!E96*100,"-")) -> - | I98: =IF(OR('Tabel 1 B'!G96<5,'Tabel 2 B'!I98<0.5),"-",IFERROR('Tabel 2 B'!I98/'Tabel 1 B'!G96*100,"-")) -> 23.07692308 | J98: =IF(OR('Tabel 1 B'!G96<5,'Tabel 2 B'!J98<0.5),"-",IFERROR('Tabel 2 B'!J98/'Tabel 1 B'!G96*100,"-")) -> 16.68193965
A99: Bac. Nat. | C99: =IF(OR('Tabel 1 B'!C97<5, 'Tabel 2 B'!C99<0.5),"-",IFERROR('Tabel 2 B'!C99/'Tabel 1 B'!C97*100,"-")) -> - | D99: =IF(OR('Tabel 1 B'!C97<5,'Tabel 2 B'!D99<0.5),"-",IFERROR('Tabel 2 B'!D99/'Tabel 1 B'!C97*100,"-")) -> - | F99: =IF(OR('Tabel 1 B'!E97<5, 'Tabel 2 B'!F99<0.5),"-",IFERROR('Tabel 2 B'!F99/'Tabel 1 B'!E97*100,"-")) -> 14.28571429 | G99: =IF(OR('Tabel 1 B'!E97<5,'Tabel 2 B'!G99<0.5),"-",IFERROR('Tabel 2 B'!G99/'Tabel 1 B'!E97*100,"-")) -> 14.28304123 | I99: =IF(OR('Tabel 1 B'!G97<5,'Tabel 2 B'!I99<0.5),"-",IFERROR('Tabel 2 B'!I99/'Tabel 1 B'!G97*100,"-")) -> 20 | J99: =IF(OR('Tabel 1 B'!G97<5,'Tabel 2 B'!J99<0.5),"-",IFERROR('Tabel 2 B'!J99/'Tabel 1 B'!G97*100,"-")) -> 19.99625772
A100: Andre | C100: =IF(OR('Tabel 1 B'!C98<5, 'Tabel 2 B'!C100<0.5),"-",IFERROR('Tabel 2 B'!C100/'Tabel 1 B'!C98*100,"-")) -> 9.090909091 | D100: =IF(OR('Tabel 1 B'!C98<5,'Tabel 2 B'!D100<0.5),"-",IFERROR('Tabel 2 B'!D100/'Tabel 1 B'!C98*100,"-")) -> 6.552772785 | F100: =IF(OR('Tabel 1 B'!E98<5, 'Tabel 2 B'!F100<0.5),"-",IFERROR('Tabel 2 B'!F100/'Tabel 1 B'!E98*100,"-")) -> 13.95348837 | G100: =IF(OR('Tabel 1 B'!E98<5,'Tabel 2 B'!G100<0.5),"-",IFERROR('Tabel 2 B'!G100/'Tabel 1 B'!E98*100,"-")) -> 9.458689128 | I100: =IF(OR('Tabel 1 B'!G98<5,'Tabel 2 B'!I100<0.5),"-",IFERROR('Tabel 2 B'!I100/'Tabel 1 B'!G98*100,"-")) -> 11.00917431 | J100: =IF(OR('Tabel 1 B'!G98<5,'Tabel 2 B'!J100<0.5),"-",IFERROR('Tabel 2 B'!J100/'Tabel 1 B'!G98*100,"-")) -> 7.699143452
A102: Total | C102: =IF(OR('Tabel 1 B'!C100<5, 'Tabel 2 B'!C102<0.5),"-",IFERROR('Tabel 2 B'!C102/'Tabel 1 B'!C100*100,"-")) -> 7.857142857 | D102: =IF(OR('Tabel 1 B'!C100<5,'Tabel 2 B'!D102<0.5),"-",IFERROR('Tabel 2 B'!D102/'Tabel 1 B'!C100*100,"-")) -> 6.651162929 | F102: =IF(OR('Tabel 1 B'!E100<5, 'Tabel 2 B'!F102<0.5),"-",IFERROR('Tabel 2 B'!F102/'Tabel 1 B'!E100*100,"-")) -> 10.61728395 | G102: =IF(OR('Tabel 1 B'!E100<5,'Tabel 2 B'!G102<0.5),"-",IFERROR('Tabel 2 B'!G102/'Tabel 1 B'!E100*100,"-")) -> 7.979375871 | I102: =IF(OR('Tabel 1 B'!G100<5,'Tabel 2 B'!I102<0.5),"-",IFERROR('Tabel 2 B'!I102/'Tabel 1 B'!G100*100,"-")) -> 9.212121212 | J102: =IF(OR('Tabel 1 B'!G100<5,'Tabel 2 B'!J102<0.5),"-",IFERROR('Tabel 2 B'!J102/'Tabel 1 B'!G100*100,"-")) -> 7.303194737
A104: Ingeniører i alt | C104: =IF(OR('Tabel 1 B'!C102<5, 'Tabel 2 B'!C104<0.5),"-",IFERROR('Tabel 2 B'!C104/'Tabel 1 B'!C102*100,"-")) -> 7.142857143 | D104: =IF(OR('Tabel 1 B'!C102<5,'Tabel 2 B'!D104<0.5),"-",IFERROR('Tabel 2 B'!D104/'Tabel 1 B'!C102*100,"-")) -> 6.05967454 | F104: =IF(OR('Tabel 1 B'!E102<5, 'Tabel 2 B'!F104<0.5),"-",IFERROR('Tabel 2 B'!F104/'Tabel 1 B'!E102*100,"-")) -> 15.38461538 | G104: =IF(OR('Tabel 1 B'!E102<5,'Tabel 2 B'!G104<0.5),"-",IFERROR('Tabel 2 B'!G104/'Tabel 1 B'!E102*100,"-")) -> 10.07057559 | I104: =IF(OR('Tabel 1 B'!G102<5,'Tabel 2 B'!I104<0.5),"-",IFERROR('Tabel 2 B'!I104/'Tabel 1 B'!G102*100,"-")) -> 8.24742268 | J104: =IF(OR('Tabel 1 B'!G102<5,'Tabel 2 B'!J104<0.5),"-",IFERROR('Tabel 2 B'!J104/'Tabel 1 B'!G102*100,"-")) -> 6.59721798
A105: Magistre i alt | C105: =IF(OR('Tabel 1 B'!C103<5, 'Tabel 2 B'!C105<0.5),"-",IFERROR('Tabel 2 B'!C105/'Tabel 1 B'!C103*100,"-")) -> 16.4556962 | D105: =IF(OR('Tabel 1 B'!C103<5,'Tabel 2 B'!D105<0.5),"-",IFERROR('Tabel 2 B'!D105/'Tabel 1 B'!C103*100,"-")) -> 14.27988318 | F105: =IF(OR('Tabel 1 B'!E103<5, 'Tabel 2 B'!F105<0.5),"-",IFERROR('Tabel 2 B'!F105/'Tabel 1 B'!E103*100,"-")) -> 11.53846154 | G105: =IF(OR('Tabel 1 B'!E103<5,'Tabel 2 B'!G105<0.5),"-",IFERROR('Tabel 2 B'!G105/'Tabel 1 B'!E103*100,"-")) -> 9.592235246 | I105: =IF(OR('Tabel 1 B'!G103<5,'Tabel 2 B'!I105<0.5),"-",IFERROR('Tabel 2 B'!I105/'Tabel 1 B'!G103*100,"-")) -> 13.39712919 | J105: =IF(OR('Tabel 1 B'!G103<5,'Tabel 2 B'!J105<0.5),"-",IFERROR('Tabel 2 B'!J105/'Tabel 1 B'!G103*100,"-")) -> 11.36412131
A106: DJØF'ere i alt | C106: =IF(OR('Tabel 1 B'!C104<5, 'Tabel 2 B'!C106<0.5),"-",IFERROR('Tabel 2 B'!C106/'Tabel 1 B'!C104*100,"-")) -> 6.153846154 | D106: =IF(OR('Tabel 1 B'!C104<5,'Tabel 2 B'!D106<0.5),"-",IFERROR('Tabel 2 B'!D106/'Tabel 1 B'!C104*100,"-")) -> 6.152694683 | F106: =IF(OR('Tabel 1 B'!E104<5, 'Tabel 2 B'!F106<0.5),"-",IFERROR('Tabel 2 B'!F106/'Tabel 1 B'!E104*100,"-")) -> 5.263157895 | G106: =IF(OR('Tabel 1 B'!E104<5,'Tabel 2 B'!G106<0.5),"-",IFERROR('Tabel 2 B'!G106/'Tabel 1 B'!E104*100,"-")) -> 3.645441803 | I106: =IF(OR('Tabel 1 B'!G104<5,'Tabel 2 B'!I106<0.5),"-",IFERROR('Tabel 2 B'!I106/'Tabel 1 B'!G104*100,"-")) -> 5.673758865 | J106: =IF(OR('Tabel 1 B'!G104<5,'Tabel 2 B'!J106<0.5),"-",IFERROR('Tabel 2 B'!J106/'Tabel 1 B'!G104*100,"-")) -> 4.801267598
A111: Christiansø
C113: Mænd | F113: Kvinder | I113: I alt
C114: Ledigheds- berørte | D114: Gns. brutto- ledighed | F114: Ledigheds- berørte | G114: Gns. brutto- ledighed | I114: Ledigheds- berørte | J114: Gns. brutto- ledighed
A117: Civ. ing. | C117: =IF(OR('Tabel 1 B'!C115<5, 'Tabel 2 B'!C117<0.5),"-",IFERROR('Tabel 2 B'!C117/'Tabel 1 B'!C115*100,"-")) -> - | D117: =IF(OR('Tabel 1 B'!C115<5,'Tabel 2 B'!D117<0.5),"-",IFERROR('Tabel 2 B'!D117/'Tabel 1 B'!C115*100,"-")) -> - | F117: =IF(OR('Tabel 1 B'!E115<5, 'Tabel 2 B'!F117<0.5),"-",IFERROR('Tabel 2 B'!F117/'Tabel 1 B'!E115*100,"-")) -> - | G117: =IF(OR('Tabel 1 B'!E115<5,'Tabel 2 B'!G117<0.5),"-",IFERROR('Tabel 2 B'!G117/'Tabel 1 B'!E115*100,"-")) -> - | I117: =IF(OR('Tabel 1 B'!G115<5,'Tabel 2 B'!I117<0.5),"-",IFERROR('Tabel 2 B'!I117/'Tabel 1 B'!G115*100,"-")) -> - | J117: =IF(OR('Tabel 1 B'!G115<5,'Tabel 2 B'!J117<0.5),"-",IFERROR('Tabel 2 B'!J117/'Tabel 1 B'!G115*100,"-")) -> -
A118: Diplom ing. | C118: =IF(OR('Tabel 1 B'!C116<5, 'Tabel 2 B'!C118<0.5),"-",IFERROR('Tabel 2 B'!C118/'Tabel 1 B'!C116*100,"-")) -> - | D118: =IF(OR('Tabel 1 B'!C116<5,'Tabel 2 B'!D118<0.5),"-",IFERROR('Tabel 2 B'!D118/'Tabel 1 B'!C116*100,"-")) -> - | F118: =IF(OR('Tabel 1 B'!E116<5, 'Tabel 2 B'!F118<0.5),"-",IFERROR('Tabel 2 B'!F118/'Tabel 1 B'!E116*100,"-")) -> - | G118: =IF(OR('Tabel 1 B'!E116<5,'Tabel 2 B'!G118<0.5),"-",IFERROR('Tabel 2 B'!G118/'Tabel 1 B'!E116*100,"-")) -> - | I118: =IF(OR('Tabel 1 B'!G116<5,'Tabel 2 B'!I118<0.5),"-",IFERROR('Tabel 2 B'!I118/'Tabel 1 B'!G116*100,"-")) -> - | J118: =IF(OR('Tabel 1 B'!G116<5,'Tabel 2 B'!J118<0.5),"-",IFERROR('Tabel 2 B'!J118/'Tabel 1 B'!G116*100,"-")) -> -
A119: Cand. Scient. Tek. | C119: =IF(OR('Tabel 1 B'!C117<5, 'Tabel 2 B'!C119<0.5),"-",IFERROR('Tabel 2 B'!C119/'Tabel 1 B'!C117*100,"-")) -> - | D119: =IF(OR('Tabel 1 B'!C117<5,'Tabel 2 B'!D119<0.5),"-",IFERROR('Tabel 2 B'!D119/'Tabel 1 B'!C117*100,"-")) -> - | F119: =IF(OR('Tabel 1 B'!E117<5, 'Tabel 2 B'!F119<0.5),"-",IFERROR('Tabel 2 B'!F119/'Tabel 1 B'!E117*100,"-")) -> - | G119: =IF(OR('Tabel 1 B'!E117<5,'Tabel 2 B'!G119<0.5),"-",IFERROR('Tabel 2 B'!G119/'Tabel 1 B'!E117*100,"-")) -> - | I119: =IF(OR('Tabel 1 B'!G117<5,'Tabel 2 B'!I119<0.5),"-",IFERROR('Tabel 2 B'!I119/'Tabel 1 B'!G117*100,"-")) -> - | J119: =IF(OR('Tabel 1 B'!G117<5,'Tabel 2 B'!J119<0.5),"-",IFERROR('Tabel 2 B'!J119/'Tabel 1 B'!G117*100,"-")) -> -
A120: MA. Hum. | C120: =IF(OR('Tabel 1 B'!C118<5, 'Tabel 2 B'!C120<0.5),"-",IFERROR('Tabel 2 B'!C120/'Tabel 1 B'!C118*100,"-")) -> - | D120: =IF(OR('Tabel 1 B'!C118<5,'Tabel 2 B'!D120<0.5),"-",IFERROR('Tabel 2 B'!D120/'Tabel 1 B'!C118*100,"-")) -> - | F120: =IF(OR('Tabel 1 B'!E118<5, 'Tabel 2 B'!F120<0.5),"-",IFERROR('Tabel 2 B'!F120/'Tabel 1 B'!E118*100,"-")) -> - | G120: =IF(OR('Tabel 1 B'!E118<5,'Tabel 2 B'!G120<0.5),"-",IFERROR('Tabel 2 B'!G120/'Tabel 1 B'!E118*100,"-")) -> - | I120: =IF(OR('Tabel 1 B'!G118<5,'Tabel 2 B'!I120<0.5),"-",IFERROR('Tabel 2 B'!I120/'Tabel 1 B'!G118*100,"-")) -> - | J120: =IF(OR('Tabel 1 B'!G118<5,'Tabel 2 B'!J120<0.5),"-",IFERROR('Tabel 2 B'!J120/'Tabel 1 B'!G118*100,"-")) -> -
A121: MA. Nat. | C121: =IF(OR('Tabel 1 B'!C119<5, 'Tabel 2 B'!C121<0.5),"-",IFERROR('Tabel 2 B'!C121/'Tabel 1 B'!C119*100,"-")) -> - | D121: =IF(OR('Tabel 1 B'!C119<5,'Tabel 2 B'!D121<0.5),"-",IFERROR('Tabel 2 B'!D121/'Tabel 1 B'!C119*100,"-")) -> - | F121: =IF(OR('Tabel 1 B'!E119<5, 'Tabel 2 B'!F121<0.5),"-",IFERROR('Tabel 2 B'!F121/'Tabel 1 B'!E119*100,"-")) -> - | G121: =IF(OR('Tabel 1 B'!E119<5,'Tabel 2 B'!G121<0.5),"-",IFERROR('Tabel 2 B'!G121/'Tabel 1 B'!E119*100,"-")) -> - | I121: =IF(OR('Tabel 1 B'!G119<5,'Tabel 2 B'!I121<0.5),"-",IFERROR('Tabel 2 B'!I121/'Tabel 1 B'!G119*100,"-")) -> - | J121: =IF(OR('Tabel 1 B'!G119<5,'Tabel 2 B'!J121<0.5),"-",IFERROR('Tabel 2 B'!J121/'Tabel 1 B'!G119*100,"-")) -> -
A122: MA. Ph.d. | C122: =IF(OR('Tabel 1 B'!C120<5, 'Tabel 2 B'!C122<0.5),"-",IFERROR('Tabel 2 B'!C122/'Tabel 1 B'!C120*100,"-")) -> - | D122: =IF(OR('Tabel 1 B'!C120<5,'Tabel 2 B'!D122<0.5),"-",IFERROR('Tabel 2 B'!D122/'Tabel 1 B'!C120*100,"-")) -> - | F122: =IF(OR('Tabel 1 B'!E120<5, 'Tabel 2 B'!F122<0.5),"-",IFERROR('Tabel 2 B'!F122/'Tabel 1 B'!E120*100,"-")) -> - | G122: =IF(OR('Tabel 1 B'!E120<5,'Tabel 2 B'!G122<0.5),"-",IFERROR('Tabel 2 B'!G122/'Tabel 1 B'!E120*100,"-")) -> - | I122: =IF(OR('Tabel 1 B'!G120<5,'Tabel 2 B'!I122<0.5),"-",IFERROR('Tabel 2 B'!I122/'Tabel 1 B'!G120*100,"-")) -> - | J122: =IF(OR('Tabel 1 B'!G120<5,'Tabel 2 B'!J122<0.5),"-",IFERROR('Tabel 2 B'!J122/'Tabel 1 B'!G120*100,"-")) -> -
A123: MA. Samf. | C123: =IF(OR('Tabel 1 B'!C121<5, 'Tabel 2 B'!C123<0.5),"-",IFERROR('Tabel 2 B'!C123/'Tabel 1 B'!C121*100,"-")) -> - | D123: =IF(OR('Tabel 1 B'!C121<5,'Tabel 2 B'!D123<0.5),"-",IFERROR('Tabel 2 B'!D123/'Tabel 1 B'!C121*100,"-")) -> - | F123: =IF(OR('Tabel 1 B'!E121<5, 'Tabel 2 B'!F123<0.5),"-",IFERROR('Tabel 2 B'!F123/'Tabel 1 B'!E121*100,"-")) -> - | G123: =IF(OR('Tabel 1 B'!E121<5,'Tabel 2 B'!G123<0.5),"-",IFERROR('Tabel 2 B'!G123/'Tabel 1 B'!E121*100,"-")) -> - | I123: =IF(OR('Tabel 1 B'!G121<5,'Tabel 2 B'!I123<0.5),"-",IFERROR('Tabel 2 B'!I123/'Tabel 1 B'!G121*100,"-")) -> - | J123: =IF(OR('Tabel 1 B'!G121<5,'Tabel 2 B'!J123<0.5),"-",IFERROR('Tabel 2 B'!J123/'Tabel 1 B'!G121*100,"-")) -> -
A124: Øvrige Mag. | C124: =IF(OR('Tabel 1 B'!C122<5, 'Tabel 2 B'!C124<0.5),"-",IFERROR('Tabel 2 B'!C124/'Tabel 1 B'!C122*100,"-")) -> - | D124: =IF(OR('Tabel 1 B'!C122<5,'Tabel 2 B'!D124<0.5),"-",IFERROR('Tabel 2 B'!D124/'Tabel 1 B'!C122*100,"-")) -> - | F124: =IF(OR('Tabel 1 B'!E122<5, 'Tabel 2 B'!F124<0.5),"-",IFERROR('Tabel 2 B'!F124/'Tabel 1 B'!E122*100,"-")) -> - | G124: =IF(OR('Tabel 1 B'!E122<5,'Tabel 2 B'!G124<0.5),"-",IFERROR('Tabel 2 B'!G124/'Tabel 1 B'!E122*100,"-")) -> - | I124: =IF(OR('Tabel 1 B'!G122<5,'Tabel 2 B'!I124<0.5),"-",IFERROR('Tabel 2 B'!I124/'Tabel 1 B'!G122*100,"-")) -> - | J124: =IF(OR('Tabel 1 B'!G122<5,'Tabel 2 B'!J124<0.5),"-",IFERROR('Tabel 2 B'!J124/'Tabel 1 B'!G122*100,"-")) -> -
A125: Agronom | C125: =IF(OR('Tabel 1 B'!C123<5, 'Tabel 2 B'!C125<0.5),"-",IFERROR('Tabel 2 B'!C125/'Tabel 1 B'!C123*100,"-")) -> - | D125: =IF(OR('Tabel 1 B'!C123<5,'Tabel 2 B'!D125<0.5),"-",IFERROR('Tabel 2 B'!D125/'Tabel 1 B'!C123*100,"-")) -> - | F125: =IF(OR('Tabel 1 B'!E123<5, 'Tabel 2 B'!F125<0.5),"-",IFERROR('Tabel 2 B'!F125/'Tabel 1 B'!E123*100,"-")) -> - | G125: =IF(OR('Tabel 1 B'!E123<5,'Tabel 2 B'!G125<0.5),"-",IFERROR('Tabel 2 B'!G125/'Tabel 1 B'!E123*100,"-")) -> - | I125: =IF(OR('Tabel 1 B'!G123<5,'Tabel 2 B'!I125<0.5),"-",IFERROR('Tabel 2 B'!I125/'Tabel 1 B'!G123*100,"-")) -> - | J125: =IF(OR('Tabel 1 B'!G123<5,'Tabel 2 B'!J125<0.5),"-",IFERROR('Tabel 2 B'!J125/'Tabel 1 B'!G123*100,"-")) -> -
A126: Landsk. Arkt. | C126: =IF(OR('Tabel 1 B'!C124<5, 'Tabel 2 B'!C126<0.5),"-",IFERROR('Tabel 2 B'!C126/'Tabel 1 B'!C124*100,"-")) -> - | D126: =IF(OR('Tabel 1 B'!C124<5,'Tabel 2 B'!D126<0.5),"-",IFERROR('Tabel 2 B'!D126/'Tabel 1 B'!C124*100,"-")) -> - | F126: =IF(OR('Tabel 1 B'!E124<5, 'Tabel 2 B'!F126<0.5),"-",IFERROR('Tabel 2 B'!F126/'Tabel 1 B'!E124*100,"-")) -> - | G126: =IF(OR('Tabel 1 B'!E124<5,'Tabel 2 B'!G126<0.5),"-",IFERROR('Tabel 2 B'!G126/'Tabel 1 B'!E124*100,"-")) -> - | I126: =IF(OR('Tabel 1 B'!G124<5,'Tabel 2 B'!I126<0.5),"-",IFERROR('Tabel 2 B'!I126/'Tabel 1 B'!G124*100,"-")) -> - | J126: =IF(OR('Tabel 1 B'!G124<5,'Tabel 2 B'!J126<0.5),"-",IFERROR('Tabel 2 B'!J126/'Tabel 1 B'!G124*100,"-")) -> -
A127: Hortonom | C127: =IF(OR('Tabel 1 B'!C125<5, 'Tabel 2 B'!C127<0.5),"-",IFERROR('Tabel 2 B'!C127/'Tabel 1 B'!C125*100,"-")) -> - | D127: =IF(OR('Tabel 1 B'!C125<5,'Tabel 2 B'!D127<0.5),"-",IFERROR('Tabel 2 B'!D127/'Tabel 1 B'!C125*100,"-")) -> - | F127: =IF(OR('Tabel 1 B'!E125<5, 'Tabel 2 B'!F127<0.5),"-",IFERROR('Tabel 2 B'!F127/'Tabel 1 B'!E125*100,"-")) -> - | G127: =IF(OR('Tabel 1 B'!E125<5,'Tabel 2 B'!G127<0.5),"-",IFERROR('Tabel 2 B'!G127/'Tabel 1 B'!E125*100,"-")) -> - | I127: =IF(OR('Tabel 1 B'!G125<5,'Tabel 2 B'!I127<0.5),"-",IFERROR('Tabel 2 B'!I127/'Tabel 1 B'!G125*100,"-")) -> - | J127: =IF(OR('Tabel 1 B'!G125<5,'Tabel 2 B'!J127<0.5),"-",IFERROR('Tabel 2 B'!J127/'Tabel 1 B'!G125*100,"-")) -> -
A128: Forstkand. | C128: =IF(OR('Tabel 1 B'!C126<5, 'Tabel 2 B'!C128<0.5),"-",IFERROR('Tabel 2 B'!C128/'Tabel 1 B'!C126*100,"-")) -> - | D128: =IF(OR('Tabel 1 B'!C126<5,'Tabel 2 B'!D128<0.5),"-",IFERROR('Tabel 2 B'!D128/'Tabel 1 B'!C126*100,"-")) -> - | F128: =IF(OR('Tabel 1 B'!E126<5, 'Tabel 2 B'!F128<0.5),"-",IFERROR('Tabel 2 B'!F128/'Tabel 1 B'!E126*100,"-")) -> - | G128: =IF(OR('Tabel 1 B'!E126<5,'Tabel 2 B'!G128<0.5),"-",IFERROR('Tabel 2 B'!G128/'Tabel 1 B'!E126*100,"-")) -> - | I128: =IF(OR('Tabel 1 B'!G126<5,'Tabel 2 B'!I128<0.5),"-",IFERROR('Tabel 2 B'!I128/'Tabel 1 B'!G126*100,"-")) -> - | J128: =IF(OR('Tabel 1 B'!G126<5,'Tabel 2 B'!J128<0.5),"-",IFERROR('Tabel 2 B'!J128/'Tabel 1 B'!G126*100,"-")) -> -
A129: Jordbrugsakad. | C129: =IF(OR('Tabel 1 B'!C127<5, 'Tabel 2 B'!C129<0.5),"-",IFERROR('Tabel 2 B'!C129/'Tabel 1 B'!C127*100,"-")) -> - | D129: =IF(OR('Tabel 1 B'!C127<5,'Tabel 2 B'!D129<0.5),"-",IFERROR('Tabel 2 B'!D129/'Tabel 1 B'!C127*100,"-")) -> - | F129: =IF(OR('Tabel 1 B'!E127<5, 'Tabel 2 B'!F129<0.5),"-",IFERROR('Tabel 2 B'!F129/'Tabel 1 B'!E127*100,"-")) -> - | G129: =IF(OR('Tabel 1 B'!E127<5,'Tabel 2 B'!G129<0.5),"-",IFERROR('Tabel 2 B'!G129/'Tabel 1 B'!E127*100,"-")) -> - | I129: =IF(OR('Tabel 1 B'!G127<5,'Tabel 2 B'!I129<0.5),"-",IFERROR('Tabel 2 B'!I129/'Tabel 1 B'!G127*100,"-")) -> - | J129: =IF(OR('Tabel 1 B'!G127<5,'Tabel 2 B'!J129<0.5),"-",IFERROR('Tabel 2 B'!J129/'Tabel 1 B'!G127*100,"-")) -> -
A130: Mejeriing. | C130: =IF(OR('Tabel 1 B'!C128<5, 'Tabel 2 B'!C130<0.5),"-",IFERROR('Tabel 2 B'!C130/'Tabel 1 B'!C128*100,"-")) -> - | D130: =IF(OR('Tabel 1 B'!C128<5,'Tabel 2 B'!D130<0.5),"-",IFERROR('Tabel 2 B'!D130/'Tabel 1 B'!C128*100,"-")) -> - | F130: =IF(OR('Tabel 1 B'!E128<5, 'Tabel 2 B'!F130<0.5),"-",IFERROR('Tabel 2 B'!F130/'Tabel 1 B'!E128*100,"-")) -> - | G130: =IF(OR('Tabel 1 B'!E128<5,'Tabel 2 B'!G130<0.5),"-",IFERROR('Tabel 2 B'!G130/'Tabel 1 B'!E128*100,"-")) -> - | I130: =IF(OR('Tabel 1 B'!G128<5,'Tabel 2 B'!I130<0.5),"-",IFERROR('Tabel 2 B'!I130/'Tabel 1 B'!G128*100,"-")) -> - | J130: =IF(OR('Tabel 1 B'!G128<5,'Tabel 2 B'!J130<0.5),"-",IFERROR('Tabel 2 B'!J130/'Tabel 1 B'!G128*100,"-")) -> -
A131: Levn.m.kand. | C131: =IF(OR('Tabel 1 B'!C129<5, 'Tabel 2 B'!C131<0.5),"-",IFERROR('Tabel 2 B'!C131/'Tabel 1 B'!C129*100,"-")) -> - | D131: =IF(OR('Tabel 1 B'!C129<5,'Tabel 2 B'!D131<0.5),"-",IFERROR('Tabel 2 B'!D131/'Tabel 1 B'!C129*100,"-")) -> - | F131: =IF(OR('Tabel 1 B'!E129<5, 'Tabel 2 B'!F131<0.5),"-",IFERROR('Tabel 2 B'!F131/'Tabel 1 B'!E129*100,"-")) -> - | G131: =IF(OR('Tabel 1 B'!E129<5,'Tabel 2 B'!G131<0.5),"-",IFERROR('Tabel 2 B'!G131/'Tabel 1 B'!E129*100,"-")) -> - | I131: =IF(OR('Tabel 1 B'!G129<5,'Tabel 2 B'!I131<0.5),"-",IFERROR('Tabel 2 B'!I131/'Tabel 1 B'!G129*100,"-")) -> - | J131: =IF(OR('Tabel 1 B'!G129<5,'Tabel 2 B'!J131<0.5),"-",IFERROR('Tabel 2 B'!J131/'Tabel 1 B'!G129*100,"-")) -> -
A132: Dyrlæge | C132: =IF(OR('Tabel 1 B'!C130<5, 'Tabel 2 B'!C132<0.5),"-",IFERROR('Tabel 2 B'!C132/'Tabel 1 B'!C130*100,"-")) -> - | D132: =IF(OR('Tabel 1 B'!C130<5,'Tabel 2 B'!D132<0.5),"-",IFERROR('Tabel 2 B'!D132/'Tabel 1 B'!C130*100,"-")) -> - | F132: =IF(OR('Tabel 1 B'!E130<5, 'Tabel 2 B'!F132<0.5),"-",IFERROR('Tabel 2 B'!F132/'Tabel 1 B'!E130*100,"-")) -> - | G132: =IF(OR('Tabel 1 B'!E130<5,'Tabel 2 B'!G132<0.5),"-",IFERROR('Tabel 2 B'!G132/'Tabel 1 B'!E130*100,"-")) -> - | I132: =IF(OR('Tabel 1 B'!G130<5,'Tabel 2 B'!I132<0.5),"-",IFERROR('Tabel 2 B'!I132/'Tabel 1 B'!G130*100,"-")) -> - | J132: =IF(OR('Tabel 1 B'!G130<5,'Tabel 2 B'!J132<0.5),"-",IFERROR('Tabel 2 B'!J132/'Tabel 1 B'!G130*100,"-")) -> -
A133: Farmaceut | C133: =IF(OR('Tabel 1 B'!C131<5, 'Tabel 2 B'!C133<0.5),"-",IFERROR('Tabel 2 B'!C133/'Tabel 1 B'!C131*100,"-")) -> - | D133: =IF(OR('Tabel 1 B'!C131<5,'Tabel 2 B'!D133<0.5),"-",IFERROR('Tabel 2 B'!D133/'Tabel 1 B'!C131*100,"-")) -> - | F133: =IF(OR('Tabel 1 B'!E131<5, 'Tabel 2 B'!F133<0.5),"-",IFERROR('Tabel 2 B'!F133/'Tabel 1 B'!E131*100,"-")) -> - | G133: =IF(OR('Tabel 1 B'!E131<5,'Tabel 2 B'!G133<0.5),"-",IFERROR('Tabel 2 B'!G133/'Tabel 1 B'!E131*100,"-")) -> - | I133: =IF(OR('Tabel 1 B'!G131<5,'Tabel 2 B'!I133<0.5),"-",IFERROR('Tabel 2 B'!I133/'Tabel 1 B'!G131*100,"-")) -> - | J133: =IF(OR('Tabel 1 B'!G131<5,'Tabel 2 B'!J133<0.5),"-",IFERROR('Tabel 2 B'!J133/'Tabel 1 B'!G131*100,"-")) -> -
A134: Læge | C134: =IF(OR('Tabel 1 B'!C132<5, 'Tabel 2 B'!C134<0.5),"-",IFERROR('Tabel 2 B'!C134/'Tabel 1 B'!C132*100,"-")) -> - | D134: =IF(OR('Tabel 1 B'!C132<5,'Tabel 2 B'!D134<0.5),"-",IFERROR('Tabel 2 B'!D134/'Tabel 1 B'!C132*100,"-")) -> - | F134: =IF(OR('Tabel 1 B'!E132<5, 'Tabel 2 B'!F134<0.5),"-",IFERROR('Tabel 2 B'!F134/'Tabel 1 B'!E132*100,"-")) -> - | G134: =IF(OR('Tabel 1 B'!E132<5,'Tabel 2 B'!G134<0.5),"-",IFERROR('Tabel 2 B'!G134/'Tabel 1 B'!E132*100,"-")) -> - | I134: =IF(OR('Tabel 1 B'!G132<5,'Tabel 2 B'!I134<0.5),"-",IFERROR('Tabel 2 B'!I134/'Tabel 1 B'!G132*100,"-")) -> - | J134: =IF(OR('Tabel 1 B'!G132<5,'Tabel 2 B'!J134<0.5),"-",IFERROR('Tabel 2 B'!J134/'Tabel 1 B'!G132*100,"-")) -> -
A135: Tandlæge | C135: =IF(OR('Tabel 1 B'!C133<5, 'Tabel 2 B'!C135<0.5),"-",IFERROR('Tabel 2 B'!C135/'Tabel 1 B'!C133*100,"-")) -> - | D135: =IF(OR('Tabel 1 B'!C133<5,'Tabel 2 B'!D135<0.5),"-",IFERROR('Tabel 2 B'!D135/'Tabel 1 B'!C133*100,"-")) -> - | F135: =IF(OR('Tabel 1 B'!E133<5, 'Tabel 2 B'!F135<0.5),"-",IFERROR('Tabel 2 B'!F135/'Tabel 1 B'!E133*100,"-")) -> - | G135: =IF(OR('Tabel 1 B'!E133<5,'Tabel 2 B'!G135<0.5),"-",IFERROR('Tabel 2 B'!G135/'Tabel 1 B'!E133*100,"-")) -> - | I135: =IF(OR('Tabel 1 B'!G133<5,'Tabel 2 B'!I135<0.5),"-",IFERROR('Tabel 2 B'!I135/'Tabel 1 B'!G133*100,"-")) -> - | J135: =IF(OR('Tabel 1 B'!G133<5,'Tabel 2 B'!J135<0.5),"-",IFERROR('Tabel 2 B'!J135/'Tabel 1 B'!G133*100,"-")) -> -
A136: Arkitekt | C136: =IF(OR('Tabel 1 B'!C134<5, 'Tabel 2 B'!C136<0.5),"-",IFERROR('Tabel 2 B'!C136/'Tabel 1 B'!C134*100,"-")) -> - | D136: =IF(OR('Tabel 1 B'!C134<5,'Tabel 2 B'!D136<0.5),"-",IFERROR('Tabel 2 B'!D136/'Tabel 1 B'!C134*100,"-")) -> - | F136: =IF(OR('Tabel 1 B'!E134<5, 'Tabel 2 B'!F136<0.5),"-",IFERROR('Tabel 2 B'!F136/'Tabel 1 B'!E134*100,"-")) -> - | G136: =IF(OR('Tabel 1 B'!E134<5,'Tabel 2 B'!G136<0.5),"-",IFERROR('Tabel 2 B'!G136/'Tabel 1 B'!E134*100,"-")) -> - | I136: =IF(OR('Tabel 1 B'!G134<5,'Tabel 2 B'!I136<0.5),"-",IFERROR('Tabel 2 B'!I136/'Tabel 1 B'!G134*100,"-")) -> - | J136: =IF(OR('Tabel 1 B'!G134<5,'Tabel 2 B'!J136<0.5),"-",IFERROR('Tabel 2 B'!J136/'Tabel 1 B'!G134*100,"-")) -> -
A137: Landinspek. | C137: =IF(OR('Tabel 1 B'!C135<5, 'Tabel 2 B'!C137<0.5),"-",IFERROR('Tabel 2 B'!C137/'Tabel 1 B'!C135*100,"-")) -> - | D137: =IF(OR('Tabel 1 B'!C135<5,'Tabel 2 B'!D137<0.5),"-",IFERROR('Tabel 2 B'!D137/'Tabel 1 B'!C135*100,"-")) -> - | F137: =IF(OR('Tabel 1 B'!E135<5, 'Tabel 2 B'!F137<0.5),"-",IFERROR('Tabel 2 B'!F137/'Tabel 1 B'!E135*100,"-")) -> - | G137: =IF(OR('Tabel 1 B'!E135<5,'Tabel 2 B'!G137<0.5),"-",IFERROR('Tabel 2 B'!G137/'Tabel 1 B'!E135*100,"-")) -> - | I137: =IF(OR('Tabel 1 B'!G135<5,'Tabel 2 B'!I137<0.5),"-",IFERROR('Tabel 2 B'!I137/'Tabel 1 B'!G135*100,"-")) -> - | J137: =IF(OR('Tabel 1 B'!G135<5,'Tabel 2 B'!J137<0.5),"-",IFERROR('Tabel 2 B'!J137/'Tabel 1 B'!G135*100,"-")) -> -
A138: Bibliotekar | C138: =IF(OR('Tabel 1 B'!C136<5, 'Tabel 2 B'!C138<0.5),"-",IFERROR('Tabel 2 B'!C138/'Tabel 1 B'!C136*100,"-")) -> - | D138: =IF(OR('Tabel 1 B'!C136<5,'Tabel 2 B'!D138<0.5),"-",IFERROR('Tabel 2 B'!D138/'Tabel 1 B'!C136*100,"-")) -> - | F138: =IF(OR('Tabel 1 B'!E136<5, 'Tabel 2 B'!F138<0.5),"-",IFERROR('Tabel 2 B'!F138/'Tabel 1 B'!E136*100,"-")) -> - | G138: =IF(OR('Tabel 1 B'!E136<5,'Tabel 2 B'!G138<0.5),"-",IFERROR('Tabel 2 B'!G138/'Tabel 1 B'!E136*100,"-")) -> - | I138: =IF(OR('Tabel 1 B'!G136<5,'Tabel 2 B'!I138<0.5),"-",IFERROR('Tabel 2 B'!I138/'Tabel 1 B'!G136*100,"-")) -> - | J138: =IF(OR('Tabel 1 B'!G136<5,'Tabel 2 B'!J138<0.5),"-",IFERROR('Tabel 2 B'!J138/'Tabel 1 B'!G136*100,"-")) -> -
A139: Musikudd. | C139: =IF(OR('Tabel 1 B'!C137<5, 'Tabel 2 B'!C139<0.5),"-",IFERROR('Tabel 2 B'!C139/'Tabel 1 B'!C137*100,"-")) -> - | D139: =IF(OR('Tabel 1 B'!C137<5,'Tabel 2 B'!D139<0.5),"-",IFERROR('Tabel 2 B'!D139/'Tabel 1 B'!C137*100,"-")) -> - | F139: =IF(OR('Tabel 1 B'!E137<5, 'Tabel 2 B'!F139<0.5),"-",IFERROR('Tabel 2 B'!F139/'Tabel 1 B'!E137*100,"-")) -> - | G139: =IF(OR('Tabel 1 B'!E137<5,'Tabel 2 B'!G139<0.5),"-",IFERROR('Tabel 2 B'!G139/'Tabel 1 B'!E137*100,"-")) -> - | I139: =IF(OR('Tabel 1 B'!G137<5,'Tabel 2 B'!I139<0.5),"-",IFERROR('Tabel 2 B'!I139/'Tabel 1 B'!G137*100,"-")) -> - | J139: =IF(OR('Tabel 1 B'!G137<5,'Tabel 2 B'!J139<0.5),"-",IFERROR('Tabel 2 B'!J139/'Tabel 1 B'!G137*100,"-")) -> -
A140: Teolog | C140: =IF(OR('Tabel 1 B'!C138<5, 'Tabel 2 B'!C140<0.5),"-",IFERROR('Tabel 2 B'!C140/'Tabel 1 B'!C138*100,"-")) -> - | D140: =IF(OR('Tabel 1 B'!C138<5,'Tabel 2 B'!D140<0.5),"-",IFERROR('Tabel 2 B'!D140/'Tabel 1 B'!C138*100,"-")) -> - | F140: =IF(OR('Tabel 1 B'!E138<5, 'Tabel 2 B'!F140<0.5),"-",IFERROR('Tabel 2 B'!F140/'Tabel 1 B'!E138*100,"-")) -> - | G140: =IF(OR('Tabel 1 B'!E138<5,'Tabel 2 B'!G140<0.5),"-",IFERROR('Tabel 2 B'!G140/'Tabel 1 B'!E138*100,"-")) -> - | I140: =IF(OR('Tabel 1 B'!G138<5,'Tabel 2 B'!I140<0.5),"-",IFERROR('Tabel 2 B'!I140/'Tabel 1 B'!G138*100,"-")) -> - | J140: =IF(OR('Tabel 1 B'!G138<5,'Tabel 2 B'!J140<0.5),"-",IFERROR('Tabel 2 B'!J140/'Tabel 1 B'!G138*100,"-")) -> -
A141: Psykolog | C141: =IF(OR('Tabel 1 B'!C139<5, 'Tabel 2 B'!C141<0.5),"-",IFERROR('Tabel 2 B'!C141/'Tabel 1 B'!C139*100,"-")) -> - | D141: =IF(OR('Tabel 1 B'!C139<5,'Tabel 2 B'!D141<0.5),"-",IFERROR('Tabel 2 B'!D141/'Tabel 1 B'!C139*100,"-")) -> - | F141: =IF(OR('Tabel 1 B'!E139<5, 'Tabel 2 B'!F141<0.5),"-",IFERROR('Tabel 2 B'!F141/'Tabel 1 B'!E139*100,"-")) -> - | G141: =IF(OR('Tabel 1 B'!E139<5,'Tabel 2 B'!G141<0.5),"-",IFERROR('Tabel 2 B'!G141/'Tabel 1 B'!E139*100,"-")) -> - | I141: =IF(OR('Tabel 1 B'!G139<5,'Tabel 2 B'!I141<0.5),"-",IFERROR('Tabel 2 B'!I141/'Tabel 1 B'!G139*100,"-")) -> - | J141: =IF(OR('Tabel 1 B'!G139<5,'Tabel 2 B'!J141<0.5),"-",IFERROR('Tabel 2 B'!J141/'Tabel 1 B'!G139*100,"-")) -> -
A142: Jurist | C142: =IF(OR('Tabel 1 B'!C140<5, 'Tabel 2 B'!C142<0.5),"-",IFERROR('Tabel 2 B'!C142/'Tabel 1 B'!C140*100,"-")) -> - | D142: =IF(OR('Tabel 1 B'!C140<5,'Tabel 2 B'!D142<0.5),"-",IFERROR('Tabel 2 B'!D142/'Tabel 1 B'!C140*100,"-")) -> - | F142: =IF(OR('Tabel 1 B'!E140<5, 'Tabel 2 B'!F142<0.5),"-",IFERROR('Tabel 2 B'!F142/'Tabel 1 B'!E140*100,"-")) -> - | G142: =IF(OR('Tabel 1 B'!E140<5,'Tabel 2 B'!G142<0.5),"-",IFERROR('Tabel 2 B'!G142/'Tabel 1 B'!E140*100,"-")) -> - | I142: =IF(OR('Tabel 1 B'!G140<5,'Tabel 2 B'!I142<0.5),"-",IFERROR('Tabel 2 B'!I142/'Tabel 1 B'!G140*100,"-")) -> - | J142: =IF(OR('Tabel 1 B'!G140<5,'Tabel 2 B'!J142<0.5),"-",IFERROR('Tabel 2 B'!J142/'Tabel 1 B'!G140*100,"-")) -> -
A143: Økonom | C143: =IF(OR('Tabel 1 B'!C141<5, 'Tabel 2 B'!C143<0.5),"-",IFERROR('Tabel 2 B'!C143/'Tabel 1 B'!C141*100,"-")) -> - | D143: =IF(OR('Tabel 1 B'!C141<5,'Tabel 2 B'!D143<0.5),"-",IFERROR('Tabel 2 B'!D143/'Tabel 1 B'!C141*100,"-")) -> - | F143: =IF(OR('Tabel 1 B'!E141<5, 'Tabel 2 B'!F143<0.5),"-",IFERROR('Tabel 2 B'!F143/'Tabel 1 B'!E141*100,"-")) -> - | G143: =IF(OR('Tabel 1 B'!E141<5,'Tabel 2 B'!G143<0.5),"-",IFERROR('Tabel 2 B'!G143/'Tabel 1 B'!E141*100,"-")) -> - | I143: =IF(OR('Tabel 1 B'!G141<5,'Tabel 2 B'!I143<0.5),"-",IFERROR('Tabel 2 B'!I143/'Tabel 1 B'!G141*100,"-")) -> - | J143: =IF(OR('Tabel 1 B'!G141<5,'Tabel 2 B'!J143<0.5),"-",IFERROR('Tabel 2 B'!J143/'Tabel 1 B'!G141*100,"-")) -> -
A144: Samf. Adm. | C144: =IF(OR('Tabel 1 B'!C142<5, 'Tabel 2 B'!C144<0.5),"-",IFERROR('Tabel 2 B'!C144/'Tabel 1 B'!C142*100,"-")) -> - | D144: =IF(OR('Tabel 1 B'!C142<5,'Tabel 2 B'!D144<0.5),"-",IFERROR('Tabel 2 B'!D144/'Tabel 1 B'!C142*100,"-")) -> - | F144: =IF(OR('Tabel 1 B'!E142<5, 'Tabel 2 B'!F144<0.5),"-",IFERROR('Tabel 2 B'!F144/'Tabel 1 B'!E142*100,"-")) -> - | G144: =IF(OR('Tabel 1 B'!E142<5,'Tabel 2 B'!G144<0.5),"-",IFERROR('Tabel 2 B'!G144/'Tabel 1 B'!E142*100,"-")) -> - | I144: =IF(OR('Tabel 1 B'!G142<5,'Tabel 2 B'!I144<0.5),"-",IFERROR('Tabel 2 B'!I144/'Tabel 1 B'!G142*100,"-")) -> - | J144: =IF(OR('Tabel 1 B'!G142<5,'Tabel 2 B'!J144<0.5),"-",IFERROR('Tabel 2 B'!J144/'Tabel 1 B'!G142*100,"-")) -> -
A145: Cand. Merc. | C145: =IF(OR('Tabel 1 B'!C143<5, 'Tabel 2 B'!C145<0.5),"-",IFERROR('Tabel 2 B'!C145/'Tabel 1 B'!C143*100,"-")) -> - | D145: =IF(OR('Tabel 1 B'!C143<5,'Tabel 2 B'!D145<0.5),"-",IFERROR('Tabel 2 B'!D145/'Tabel 1 B'!C143*100,"-")) -> - | F145: =IF(OR('Tabel 1 B'!E143<5, 'Tabel 2 B'!F145<0.5),"-",IFERROR('Tabel 2 B'!F145/'Tabel 1 B'!E143*100,"-")) -> - | G145: =IF(OR('Tabel 1 B'!E143<5,'Tabel 2 B'!G145<0.5),"-",IFERROR('Tabel 2 B'!G145/'Tabel 1 B'!E143*100,"-")) -> - | I145: =IF(OR('Tabel 1 B'!G143<5,'Tabel 2 B'!I145<0.5),"-",IFERROR('Tabel 2 B'!I145/'Tabel 1 B'!G143*100,"-")) -> - | J145: =IF(OR('Tabel 1 B'!G143<5,'Tabel 2 B'!J145<0.5),"-",IFERROR('Tabel 2 B'!J145/'Tabel 1 B'!G143*100,"-")) -> -
A146: HA | C146: =IF(OR('Tabel 1 B'!C144<5, 'Tabel 2 B'!C146<0.5),"-",IFERROR('Tabel 2 B'!C146/'Tabel 1 B'!C144*100,"-")) -> - | D146: =IF(OR('Tabel 1 B'!C144<5,'Tabel 2 B'!D146<0.5),"-",IFERROR('Tabel 2 B'!D146/'Tabel 1 B'!C144*100,"-")) -> - | F146: =IF(OR('Tabel 1 B'!E144<5, 'Tabel 2 B'!F146<0.5),"-",IFERROR('Tabel 2 B'!F146/'Tabel 1 B'!E144*100,"-")) -> - | G146: =IF(OR('Tabel 1 B'!E144<5,'Tabel 2 B'!G146<0.5),"-",IFERROR('Tabel 2 B'!G146/'Tabel 1 B'!E144*100,"-")) -> - | I146: =IF(OR('Tabel 1 B'!G144<5,'Tabel 2 B'!I146<0.5),"-",IFERROR('Tabel 2 B'!I146/'Tabel 1 B'!G144*100,"-")) -> - | J146: =IF(OR('Tabel 1 B'!G144<5,'Tabel 2 B'!J146<0.5),"-",IFERROR('Tabel 2 B'!J146/'Tabel 1 B'!G144*100,"-")) -> -
A147: HD | C147: =IF(OR('Tabel 1 B'!C145<5, 'Tabel 2 B'!C147<0.5),"-",IFERROR('Tabel 2 B'!C147/'Tabel 1 B'!C145*100,"-")) -> - | D147: =IF(OR('Tabel 1 B'!C145<5,'Tabel 2 B'!D147<0.5),"-",IFERROR('Tabel 2 B'!D147/'Tabel 1 B'!C145*100,"-")) -> - | F147: =IF(OR('Tabel 1 B'!E145<5, 'Tabel 2 B'!F147<0.5),"-",IFERROR('Tabel 2 B'!F147/'Tabel 1 B'!E145*100,"-")) -> - | G147: =IF(OR('Tabel 1 B'!E145<5,'Tabel 2 B'!G147<0.5),"-",IFERROR('Tabel 2 B'!G147/'Tabel 1 B'!E145*100,"-")) -> - | I147: =IF(OR('Tabel 1 B'!G145<5,'Tabel 2 B'!I147<0.5),"-",IFERROR('Tabel 2 B'!I147/'Tabel 1 B'!G145*100,"-")) -> - | J147: =IF(OR('Tabel 1 B'!G145<5,'Tabel 2 B'!J147<0.5),"-",IFERROR('Tabel 2 B'!J147/'Tabel 1 B'!G145*100,"-")) -> -
A148: Komm. og Sprog | C148: =IF(OR('Tabel 1 B'!C146<5, 'Tabel 2 B'!C148<0.5),"-",IFERROR('Tabel 2 B'!C148/'Tabel 1 B'!C146*100,"-")) -> - | D148: =IF(OR('Tabel 1 B'!C146<5,'Tabel 2 B'!D148<0.5),"-",IFERROR('Tabel 2 B'!D148/'Tabel 1 B'!C146*100,"-")) -> - | F148: =IF(OR('Tabel 1 B'!E146<5, 'Tabel 2 B'!F148<0.5),"-",IFERROR('Tabel 2 B'!F148/'Tabel 1 B'!E146*100,"-")) -> - | G148: =IF(OR('Tabel 1 B'!E146<5,'Tabel 2 B'!G148<0.5),"-",IFERROR('Tabel 2 B'!G148/'Tabel 1 B'!E146*100,"-")) -> - | I148: =IF(OR('Tabel 1 B'!G146<5,'Tabel 2 B'!I148<0.5),"-",IFERROR('Tabel 2 B'!I148/'Tabel 1 B'!G146*100,"-")) -> - | J148: =IF(OR('Tabel 1 B'!G146<5,'Tabel 2 B'!J148<0.5),"-",IFERROR('Tabel 2 B'!J148/'Tabel 1 B'!G146*100,"-")) -> -
A149: Bygningskonst. | C149: =IF(OR('Tabel 1 B'!C147<5, 'Tabel 2 B'!C149<0.5),"-",IFERROR('Tabel 2 B'!C149/'Tabel 1 B'!C147*100,"-")) -> - | D149: =IF(OR('Tabel 1 B'!C147<5,'Tabel 2 B'!D149<0.5),"-",IFERROR('Tabel 2 B'!D149/'Tabel 1 B'!C147*100,"-")) -> - | F149: =IF(OR('Tabel 1 B'!E147<5, 'Tabel 2 B'!F149<0.5),"-",IFERROR('Tabel 2 B'!F149/'Tabel 1 B'!E147*100,"-")) -> - | G149: =IF(OR('Tabel 1 B'!E147<5,'Tabel 2 B'!G149<0.5),"-",IFERROR('Tabel 2 B'!G149/'Tabel 1 B'!E147*100,"-")) -> - | I149: =IF(OR('Tabel 1 B'!G147<5,'Tabel 2 B'!I149<0.5),"-",IFERROR('Tabel 2 B'!I149/'Tabel 1 B'!G147*100,"-")) -> - | J149: =IF(OR('Tabel 1 B'!G147<5,'Tabel 2 B'!J149<0.5),"-",IFERROR('Tabel 2 B'!J149/'Tabel 1 B'!G147*100,"-")) -> -
A150: Cand. IT. | C150: =IF(OR('Tabel 1 B'!C148<5, 'Tabel 2 B'!C150<0.5),"-",IFERROR('Tabel 2 B'!C150/'Tabel 1 B'!C148*100,"-")) -> - | D150: =IF(OR('Tabel 1 B'!C148<5,'Tabel 2 B'!D150<0.5),"-",IFERROR('Tabel 2 B'!D150/'Tabel 1 B'!C148*100,"-")) -> - | F150: =IF(OR('Tabel 1 B'!E148<5, 'Tabel 2 B'!F150<0.5),"-",IFERROR('Tabel 2 B'!F150/'Tabel 1 B'!E148*100,"-")) -> - | G150: =IF(OR('Tabel 1 B'!E148<5,'Tabel 2 B'!G150<0.5),"-",IFERROR('Tabel 2 B'!G150/'Tabel 1 B'!E148*100,"-")) -> - | I150: =IF(OR('Tabel 1 B'!G148<5,'Tabel 2 B'!I150<0.5),"-",IFERROR('Tabel 2 B'!I150/'Tabel 1 B'!G148*100,"-")) -> - | J150: =IF(OR('Tabel 1 B'!G148<5,'Tabel 2 B'!J150<0.5),"-",IFERROR('Tabel 2 B'!J150/'Tabel 1 B'!G148*100,"-")) -> -
A151: Bac. Samf. | C151: =IF(OR('Tabel 1 B'!C149<5, 'Tabel 2 B'!C151<0.5),"-",IFERROR('Tabel 2 B'!C151/'Tabel 1 B'!C149*100,"-")) -> - | D151: =IF(OR('Tabel 1 B'!C149<5,'Tabel 2 B'!D151<0.5),"-",IFERROR('Tabel 2 B'!D151/'Tabel 1 B'!C149*100,"-")) -> - | F151: =IF(OR('Tabel 1 B'!E149<5, 'Tabel 2 B'!F151<0.5),"-",IFERROR('Tabel 2 B'!F151/'Tabel 1 B'!E149*100,"-")) -> - | G151: =IF(OR('Tabel 1 B'!E149<5,'Tabel 2 B'!G151<0.5),"-",IFERROR('Tabel 2 B'!G151/'Tabel 1 B'!E149*100,"-")) -> - | I151: =IF(OR('Tabel 1 B'!G149<5,'Tabel 2 B'!I151<0.5),"-",IFERROR('Tabel 2 B'!I151/'Tabel 1 B'!G149*100,"-")) -> - | J151: =IF(OR('Tabel 1 B'!G149<5,'Tabel 2 B'!J151<0.5),"-",IFERROR('Tabel 2 B'!J151/'Tabel 1 B'!G149*100,"-")) -> -
A152: Bac. Hum. | C152: =IF(OR('Tabel 1 B'!C150<5, 'Tabel 2 B'!C152<0.5),"-",IFERROR('Tabel 2 B'!C152/'Tabel 1 B'!C150*100,"-")) -> - | D152: =IF(OR('Tabel 1 B'!C150<5,'Tabel 2 B'!D152<0.5),"-",IFERROR('Tabel 2 B'!D152/'Tabel 1 B'!C150*100,"-")) -> - | F152: =IF(OR('Tabel 1 B'!E150<5, 'Tabel 2 B'!F152<0.5),"-",IFERROR('Tabel 2 B'!F152/'Tabel 1 B'!E150*100,"-")) -> - | G152: =IF(OR('Tabel 1 B'!E150<5,'Tabel 2 B'!G152<0.5),"-",IFERROR('Tabel 2 B'!G152/'Tabel 1 B'!E150*100,"-")) -> - | I152: =IF(OR('Tabel 1 B'!G150<5,'Tabel 2 B'!I152<0.5),"-",IFERROR('Tabel 2 B'!I152/'Tabel 1 B'!G150*100,"-")) -> - | J152: =IF(OR('Tabel 1 B'!G150<5,'Tabel 2 B'!J152<0.5),"-",IFERROR('Tabel 2 B'!J152/'Tabel 1 B'!G150*100,"-")) -> -
A153: Bac. Nat. | C153: =IF(OR('Tabel 1 B'!C151<5, 'Tabel 2 B'!C153<0.5),"-",IFERROR('Tabel 2 B'!C153/'Tabel 1 B'!C151*100,"-")) -> - | D153: =IF(OR('Tabel 1 B'!C151<5,'Tabel 2 B'!D153<0.5),"-",IFERROR('Tabel 2 B'!D153/'Tabel 1 B'!C151*100,"-")) -> - | F153: =IF(OR('Tabel 1 B'!E151<5, 'Tabel 2 B'!F153<0.5),"-",IFERROR('Tabel 2 B'!F153/'Tabel 1 B'!E151*100,"-")) -> - | G153: =IF(OR('Tabel 1 B'!E151<5,'Tabel 2 B'!G153<0.5),"-",IFERROR('Tabel 2 B'!G153/'Tabel 1 B'!E151*100,"-")) -> - | I153: =IF(OR('Tabel 1 B'!G151<5,'Tabel 2 B'!I153<0.5),"-",IFERROR('Tabel 2 B'!I153/'Tabel 1 B'!G151*100,"-")) -> - | J153: =IF(OR('Tabel 1 B'!G151<5,'Tabel 2 B'!J153<0.5),"-",IFERROR('Tabel 2 B'!J153/'Tabel 1 B'!G151*100,"-")) -> -
A154: Andre | C154: =IF(OR('Tabel 1 B'!C152<5, 'Tabel 2 B'!C154<0.5),"-",IFERROR('Tabel 2 B'!C154/'Tabel 1 B'!C152*100,"-")) -> - | D154: =IF(OR('Tabel 1 B'!C152<5,'Tabel 2 B'!D154<0.5),"-",IFERROR('Tabel 2 B'!D154/'Tabel 1 B'!C152*100,"-")) -> - | F154: =IF(OR('Tabel 1 B'!E152<5, 'Tabel 2 B'!F154<0.5),"-",IFERROR('Tabel 2 B'!F154/'Tabel 1 B'!E152*100,"-")) -> - | G154: =IF(OR('Tabel 1 B'!E152<5,'Tabel 2 B'!G154<0.5),"-",IFERROR('Tabel 2 B'!G154/'Tabel 1 B'!E152*100,"-")) -> - | I154: =IF(OR('Tabel 1 B'!G152<5,'Tabel 2 B'!I154<0.5),"-",IFERROR('Tabel 2 B'!I154/'Tabel 1 B'!G152*100,"-")) -> - | J154: =IF(OR('Tabel 1 B'!G152<5,'Tabel 2 B'!J154<0.5),"-",IFERROR('Tabel 2 B'!J154/'Tabel 1 B'!G152*100,"-")) -> -
A156: Total | C156: =IF(OR('Tabel 1 B'!C154<5, 'Tabel 2 B'!C156<0.5),"-",IFERROR('Tabel 2 B'!C156/'Tabel 1 B'!C154*100,"-")) -> - | D156: =IF(OR('Tabel 1 B'!C154<5,'Tabel 2 B'!D156<0.5),"-",IFERROR('Tabel 2 B'!D156/'Tabel 1 B'!C154*100,"-")) -> - | F156: =IF(OR('Tabel 1 B'!E154<5, 'Tabel 2 B'!F156<0.5),"-",IFERROR('Tabel 2 B'!F156/'Tabel 1 B'!E154*100,"-")) -> - | G156: =IF(OR('Tabel 1 B'!E154<5,'Tabel 2 B'!G156<0.5),"-",IFERROR('Tabel 2 B'!G156/'Tabel 1 B'!E154*100,"-")) -> - | I156: =IF(OR('Tabel 1 B'!G154<5,'Tabel 2 B'!I156<0.5),"-",IFERROR('Tabel 2 B'!I156/'Tabel 1 B'!G154*100,"-")) -> - | J156: =IF(OR('Tabel 1 B'!G154<5,'Tabel 2 B'!J156<0.5),"-",IFERROR('Tabel 2 B'!J156/'Tabel 1 B'!G154*100,"-")) -> -
A158: Ingeniører i alt | C158: =IF(OR('Tabel 1 B'!C156<5, 'Tabel 2 B'!C158<0.5),"-",IFERROR('Tabel 2 B'!C158/'Tabel 1 B'!C156*100,"-")) -> - | D158: =IF(OR('Tabel 1 B'!C156<5,'Tabel 2 B'!D158<0.5),"-",IFERROR('Tabel 2 B'!D158/'Tabel 1 B'!C156*100,"-")) -> - | F158: =IF(OR('Tabel 1 B'!E156<5, 'Tabel 2 B'!F158<0.5),"-",IFERROR('Tabel 2 B'!F158/'Tabel 1 B'!E156*100,"-")) -> - | G158: =IF(OR('Tabel 1 B'!E156<5,'Tabel 2 B'!G158<0.5),"-",IFERROR('Tabel 2 B'!G158/'Tabel 1 B'!E156*100,"-")) -> - | I158: =IF(OR('Tabel 1 B'!G156<5,'Tabel 2 B'!I158<0.5),"-",IFERROR('Tabel 2 B'!I158/'Tabel 1 B'!G156*100,"-")) -> - | J158: =IF(OR('Tabel 1 B'!G156<5,'Tabel 2 B'!J158<0.5),"-",IFERROR('Tabel 2 B'!J158/'Tabel 1 B'!G156*100,"-")) -> -
A159: Magistre i alt | C159: =IF(OR('Tabel 1 B'!C157<5, 'Tabel 2 B'!C159<0.5),"-",IFERROR('Tabel 2 B'!C159/'Tabel 1 B'!C157*100,"-")) -> - | D159: =IF(OR('Tabel 1 B'!C157<5,'Tabel 2 B'!D159<0.5),"-",IFERROR('Tabel 2 B'!D159/'Tabel 1 B'!C157*100,"-")) -> - | F159: =IF(OR('Tabel 1 B'!E157<5, 'Tabel 2 B'!F159<0.5),"-",IFERROR('Tabel 2 B'!F159/'Tabel 1 B'!E157*100,"-")) -> - | G159: =IF(OR('Tabel 1 B'!E157<5,'Tabel 2 B'!G159<0.5),"-",IFERROR('Tabel 2 B'!G159/'Tabel 1 B'!E157*100,"-")) -> - | I159: =IF(OR('Tabel 1 B'!G157<5,'Tabel 2 B'!I159<0.5),"-",IFERROR('Tabel 2 B'!I159/'Tabel 1 B'!G157*100,"-")) -> - | J159: =IF(OR('Tabel 1 B'!G157<5,'Tabel 2 B'!J159<0.5),"-",IFERROR('Tabel 2 B'!J159/'Tabel 1 B'!G157*100,"-")) -> -
A160: DJØF'ere i alt | C160: =IF(OR('Tabel 1 B'!C158<5, 'Tabel 2 B'!C160<0.5),"-",IFERROR('Tabel 2 B'!C160/'Tabel 1 B'!C158*100,"-")) -> - | D160: =IF(OR('Tabel 1 B'!C158<5,'Tabel 2 B'!D160<0.5),"-",IFERROR('Tabel 2 B'!D160/'Tabel 1 B'!C158*100,"-")) -> - | F160: =IF(OR('Tabel 1 B'!E158<5, 'Tabel 2 B'!F160<0.5),"-",IFERROR('Tabel 2 B'!F160/'Tabel 1 B'!E158*100,"-")) -> - | G160: =IF(OR('Tabel 1 B'!E158<5,'Tabel 2 B'!G160<0.5),"-",IFERROR('Tabel 2 B'!G160/'Tabel 1 B'!E158*100,"-")) -> - | I160: =IF(OR('Tabel 1 B'!G158<5,'Tabel 2 B'!I160<0.5),"-",IFERROR('Tabel 2 B'!I160/'Tabel 1 B'!G158*100,"-")) -> - | J160: =IF(OR('Tabel 1 B'!G158<5,'Tabel 2 B'!J160<0.5),"-",IFERROR('Tabel 2 B'!J160/'Tabel 1 B'!G158*100,"-")) -> -

Sheet Tabel 4F B
A1: ='[1]Tabel 4F B DATA'!L1 -> Tabel 4. Antal forsikrede - aldersfordelt
A3: ='[1]Tabel 4F B DATA'!L3 -> Bornholm
C5: ='[1]Tabel 4F B DATA'!N5 -> Under 30 år | D5: ='[1]Tabel 4F B DATA'!O5 -> 30 - 39 år | E5: ='[1]Tabel 4F B DATA'!P5 -> 40 - 49 år | F5: ='[1]Tabel 4F B DATA'!Q5 -> 50 - 59 år | G5: ='[1]Tabel 4F B DATA'!R5 -> Over 60 år | I5: ='[1]Tabel 4F B DATA'!T5 -> I alt
A7: ='[1]Tabel 4F B DATA'!L7 -> Civ. ing. | C7: ='[1]Tabel 4F B DATA'!N7 -> 3 | D7: ='[1]Tabel 4F B DATA'!O7 -> 13 | E7: ='[1]Tabel 4F B DATA'!P7 -> 8 | F7: ='[1]Tabel 4F B DATA'!Q7 -> 8 | G7: ='[1]Tabel 4F B DATA'!R7 -> 2 | I7: ='[1]Tabel 4F B DATA'!T7 -> 34
A8: ='[1]Tabel 4F B DATA'!L8 -> Diplom ing. | C8: ='[1]Tabel 4F B DATA'!N8 -> 3 | D8: ='[1]Tabel 4F B DATA'!O8 -> 12 | E8: ='[1]Tabel 4F B DATA'!P8 -> 17 | F8: ='[1]Tabel 4F B DATA'!Q8 -> 21 | G8: ='[1]Tabel 4F B DATA'!R8 -> 10 | I8: ='[1]Tabel 4F B DATA'!T8 -> 63
A9: ='[1]Tabel 4F B DATA'!L9 -> Cand. Scient. Tek. | C9: ='[1]Tabel 4F B DATA'!N9 -> 4 | D9: ='[1]Tabel 4F B DATA'!O9 -> 17 | E9: ='[1]Tabel 4F B DATA'!P9 -> 8 | F9: ='[1]Tabel 4F B DATA'!Q9 -> 2 | G9: ='[1]Tabel 4F B DATA'!R9 -> 1 | I9: ='[1]Tabel 4F B DATA'!T9 -> 32
A10: ='[1]Tabel 4F B DATA'!L10 -> MA. Hum. | C10: ='[1]Tabel 4F B DATA'!N10 -> 5 | D10: ='[1]Tabel 4F B DATA'!O10 -> 54 | E10: ='[1]Tabel 4F B DATA'!P10 -> 30 | F10: ='[1]Tabel 4F B DATA'!Q10 -> 20 | G10: ='[1]Tabel 4F B DATA'!R10 -> 16 | I10: ='[1]Tabel 4F B DATA'!T10 -> 125
A11: ='[1]Tabel 4F B DATA'!L11 -> MA. Nat. | C11: ='[1]Tabel 4F B DATA'!N11 -> 0 | D11: ='[1]Tabel 4F B DATA'!O11 -> 4 | E11: ='[1]Tabel 4F B DATA'!P11 -> 16 | F11: ='[1]Tabel 4F B DATA'!Q11 -> 20 | G11: ='[1]Tabel 4F B DATA'!R11 -> 6 | I11: ='[1]Tabel 4F B DATA'!T11 -> 46
A12: ='[1]Tabel 4F B DATA'!L12 -> MA. Ph.d. | C12: ='[1]Tabel 4F B DATA'!N12 -> 0 | D12: ='[1]Tabel 4F B DATA'!O12 -> 1 | E12: ='[1]Tabel 4F B DATA'!P12 -> 3 | F12: ='[1]Tabel 4F B DATA'!Q12 -> 2 | G12: ='[1]Tabel 4F B DATA'!R12 -> 1 | I12: ='[1]Tabel 4F B DATA'!T12 -> 7
A13: ='[1]Tabel 4F B DATA'!L13 -> MA. Samf. | C13: ='[1]Tabel 4F B DATA'!N13 -> 1 | D13: ='[1]Tabel 4F B DATA'!O13 -> 7 | E13: ='[1]Tabel 4F B DATA'!P13 -> 1 | F13: ='[1]Tabel 4F B DATA'!Q13 -> 4 | G13: ='[1]Tabel 4F B DATA'!R13 -> 2 | I13: ='[1]Tabel 4F B DATA'!T13 -> 15
A14: ='[1]Tabel 4F B DATA'!L14 -> Øvrige Mag. | C14: ='[1]Tabel 4F B DATA'!N14 -> 2 | D14: ='[1]Tabel 4F B DATA'!O14 -> 6 | E14: ='[1]Tabel 4F B DATA'!P14 -> 5 | F14: ='[1]Tabel 4F B DATA'!Q14 -> 1 | G14: ='[1]Tabel 4F B DATA'!R14 -> 2 | I14: ='[1]Tabel 4F B DATA'!T14 -> 16
A15: ='[1]Tabel 4F B DATA'!L15 -> Agronom | C15: ='[1]Tabel 4F B DATA'!N15 -> 1 | D15: ='[1]Tabel 4F B DATA'!O15 -> 0 | E15: ='[1]Tabel 4F B DATA'!P15 -> 2 | F15: ='[1]Tabel 4F B DATA'!Q15 -> 6 | G15: ='[1]Tabel 4F B DATA'!R15 -> 1 | I15: ='[1]Tabel 4F B DATA'!T15 -> 10
A16: ='[1]Tabel 4F B DATA'!L16 -> Landsk. Arkt. | C16: ='[1]Tabel 4F B DATA'!N16 -> 0 | D16: ='[1]Tabel 4F B DATA'!O16 -> 0 | E16: ='[1]Tabel 4F B DATA'!P16 -> 1 | F16: ='[1]Tabel 4F B DATA'!Q16 -> 1 | G16: ='[1]Tabel 4F B DATA'!R16 -> 1 | I16: ='[1]Tabel 4F B DATA'!T16 -> 3
A17: ='[1]Tabel 4F B DATA'!L17 -> Hortonom | C17: ='[1]Tabel 4F B DATA'!N17 -> 0 | D17: ='[1]Tabel 4F B DATA'!O17 -> 0 | E17: ='[1]Tabel 4F B DATA'!P17 -> 1 | F17: ='[1]Tabel 4F B DATA'!Q17 -> 0 | G17: ='[1]Tabel 4F B DATA'!R17 -> 1 | I17: ='[1]Tabel 4F B DATA'!T17 -> 2
A18: ='[1]Tabel 4F B DATA'!L18 -> Forstkand. | C18: ='[1]Tabel 4F B DATA'!N18 -> 0 | D18: ='[1]Tabel 4F B DATA'!O18 -> 0 | E18: ='[1]Tabel 4F B DATA'!P18 -> 0 | F18: ='[1]Tabel 4F B DATA'!Q18 -> 1 | G18: ='[1]Tabel 4F B DATA'!R18 -> 0 | I18: ='[1]Tabel 4F B DATA'!T18 -> 1
A19: ='[1]Tabel 4F B DATA'!L19 -> Jordbrugsakad. | C19: ='[1]Tabel 4F B DATA'!N19 -> 1 | D19: ='[1]Tabel 4F B DATA'!O19 -> 0 | E19: ='[1]Tabel 4F B DATA'!P19 -> 4 | F19: ='[1]Tabel 4F B DATA'!Q19 -> 8 | G19: ='[1]Tabel 4F B DATA'!R19 -> 3 | I19: ='[1]Tabel 4F B DATA'!T19 -> 16
A20: ='[1]Tabel 4F B DATA'!L20 -> Mejeriing. | C20: ='[1]Tabel 4F B DATA'!N20 -> 0 | D20: ='[1]Tabel 4F B DATA'!O20 -> 0 | E20: ='[1]Tabel 4F B DATA'!P20 -> 0 | F20: ='[1]Tabel 4F B DATA'!Q20 -> 0 | G20: ='[1]Tabel 4F B DATA'!R20 -> 0 | I20: ='[1]Tabel 4F B DATA'!T20 -> 0
A21: ='[1]Tabel 4F B DATA'!L21 -> Levn.m.kand. | C21: ='[1]Tabel 4F B DATA'!N21 -> 0 | D21: ='[1]Tabel 4F B DATA'!O21 -> 1 | E21: ='[1]Tabel 4F B DATA'!P21 -> 0 | F21: ='[1]Tabel 4F B DATA'!Q21 -> 0 | G21: ='[1]Tabel 4F B DATA'!R21 -> 0 | I21: ='[1]Tabel 4F B DATA'!T21 -> 1
A22: ='[1]Tabel 4F B DATA'!L22 -> Dyrlæge | C22: ='[1]Tabel 4F B DATA'!N22 -> 2 | D22: ='[1]Tabel 4F B DATA'!O22 -> 5 | E22: ='[1]Tabel 4F B DATA'!P22 -> 3 | F22: ='[1]Tabel 4F B DATA'!Q22 -> 3 | G22: ='[1]Tabel 4F B DATA'!R22 -> 2 | I22: ='[1]Tabel 4F B DATA'!T22 -> 15
A23: ='[1]Tabel 4F B DATA'!L23 -> Farmaceut | C23: ='[1]Tabel 4F B DATA'!N23 -> 0 | D23: ='[1]Tabel 4F B DATA'!O23 -> 1 | E23: ='[1]Tabel 4F B DATA'!P23 -> 2 | F23: ='[1]Tabel 4F B DATA'!Q23 -> 2 | G23: ='[1]Tabel 4F B DATA'!R23 -> 2 | I23: ='[1]Tabel 4F B DATA'!T23 -> 7
A24: ='[1]Tabel 4F B DATA'!L24 -> Læge | C24: ='[1]Tabel 4F B DATA'!N24 -> 7 | D24: ='[1]Tabel 4F B DATA'!O24 -> 11 | E24: ='[1]Tabel 4F B DATA'!P24 -> 3 | F24: ='[1]Tabel 4F B DATA'!Q24 -> 5 | G24: ='[1]Tabel 4F B DATA'!R24 -> 5 | I24: ='[1]Tabel 4F B DATA'!T24 -> 31
A25: ='[1]Tabel 4F B DATA'!L25 -> Tandlæge | C25: ='[1]Tabel 4F B DATA'!N25 -> 1 | D25: ='[1]Tabel 4F B DATA'!O25 -> 2 | E25: ='[1]Tabel 4F B DATA'!P25 -> 6 | F25: ='[1]Tabel 4F B DATA'!Q25 -> 1 | G25: ='[1]Tabel 4F B DATA'!R25 -> 0 | I25: ='[1]Tabel 4F B DATA'!T25 -> 10
A26: ='[1]Tabel 4F B DATA'!L26 -> Arkitekt | C26: ='[1]Tabel 4F B DATA'!N26 -> 0 | D26: ='[1]Tabel 4F B DATA'!O26 -> 2 | E26: ='[1]Tabel 4F B DATA'!P26 -> 5 | F26: ='[1]Tabel 4F B DATA'!Q26 -> 2 | G26: ='[1]Tabel 4F B DATA'!R26 -> 5 | I26: ='[1]Tabel 4F B DATA'!T26 -> 14
A27: ='[1]Tabel 4F B DATA'!L27 -> Landinspek. | C27: ='[1]Tabel 4F B DATA'!N27 -> 0 | D27: ='[1]Tabel 4F B DATA'!O27 -> 0 | E27: ='[1]Tabel 4F B DATA'!P27 -> 1 | F27: ='[1]Tabel 4F B DATA'!Q27 -> 0 | G27: ='[1]Tabel 4F B DATA'!R27 -> 0 | I27: ='[1]Tabel 4F B DATA'!T27 -> 1
A28: ='[1]Tabel 4F B DATA'!L28 -> Bibliotekar | C28: ='[1]Tabel 4F B DATA'!N28 -> 1 | D28: ='[1]Tabel 4F B DATA'!O28 -> 4 | E28: ='[1]Tabel 4F B DATA'!P28 -> 4 | F28: ='[1]Tabel 4F B DATA'!Q28 -> 5 | G28: ='[1]Tabel 4F B DATA'!R28 -> 2 | I28: ='[1]Tabel 4F B DATA'!T28 -> 16
A29: ='[1]Tabel 4F B DATA'!L29 -> Musikudd. | C29: ='[1]Tabel 4F B DATA'!N29 -> 0 | D29: ='[1]Tabel 4F B DATA'!O29 -> 0 | E29: ='[1]Tabel 4F B DATA'!P29 -> 0 | F29: ='[1]Tabel 4F B DATA'!Q29 -> 2 | G29: ='[1]Tabel 4F B DATA'!R29 -> 0 | I29: ='[1]Tabel 4F B DATA'!T29 -> 2
A30: ='[1]Tabel 4F B DATA'!L30 -> Teolog | C30: ='[1]Tabel 4F B DATA'!N30 -> 0 | D30: ='[1]Tabel 4F B DATA'!O30 -> 1 | E30: ='[1]Tabel 4F B DATA'!P30 -> 3 | F30: ='[1]Tabel 4F B DATA'!Q30 -> 3 | G30: ='[1]Tabel 4F B DATA'!R30 -> 5 | I30: ='[1]Tabel 4F B DATA'!T30 -> 12
A31: ='[1]Tabel 4F B DATA'!L31 -> Psykolog | C31: ='[1]Tabel 4F B DATA'!N31 -> 5 | D31: ='[1]Tabel 4F B DATA'!O31 -> 9 | E31: ='[1]Tabel 4F B DATA'!P31 -> 14 | F31: ='[1]Tabel 4F B DATA'!Q31 -> 2 | G31: ='[1]Tabel 4F B DATA'!R31 -> 1 | I31: ='[1]Tabel 4F B DATA'!T31 -> 31
A32: ='[1]Tabel 4F B DATA'!L32 -> Jurist | C32: ='[1]Tabel 4F B DATA'!N32 -> 2 | D32: ='[1]Tabel 4F B DATA'!O32 -> 10 | E32: ='[1]Tabel 4F B DATA'!P32 -> 8 | F32: ='[1]Tabel 4F B DATA'!Q32 -> 9 | G32: ='[1]Tabel 4F B DATA'!R32 -> 3 | I32: ='[1]Tabel 4F B DATA'!T32 -> 32
A33: ='[1]Tabel 4F B DATA'!L33 -> Økonom | C33: ='[1]Tabel 4F B DATA'!N33 -> 1 | D33: ='[1]Tabel 4F B DATA'!O33 -> 3 | E33: ='[1]Tabel 4F B DATA'!P33 -> 2 | F33: ='[1]Tabel 4F B DATA'!Q33 -> 4 | G33: ='[1]Tabel 4F B DATA'!R33 -> 0 | I33: ='[1]Tabel 4F B DATA'!T33 -> 10
A34: ='[1]Tabel 4F B DATA'!L34 -> Samf. Adm. | C34: ='[1]Tabel 4F B DATA'!N34 -> 1 | D34: ='[1]Tabel 4F B DATA'!O34 -> 18 | E34: ='[1]Tabel 4F B DATA'!P34 -> 22 | F34: ='[1]Tabel 4F B DATA'!Q34 -> 10 | G34: ='[1]Tabel 4F B DATA'!R34 -> 4 | I34: ='[1]Tabel 4F B DATA'!T34 -> 55
A35: ='[1]Tabel 4F B DATA'!L35 -> Cand. Merc. | C35: ='[1]Tabel 4F B DATA'!N35 -> 2 | D35: ='[1]Tabel 4F B DATA'!O35 -> 7 | E35: ='[1]Tabel 4F B DATA'!P35 -> 11 | F35: ='[1]Tabel 4F B DATA'!Q35 -> 10 | G35: ='[1]Tabel 4F B DATA'!R35 -> 2 | I35: ='[1]Tabel 4F B DATA'!T35 -> 32
A36: ='[1]Tabel 4F B DATA'!L36 -> HA | C36: ='[1]Tabel 4F B DATA'!N36 -> 0 | D36: ='[1]Tabel 4F B DATA'!O36 -> 2 | E36: ='[1]Tabel 4F B DATA'!P36 -> 2 | F36: ='[1]Tabel 4F B DATA'!Q36 -> 7 | G36: ='[1]Tabel 4F B DATA'!R36 -> 1 | I36: ='[1]Tabel 4F B DATA'!T36 -> 12
A37: ='[1]Tabel 4F B DATA'!L37 -> HD | C37: ='[1]Tabel 4F B DATA'!N37 -> 0 | D37: ='[1]Tabel 4F B DATA'!O37 -> 2 | E37: ='[1]Tabel 4F B DATA'!P37 -> 2 | F37: ='[1]Tabel 4F B DATA'!Q37 -> 2 | G37: ='[1]Tabel 4F B DATA'!R37 -> 3 | I37: ='[1]Tabel 4F B DATA'!T37 -> 9
A38: ='[1]Tabel 4F B DATA'!L38 -> Komm. og Sprog | C38: ='[1]Tabel 4F B DATA'!N38 -> 1 | D38: ='[1]Tabel 4F B DATA'!O38 -> 7 | E38: ='[1]Tabel 4F B DATA'!P38 -> 3 | F38: ='[1]Tabel 4F B DATA'!Q38 -> 3 | G38: ='[1]Tabel 4F B DATA'!R38 -> 1 | I38: ='[1]Tabel 4F B DATA'!T38 -> 15
A39: ='[1]Tabel 4F B DATA'!L39 -> Bygningskonst. | C39: ='[1]Tabel 4F B DATA'!N39 -> 4 | D39: ='[1]Tabel 4F B DATA'!O39 -> 9 | E39: ='[1]Tabel 4F B DATA'!P39 -> 7 | F39: ='[1]Tabel 4F B DATA'!Q39 -> 6 | G39: ='[1]Tabel 4F B DATA'!R39 -> 2 | I39: ='[1]Tabel 4F B DATA'!T39 -> 28
A40: ='[1]Tabel 4F B DATA'!L40 -> Cand. IT. | C40: ='[1]Tabel 4F B DATA'!N40 -> 0 | D40: ='[1]Tabel 4F B DATA'!O40 -> 1 | E40: ='[1]Tabel 4F B DATA'!P40 -> 1 | F40: ='[1]Tabel 4F B DATA'!Q40 -> 0 | G40: ='[1]Tabel 4F B DATA'!R40 -> 0 | I40: ='[1]Tabel 4F B DATA'!T40 -> 2
A41: ='[1]Tabel 4F B DATA'!L41 -> Bac. Samf. | C41: ='[1]Tabel 4F B DATA'!N41 -> 0 | D41: ='[1]Tabel 4F B DATA'!O41 -> 3 | E41: ='[1]Tabel 4F B DATA'!P41 -> 1 | F41: ='[1]Tabel 4F B DATA'!Q41 -> 0 | G41: ='[1]Tabel 4F B DATA'!R41 -> 1 | I41: ='[1]Tabel 4F B DATA'!T41 -> 5
A42: ='[1]Tabel 4F B DATA'!L42 -> Bac. Hum. | C42: ='[1]Tabel 4F B DATA'!N42 -> 2 | D42: ='[1]Tabel 4F B DATA'!O42 -> 4 | E42: ='[1]Tabel 4F B DATA'!P42 -> 4 | F42: ='[1]Tabel 4F B DATA'!Q42 -> 2 | G42: ='[1]Tabel 4F B DATA'!R42 -> 1 | I42: ='[1]Tabel 4F B DATA'!T42 -> 13
A43: ='[1]Tabel 4F B DATA'!L43 -> Bac. Nat. | C43: ='[1]Tabel 4F B DATA'!N43 -> 3 | D43: ='[1]Tabel 4F B DATA'!O43 -> 3 | E43: ='[1]Tabel 4F B DATA'!P43 -> 2 | F43: ='[1]Tabel 4F B DATA'!Q43 -> 1 | G43: ='[1]Tabel 4F B DATA'!R43 -> 1 | I43: ='[1]Tabel 4F B DATA'!T43 -> 10
A44: ='[1]Tabel 4F B DATA'!L44 -> Andre | C44: ='[1]Tabel 4F B DATA'!N44 -> 4 | D44: ='[1]Tabel 4F B DATA'!O44 -> 18 | E44: ='[1]Tabel 4F B DATA'!P44 -> 27 | F44: ='[1]Tabel 4F B DATA'!Q44 -> 35 | G44: ='[1]Tabel 4F B DATA'!R44 -> 25 | I44: ='[1]Tabel 4F B DATA'!T44 -> 109
A46: ='[1]Tabel 4F B DATA'!L46 -> Total | C46: ='[1]Tabel 4F B DATA'!N46 -> 55 | D46: ='[1]Tabel 4F B DATA'!O46 -> 237 | E46: ='[1]Tabel 4F B DATA'!P46 -> 225 | F46: ='[1]Tabel 4F B DATA'!Q46 -> 200 | G46: ='[1]Tabel 4F B DATA'!R46 -> 109 | I46: ='[1]Tabel 4F B DATA'!T46 -> 826
A48: ='[1]Tabel 4F B DATA'!L48 -> Ingeniører i alt | C48: ='[1]Tabel 4F B DATA'!N48 -> 6 | D48: ='[1]Tabel 4F B DATA'!O48 -> 25 | E48: ='[1]Tabel 4F B DATA'!P48 -> 25 | F48: ='[1]Tabel 4F B DATA'!Q48 -> 29 | G48: ='[1]Tabel 4F B DATA'!R48 -> 12 | I48: ='[1]Tabel 4F B DATA'!T48 -> 97
A49: ='[1]Tabel 4F B DATA'!L49 -> Magistre i alt | C49: ='[1]Tabel 4F B DATA'!N49 -> 8 | D49: ='[1]Tabel 4F B DATA'!O49 -> 72 | E49: ='[1]Tabel 4F B DATA'!P49 -> 55 | F49: ='[1]Tabel 4F B DATA'!Q49 -> 47 | G49: ='[1]Tabel 4F B DATA'!R49 -> 27 | I49: ='[1]Tabel 4F B DATA'!T49 -> 209
A50: ='[1]Tabel 4F B DATA'!L50 -> DJØF'ere i alt | C50: ='[1]Tabel 4F B DATA'!N50 -> 6 | D50: ='[1]Tabel 4F B DATA'!O50 -> 40 | E50: ='[1]Tabel 4F B DATA'!P50 -> 45 | F50: ='[1]Tabel 4F B DATA'!Q50 -> 40 | G50: ='[1]Tabel 4F B DATA'!R50 -> 10 | I50: ='[1]Tabel 4F B DATA'!T50 -> 141
A57: ='[1]Tabel 4F B DATA'!L107 -> Bornholm
C59: ='[1]Tabel 4F B DATA'!N109 -> Under 30 år | D59: ='[1]Tabel 4F B DATA'!O109 -> 30 - 39 år | E59: ='[1]Tabel 4F B DATA'!P109 -> 40 - 49 år | F59: ='[1]Tabel 4F B DATA'!Q109 -> 50 - 59 år | G59: ='[1]Tabel 4F B DATA'!R109 -> Over 60 år | I59: ='[1]Tabel 4F B DATA'!T109 -> I alt
A61: ='[1]Tabel 4F B DATA'!L111 -> Civ. ing. | C61: ='[1]Tabel 4F B DATA'!N111 -> 3 | D61: ='[1]Tabel 4F B DATA'!O111 -> 13 | E61: ='[1]Tabel 4F B DATA'!P111 -> 8 | F61: ='[1]Tabel 4F B DATA'!Q111 -> 8 | G61: ='[1]Tabel 4F B DATA'!R111 -> 2 | I61: ='[1]Tabel 4F B DATA'!T111 -> 34
A62: ='[1]Tabel 4F B DATA'!L112 -> Diplom ing. | C62: ='[1]Tabel 4F B DATA'!N112 -> 3 | D62: ='[1]Tabel 4F B DATA'!O112 -> 12 | E62: ='[1]Tabel 4F B DATA'!P112 -> 17 | F62: ='[1]Tabel 4F B DATA'!Q112 -> 21 | G62: ='[1]Tabel 4F B DATA'!R112 -> 10 | I62: ='[1]Tabel 4F B DATA'!T112 -> 63
A63: ='[1]Tabel 4F B DATA'!L113 -> Cand. Scient. Tek. | C63: ='[1]Tabel 4F B DATA'!N113 -> 4 | D63: ='[1]Tabel 4F B DATA'!O113 -> 17 | E63: ='[1]Tabel 4F B DATA'!P113 -> 8 | F63: ='[1]Tabel 4F B DATA'!Q113 -> 2 | G63: ='[1]Tabel 4F B DATA'!R113 -> 1 | I63: ='[1]Tabel 4F B DATA'!T113 -> 32
A64: ='[1]Tabel 4F B DATA'!L114 -> MA. Hum. | C64: ='[1]Tabel 4F B DATA'!N114 -> 5 | D64: ='[1]Tabel 4F B DATA'!O114 -> 54 | E64: ='[1]Tabel 4F B DATA'!P114 -> 30 | F64: ='[1]Tabel 4F B DATA'!Q114 -> 20 | G64: ='[1]Tabel 4F B DATA'!R114 -> 16 | I64: ='[1]Tabel 4F B DATA'!T114 -> 125
A65: ='[1]Tabel 4F B DATA'!L115 -> MA. Nat. | C65: ='[1]Tabel 4F B DATA'!N115 -> 0 | D65: ='[1]Tabel 4F B DATA'!O115 -> 4 | E65: ='[1]Tabel 4F B DATA'!P115 -> 16 | F65: ='[1]Tabel 4F B DATA'!Q115 -> 20 | G65: ='[1]Tabel 4F B DATA'!R115 -> 6 | I65: ='[1]Tabel 4F B DATA'!T115 -> 46
A66: ='[1]Tabel 4F B DATA'!L116 -> MA. Ph.d. | C66: ='[1]Tabel 4F B DATA'!N116 -> 0 | D66: ='[1]Tabel 4F B DATA'!O116 -> 1 | E66: ='[1]Tabel 4F B DATA'!P116 -> 3 | F66: ='[1]Tabel 4F B DATA'!Q116 -> 2 | G66: ='[1]Tabel 4F B DATA'!R116 -> 1 | I66: ='[1]Tabel 4F B DATA'!T116 -> 7
A67: ='[1]Tabel 4F B DATA'!L117 -> MA. Samf. | C67: ='[1]Tabel 4F B DATA'!N117 -> 1 | D67: ='[1]Tabel 4F B DATA'!O117 -> 7 | E67: ='[1]Tabel 4F B DATA'!P117 -> 1 | F67: ='[1]Tabel 4F B DATA'!Q117 -> 4 | G67: ='[1]Tabel 4F B DATA'!R117 -> 2 | I67: ='[1]Tabel 4F B DATA'!T117 -> 15
A68: ='[1]Tabel 4F B DATA'!L118 -> Øvrige Mag. | C68: ='[1]Tabel 4F B DATA'!N118 -> 2 | D68: ='[1]Tabel 4F B DATA'!O118 -> 6 | E68: ='[1]Tabel 4F B DATA'!P118 -> 5 | F68: ='[1]Tabel 4F B DATA'!Q118 -> 1 | G68: ='[1]Tabel 4F B DATA'!R118 -> 2 | I68: ='[1]Tabel 4F B DATA'!T118 -> 16
A69: ='[1]Tabel 4F B DATA'!L119 -> Agronom | C69: ='[1]Tabel 4F B DATA'!N119 -> 1 | D69: ='[1]Tabel 4F B DATA'!O119 -> 0 | E69: ='[1]Tabel 4F B DATA'!P119 -> 2 | F69: ='[1]Tabel 4F B DATA'!Q119 -> 6 | G69: ='[1]Tabel 4F B DATA'!R119 -> 1 | I69: ='[1]Tabel 4F B DATA'!T119 -> 10
A70: ='[1]Tabel 4F B DATA'!L120 -> Landsk. Arkt. | C70: ='[1]Tabel 4F B DATA'!N120 -> 0 | D70: ='[1]Tabel 4F B DATA'!O120 -> 0 | E70: ='[1]Tabel 4F B DATA'!P120 -> 1 | F70: ='[1]Tabel 4F B DATA'!Q120 -> 1 | G70: ='[1]Tabel 4F B DATA'!R120 -> 1 | I70: ='[1]Tabel 4F B DATA'!T120 -> 3
A71: ='[1]Tabel 4F B DATA'!L121 -> Hortonom | C71: ='[1]Tabel 4F B DATA'!N121 -> 0 | D71: ='[1]Tabel 4F B DATA'!O121 -> 0 | E71: ='[1]Tabel 4F B DATA'!P121 -> 1 | F71: ='[1]Tabel 4F B DATA'!Q121 -> 0 | G71: ='[1]Tabel 4F B DATA'!R121 -> 1 | I71: ='[1]Tabel 4F B DATA'!T121 -> 2
A72: ='[1]Tabel 4F B DATA'!L122 -> Forstkand. | C72: ='[1]Tabel 4F B DATA'!N122 -> 0 | D72: ='[1]Tabel 4F B DATA'!O122 -> 0 | E72: ='[1]Tabel 4F B DATA'!P122 -> 0 | F72: ='[1]Tabel 4F B DATA'!Q122 -> 1 | G72: ='[1]Tabel 4F B DATA'!R122 -> 0 | I72: ='[1]Tabel 4F B DATA'!T122 -> 1
A73: ='[1]Tabel 4F B DATA'!L123 -> Jordbrugsakad. | C73: ='[1]Tabel 4F B DATA'!N123 -> 1 | D73: ='[1]Tabel 4F B DATA'!O123 -> 0 | E73: ='[1]Tabel 4F B DATA'!P123 -> 4 | F73: ='[1]Tabel 4F B DATA'!Q123 -> 8 | G73: ='[1]Tabel 4F B DATA'!R123 -> 3 | I73: ='[1]Tabel 4F B DATA'!T123 -> 16
A74: ='[1]Tabel 4F B DATA'!L124 -> Mejeriing. | C74: ='[1]Tabel 4F B DATA'!N124 -> 0 | D74: ='[1]Tabel 4F B DATA'!O124 -> 0 | E74: ='[1]Tabel 4F B DATA'!P124 -> 0 | F74: ='[1]Tabel 4F B DATA'!Q124 -> 0 | G74: ='[1]Tabel 4F B DATA'!R124 -> 0 | I74: ='[1]Tabel 4F B DATA'!T124 -> 0
A75: ='[1]Tabel 4F B DATA'!L125 -> Levn.m.kand. | C75: ='[1]Tabel 4F B DATA'!N125 -> 0 | D75: ='[1]Tabel 4F B DATA'!O125 -> 1 | E75: ='[1]Tabel 4F B DATA'!P125 -> 0 | F75: ='[1]Tabel 4F B DATA'!Q125 -> 0 | G75: ='[1]Tabel 4F B DATA'!R125 -> 0 | I75: ='[1]Tabel 4F B DATA'!T125 -> 1
A76: ='[1]Tabel 4F B DATA'!L126 -> Dyrlæge | C76: ='[1]Tabel 4F B DATA'!N126 -> 2 | D76: ='[1]Tabel 4F B DATA'!O126 -> 5 | E76: ='[1]Tabel 4F B DATA'!P126 -> 3 | F76: ='[1]Tabel 4F B DATA'!Q126 -> 3 | G76: ='[1]Tabel 4F B DATA'!R126 -> 2 | I76: ='[1]Tabel 4F B DATA'!T126 -> 15
A77: ='[1]Tabel 4F B DATA'!L127 -> Farmaceut | C77: ='[1]Tabel 4F B DATA'!N127 -> 0 | D77: ='[1]Tabel 4F B DATA'!O127 -> 1 | E77: ='[1]Tabel 4F B DATA'!P127 -> 2 | F77: ='[1]Tabel 4F B DATA'!Q127 -> 2 | G77: ='[1]Tabel 4F B DATA'!R127 -> 2 | I77: ='[1]Tabel 4F B DATA'!T127 -> 7
A78: ='[1]Tabel 4F B DATA'!L128 -> Læge | C78: ='[1]Tabel 4F B DATA'!N128 -> 7 | D78: ='[1]Tabel 4F B DATA'!O128 -> 11 | E78: ='[1]Tabel 4F B DATA'!P128 -> 3 | F78: ='[1]Tabel 4F B DATA'!Q128 -> 5 | G78: ='[1]Tabel 4F B DATA'!R128 -> 4 | I78: ='[1]Tabel 4F B DATA'!T128 -> 30
A79: ='[1]Tabel 4F B DATA'!L129 -> Tandlæge | C79: ='[1]Tabel 4F B DATA'!N129 -> 1 | D79: ='[1]Tabel 4F B DATA'!O129 -> 2 | E79: ='[1]Tabel 4F B DATA'!P129 -> 6 | F79: ='[1]Tabel 4F B DATA'!Q129 -> 1 | G79: ='[1]Tabel 4F B DATA'!R129 -> 0 | I79: ='[1]Tabel 4F B DATA'!T129 -> 10
A80: ='[1]Tabel 4F B DATA'!L130 -> Arkitekt | C80: ='[1]Tabel 4F B DATA'!N130 -> 0 | D80: ='[1]Tabel 4F B DATA'!O130 -> 2 | E80: ='[1]Tabel 4F B DATA'!P130 -> 5 | F80: ='[1]Tabel 4F B DATA'!Q130 -> 2 | G80: ='[1]Tabel 4F B DATA'!R130 -> 5 | I80: ='[1]Tabel 4F B DATA'!T130 -> 14
A81: ='[1]Tabel 4F B DATA'!L131 -> Landinspek. | C81: ='[1]Tabel 4F B DATA'!N131 -> 0 | D81: ='[1]Tabel 4F B DATA'!O131 -> 0 | E81: ='[1]Tabel 4F B DATA'!P131 -> 1 | F81: ='[1]Tabel 4F B DATA'!Q131 -> 0 | G81: ='[1]Tabel 4F B DATA'!R131 -> 0 | I81: ='[1]Tabel 4F B DATA'!T131 -> 1
A82: ='[1]Tabel 4F B DATA'!L132 -> Bibliotekar | C82: ='[1]Tabel 4F B DATA'!N132 -> 1 | D82: ='[1]Tabel 4F B DATA'!O132 -> 4 | E82: ='[1]Tabel 4F B DATA'!P132 -> 4 | F82: ='[1]Tabel 4F B DATA'!Q132 -> 5 | G82: ='[1]Tabel 4F B DATA'!R132 -> 2 | I82: ='[1]Tabel 4F B DATA'!T132 -> 16
A83: ='[1]Tabel 4F B DATA'!L133 -> Musikudd. | C83: ='[1]Tabel 4F B DATA'!N133 -> 0 | D83: ='[1]Tabel 4F B DATA'!O133 -> 0 | E83: ='[1]Tabel 4F B DATA'!P133 -> 0 | F83: ='[1]Tabel 4F B DATA'!Q133 -> 2 | G83: ='[1]Tabel 4F B DATA'!R133 -> 0 | I83: ='[1]Tabel 4F B DATA'!T133 -> 2
A84: ='[1]Tabel 4F B DATA'!L134 -> Teolog | C84: ='[1]Tabel 4F B DATA'!N134 -> 0 | D84: ='[1]Tabel 4F B DATA'!O134 -> 1 | E84: ='[1]Tabel 4F B DATA'!P134 -> 3 | F84: ='[1]Tabel 4F B DATA'!Q134 -> 3 | G84: ='[1]Tabel 4F B DATA'!R134 -> 5 | I84: ='[1]Tabel 4F B DATA'!T134 -> 12
A85: ='[1]Tabel 4F B DATA'!L135 -> Psykolog | C85: ='[1]Tabel 4F B DATA'!N135 -> 5 | D85: ='[1]Tabel 4F B DATA'!O135 -> 9 | E85: ='[1]Tabel 4F B DATA'!P135 -> 14 | F85: ='[1]Tabel 4F B DATA'!Q135 -> 2 | G85: ='[1]Tabel 4F B DATA'!R135 -> 1 | I85: ='[1]Tabel 4F B DATA'!T135 -> 31
A86: ='[1]Tabel 4F B DATA'!L136 -> Jurist | C86: ='[1]Tabel 4F B DATA'!N136 -> 2 | D86: ='[1]Tabel 4F B DATA'!O136 -> 10 | E86: ='[1]Tabel 4F B DATA'!P136 -> 8 | F86: ='[1]Tabel 4F B DATA'!Q136 -> 9 | G86: ='[1]Tabel 4F B DATA'!R136 -> 3 | I86: ='[1]Tabel 4F B DATA'!T136 -> 32
A87: ='[1]Tabel 4F B DATA'!L137 -> Økonom | C87: ='[1]Tabel 4F B DATA'!N137 -> 1 | D87: ='[1]Tabel 4F B DATA'!O137 -> 3 | E87: ='[1]Tabel 4F B DATA'!P137 -> 2 | F87: ='[1]Tabel 4F B DATA'!Q137 -> 4 | G87: ='[1]Tabel 4F B DATA'!R137 -> 0 | I87: ='[1]Tabel 4F B DATA'!T137 -> 10
A88: ='[1]Tabel 4F B DATA'!L138 -> Samf. Adm. | C88: ='[1]Tabel 4F B DATA'!N138 -> 1 | D88: ='[1]Tabel 4F B DATA'!O138 -> 18 | E88: ='[1]Tabel 4F B DATA'!P138 -> 22 | F88: ='[1]Tabel 4F B DATA'!Q138 -> 10 | G88: ='[1]Tabel 4F B DATA'!R138 -> 4 | I88: ='[1]Tabel 4F B DATA'!T138 -> 55
A89: ='[1]Tabel 4F B DATA'!L139 -> Cand. Merc. | C89: ='[1]Tabel 4F B DATA'!N139 -> 2 | D89: ='[1]Tabel 4F B DATA'!O139 -> 7 | E89: ='[1]Tabel 4F B DATA'!P139 -> 11 | F89: ='[1]Tabel 4F B DATA'!Q139 -> 10 | G89: ='[1]Tabel 4F B DATA'!R139 -> 2 | I89: ='[1]Tabel 4F B DATA'!T139 -> 32
A90: ='[1]Tabel 4F B DATA'!L140 -> HA | C90: ='[1]Tabel 4F B DATA'!N140 -> 0 | D90: ='[1]Tabel 4F B DATA'!O140 -> 2 | E90: ='[1]Tabel 4F B DATA'!P140 -> 2 | F90: ='[1]Tabel 4F B DATA'!Q140 -> 7 | G90: ='[1]Tabel 4F B DATA'!R140 -> 1 | I90: ='[1]Tabel 4F B DATA'!T140 -> 12
A91: ='[1]Tabel 4F B DATA'!L141 -> HD | C91: ='[1]Tabel 4F B DATA'!N141 -> 0 | D91: ='[1]Tabel 4F B DATA'!O141 -> 2 | E91: ='[1]Tabel 4F B DATA'!P141 -> 2 | F91: ='[1]Tabel 4F B DATA'!Q141 -> 2 | G91: ='[1]Tabel 4F B DATA'!R141 -> 3 | I91: ='[1]Tabel 4F B DATA'!T141 -> 9
A92: ='[1]Tabel 4F B DATA'!L142 -> Komm. og Sprog | C92: ='[1]Tabel 4F B DATA'!N142 -> 1 | D92: ='[1]Tabel 4F B DATA'!O142 -> 7 | E92: ='[1]Tabel 4F B DATA'!P142 -> 3 | F92: ='[1]Tabel 4F B DATA'!Q142 -> 3 | G92: ='[1]Tabel 4F B DATA'!R142 -> 1 | I92: ='[1]Tabel 4F B DATA'!T142 -> 15
A93: ='[1]Tabel 4F B DATA'!L143 -> Bygningskonst. | C93: ='[1]Tabel 4F B DATA'!N143 -> 4 | D93: ='[1]Tabel 4F B DATA'!O143 -> 9 | E93: ='[1]Tabel 4F B DATA'!P143 -> 7 | F93: ='[1]Tabel 4F B DATA'!Q143 -> 6 | G93: ='[1]Tabel 4F B DATA'!R143 -> 2 | I93: ='[1]Tabel 4F B DATA'!T143 -> 28
A94: ='[1]Tabel 4F B DATA'!L144 -> Cand. IT. | C94: ='[1]Tabel 4F B DATA'!N144 -> 0 | D94: ='[1]Tabel 4F B DATA'!O144 -> 1 | E94: ='[1]Tabel 4F B DATA'!P144 -> 1 | F94: ='[1]Tabel 4F B DATA'!Q144 -> 0 | G94: ='[1]Tabel 4F B DATA'!R144 -> 0 | I94: ='[1]Tabel 4F B DATA'!T144 -> 2
A95: ='[1]Tabel 4F B DATA'!L145 -> Bac. Samf. | C95: ='[1]Tabel 4F B DATA'!N145 -> 0 | D95: ='[1]Tabel 4F B DATA'!O145 -> 3 | E95: ='[1]Tabel 4F B DATA'!P145 -> 1 | F95: ='[1]Tabel 4F B DATA'!Q145 -> 0 | G95: ='[1]Tabel 4F B DATA'!R145 -> 1 | I95: ='[1]Tabel 4F B DATA'!T145 -> 5
A96: ='[1]Tabel 4F B DATA'!L146 -> Bac. Hum. | C96: ='[1]Tabel 4F B DATA'!N146 -> 2 | D96: ='[1]Tabel 4F B DATA'!O146 -> 4 | E96: ='[1]Tabel 4F B DATA'!P146 -> 4 | F96: ='[1]Tabel 4F B DATA'!Q146 -> 2 | G96: ='[1]Tabel 4F B DATA'!R146 -> 1 | I96: ='[1]Tabel 4F B DATA'!T146 -> 13
A97: ='[1]Tabel 4F B DATA'!L147 -> Bac. Nat. | C97: ='[1]Tabel 4F B DATA'!N147 -> 3 | D97: ='[1]Tabel 4F B DATA'!O147 -> 3 | E97: ='[1]Tabel 4F B DATA'!P147 -> 2 | F97: ='[1]Tabel 4F B DATA'!Q147 -> 1 | G97: ='[1]Tabel 4F B DATA'!R147 -> 1 | I97: ='[1]Tabel 4F B DATA'!T147 -> 10
A98: ='[1]Tabel 4F B DATA'!L148 -> Andre | C98: ='[1]Tabel 4F B DATA'!N148 -> 4 | D98: ='[1]Tabel 4F B DATA'!O148 -> 18 | E98: ='[1]Tabel 4F B DATA'!P148 -> 27 | F98: ='[1]Tabel 4F B DATA'!Q148 -> 35 | G98: ='[1]Tabel 4F B DATA'!R148 -> 25 | I98: ='[1]Tabel 4F B DATA'!T148 -> 109
A100: ='[1]Tabel 4F B DATA'!L150 -> Total | C100: ='[1]Tabel 4F B DATA'!N150 -> 55 | D100: ='[1]Tabel 4F B DATA'!O150 -> 237 | E100: ='[1]Tabel 4F B DATA'!P150 -> 225 | F100: ='[1]Tabel 4F B DATA'!Q150 -> 200 | G100: ='[1]Tabel 4F B DATA'!R150 -> 108 | I100: ='[1]Tabel 4F B DATA'!T150 -> 825
A102: ='[1]Tabel 4F B DATA'!L152 -> Ingeniører i alt | C102: ='[1]Tabel 4F B DATA'!N152 -> 6 | D102: ='[1]Tabel 4F B DATA'!O152 -> 25 | E102: ='[1]Tabel 4F B DATA'!P152 -> 25 | F102: ='[1]Tabel 4F B DATA'!Q152 -> 29 | G102: ='[1]Tabel 4F B DATA'!R152 -> 12 | I102: ='[1]Tabel 4F B DATA'!T152 -> 97
A103: ='[1]Tabel 4F B DATA'!L153 -> Magistre i alt | C103: ='[1]Tabel 4F B DATA'!N153 -> 8 | D103: ='[1]Tabel 4F B DATA'!O153 -> 72 | E103: ='[1]Tabel 4F B DATA'!P153 -> 55 | F103: ='[1]Tabel 4F B DATA'!Q153 -> 47 | G103: ='[1]Tabel 4F B DATA'!R153 -> 27 | I103: ='[1]Tabel 4F B DATA'!T153 -> 209
A104: ='[1]Tabel 4F B DATA'!L154 -> DJØF'ere i alt | C104: ='[1]Tabel 4F B DATA'!N154 -> 6 | D104: ='[1]Tabel 4F B DATA'!O154 -> 40 | E104: ='[1]Tabel 4F B DATA'!P154 -> 45 | F104: ='[1]Tabel 4F B DATA'!Q154 -> 40 | G104: ='[1]Tabel 4F B DATA'!R154 -> 10 | I104: ='[1]Tabel 4F B DATA'!T154 -> 141
A111: ='[1]Tabel 4F B DATA'!L159 -> Christiansø
C113: ='[1]Tabel 4F B DATA'!N161 -> Under 30 år | D113: ='[1]Tabel 4F B DATA'!O161 -> 30 - 39 år | E113: ='[1]Tabel 4F B DATA'!P161 -> 40 - 49 år | F113: ='[1]Tabel 4F B DATA'!Q161 -> 50 - 59 år | G113: ='[1]Tabel 4F B DATA'!R161 -> Over 60 år | I113: ='[1]Tabel 4F B DATA'!T161 -> I alt
A115: ='[1]Tabel 4F B DATA'!L163 -> Civ. ing. | C115: ='[1]Tabel 4F B DATA'!N163 -> 0 | D115: ='[1]Tabel 4F B DATA'!O163 -> 0 | E115: ='[1]Tabel 4F B DATA'!P163 -> 0 | F115: ='[1]Tabel 4F B DATA'!Q163 -> 0 | G115: ='[1]Tabel 4F B DATA'!R163 -> 0 | I115: ='[1]Tabel 4F B DATA'!T163 -> 0
A116: ='[1]Tabel 4F B DATA'!L164 -> Diplom ing. | C116: ='[1]Tabel 4F B DATA'!N164 -> 0 | D116: ='[1]Tabel 4F B DATA'!O164 -> 0 | E116: ='[1]Tabel 4F B DATA'!P164 -> 0 | F116: ='[1]Tabel 4F B DATA'!Q164 -> 0 | G116: ='[1]Tabel 4F B DATA'!R164 -> 0 | I116: ='[1]Tabel 4F B DATA'!T164 -> 0
A117: ='[1]Tabel 4F B DATA'!L165 -> Cand. Scient. Tek. | C117: ='[1]Tabel 4F B DATA'!N165 -> 0 | D117: ='[1]Tabel 4F B DATA'!O165 -> 0 | E117: ='[1]Tabel 4F B DATA'!P165 -> 0 | F117: ='[1]Tabel 4F B DATA'!Q165 -> 0 | G117: ='[1]Tabel 4F B DATA'!R165 -> 0 | I117: ='[1]Tabel 4F B DATA'!T165 -> 0
A118: ='[1]Tabel 4F B DATA'!L166 -> MA. Hum. | C118: ='[1]Tabel 4F B DATA'!N166 -> 0 | D118: ='[1]Tabel 4F B DATA'!O166 -> 0 | E118: ='[1]Tabel 4F B DATA'!P166 -> 0 | F118: ='[1]Tabel 4F B DATA'!Q166 -> 0 | G118: ='[1]Tabel 4F B DATA'!R166 -> 0 | I118: ='[1]Tabel 4F B DATA'!T166 -> 0
A119: ='[1]Tabel 4F B DATA'!L167 -> MA. Nat. | C119: ='[1]Tabel 4F B DATA'!N167 -> 0 | D119: ='[1]Tabel 4F B DATA'!O167 -> 0 | E119: ='[1]Tabel 4F B DATA'!P167 -> 0 | F119: ='[1]Tabel 4F B DATA'!Q167 -> 0 | G119: ='[1]Tabel 4F B DATA'!R167 -> 0 | I119: ='[1]Tabel 4F B DATA'!T167 -> 0
A120: ='[1]Tabel 4F B DATA'!L168 -> MA. Ph.d. | C120: ='[1]Tabel 4F B DATA'!N168 -> 0 | D120: ='[1]Tabel 4F B DATA'!O168 -> 0 | E120: ='[1]Tabel 4F B DATA'!P168 -> 0 | F120: ='[1]Tabel 4F B DATA'!Q168 -> 0 | G120: ='[1]Tabel 4F B DATA'!R168 -> 0 | I120: ='[1]Tabel 4F B DATA'!T168 -> 0
A121: ='[1]Tabel 4F B DATA'!L169 -> MA. Samf. | C121: ='[1]Tabel 4F B DATA'!N169 -> 0 | D121: ='[1]Tabel 4F B DATA'!O169 -> 0 | E121: ='[1]Tabel 4F B DATA'!P169 -> 0 | F121: ='[1]Tabel 4F B DATA'!Q169 -> 0 | G121: ='[1]Tabel 4F B DATA'!R169 -> 0 | I121: ='[1]Tabel 4F B DATA'!T169 -> 0
A122: ='[1]Tabel 4F B DATA'!L170 -> Øvrige Mag. | C122: ='[1]Tabel 4F B DATA'!N170 -> 0 | D122: ='[1]Tabel 4F B DATA'!O170 -> 0 | E122: ='[1]Tabel 4F B DATA'!P170 -> 0 | F122: ='[1]Tabel 4F B DATA'!Q170 -> 0 | G122: ='[1]Tabel 4F B DATA'!R170 -> 0 | I122: ='[1]Tabel 4F B DATA'!T170 -> 0
A123: ='[1]Tabel 4F B DATA'!L171 -> Agronom | C123: ='[1]Tabel 4F B DATA'!N171 -> 0 | D123: ='[1]Tabel 4F B DATA'!O171 -> 0 | E123: ='[1]Tabel 4F B DATA'!P171 -> 0 | F123: ='[1]Tabel 4F B DATA'!Q171 -> 0 | G123: ='[1]Tabel 4F B DATA'!R171 -> 0 | I123: ='[1]Tabel 4F B DATA'!T171 -> 0
A124: ='[1]Tabel 4F B DATA'!L172 -> Landsk. Arkt. | C124: ='[1]Tabel 4F B DATA'!N172 -> 0 | D124: ='[1]Tabel 4F B DATA'!O172 -> 0 | E124: ='[1]Tabel 4F B DATA'!P172 -> 0 | F124: ='[1]Tabel 4F B DATA'!Q172 -> 0 | G124: ='[1]Tabel 4F B DATA'!R172 -> 0 | I124: ='[1]Tabel 4F B DATA'!T172 -> 0
A125: ='[1]Tabel 4F B DATA'!L173 -> Hortonom | C125: ='[1]Tabel 4F B DATA'!N173 -> 0 | D125: ='[1]Tabel 4F B DATA'!O173 -> 0 | E125: ='[1]Tabel 4F B DATA'!P173 -> 0 | F125: ='[1]Tabel 4F B DATA'!Q173 -> 0 | G125: ='[1]Tabel 4F B DATA'!R173 -> 0 | I125: ='[1]Tabel 4F B DATA'!T173 -> 0
A126: ='[1]Tabel 4F B DATA'!L174 -> Forstkand. | C126: ='[1]Tabel 4F B DATA'!N174 -> 0 | D126: ='[1]Tabel 4F B DATA'!O174 -> 0 | E126: ='[1]Tabel 4F B DATA'!P174 -> 0 | F126: ='[1]Tabel 4F B DATA'!Q174 -> 0 | G126: ='[1]Tabel 4F B DATA'!R174 -> 0 | I126: ='[1]Tabel 4F B DATA'!T174 -> 0
A127: ='[1]Tabel 4F B DATA'!L175 -> Jordbrugsakad. | C127: ='[1]Tabel 4F B DATA'!N175 -> 0 | D127: ='[1]Tabel 4F B DATA'!O175 -> 0 | E127: ='[1]Tabel 4F B DATA'!P175 -> 0 | F127: ='[1]Tabel 4F B DATA'!Q175 -> 0 | G127: ='[1]Tabel 4F B DATA'!R175 -> 0 | I127: ='[1]Tabel 4F B DATA'!T175 -> 0
A128: ='[1]Tabel 4F B DATA'!L176 -> Mejeriing. | C128: ='[1]Tabel 4F B DATA'!N176 -> 0 | D128: ='[1]Tabel 4F B DATA'!O176 -> 0 | E128: ='[1]Tabel 4F B DATA'!P176 -> 0 | F128: ='[1]Tabel 4F B DATA'!Q176 -> 0 | G128: ='[1]Tabel 4F B DATA'!R176 -> 0 | I128: ='[1]Tabel 4F B DATA'!T176 -> 0
A129: ='[1]Tabel 4F B DATA'!L177 -> Levn.m.kand. | C129: ='[1]Tabel 4F B DATA'!N177 -> 0 | D129: ='[1]Tabel 4F B DATA'!O177 -> 0 | E129: ='[1]Tabel 4F B DATA'!P177 -> 0 | F129: ='[1]Tabel 4F B DATA'!Q177 -> 0 | G129: ='[1]Tabel 4F B DATA'!R177 -> 0 | I129: ='[1]Tabel 4F B DATA'!T177 -> 0
A130: ='[1]Tabel 4F B DATA'!L178 -> Dyrlæge | C130: ='[1]Tabel 4F B DATA'!N178 -> 0 | D130: ='[1]Tabel 4F B DATA'!O178 -> 0 | E130: ='[1]Tabel 4F B DATA'!P178 -> 0 | F130: ='[1]Tabel 4F B DATA'!Q178 -> 0 | G130: ='[1]Tabel 4F B DATA'!R178 -> 0 | I130: ='[1]Tabel 4F B DATA'!T178 -> 0
A131: ='[1]Tabel 4F B DATA'!L179 -> Farmaceut | C131: ='[1]Tabel 4F B DATA'!N179 -> 0 | D131: ='[1]Tabel 4F B DATA'!O179 -> 0 | E131: ='[1]Tabel 4F B DATA'!P179 -> 0 | F131: ='[1]Tabel 4F B DATA'!Q179 -> 0 | G131: ='[1]Tabel 4F B DATA'!R179 -> 0 | I131: ='[1]Tabel 4F B DATA'!T179 -> 0
A132: ='[1]Tabel 4F B DATA'!L180 -> Læge | C132: ='[1]Tabel 4F B DATA'!N180 -> 0 | D132: ='[1]Tabel 4F B DATA'!O180 -> 0 | E132: ='[1]Tabel 4F B DATA'!P180 -> 0 | F132: ='[1]Tabel 4F B DATA'!Q180 -> 0 | G132: ='[1]Tabel 4F B DATA'!R180 -> 1 | I132: ='[1]Tabel 4F B DATA'!T180 -> 1
A133: ='[1]Tabel 4F B DATA'!L181 -> Tandlæge | C133: ='[1]Tabel 4F B DATA'!N181 -> 0 | D133: ='[1]Tabel 4F B DATA'!O181 -> 0 | E133: ='[1]Tabel 4F B DATA'!P181 -> 0 | F133: ='[1]Tabel 4F B DATA'!Q181 -> 0 | G133: ='[1]Tabel 4F B DATA'!R181 -> 0 | I133: ='[1]Tabel 4F B DATA'!T181 -> 0
A134: ='[1]Tabel 4F B DATA'!L182 -> Arkitekt | C134: ='[1]Tabel 4F B DATA'!N182 -> 0 | D134: ='[1]Tabel 4F B DATA'!O182 -> 0 | E134: ='[1]Tabel 4F B DATA'!P182 -> 0 | F134: ='[1]Tabel 4F B DATA'!Q182 -> 0 | G134: ='[1]Tabel 4F B DATA'!R182 -> 0 | I134: ='[1]Tabel 4F B DATA'!T182 -> 0
A135: ='[1]Tabel 4F B DATA'!L183 -> Landinspek. | C135: ='[1]Tabel 4F B DATA'!N183 -> 0 | D135: ='[1]Tabel 4F B DATA'!O183 -> 0 | E135: ='[1]Tabel 4F B DATA'!P183 -> 0 | F135: ='[1]Tabel 4F B DATA'!Q183 -> 0 | G135: ='[1]Tabel 4F B DATA'!R183 -> 0 | I135: ='[1]Tabel 4F B DATA'!T183 -> 0
A136: ='[1]Tabel 4F B DATA'!L184 -> Bibliotekar | C136: ='[1]Tabel 4F B DATA'!N184 -> 0 | D136: ='[1]Tabel 4F B DATA'!O184 -> 0 | E136: ='[1]Tabel 4F B DATA'!P184 -> 0 | F136: ='[1]Tabel 4F B DATA'!Q184 -> 0 | G136: ='[1]Tabel 4F B DATA'!R184 -> 0 | I136: ='[1]Tabel 4F B DATA'!T184 -> 0
A137: ='[1]Tabel 4F B DATA'!L185 -> Musikudd. | C137: ='[1]Tabel 4F B DATA'!N185 -> 0 | D137: ='[1]Tabel 4F B DATA'!O185 -> 0 | E137: ='[1]Tabel 4F B DATA'!P185 -> 0 | F137: ='[1]Tabel 4F B DATA'!Q185 -> 0 | G137: ='[1]Tabel 4F B DATA'!R185 -> 0 | I137: ='[1]Tabel 4F B DATA'!T185 -> 0
A138: ='[1]Tabel 4F B DATA'!L186 -> Teolog | C138: ='[1]Tabel 4F B DATA'!N186 -> 0 | D138: ='[1]Tabel 4F B DATA'!O186 -> 0 | E138: ='[1]Tabel 4F B DATA'!P186 -> 0 | F138: ='[1]Tabel 4F B DATA'!Q186 -> 0 | G138: ='[1]Tabel 4F B DATA'!R186 -> 0 | I138: ='[1]Tabel 4F B DATA'!T186 -> 0
A139: ='[1]Tabel 4F B DATA'!L187 -> Psykolog | C139: ='[1]Tabel 4F B DATA'!N187 -> 0 | D139: ='[1]Tabel 4F B DATA'!O187 -> 0 | E139: ='[1]Tabel 4F B DATA'!P187 -> 0 | F139: ='[1]Tabel 4F B DATA'!Q187 -> 0 | G139: ='[1]Tabel 4F B DATA'!R187 -> 0 | I139: ='[1]Tabel 4F B DATA'!T187 -> 0
A140: ='[1]Tabel 4F B DATA'!L188 -> Jurist | C140: ='[1]Tabel 4F B DATA'!N188 -> 0 | D140: ='[1]Tabel 4F B DATA'!O188 -> 0 | E140: ='[1]Tabel 4F B DATA'!P188 -> 0 | F140: ='[1]Tabel 4F B DATA'!Q188 -> 0 | G140: ='[1]Tabel 4F B DATA'!R188 -> 0 | I140: ='[1]Tabel 4F B DATA'!T188 -> 0
A141: ='[1]Tabel 4F B DATA'!L189 -> Økonom | C141: ='[1]Tabel 4F B DATA'!N189 -> 0 | D141: ='[1]Tabel 4F B DATA'!O189 -> 0 | E141: ='[1]Tabel 4F B DATA'!P189 -> 0 | F141: ='[1]Tabel 4F B DATA'!Q189 -> 0 | G141: ='[1]Tabel 4F B DATA'!R189 -> 0 | I141: ='[1]Tabel 4F B DATA'!T189 -> 0
A142: ='[1]Tabel 4F B DATA'!L190 -> Samf. Adm. | C142: ='[1]Tabel 4F B DATA'!N190 -> 0 | D142: ='[1]Tabel 4F B DATA'!O190 -> 0 | E142: ='[1]Tabel 4F B DATA'!P190 -> 0 | F142: ='[1]Tabel 4F B DATA'!Q190 -> 0 | G142: ='[1]Tabel 4F B DATA'!R190 -> 0 | I142: ='[1]Tabel 4F B DATA'!T190 -> 0
A143: ='[1]Tabel 4F B DATA'!L191 -> Cand. Merc. | C143: ='[1]Tabel 4F B DATA'!N191 -> 0 | D143: ='[1]Tabel 4F B DATA'!O191 -> 0 | E143: ='[1]Tabel 4F B DATA'!P191 -> 0 | F143: ='[1]Tabel 4F B DATA'!Q191 -> 0 | G143: ='[1]Tabel 4F B DATA'!R191 -> 0 | I143: ='[1]Tabel 4F B DATA'!T191 -> 0
A144: ='[1]Tabel 4F B DATA'!L192 -> HA | C144: ='[1]Tabel 4F B DATA'!N192 -> 0 | D144: ='[1]Tabel 4F B DATA'!O192 -> 0 | E144: ='[1]Tabel 4F B DATA'!P192 -> 0 | F144: ='[1]Tabel 4F B DATA'!Q192 -> 0 | G144: ='[1]Tabel 4F B DATA'!R192 -> 0 | I144: ='[1]Tabel 4F B DATA'!T192 -> 0
A145: ='[1]Tabel 4F B DATA'!L193 -> HD | C145: ='[1]Tabel 4F B DATA'!N193 -> 0 | D145: ='[1]Tabel 4F B DATA'!O193 -> 0 | E145: ='[1]Tabel 4F B DATA'!P193 -> 0 | F145: ='[1]Tabel 4F B DATA'!Q193 -> 0 | G145: ='[1]Tabel 4F B DATA'!R193 -> 0 | I145: ='[1]Tabel 4F B DATA'!T193 -> 0
A146: ='[1]Tabel 4F B DATA'!L194 -> Komm. og Sprog | C146: ='[1]Tabel 4F B DATA'!N194 -> 0 | D146: ='[1]Tabel 4F B DATA'!O194 -> 0 | E146: ='[1]Tabel 4F B DATA'!P194 -> 0 | F146: ='[1]Tabel 4F B DATA'!Q194 -> 0 | G146: ='[1]Tabel 4F B DATA'!R194 -> 0 | I146: ='[1]Tabel 4F B DATA'!T194 -> 0
A147: ='[1]Tabel 4F B DATA'!L195 -> Bygningskonst. | C147: ='[1]Tabel 4F B DATA'!N195 -> 0 | D147: ='[1]Tabel 4F B DATA'!O195 -> 0 | E147: ='[1]Tabel 4F B DATA'!P195 -> 0 | F147: ='[1]Tabel 4F B DATA'!Q195 -> 0 | G147: ='[1]Tabel 4F B DATA'!R195 -> 0 | I147: ='[1]Tabel 4F B DATA'!T195 -> 0
A148: ='[1]Tabel 4F B DATA'!L196 -> Cand. IT. | C148: ='[1]Tabel 4F B DATA'!N196 -> 0 | D148: ='[1]Tabel 4F B DATA'!O196 -> 0 | E148: ='[1]Tabel 4F B DATA'!P196 -> 0 | F148: ='[1]Tabel 4F B DATA'!Q196 -> 0 | G148: ='[1]Tabel 4F B DATA'!R196 -> 0 | I148: ='[1]Tabel 4F B DATA'!T196 -> 0
A149: ='[1]Tabel 4F B DATA'!L197 -> Bac. Samf. | C149: ='[1]Tabel 4F B DATA'!N197 -> 0 | D149: ='[1]Tabel 4F B DATA'!O197 -> 0 | E149: ='[1]Tabel 4F B DATA'!P197 -> 0 | F149: ='[1]Tabel 4F B DATA'!Q197 -> 0 | G149: ='[1]Tabel 4F B DATA'!R197 -> 0 | I149: ='[1]Tabel 4F B DATA'!T197 -> 0
A150: ='[1]Tabel 4F B DATA'!L198 -> Bac. Hum. | C150: ='[1]Tabel 4F B DATA'!N198 -> 0 | D150: ='[1]Tabel 4F B DATA'!O198 -> 0 | E150: ='[1]Tabel 4F B DATA'!P198 -> 0 | F150: ='[1]Tabel 4F B DATA'!Q198 -> 0 | G150: ='[1]Tabel 4F B DATA'!R198 -> 0 | I150: ='[1]Tabel 4F B DATA'!T198 -> 0
A151: ='[1]Tabel 4F B DATA'!L199 -> Bac. Nat. | C151: ='[1]Tabel 4F B DATA'!N199 -> 0 | D151: ='[1]Tabel 4F B DATA'!O199 -> 0 | E151: ='[1]Tabel 4F B DATA'!P199 -> 0 | F151: ='[1]Tabel 4F B DATA'!Q199 -> 0 | G151: ='[1]Tabel 4F B DATA'!R199 -> 0 | I151: ='[1]Tabel 4F B DATA'!T199 -> 0
A152: ='[1]Tabel 4F B DATA'!L200 -> Andre | C152: ='[1]Tabel 4F B DATA'!N200 -> 0 | D152: ='[1]Tabel 4F B DATA'!O200 -> 0 | E152: ='[1]Tabel 4F B DATA'!P200 -> 0 | F152: ='[1]Tabel 4F B DATA'!Q200 -> 0 | G152: ='[1]Tabel 4F B DATA'!R200 -> 0 | I152: ='[1]Tabel 4F B DATA'!T200 -> 0
A154: ='[1]Tabel 4F B DATA'!L202 -> Total | C154: ='[1]Tabel 4F B DATA'!N202 -> 0 | D154: ='[1]Tabel 4F B DATA'!O202 -> 0 | E154: ='[1]Tabel 4F B DATA'!P202 -> 0 | F154: ='[1]Tabel 4F B DATA'!Q202 -> 0 | G154: ='[1]Tabel 4F B DATA'!R202 -> 1 | I154: ='[1]Tabel 4F B DATA'!T202 -> 1
A156: ='[1]Tabel 4F B DATA'!L204 -> Ingeniører i alt | C156: ='[1]Tabel 4F B DATA'!N204 -> 0 | D156: ='[1]Tabel 4F B DATA'!O204 -> 0 | E156: ='[1]Tabel 4F B DATA'!P204 -> 0 | F156: ='[1]Tabel 4F B DATA'!Q204 -> 0 | G156: ='[1]Tabel 4F B DATA'!R204 -> 0 | I156: ='[1]Tabel 4F B DATA'!T204 -> 0
A157: ='[1]Tabel 4F B DATA'!L205 -> Magistre i alt | C157: ='[1]Tabel 4F B DATA'!N205 -> 0 | D157: ='[1]Tabel 4F B DATA'!O205 -> 0 | E157: ='[1]Tabel 4F B DATA'!P205 -> 0 | F157: ='[1]Tabel 4F B DATA'!Q205 -> 0 | G157: ='[1]Tabel 4F B DATA'!R205 -> 0 | I157: ='[1]Tabel 4F B DATA'!T205 -> 0
A158: ='[1]Tabel 4F B DATA'!L206 -> DJØF'ere i alt | C158: ='[1]Tabel 4F B DATA'!N206 -> 0 | D158: ='[1]Tabel 4F B DATA'!O206 -> 0 | E158: ='[1]Tabel 4F B DATA'!P206 -> 0 | F158: ='[1]Tabel 4F B DATA'!Q206 -> 0 | G158: ='[1]Tabel 4F B DATA'!R206 -> 0 | I158: ='[1]Tabel 4F B DATA'!T206 -> 0

Sheet Tabel 4 B
A1: ='[1]Tabel 4 B DATA'!I1 -> Tabel 4. Ledighedsberørte - aldersfordelt
A3: ='[1]Tabel 4 B DATA'!I2 -> Bornholm
C5: ='[1]Tabel 4 B DATA'!K4 -> Under 30 år | D5: ='[1]Tabel 4 B DATA'!L4 -> 30 - 39 år | E5: ='[1]Tabel 4 B DATA'!M4 -> 40 - 49 år | F5: ='[1]Tabel 4 B DATA'!N4 -> 50 - 59 år | G5: ='[1]Tabel 4 B DATA'!O4 -> Over 60 år | I5: ='[1]Tabel 4 B DATA'!Q4 -> I alt
A7: ='[1]Tabel 4 B DATA'!I6 -> Civ. ing. | C7: ='[1]Tabel 4 B DATA'!K6 -> 0 | D7: ='[1]Tabel 4 B DATA'!L6 -> 2 | E7: ='[1]Tabel 4 B DATA'!M6 -> 1 | F7: ='[1]Tabel 4 B DATA'!N6 -> 0 | G7: ='[1]Tabel 4 B DATA'!O6 -> 0 | I7: ='[1]Tabel 4 B DATA'!Q6 -> 3
A8: ='[1]Tabel 4 B DATA'!I7 -> Diplom ing. | C8: ='[1]Tabel 4 B DATA'!K7 -> 0 | D8: ='[1]Tabel 4 B DATA'!L7 -> 0 | E8: ='[1]Tabel 4 B DATA'!M7 -> 2 | F8: ='[1]Tabel 4 B DATA'!N7 -> 2 | G8: ='[1]Tabel 4 B DATA'!O7 -> 1 | I8: ='[1]Tabel 4 B DATA'!Q7 -> 5
A9: ='[1]Tabel 4 B DATA'!I8 -> Cand. Scient. Tek | C9: ='[1]Tabel 4 B DATA'!K8 -> 0 | D9: ='[1]Tabel 4 B DATA'!L8 -> 4 | E9: ='[1]Tabel 4 B DATA'!M8 -> 1 | F9: ='[1]Tabel 4 B DATA'!N8 -> 0 | G9: ='[1]Tabel 4 B DATA'!O8 -> 0 | I9: ='[1]Tabel 4 B DATA'!Q8 -> 5
A10: ='[1]Tabel 4 B DATA'!I9 -> MA. Hum. | C10: ='[1]Tabel 4 B DATA'!K9 -> 1 | D10: ='[1]Tabel 4 B DATA'!L9 -> 7 | E10: ='[1]Tabel 4 B DATA'!M9 -> 5 | F10: ='[1]Tabel 4 B DATA'!N9 -> 1 | G10: ='[1]Tabel 4 B DATA'!O9 -> 4 | I10: ='[1]Tabel 4 B DATA'!Q9 -> 18
A11: ='[1]Tabel 4 B DATA'!I10 -> MA. Nat. | C11: ='[1]Tabel 4 B DATA'!K10 -> 0 | D11: ='[1]Tabel 4 B DATA'!L10 -> 0 | E11: ='[1]Tabel 4 B DATA'!M10 -> 2 | F11: ='[1]Tabel 4 B DATA'!N10 -> 0 | G11: ='[1]Tabel 4 B DATA'!O10 -> 1 | I11: ='[1]Tabel 4 B DATA'!Q10 -> 3
A12: ='[1]Tabel 4 B DATA'!I11 -> MA. Ph.d. | C12: ='[1]Tabel 4 B DATA'!K11 -> 0 | D12: ='[1]Tabel 4 B DATA'!L11 -> 0 | E12: ='[1]Tabel 4 B DATA'!M11 -> 1 | F12: ='[1]Tabel 4 B DATA'!N11 -> 0 | G12: ='[1]Tabel 4 B DATA'!O11 -> 0 | I12: ='[1]Tabel 4 B DATA'!Q11 -> 1
A13: ='[1]Tabel 4 B DATA'!I12 -> MA. Samf. | C13: ='[1]Tabel 4 B DATA'!K12 -> 0 | D13: ='[1]Tabel 4 B DATA'!L12 -> 0 | E13: ='[1]Tabel 4 B DATA'!M12 -> 0 | F13: ='[1]Tabel 4 B DATA'!N12 -> 1 | G13: ='[1]Tabel 4 B DATA'!O12 -> 0 | I13: ='[1]Tabel 4 B DATA'!Q12 -> 1
A14: ='[1]Tabel 4 B DATA'!I13 -> Øvrige Mag. | C14: ='[1]Tabel 4 B DATA'!K13 -> 0 | D14: ='[1]Tabel 4 B DATA'!L13 -> 3 | E14: ='[1]Tabel 4 B DATA'!M13 -> 2 | F14: ='[1]Tabel 4 B DATA'!N13 -> 0 | G14: ='[1]Tabel 4 B DATA'!O13 -> 0 | I14: ='[1]Tabel 4 B DATA'!Q13 -> 5
A15: ='[1]Tabel 4 B DATA'!I14 -> Agronom | C15: ='[1]Tabel 4 B DATA'!K14 -> 0 | D15: ='[1]Tabel 4 B DATA'!L14 -> 0 | E15: ='[1]Tabel 4 B DATA'!M14 -> 0 | F15: ='[1]Tabel 4 B DATA'!N14 -> 0 | G15: ='[1]Tabel 4 B DATA'!O14 -> 0 | I15: ='[1]Tabel 4 B DATA'!Q14 -> 0
A16: ='[1]Tabel 4 B DATA'!I15 -> Landsk. Arkt. | C16: ='[1]Tabel 4 B DATA'!K15 -> 0 | D16: ='[1]Tabel 4 B DATA'!L15 -> 0 | E16: ='[1]Tabel 4 B DATA'!M15 -> 0 | F16: ='[1]Tabel 4 B DATA'!N15 -> 0 | G16: ='[1]Tabel 4 B DATA'!O15 -> 0 | I16: ='[1]Tabel 4 B DATA'!Q15 -> 0
A17: ='[1]Tabel 4 B DATA'!I16 -> Hortonom | C17: ='[1]Tabel 4 B DATA'!K16 -> 0 | D17: ='[1]Tabel 4 B DATA'!L16 -> 0 | E17: ='[1]Tabel 4 B DATA'!M16 -> 0 | F17: ='[1]Tabel 4 B DATA'!N16 -> 0 | G17: ='[1]Tabel 4 B DATA'!O16 -> 0 | I17: ='[1]Tabel 4 B DATA'!Q16 -> 0
A18: ='[1]Tabel 4 B DATA'!I17 -> Forstkand. | C18: ='[1]Tabel 4 B DATA'!K17 -> 0 | D18: ='[1]Tabel 4 B DATA'!L17 -> 0 | E18: ='[1]Tabel 4 B DATA'!M17 -> 0 | F18: ='[1]Tabel 4 B DATA'!N17 -> 0 | G18: ='[1]Tabel 4 B DATA'!O17 -> 0 | I18: ='[1]Tabel 4 B DATA'!Q17 -> 0
A19: ='[1]Tabel 4 B DATA'!I18 -> Jordbrugsakad. | C19: ='[1]Tabel 4 B DATA'!K18 -> 0 | D19: ='[1]Tabel 4 B DATA'!L18 -> 0 | E19: ='[1]Tabel 4 B DATA'!M18 -> 0 | F19: ='[1]Tabel 4 B DATA'!N18 -> 0 | G19: ='[1]Tabel 4 B DATA'!O18 -> 0 | I19: ='[1]Tabel 4 B DATA'!Q18 -> 0
A20: ='[1]Tabel 4 B DATA'!I19 -> Mejeriing. | C20: ='[1]Tabel 4 B DATA'!K19 -> 0 | D20: ='[1]Tabel 4 B DATA'!L19 -> 0 | E20: ='[1]Tabel 4 B DATA'!M19 -> 0 | F20: ='[1]Tabel 4 B DATA'!N19 -> 0 | G20: ='[1]Tabel 4 B DATA'!O19 -> 0 | I20: ='[1]Tabel 4 B DATA'!Q19 -> 0
A21: ='[1]Tabel 4 B DATA'!I20 -> Levn.m.kand. | C21: ='[1]Tabel 4 B DATA'!K20 -> 0 | D21: ='[1]Tabel 4 B DATA'!L20 -> 1 | E21: ='[1]Tabel 4 B DATA'!M20 -> 0 | F21: ='[1]Tabel 4 B DATA'!N20 -> 0 | G21: ='[1]Tabel 4 B DATA'!O20 -> 0 | I21: ='[1]Tabel 4 B DATA'!Q20 -> 1
A22: ='[1]Tabel 4 B DATA'!I21 -> Dyrlæge | C22: ='[1]Tabel 4 B DATA'!K21 -> 0 | D22: ='[1]Tabel 4 B DATA'!L21 -> 0 | E22: ='[1]Tabel 4 B DATA'!M21 -> 0 | F22: ='[1]Tabel 4 B DATA'!N21 -> 0 | G22: ='[1]Tabel 4 B DATA'!O21 -> 0 | I22: ='[1]Tabel 4 B DATA'!Q21 -> 0
A23: ='[1]Tabel 4 B DATA'!I22 -> Farmaceut | C23: ='[1]Tabel 4 B DATA'!K22 -> 0 | D23: ='[1]Tabel 4 B DATA'!L22 -> 0 | E23: ='[1]Tabel 4 B DATA'!M22 -> 0 | F23: ='[1]Tabel 4 B DATA'!N22 -> 0 | G23: ='[1]Tabel 4 B DATA'!O22 -> 0 | I23: ='[1]Tabel 4 B DATA'!Q22 -> 0
A24: ='[1]Tabel 4 B DATA'!I23 -> Læge | C24: ='[1]Tabel 4 B DATA'!K23 -> 1 | D24: ='[1]Tabel 4 B DATA'!L23 -> 0 | E24: ='[1]Tabel 4 B DATA'!M23 -> 0 | F24: ='[1]Tabel 4 B DATA'!N23 -> 0 | G24: ='[1]Tabel 4 B DATA'!O23 -> 0 | I24: ='[1]Tabel 4 B DATA'!Q23 -> 1
A25: ='[1]Tabel 4 B DATA'!I24 -> Tandlæge | C25: ='[1]Tabel 4 B DATA'!K24 -> 0 | D25: ='[1]Tabel 4 B DATA'!L24 -> 0 | E25: ='[1]Tabel 4 B DATA'!M24 -> 0 | F25: ='[1]Tabel 4 B DATA'!N24 -> 0 | G25: ='[1]Tabel 4 B DATA'!O24 -> 0 | I25: ='[1]Tabel 4 B DATA'!Q24 -> 0
A26: ='[1]Tabel 4 B DATA'!I25 -> Arkitekt | C26: ='[1]Tabel 4 B DATA'!K25 -> 0 | D26: ='[1]Tabel 4 B DATA'!L25 -> 0 | E26: ='[1]Tabel 4 B DATA'!M25 -> 0 | F26: ='[1]Tabel 4 B DATA'!N25 -> 1 | G26: ='[1]Tabel 4 B DATA'!O25 -> 0 | I26: ='[1]Tabel 4 B DATA'!Q25 -> 1
A27: ='[1]Tabel 4 B DATA'!I26 -> Landinspek. | C27: ='[1]Tabel 4 B DATA'!K26 -> 0 | D27: ='[1]Tabel 4 B DATA'!L26 -> 0 | E27: ='[1]Tabel 4 B DATA'!M26 -> 0 | F27: ='[1]Tabel 4 B DATA'!N26 -> 0 | G27: ='[1]Tabel 4 B DATA'!O26 -> 0 | I27: ='[1]Tabel 4 B DATA'!Q26 -> 0
A28: ='[1]Tabel 4 B DATA'!I27 -> Bibliotekar | C28: ='[1]Tabel 4 B DATA'!K27 -> 0 | D28: ='[1]Tabel 4 B DATA'!L27 -> 0 | E28: ='[1]Tabel 4 B DATA'!M27 -> 0 | F28: ='[1]Tabel 4 B DATA'!N27 -> 0 | G28: ='[1]Tabel 4 B DATA'!O27 -> 1 | I28: ='[1]Tabel 4 B DATA'!Q27 -> 1
A29: ='[1]Tabel 4 B DATA'!I28 -> Musikudd. | C29: ='[1]Tabel 4 B DATA'!K28 -> 0 | D29: ='[1]Tabel 4 B DATA'!L28 -> 0 | E29: ='[1]Tabel 4 B DATA'!M28 -> 0 | F29: ='[1]Tabel 4 B DATA'!N28 -> 1 | G29: ='[1]Tabel 4 B DATA'!O28 -> 0 | I29: ='[1]Tabel 4 B DATA'!Q28 -> 1
A30: ='[1]Tabel 4 B DATA'!I29 -> Teolog | C30: ='[1]Tabel 4 B DATA'!K29 -> 0 | D30: ='[1]Tabel 4 B DATA'!L29 -> 0 | E30: ='[1]Tabel 4 B DATA'!M29 -> 0 | F30: ='[1]Tabel 4 B DATA'!N29 -> 0 | G30: ='[1]Tabel 4 B DATA'!O29 -> 0 | I30: ='[1]Tabel 4 B DATA'!Q29 -> 0
A31: ='[1]Tabel 4 B DATA'!I30 -> Psykolog | C31: ='[1]Tabel 4 B DATA'!K30 -> 0 | D31: ='[1]Tabel 4 B DATA'!L30 -> 1 | E31: ='[1]Tabel 4 B DATA'!M30 -> 0 | F31: ='[1]Tabel 4 B DATA'!N30 -> 0 | G31: ='[1]Tabel 4 B DATA'!O30 -> 0 | I31: ='[1]Tabel 4 B DATA'!Q30 -> 1
A32: ='[1]Tabel 4 B DATA'!I31 -> Jurist | C32: ='[1]Tabel 4 B DATA'!K31 -> 0 | D32: ='[1]Tabel 4 B DATA'!L31 -> 0 | E32: ='[1]Tabel 4 B DATA'!M31 -> 0 | F32: ='[1]Tabel 4 B DATA'!N31 -> 0 | G32: ='[1]Tabel 4 B DATA'!O31 -> 0 | I32: ='[1]Tabel 4 B DATA'!Q31 -> 0
A33: ='[1]Tabel 4 B DATA'!I32 -> Økonom | C33: ='[1]Tabel 4 B DATA'!K32 -> 0 | D33: ='[1]Tabel 4 B DATA'!L32 -> 0 | E33: ='[1]Tabel 4 B DATA'!M32 -> 0 | F33: ='[1]Tabel 4 B DATA'!N32 -> 0 | G33: ='[1]Tabel 4 B DATA'!O32 -> 0 | I33: ='[1]Tabel 4 B DATA'!Q32 -> 0
A34: ='[1]Tabel 4 B DATA'!I33 -> Samf. Adm. | C34: ='[1]Tabel 4 B DATA'!K33 -> 0 | D34: ='[1]Tabel 4 B DATA'!L33 -> 0 | E34: ='[1]Tabel 4 B DATA'!M33 -> 1 | F34: ='[1]Tabel 4 B DATA'!N33 -> 2 | G34: ='[1]Tabel 4 B DATA'!O33 -> 0 | I34: ='[1]Tabel 4 B DATA'!Q33 -> 3
A35: ='[1]Tabel 4 B DATA'!I34 -> Cand. Merc. | C35: ='[1]Tabel 4 B DATA'!K34 -> 0 | D35: ='[1]Tabel 4 B DATA'!L34 -> 0 | E35: ='[1]Tabel 4 B DATA'!M34 -> 3 | F35: ='[1]Tabel 4 B DATA'!N34 -> 1 | G35: ='[1]Tabel 4 B DATA'!O34 -> 0 | I35: ='[1]Tabel 4 B DATA'!Q34 -> 4
A36: ='[1]Tabel 4 B DATA'!I35 -> HA | C36: ='[1]Tabel 4 B DATA'!K35 -> 0 | D36: ='[1]Tabel 4 B DATA'!L35 -> 0 | E36: ='[1]Tabel 4 B DATA'!M35 -> 0 | F36: ='[1]Tabel 4 B DATA'!N35 -> 1 | G36: ='[1]Tabel 4 B DATA'!O35 -> 0 | I36: ='[1]Tabel 4 B DATA'!Q35 -> 1
A37: ='[1]Tabel 4 B DATA'!I36 -> HD | C37: ='[1]Tabel 4 B DATA'!K36 -> 0 | D37: ='[1]Tabel 4 B DATA'!L36 -> 0 | E37: ='[1]Tabel 4 B DATA'!M36 -> 0 | F37: ='[1]Tabel 4 B DATA'!N36 -> 0 | G37: ='[1]Tabel 4 B DATA'!O36 -> 0 | I37: ='[1]Tabel 4 B DATA'!Q36 -> 0
A38: ='[1]Tabel 4 B DATA'!I37 -> Komm. og Sprog | C38: ='[1]Tabel 4 B DATA'!K37 -> 0 | D38: ='[1]Tabel 4 B DATA'!L37 -> 1 | E38: ='[1]Tabel 4 B DATA'!M37 -> 0 | F38: ='[1]Tabel 4 B DATA'!N37 -> 2 | G38: ='[1]Tabel 4 B DATA'!O37 -> 1 | I38: ='[1]Tabel 4 B DATA'!Q37 -> 4
A39: ='[1]Tabel 4 B DATA'!I38 -> Bygningskonst | C39: ='[1]Tabel 4 B DATA'!K38 -> 0 | D39: ='[1]Tabel 4 B DATA'!L38 -> 0 | E39: ='[1]Tabel 4 B DATA'!M38 -> 0 | F39: ='[1]Tabel 4 B DATA'!N38 -> 0 | G39: ='[1]Tabel 4 B DATA'!O38 -> 0 | I39: ='[1]Tabel 4 B DATA'!Q38 -> 0
A40: ='[1]Tabel 4 B DATA'!I39 -> Cand. IT. | C40: ='[1]Tabel 4 B DATA'!K39 -> 0 | D40: ='[1]Tabel 4 B DATA'!L39 -> 0 | E40: ='[1]Tabel 4 B DATA'!M39 -> 0 | F40: ='[1]Tabel 4 B DATA'!N39 -> 0 | G40: ='[1]Tabel 4 B DATA'!O39 -> 0 | I40: ='[1]Tabel 4 B DATA'!Q39 -> 0
A41: ='[1]Tabel 4 B DATA'!I40 -> Bac. Samf. | C41: ='[1]Tabel 4 B DATA'!K40 -> 0 | D41: ='[1]Tabel 4 B DATA'!L40 -> 0 | E41: ='[1]Tabel 4 B DATA'!M40 -> 0 | F41: ='[1]Tabel 4 B DATA'!N40 -> 0 | G41: ='[1]Tabel 4 B DATA'!O40 -> 0 | I41: ='[1]Tabel 4 B DATA'!Q40 -> 0
A42: ='[1]Tabel 4 B DATA'!I41 -> Bac. Hum. | C42: ='[1]Tabel 4 B DATA'!K41 -> 1 | D42: ='[1]Tabel 4 B DATA'!L41 -> 1 | E42: ='[1]Tabel 4 B DATA'!M41 -> 1 | F42: ='[1]Tabel 4 B DATA'!N41 -> 0 | G42: ='[1]Tabel 4 B DATA'!O41 -> 0 | I42: ='[1]Tabel 4 B DATA'!Q41 -> 3
A43: ='[1]Tabel 4 B DATA'!I42 -> Bac. Nat. | C43: ='[1]Tabel 4 B DATA'!K42 -> 0 | D43: ='[1]Tabel 4 B DATA'!L42 -> 1 | E43: ='[1]Tabel 4 B DATA'!M42 -> 0 | F43: ='[1]Tabel 4 B DATA'!N42 -> 1 | G43: ='[1]Tabel 4 B DATA'!O42 -> 0 | I43: ='[1]Tabel 4 B DATA'!Q42 -> 2
A44: ='[1]Tabel 4 B DATA'!I43 -> Andre | C44: ='[1]Tabel 4 B DATA'!K43 -> 1 | D44: ='[1]Tabel 4 B DATA'!L43 -> 3 | E44: ='[1]Tabel 4 B DATA'!M43 -> 4 | F44: ='[1]Tabel 4 B DATA'!N43 -> 2 | G44: ='[1]Tabel 4 B DATA'!O43 -> 2 | I44: ='[1]Tabel 4 B DATA'!Q43 -> 12
A46: ='[1]Tabel 4 B DATA'!I45 -> Total | C46: ='[1]Tabel 4 B DATA'!K45 -> 4 | D46: ='[1]Tabel 4 B DATA'!L45 -> 24 | E46: ='[1]Tabel 4 B DATA'!M45 -> 23 | F46: ='[1]Tabel 4 B DATA'!N45 -> 15 | G46: ='[1]Tabel 4 B DATA'!O45 -> 10 | I46: ='[1]Tabel 4 B DATA'!Q45 -> 76
A48: ='[1]Tabel 4 B DATA'!I47 -> Ingeniører i alt | C48: ='[1]Tabel 4 B DATA'!K47 -> 0 | D48: ='[1]Tabel 4 B DATA'!L47 -> 2 | E48: ='[1]Tabel 4 B DATA'!M47 -> 3 | F48: ='[1]Tabel 4 B DATA'!N47 -> 2 | G48: ='[1]Tabel 4 B DATA'!O47 -> 1 | I48: ='[1]Tabel 4 B DATA'!Q47 -> 8
A49: ='[1]Tabel 4 B DATA'!I48 -> Magistre i alt | C49: ='[1]Tabel 4 B DATA'!K48 -> 1 | D49: ='[1]Tabel 4 B DATA'!L48 -> 10 | E49: ='[1]Tabel 4 B DATA'!M48 -> 10 | F49: ='[1]Tabel 4 B DATA'!N48 -> 2 | G49: ='[1]Tabel 4 B DATA'!O48 -> 5 | I49: ='[1]Tabel 4 B DATA'!Q48 -> 28
A50: ='[1]Tabel 4 B DATA'!I49 -> DJØF'ere i alt | C50: ='[1]Tabel 4 B DATA'!K49 -> 0 | D50: ='[1]Tabel 4 B DATA'!L49 -> 0 | E50: ='[1]Tabel 4 B DATA'!M49 -> 4 | F50: ='[1]Tabel 4 B DATA'!N49 -> 4 | G50: ='[1]Tabel 4 B DATA'!O49 -> 0 | I50: ='[1]Tabel 4 B DATA'!Q49 -> 8
A57: ='[1]Tabel 4 B DATA'!I106 -> Bornholm
C59: ='[1]Tabel 4 B DATA'!K108 -> Under 30 år | D59: ='[1]Tabel 4 B DATA'!L108 -> 30 - 39 år | E59: ='[1]Tabel 4 B DATA'!M108 -> 40 - 49 år | F59: ='[1]Tabel 4 B DATA'!N108 -> 50 - 59 år | G59: ='[1]Tabel 4 B DATA'!O108 -> Over 60 år | I59: ='[1]Tabel 4 B DATA'!Q108 -> I alt
A61: ='[1]Tabel 4 B DATA'!I110 -> Civ. ing. | C61: ='[1]Tabel 4 B DATA'!K110 -> 0 | D61: ='[1]Tabel 4 B DATA'!L110 -> 2 | E61: ='[1]Tabel 4 B DATA'!M110 -> 1 | F61: ='[1]Tabel 4 B DATA'!N110 -> 0 | G61: ='[1]Tabel 4 B DATA'!O110 -> 0 | I61: ='[1]Tabel 4 B DATA'!Q110 -> 3
A62: ='[1]Tabel 4 B DATA'!I111 -> Diplom ing. | C62: ='[1]Tabel 4 B DATA'!K111 -> 0 | D62: ='[1]Tabel 4 B DATA'!L111 -> 0 | E62: ='[1]Tabel 4 B DATA'!M111 -> 2 | F62: ='[1]Tabel 4 B DATA'!N111 -> 2 | G62: ='[1]Tabel 4 B DATA'!O111 -> 1 | I62: ='[1]Tabel 4 B DATA'!Q111 -> 5
A63: ='[1]Tabel 4 B DATA'!I112 -> Cand. Scient. Tek | C63: ='[1]Tabel 4 B DATA'!K112 -> 0 | D63: ='[1]Tabel 4 B DATA'!L112 -> 4 | E63: ='[1]Tabel 4 B DATA'!M112 -> 1 | F63: ='[1]Tabel 4 B DATA'!N112 -> 0 | G63: ='[1]Tabel 4 B DATA'!O112 -> 0 | I63: ='[1]Tabel 4 B DATA'!Q112 -> 5
A64: ='[1]Tabel 4 B DATA'!I113 -> MA. Hum. | C64: ='[1]Tabel 4 B DATA'!K113 -> 1 | D64: ='[1]Tabel 4 B DATA'!L113 -> 7 | E64: ='[1]Tabel 4 B DATA'!M113 -> 5 | F64: ='[1]Tabel 4 B DATA'!N113 -> 1 | G64: ='[1]Tabel 4 B DATA'!O113 -> 4 | I64: ='[1]Tabel 4 B DATA'!Q113 -> 18
A65: ='[1]Tabel 4 B DATA'!I114 -> MA. Nat. | C65: ='[1]Tabel 4 B DATA'!K114 -> 0 | D65: ='[1]Tabel 4 B DATA'!L114 -> 0 | E65: ='[1]Tabel 4 B DATA'!M114 -> 2 | F65: ='[1]Tabel 4 B DATA'!N114 -> 0 | G65: ='[1]Tabel 4 B DATA'!O114 -> 1 | I65: ='[1]Tabel 4 B DATA'!Q114 -> 3
A66: ='[1]Tabel 4 B DATA'!I115 -> MA. Ph.d. | C66: ='[1]Tabel 4 B DATA'!K115 -> 0 | D66: ='[1]Tabel 4 B DATA'!L115 -> 0 | E66: ='[1]Tabel 4 B DATA'!M115 -> 1 | F66: ='[1]Tabel 4 B DATA'!N115 -> 0 | G66: ='[1]Tabel 4 B DATA'!O115 -> 0 | I66: ='[1]Tabel 4 B DATA'!Q115 -> 1
A67: ='[1]Tabel 4 B DATA'!I116 -> MA. Samf. | C67: ='[1]Tabel 4 B DATA'!K116 -> 0 | D67: ='[1]Tabel 4 B DATA'!L116 -> 0 | E67: ='[1]Tabel 4 B DATA'!M116 -> 0 | F67: ='[1]Tabel 4 B DATA'!N116 -> 1 | G67: ='[1]Tabel 4 B DATA'!O116 -> 0 | I67: ='[1]Tabel 4 B DATA'!Q116 -> 1
A68: ='[1]Tabel 4 B DATA'!I117 -> Øvrige Mag. | C68: ='[1]Tabel 4 B DATA'!K117 -> 0 | D68: ='[1]Tabel 4 B DATA'!L117 -> 3 | E68: ='[1]Tabel 4 B DATA'!M117 -> 2 | F68: ='[1]Tabel 4 B DATA'!N117 -> 0 | G68: ='[1]Tabel 4 B DATA'!O117 -> 0 | I68: ='[1]Tabel 4 B DATA'!Q117 -> 5
A69: ='[1]Tabel 4 B DATA'!I118 -> Agronom | C69: ='[1]Tabel 4 B DATA'!K118 -> 0 | D69: ='[1]Tabel 4 B DATA'!L118 -> 0 | E69: ='[1]Tabel 4 B DATA'!M118 -> 0 | F69: ='[1]Tabel 4 B DATA'!N118 -> 0 | G69: ='[1]Tabel 4 B DATA'!O118 -> 0 | I69: ='[1]Tabel 4 B DATA'!Q118 -> 0
A70: ='[1]Tabel 4 B DATA'!I119 -> Landsk. Arkt. | C70: ='[1]Tabel 4 B DATA'!K119 -> 0 | D70: ='[1]Tabel 4 B DATA'!L119 -> 0 | E70: ='[1]Tabel 4 B DATA'!M119 -> 0 | F70: ='[1]Tabel 4 B DATA'!N119 -> 0 | G70: ='[1]Tabel 4 B DATA'!O119 -> 0 | I70: ='[1]Tabel 4 B DATA'!Q119 -> 0
A71: ='[1]Tabel 4 B DATA'!I120 -> Hortonom | C71: ='[1]Tabel 4 B DATA'!K120 -> 0 | D71: ='[1]Tabel 4 B DATA'!L120 -> 0 | E71: ='[1]Tabel 4 B DATA'!M120 -> 0 | F71: ='[1]Tabel 4 B DATA'!N120 -> 0 | G71: ='[1]Tabel 4 B DATA'!O120 -> 0 | I71: ='[1]Tabel 4 B DATA'!Q120 -> 0
A72: ='[1]Tabel 4 B DATA'!I121 -> Forstkand. | C72: ='[1]Tabel 4 B DATA'!K121 -> 0 | D72: ='[1]Tabel 4 B DATA'!L121 -> 0 | E72: ='[1]Tabel 4 B DATA'!M121 -> 0 | F72: ='[1]Tabel 4 B DATA'!N121 -> 0 | G72: ='[1]Tabel 4 B DATA'!O121 -> 0 | I72: ='[1]Tabel 4 B DATA'!Q121 -> 0
A73: ='[1]Tabel 4 B DATA'!I122 -> Jordbrugsakad. | C73: ='[1]Tabel 4 B DATA'!K122 -> 0 | D73: ='[1]Tabel 4 B DATA'!L122 -> 0 | E73: ='[1]Tabel 4 B DATA'!M122 -> 0 | F73: ='[1]Tabel 4 B DATA'!N122 -> 0 | G73: ='[1]Tabel 4 B DATA'!O122 -> 0 | I73: ='[1]Tabel 4 B DATA'!Q122 -> 0
A74: ='[1]Tabel 4 B DATA'!I123 -> Mejeriing. | C74: ='[1]Tabel 4 B DATA'!K123 -> 0 | D74: ='[1]Tabel 4 B DATA'!L123 -> 0 | E74: ='[1]Tabel 4 B DATA'!M123 -> 0 | F74: ='[1]Tabel 4 B DATA'!N123 -> 0 | G74: ='[1]Tabel 4 B DATA'!O123 -> 0 | I74: ='[1]Tabel 4 B DATA'!Q123 -> 0
A75: ='[1]Tabel 4 B DATA'!I124 -> Levn.m.kand. | C75: ='[1]Tabel 4 B DATA'!K124 -> 0 | D75: ='[1]Tabel 4 B DATA'!L124 -> 1 | E75: ='[1]Tabel 4 B DATA'!M124 -> 0 | F75: ='[1]Tabel 4 B DATA'!N124 -> 0 | G75: ='[1]Tabel 4 B DATA'!O124 -> 0 | I75: ='[1]Tabel 4 B DATA'!Q124 -> 1
A76: ='[1]Tabel 4 B DATA'!I125 -> Dyrlæge | C76: ='[1]Tabel 4 B DATA'!K125 -> 0 | D76: ='[1]Tabel 4 B DATA'!L125 -> 0 | E76: ='[1]Tabel 4 B DATA'!M125 -> 0 | F76: ='[1]Tabel 4 B DATA'!N125 -> 0 | G76: ='[1]Tabel 4 B DATA'!O125 -> 0 | I76: ='[1]Tabel 4 B DATA'!Q125 -> 0
A77: ='[1]Tabel 4 B DATA'!I126 -> Farmaceut | C77: ='[1]Tabel 4 B DATA'!K126 -> 0 | D77: ='[1]Tabel 4 B DATA'!L126 -> 0 | E77: ='[1]Tabel 4 B DATA'!M126 -> 0 | F77: ='[1]Tabel 4 B DATA'!N126 -> 0 | G77: ='[1]Tabel 4 B DATA'!O126 -> 0 | I77: ='[1]Tabel 4 B DATA'!Q126 -> 0
A78: ='[1]Tabel 4 B DATA'!I127 -> Læge | C78: ='[1]Tabel 4 B DATA'!K127 -> 1 | D78: ='[1]Tabel 4 B DATA'!L127 -> 0 | E78: ='[1]Tabel 4 B DATA'!M127 -> 0 | F78: ='[1]Tabel 4 B DATA'!N127 -> 0 | G78: ='[1]Tabel 4 B DATA'!O127 -> 0 | I78: ='[1]Tabel 4 B DATA'!Q127 -> 1
A79: ='[1]Tabel 4 B DATA'!I128 -> Tandlæge | C79: ='[1]Tabel 4 B DATA'!K128 -> 0 | D79: ='[1]Tabel 4 B DATA'!L128 -> 0 | E79: ='[1]Tabel 4 B DATA'!M128 -> 0 | F79: ='[1]Tabel 4 B DATA'!N128 -> 0 | G79: ='[1]Tabel 4 B DATA'!O128 -> 0 | I79: ='[1]Tabel 4 B DATA'!Q128 -> 0
A80: ='[1]Tabel 4 B DATA'!I129 -> Arkitekt | C80: ='[1]Tabel 4 B DATA'!K129 -> 0 | D80: ='[1]Tabel 4 B DATA'!L129 -> 0 | E80: ='[1]Tabel 4 B DATA'!M129 -> 0 | F80: ='[1]Tabel 4 B DATA'!N129 -> 1 | G80: ='[1]Tabel 4 B DATA'!O129 -> 0 | I80: ='[1]Tabel 4 B DATA'!Q129 -> 1
A81: ='[1]Tabel 4 B DATA'!I130 -> Landinspek. | C81: ='[1]Tabel 4 B DATA'!K130 -> 0 | D81: ='[1]Tabel 4 B DATA'!L130 -> 0 | E81: ='[1]Tabel 4 B DATA'!M130 -> 0 | F81: ='[1]Tabel 4 B DATA'!N130 -> 0 | G81: ='[1]Tabel 4 B DATA'!O130 -> 0 | I81: ='[1]Tabel 4 B DATA'!Q130 -> 0
A82: ='[1]Tabel 4 B DATA'!I131 -> Bibliotekar | C82: ='[1]Tabel 4 B DATA'!K131 -> 0 | D82: ='[1]Tabel 4 B DATA'!L131 -> 0 | E82: ='[1]Tabel 4 B DATA'!M131 -> 0 | F82: ='[1]Tabel 4 B DATA'!N131 -> 0 | G82: ='[1]Tabel 4 B DATA'!O131 -> 1 | I82: ='[1]Tabel 4 B DATA'!Q131 -> 1
A83: ='[1]Tabel 4 B DATA'!I132 -> Musikudd. | C83: ='[1]Tabel 4 B DATA'!K132 -> 0 | D83: ='[1]Tabel 4 B DATA'!L132 -> 0 | E83: ='[1]Tabel 4 B DATA'!M132 -> 0 | F83: ='[1]Tabel 4 B DATA'!N132 -> 1 | G83: ='[1]Tabel 4 B DATA'!O132 -> 0 | I83: ='[1]Tabel 4 B DATA'!Q132 -> 1
A84: ='[1]Tabel 4 B DATA'!I133 -> Teolog | C84: ='[1]Tabel 4 B DATA'!K133 -> 0 | D84: ='[1]Tabel 4 B DATA'!L133 -> 0 | E84: ='[1]Tabel 4 B DATA'!M133 -> 0 | F84: ='[1]Tabel 4 B DATA'!N133 -> 0 | G84: ='[1]Tabel 4 B DATA'!O133 -> 0 | I84: ='[1]Tabel 4 B DATA'!Q133 -> 0
A85: ='[1]Tabel 4 B DATA'!I134 -> Psykolog | C85: ='[1]Tabel 4 B DATA'!K134 -> 0 | D85: ='[1]Tabel 4 B DATA'!L134 -> 1 | E85: ='[1]Tabel 4 B DATA'!M134 -> 0 | F85: ='[1]Tabel 4 B DATA'!N134 -> 0 | G85: ='[1]Tabel 4 B DATA'!O134 -> 0 | I85: ='[1]Tabel 4 B DATA'!Q134 -> 1
A86: ='[1]Tabel 4 B DATA'!I135 -> Jurist | C86: ='[1]Tabel 4 B DATA'!K135 -> 0 | D86: ='[1]Tabel 4 B DATA'!L135 -> 0 | E86: ='[1]Tabel 4 B DATA'!M135 -> 0 | F86: ='[1]Tabel 4 B DATA'!N135 -> 0 | G86: ='[1]Tabel 4 B DATA'!O135 -> 0 | I86: ='[1]Tabel 4 B DATA'!Q135 -> 0
A87: ='[1]Tabel 4 B DATA'!I136 -> Økonom | C87: ='[1]Tabel 4 B DATA'!K136 -> 0 | D87: ='[1]Tabel 4 B DATA'!L136 -> 0 | E87: ='[1]Tabel 4 B DATA'!M136 -> 0 | F87: ='[1]Tabel 4 B DATA'!N136 -> 0 | G87: ='[1]Tabel 4 B DATA'!O136 -> 0 | I87: ='[1]Tabel 4 B DATA'!Q136 -> 0
A88: ='[1]Tabel 4 B DATA'!I137 -> Samf. Adm. | C88: ='[1]Tabel 4 B DATA'!K137 -> 0 | D88: ='[1]Tabel 4 B DATA'!L137 -> 0 | E88: ='[1]Tabel 4 B DATA'!M137 -> 1 | F88: ='[1]Tabel 4 B DATA'!N137 -> 2 | G88: ='[1]Tabel 4 B DATA'!O137 -> 0 | I88: ='[1]Tabel 4 B DATA'!Q137 -> 3
A89: ='[1]Tabel 4 B DATA'!I138 -> Cand. Merc. | C89: ='[1]Tabel 4 B DATA'!K138 -> 0 | D89: ='[1]Tabel 4 B DATA'!L138 -> 0 | E89: ='[1]Tabel 4 B DATA'!M138 -> 3 | F89: ='[1]Tabel 4 B DATA'!N138 -> 1 | G89: ='[1]Tabel 4 B DATA'!O138 -> 0 | I89: ='[1]Tabel 4 B DATA'!Q138 -> 4
A90: ='[1]Tabel 4 B DATA'!I139 -> HA | C90: ='[1]Tabel 4 B DATA'!K139 -> 0 | D90: ='[1]Tabel 4 B DATA'!L139 -> 0 | E90: ='[1]Tabel 4 B DATA'!M139 -> 0 | F90: ='[1]Tabel 4 B DATA'!N139 -> 1 | G90: ='[1]Tabel 4 B DATA'!O139 -> 0 | I90: ='[1]Tabel 4 B DATA'!Q139 -> 1
A91: ='[1]Tabel 4 B DATA'!I140 -> HD | C91: ='[1]Tabel 4 B DATA'!K140 -> 0 | D91: ='[1]Tabel 4 B DATA'!L140 -> 0 | E91: ='[1]Tabel 4 B DATA'!M140 -> 0 | F91: ='[1]Tabel 4 B DATA'!N140 -> 0 | G91: ='[1]Tabel 4 B DATA'!O140 -> 0 | I91: ='[1]Tabel 4 B DATA'!Q140 -> 0
A92: ='[1]Tabel 4 B DATA'!I141 -> Komm. og Sprog | C92: ='[1]Tabel 4 B DATA'!K141 -> 0 | D92: ='[1]Tabel 4 B DATA'!L141 -> 1 | E92: ='[1]Tabel 4 B DATA'!M141 -> 0 | F92: ='[1]Tabel 4 B DATA'!N141 -> 2 | G92: ='[1]Tabel 4 B DATA'!O141 -> 1 | I92: ='[1]Tabel 4 B DATA'!Q141 -> 4
A93: ='[1]Tabel 4 B DATA'!I142 -> Bygningskonst. | C93: ='[1]Tabel 4 B DATA'!K142 -> 0 | D93: ='[1]Tabel 4 B DATA'!L142 -> 0 | E93: ='[1]Tabel 4 B DATA'!M142 -> 0 | F93: ='[1]Tabel 4 B DATA'!N142 -> 0 | G93: ='[1]Tabel 4 B DATA'!O142 -> 0 | I93: ='[1]Tabel 4 B DATA'!Q142 -> 0
A94: ='[1]Tabel 4 B DATA'!I143 -> Cand. IT. | C94: ='[1]Tabel 4 B DATA'!K143 -> 0 | D94: ='[1]Tabel 4 B DATA'!L143 -> 0 | E94: ='[1]Tabel 4 B DATA'!M143 -> 0 | F94: ='[1]Tabel 4 B DATA'!N143 -> 0 | G94: ='[1]Tabel 4 B DATA'!O143 -> 0 | I94: ='[1]Tabel 4 B DATA'!Q143 -> 0
A95: ='[1]Tabel 4 B DATA'!I144 -> Bac. Samf. | C95: ='[1]Tabel 4 B DATA'!K144 -> 0 | D95: ='[1]Tabel 4 B DATA'!L144 -> 0 | E95: ='[1]Tabel 4 B DATA'!M144 -> 0 | F95: ='[1]Tabel 4 B DATA'!N144 -> 0 | G95: ='[1]Tabel 4 B DATA'!O144 -> 0 | I95: ='[1]Tabel 4 B DATA'!Q144 -> 0
A96: ='[1]Tabel 4 B DATA'!I145 -> Bac. Hum. | C96: ='[1]Tabel 4 B DATA'!K145 -> 1 | D96: ='[1]Tabel 4 B DATA'!L145 -> 1 | E96: ='[1]Tabel 4 B DATA'!M145 -> 1 | F96: ='[1]Tabel 4 B DATA'!N145 -> 0 | G96: ='[1]Tabel 4 B DATA'!O145 -> 0 | I96: ='[1]Tabel 4 B DATA'!Q145 -> 3
A97: ='[1]Tabel 4 B DATA'!I146 -> Bac. Nat. | C97: ='[1]Tabel 4 B DATA'!K146 -> 0 | D97: ='[1]Tabel 4 B DATA'!L146 -> 1 | E97: ='[1]Tabel 4 B DATA'!M146 -> 0 | F97: ='[1]Tabel 4 B DATA'!N146 -> 1 | G97: ='[1]Tabel 4 B DATA'!O146 -> 0 | I97: ='[1]Tabel 4 B DATA'!Q146 -> 2
A98: ='[1]Tabel 4 B DATA'!I147 -> Andre | C98: ='[1]Tabel 4 B DATA'!K147 -> 1 | D98: ='[1]Tabel 4 B DATA'!L147 -> 3 | E98: ='[1]Tabel 4 B DATA'!M147 -> 4 | F98: ='[1]Tabel 4 B DATA'!N147 -> 2 | G98: ='[1]Tabel 4 B DATA'!O147 -> 2 | I98: ='[1]Tabel 4 B DATA'!Q147 -> 12
A100: ='[1]Tabel 4 B DATA'!I149 -> Total | C100: ='[1]Tabel 4 B DATA'!K149 -> 4 | D100: ='[1]Tabel 4 B DATA'!L149 -> 24 | E100: ='[1]Tabel 4 B DATA'!M149 -> 23 | F100: ='[1]Tabel 4 B DATA'!N149 -> 15 | G100: ='[1]Tabel 4 B DATA'!O149 -> 10 | I100: ='[1]Tabel 4 B DATA'!Q149 -> 76
A102: ='[1]Tabel 4 B DATA'!I151 -> Ingeniører i alt | C102: ='[1]Tabel 4 B DATA'!K151 -> 0 | D102: ='[1]Tabel 4 B DATA'!L151 -> 2 | E102: ='[1]Tabel 4 B DATA'!M151 -> 3 | F102: ='[1]Tabel 4 B DATA'!N151 -> 2 | G102: ='[1]Tabel 4 B DATA'!O151 -> 1 | I102: ='[1]Tabel 4 B DATA'!Q151 -> 8
A103: ='[1]Tabel 4 B DATA'!I152 -> Magistre i alt | C103: ='[1]Tabel 4 B DATA'!K152 -> 1 | D103: ='[1]Tabel 4 B DATA'!L152 -> 10 | E103: ='[1]Tabel 4 B DATA'!M152 -> 10 | F103: ='[1]Tabel 4 B DATA'!N152 -> 2 | G103: ='[1]Tabel 4 B DATA'!O152 -> 5 | I103: ='[1]Tabel 4 B DATA'!Q152 -> 28
A104: ='[1]Tabel 4 B DATA'!I153 -> DJØF'ere i alt | C104: ='[1]Tabel 4 B DATA'!K153 -> 0 | D104: ='[1]Tabel 4 B DATA'!L153 -> 0 | E104: ='[1]Tabel 4 B DATA'!M153 -> 4 | F104: ='[1]Tabel 4 B DATA'!N153 -> 4 | G104: ='[1]Tabel 4 B DATA'!O153 -> 0 | I104: ='[1]Tabel 4 B DATA'!Q153 -> 8
A111: ='[1]Tabel 4 B DATA'!I158 -> Christiansø
C113: ='[1]Tabel 4 B DATA'!K160 -> Under 30 år | D113: ='[1]Tabel 4 B DATA'!L160 -> 30 - 39 år | E113: ='[1]Tabel 4 B DATA'!M160 -> 40 - 49 år | F113: ='[1]Tabel 4 B DATA'!N160 -> 50 - 59 år | G113: ='[1]Tabel 4 B DATA'!O160 -> Over 60 år | I113: ='[1]Tabel 4 B DATA'!Q160 -> I alt
A115: ='[1]Tabel 4 B DATA'!I162 -> Civ. ing. | C115: ='[1]Tabel 4 B DATA'!K162 -> 0 | D115: ='[1]Tabel 4 B DATA'!L162 -> 0 | E115: ='[1]Tabel 4 B DATA'!M162 -> 0 | F115: ='[1]Tabel 4 B DATA'!N162 -> 0 | G115: ='[1]Tabel 4 B DATA'!O162 -> 0 | I115: ='[1]Tabel 4 B DATA'!Q162 -> 0
A116: ='[1]Tabel 4 B DATA'!I163 -> Diplom ing. | C116: ='[1]Tabel 4 B DATA'!K163 -> 0 | D116: ='[1]Tabel 4 B DATA'!L163 -> 0 | E116: ='[1]Tabel 4 B DATA'!M163 -> 0 | F116: ='[1]Tabel 4 B DATA'!N163 -> 0 | G116: ='[1]Tabel 4 B DATA'!O163 -> 0 | I116: ='[1]Tabel 4 B DATA'!Q163 -> 0
A117: ='[1]Tabel 4 B DATA'!I164 -> Cand. Scient. Tek | C117: ='[1]Tabel 4 B DATA'!K164 -> 0 | D117: ='[1]Tabel 4 B DATA'!L164 -> 0 | E117: ='[1]Tabel 4 B DATA'!M164 -> 0 | F117: ='[1]Tabel 4 B DATA'!N164 -> 0 | G117: ='[1]Tabel 4 B DATA'!O164 -> 0 | I117: ='[1]Tabel 4 B DATA'!Q164 -> 0
A118: ='[1]Tabel 4 B DATA'!I165 -> MA. Hum. | C118: ='[1]Tabel 4 B DATA'!K165 -> 0 | D118: ='[1]Tabel 4 B DATA'!L165 -> 0 | E118: ='[1]Tabel 4 B DATA'!M165 -> 0 | F118: ='[1]Tabel 4 B DATA'!N165 -> 0 | G118: ='[1]Tabel 4 B DATA'!O165 -> 0 | I118: ='[1]Tabel 4 B DATA'!Q165 -> 0
A119: ='[1]Tabel 4 B DATA'!I166 -> MA. Nat. | C119: ='[1]Tabel 4 B DATA'!K166 -> 0 | D119: ='[1]Tabel 4 B DATA'!L166 -> 0 | E119: ='[1]Tabel 4 B DATA'!M166 -> 0 | F119: ='[1]Tabel 4 B DATA'!N166 -> 0 | G119: ='[1]Tabel 4 B DATA'!O166 -> 0 | I119: ='[1]Tabel 4 B DATA'!Q166 -> 0
A120: ='[1]Tabel 4 B DATA'!I167 -> MA. Ph.d. | C120: ='[1]Tabel 4 B DATA'!K167 -> 0 | D120: ='[1]Tabel 4 B DATA'!L167 -> 0 | E120: ='[1]Tabel 4 B DATA'!M167 -> 0 | F120: ='[1]Tabel 4 B DATA'!N167 -> 0 | G120: ='[1]Tabel 4 B DATA'!O167 -> 0 | I120: ='[1]Tabel 4 B DATA'!Q167 -> 0
A121: ='[1]Tabel 4 B DATA'!I168 -> MA. Samf. | C121: ='[1]Tabel 4 B DATA'!K168 -> 0 | D121: ='[1]Tabel 4 B DATA'!L168 -> 0 | E121: ='[1]Tabel 4 B DATA'!M168 -> 0 | F121: ='[1]Tabel 4 B DATA'!N168 -> 0 | G121: ='[1]Tabel 4 B DATA'!O168 -> 0 | I121: ='[1]Tabel 4 B DATA'!Q168 -> 0
A122: ='[1]Tabel 4 B DATA'!I169 -> Øvrige Mag. | C122: ='[1]Tabel 4 B DATA'!K169 -> 0 | D122: ='[1]Tabel 4 B DATA'!L169 -> 0 | E122: ='[1]Tabel 4 B DATA'!M169 -> 0 | F122: ='[1]Tabel 4 B DATA'!N169 -> 0 | G122: ='[1]Tabel 4 B DATA'!O169 -> 0 | I122: ='[1]Tabel 4 B DATA'!Q169 -> 0
A123: ='[1]Tabel 4 B DATA'!I170 -> Agronom | C123: ='[1]Tabel 4 B DATA'!K170 -> 0 | D123: ='[1]Tabel 4 B DATA'!L170 -> 0 | E123: ='[1]Tabel 4 B DATA'!M170 -> 0 | F123: ='[1]Tabel 4 B DATA'!N170 -> 0 | G123: ='[1]Tabel 4 B DATA'!O170 -> 0 | I123: ='[1]Tabel 4 B DATA'!Q170 -> 0
A124: ='[1]Tabel 4 B DATA'!I171 -> Landsk. Arkt. | C124: ='[1]Tabel 4 B DATA'!K171 -> 0 | D124: ='[1]Tabel 4 B DATA'!L171 -> 0 | E124: ='[1]Tabel 4 B DATA'!M171 -> 0 | F124: ='[1]Tabel 4 B DATA'!N171 -> 0 | G124: ='[1]Tabel 4 B DATA'!O171 -> 0 | I124: ='[1]Tabel 4 B DATA'!Q171 -> 0
A125: ='[1]Tabel 4 B DATA'!I172 -> Hortonom | C125: ='[1]Tabel 4 B DATA'!K172 -> 0 | D125: ='[1]Tabel 4 B DATA'!L172 -> 0 | E125: ='[1]Tabel 4 B DATA'!M172 -> 0 | F125: ='[1]Tabel 4 B DATA'!N172 -> 0 | G125: ='[1]Tabel 4 B DATA'!O172 -> 0 | I125: ='[1]Tabel 4 B DATA'!Q172 -> 0
A126: ='[1]Tabel 4 B DATA'!I173 -> Forstkand. | C126: ='[1]Tabel 4 B DATA'!K173 -> 0 | D126: ='[1]Tabel 4 B DATA'!L173 -> 0 | E126: ='[1]Tabel 4 B DATA'!M173 -> 0 | F126: ='[1]Tabel 4 B DATA'!N173 -> 0 | G126: ='[1]Tabel 4 B DATA'!O173 -> 0 | I126: ='[1]Tabel 4 B DATA'!Q173 -> 0
A127: ='[1]Tabel 4 B DATA'!I174 -> Jordbrugsakad. | C127: ='[1]Tabel 4 B DATA'!K174 -> 0 | D127: ='[1]Tabel 4 B DATA'!L174 -> 0 | E127: ='[1]Tabel 4 B DATA'!M174 -> 0 | F127: ='[1]Tabel 4 B DATA'!N174 -> 0 | G127: ='[1]Tabel 4 B DATA'!O174 -> 0 | I127: ='[1]Tabel 4 B DATA'!Q174 -> 0
A128: ='[1]Tabel 4 B DATA'!I175 -> Mejeriing. | C128: ='[1]Tabel 4 B DATA'!K175 -> 0 | D128: ='[1]Tabel 4 B DATA'!L175 -> 0 | E128: ='[1]Tabel 4 B DATA'!M175 -> 0 | F128: ='[1]Tabel 4 B DATA'!N175 -> 0 | G128: ='[1]Tabel 4 B DATA'!O175 -> 0 | I128: ='[1]Tabel 4 B DATA'!Q175 -> 0
A129: ='[1]Tabel 4 B DATA'!I176 -> Levn.m.kand. | C129: ='[1]Tabel 4 B DATA'!K176 -> 0 | D129: ='[1]Tabel 4 B DATA'!L176 -> 0 | E129: ='[1]Tabel 4 B DATA'!M176 -> 0 | F129: ='[1]Tabel 4 B DATA'!N176 -> 0 | G129: ='[1]Tabel 4 B DATA'!O176 -> 0 | I129: ='[1]Tabel 4 B DATA'!Q176 -> 0
A130: ='[1]Tabel 4 B DATA'!I177 -> Dyrlæge | C130: ='[1]Tabel 4 B DATA'!K177 -> 0 | D130: ='[1]Tabel 4 B DATA'!L177 -> 0 | E130: ='[1]Tabel 4 B DATA'!M177 -> 0 | F130: ='[1]Tabel 4 B DATA'!N177 -> 0 | G130: ='[1]Tabel 4 B DATA'!O177 -> 0 | I130: ='[1]Tabel 4 B DATA'!Q177 -> 0
A131: ='[1]Tabel 4 B DATA'!I178 -> Farmaceut | C131: ='[1]Tabel 4 B DATA'!K178 -> 0 | D131: ='[1]Tabel 4 B DATA'!L178 -> 0 | E131: ='[1]Tabel 4 B DATA'!M178 -> 0 | F131: ='[1]Tabel 4 B DATA'!N178 -> 0 | G131: ='[1]Tabel 4 B DATA'!O178 -> 0 | I131: ='[1]Tabel 4 B DATA'!Q178 -> 0
A132: ='[1]Tabel 4 B DATA'!I179 -> Læge | C132: ='[1]Tabel 4 B DATA'!K179 -> 0 | D132: ='[1]Tabel 4 B DATA'!L179 -> 0 | E132: ='[1]Tabel 4 B DATA'!M179 -> 0 | F132: ='[1]Tabel 4 B DATA'!N179 -> 0 | G132: ='[1]Tabel 4 B DATA'!O179 -> 0 | I132: ='[1]Tabel 4 B DATA'!Q179 -> 0
A133: ='[1]Tabel 4 B DATA'!I180 -> Tandlæge | C133: ='[1]Tabel 4 B DATA'!K180 -> 0 | D133: ='[1]Tabel 4 B DATA'!L180 -> 0 | E133: ='[1]Tabel 4 B DATA'!M180 -> 0 | F133: ='[1]Tabel 4 B DATA'!N180 -> 0 | G133: ='[1]Tabel 4 B DATA'!O180 -> 0 | I133: ='[1]Tabel 4 B DATA'!Q180 -> 0
A134: ='[1]Tabel 4 B DATA'!I181 -> Arkitekt | C134: ='[1]Tabel 4 B DATA'!K181 -> 0 | D134: ='[1]Tabel 4 B DATA'!L181 -> 0 | E134: ='[1]Tabel 4 B DATA'!M181 -> 0 | F134: ='[1]Tabel 4 B DATA'!N181 -> 0 | G134: ='[1]Tabel 4 B DATA'!O181 -> 0 | I134: ='[1]Tabel 4 B DATA'!Q181 -> 0
A135: ='[1]Tabel 4 B DATA'!I182 -> Landinspek. | C135: ='[1]Tabel 4 B DATA'!K182 -> 0 | D135: ='[1]Tabel 4 B DATA'!L182 -> 0 | E135: ='[1]Tabel 4 B DATA'!M182 -> 0 | F135: ='[1]Tabel 4 B DATA'!N182 -> 0 | G135: ='[1]Tabel 4 B DATA'!O182 -> 0 | I135: ='[1]Tabel 4 B DATA'!Q182 -> 0
A136: ='[1]Tabel 4 B DATA'!I183 -> Bibliotekar | C136: ='[1]Tabel 4 B DATA'!K183 -> 0 | D136: ='[1]Tabel 4 B DATA'!L183 -> 0 | E136: ='[1]Tabel 4 B DATA'!M183 -> 0 | F136: ='[1]Tabel 4 B DATA'!N183 -> 0 | G136: ='[1]Tabel 4 B DATA'!O183 -> 0 | I136: ='[1]Tabel 4 B DATA'!Q183 -> 0
A137: ='[1]Tabel 4 B DATA'!I184 -> Musikudd. | C137: ='[1]Tabel 4 B DATA'!K184 -> 0 | D137: ='[1]Tabel 4 B DATA'!L184 -> 0 | E137: ='[1]Tabel 4 B DATA'!M184 -> 0 | F137: ='[1]Tabel 4 B DATA'!N184 -> 0 | G137: ='[1]Tabel 4 B DATA'!O184 -> 0 | I137: ='[1]Tabel 4 B DATA'!Q184 -> 0
A138: ='[1]Tabel 4 B DATA'!I185 -> Teolog | C138: ='[1]Tabel 4 B DATA'!K185 -> 0 | D138: ='[1]Tabel 4 B DATA'!L185 -> 0 | E138: ='[1]Tabel 4 B DATA'!M185 -> 0 | F138: ='[1]Tabel 4 B DATA'!N185 -> 0 | G138: ='[1]Tabel 4 B DATA'!O185 -> 0 | I138: ='[1]Tabel 4 B DATA'!Q185 -> 0
A139: ='[1]Tabel 4 B DATA'!I186 -> Psykolog | C139: ='[1]Tabel 4 B DATA'!K186 -> 0 | D139: ='[1]Tabel 4 B DATA'!L186 -> 0 | E139: ='[1]Tabel 4 B DATA'!M186 -> 0 | F139: ='[1]Tabel 4 B DATA'!N186 -> 0 | G139: ='[1]Tabel 4 B DATA'!O186 -> 0 | I139: ='[1]Tabel 4 B DATA'!Q186 -> 0
A140: ='[1]Tabel 4 B DATA'!I187 -> Jurist | C140: ='[1]Tabel 4 B DATA'!K187 -> 0 | D140: ='[1]Tabel 4 B DATA'!L187 -> 0 | E140: ='[1]Tabel 4 B DATA'!M187 -> 0 | F140: ='[1]Tabel 4 B DATA'!N187 -> 0 | G140: ='[1]Tabel 4 B DATA'!O187 -> 0 | I140: ='[1]Tabel 4 B DATA'!Q187 -> 0
A141: ='[1]Tabel 4 B DATA'!I188 -> Økonom | C141: ='[1]Tabel 4 B DATA'!K188 -> 0 | D141: ='[1]Tabel 4 B DATA'!L188 -> 0 | E141: ='[1]Tabel 4 B DATA'!M188 -> 0 | F141: ='[1]Tabel 4 B DATA'!N188 -> 0 | G141: ='[1]Tabel 4 B DATA'!O188 -> 0 | I141: ='[1]Tabel 4 B DATA'!Q188 -> 0
A142: ='[1]Tabel 4 B DATA'!I189 -> Samf. Adm. | C142: ='[1]Tabel 4 B DATA'!K189 -> 0 | D142: ='[1]Tabel 4 B DATA'!L189 -> 0 | E142: ='[1]Tabel 4 B DATA'!M189 -> 0 | F142: ='[1]Tabel 4 B DATA'!N189 -> 0 | G142: ='[1]Tabel 4 B DATA'!O189 -> 0 | I142: ='[1]Tabel 4 B DATA'!Q189 -> 0
A143: ='[1]Tabel 4 B DATA'!I190 -> Cand. Merc. | C143: ='[1]Tabel 4 B DATA'!K190 -> 0 | D143: ='[1]Tabel 4 B DATA'!L190 -> 0 | E143: ='[1]Tabel 4 B DATA'!M190 -> 0 | F143: ='[1]Tabel 4 B DATA'!N190 -> 0 | G143: ='[1]Tabel 4 B DATA'!O190 -> 0 | I143: ='[1]Tabel 4 B DATA'!Q190 -> 0
A144: ='[1]Tabel 4 B DATA'!I191 -> HA | C144: ='[1]Tabel 4 B DATA'!K191 -> 0 | D144: ='[1]Tabel 4 B DATA'!L191 -> 0 | E144: ='[1]Tabel 4 B DATA'!M191 -> 0 | F144: ='[1]Tabel 4 B DATA'!N191 -> 0 | G144: ='[1]Tabel 4 B DATA'!O191 -> 0 | I144: ='[1]Tabel 4 B DATA'!Q191 -> 0
A145: ='[1]Tabel 4 B DATA'!I192 -> HD | C145: ='[1]Tabel 4 B DATA'!K192 -> 0 | D145: ='[1]Tabel 4 B DATA'!L192 -> 0 | E145: ='[1]Tabel 4 B DATA'!M192 -> 0 | F145: ='[1]Tabel 4 B DATA'!N192 -> 0 | G145: ='[1]Tabel 4 B DATA'!O192 -> 0 | I145: ='[1]Tabel 4 B DATA'!Q192 -> 0
A146: ='[1]Tabel 4 B DATA'!I193 -> Komm. og Sprog | C146: ='[1]Tabel 4 B DATA'!K193 -> 0 | D146: ='[1]Tabel 4 B DATA'!L193 -> 0 | E146: ='[1]Tabel 4 B DATA'!M193 -> 0 | F146: ='[1]Tabel 4 B DATA'!N193 -> 0 | G146: ='[1]Tabel 4 B DATA'!O193 -> 0 | I146: ='[1]Tabel 4 B DATA'!Q193 -> 0
A147: ='[1]Tabel 4 B DATA'!I194 -> Bygningskonst. | C147: ='[1]Tabel 4 B DATA'!K194 -> 0 | D147: ='[1]Tabel 4 B DATA'!L194 -> 0 | E147: ='[1]Tabel 4 B DATA'!M194 -> 0 | F147: ='[1]Tabel 4 B DATA'!N194 -> 0 | G147: ='[1]Tabel 4 B DATA'!O194 -> 0 | I147: ='[1]Tabel 4 B DATA'!Q194 -> 0
A148: ='[1]Tabel 4 B DATA'!I195 -> Cand. IT. | C148: ='[1]Tabel 4 B DATA'!K195 -> 0 | D148: ='[1]Tabel 4 B DATA'!L195 -> 0 | E148: ='[1]Tabel 4 B DATA'!M195 -> 0 | F148: ='[1]Tabel 4 B DATA'!N195 -> 0 | G148: ='[1]Tabel 4 B DATA'!O195 -> 0 | I148: ='[1]Tabel 4 B DATA'!Q195 -> 0
A149: ='[1]Tabel 4 B DATA'!I196 -> Bac. Samf. | C149: ='[1]Tabel 4 B DATA'!K196 -> 0 | D149: ='[1]Tabel 4 B DATA'!L196 -> 0 | E149: ='[1]Tabel 4 B DATA'!M196 -> 0 | F149: ='[1]Tabel 4 B DATA'!N196 -> 0 | G149: ='[1]Tabel 4 B DATA'!O196 -> 0 | I149: ='[1]Tabel 4 B DATA'!Q196 -> 0
A150: ='[1]Tabel 4 B DATA'!I197 -> Bac. Hum. | C150: ='[1]Tabel 4 B DATA'!K197 -> 0 | D150: ='[1]Tabel 4 B DATA'!L197 -> 0 | E150: ='[1]Tabel 4 B DATA'!M197 -> 0 | F150: ='[1]Tabel 4 B DATA'!N197 -> 0 | G150: ='[1]Tabel 4 B DATA'!O197 -> 0 | I150: ='[1]Tabel 4 B DATA'!Q197 -> 0
A151: ='[1]Tabel 4 B DATA'!I198 -> Bac. Nat. | C151: ='[1]Tabel 4 B DATA'!K198 -> 0 | D151: ='[1]Tabel 4 B DATA'!L198 -> 0 | E151: ='[1]Tabel 4 B DATA'!M198 -> 0 | F151: ='[1]Tabel 4 B DATA'!N198 -> 0 | G151: ='[1]Tabel 4 B DATA'!O198 -> 0 | I151: ='[1]Tabel 4 B DATA'!Q198 -> 0
A152: ='[1]Tabel 4 B DATA'!I199 -> Andre | C152: ='[1]Tabel 4 B DATA'!K199 -> 0 | D152: ='[1]Tabel 4 B DATA'!L199 -> 0 | E152: ='[1]Tabel 4 B DATA'!M199 -> 0 | F152: ='[1]Tabel 4 B DATA'!N199 -> 0 | G152: ='[1]Tabel 4 B DATA'!O199 -> 0 | I152: ='[1]Tabel 4 B DATA'!Q199 -> 0
A154: ='[1]Tabel 4 B DATA'!I201 -> Total | C154: ='[1]Tabel 4 B DATA'!K201 -> 0 | D154: ='[1]Tabel 4 B DATA'!L201 -> 0 | E154: ='[1]Tabel 4 B DATA'!M201 -> 0 | F154: ='[1]Tabel 4 B DATA'!N201 -> 0 | G154: ='[1]Tabel 4 B DATA'!O201 -> 0 | I154: ='[1]Tabel 4 B DATA'!Q201 -> 0
A156: ='[1]Tabel 4 B DATA'!I203 -> Ingeniører i alt | C156: ='[1]Tabel 4 B DATA'!K203 -> 0 | D156: ='[1]Tabel 4 B DATA'!L203 -> 0 | E156: ='[1]Tabel 4 B DATA'!M203 -> 0 | F156: ='[1]Tabel 4 B DATA'!N203 -> 0 | G156: ='[1]Tabel 4 B DATA'!O203 -> 0 | I156: ='[1]Tabel 4 B DATA'!Q203 -> 0
A157: ='[1]Tabel 4 B DATA'!I204 -> Magistre i alt | C157: ='[1]Tabel 4 B DATA'!K204 -> 0 | D157: ='[1]Tabel 4 B DATA'!L204 -> 0 | E157: ='[1]Tabel 4 B DATA'!M204 -> 0 | F157: ='[1]Tabel 4 B DATA'!N204 -> 0 | G157: ='[1]Tabel 4 B DATA'!O204 -> 0 | I157: ='[1]Tabel 4 B DATA'!Q204 -> 0
A158: ='[1]Tabel 4 B DATA'!I205 -> DJØF'ere i alt | C158: ='[1]Tabel 4 B DATA'!K205 -> 0 | D158: ='[1]Tabel 4 B DATA'!L205 -> 0 | E158: ='[1]Tabel 4 B DATA'!M205 -> 0 | F158: ='[1]Tabel 4 B DATA'!N205 -> 0 | G158: ='[1]Tabel 4 B DATA'!O205 -> 0 | I158: ='[1]Tabel 4 B DATA'!Q205 -> 0

Sheet Tabel 4(Br) B
A1: ='[1]Tabel 4(Br) B DATA'!I1 -> Tabel 4. Ledighedsberørte - aldersfordelt
A3: ='[1]Tabel 4(Br) B DATA'!I2 -> Bornholm
C5: ='[1]Tabel 4(Br) B DATA'!K4 -> Under 30 år | D5: ='[1]Tabel 4(Br) B DATA'!L4 -> 30 - 39 år | E5: ='[1]Tabel 4(Br) B DATA'!M4 -> 40 - 49 år | F5: ='[1]Tabel 4(Br) B DATA'!N4 -> 50 - 59 år | G5: ='[1]Tabel 4(Br) B DATA'!O4 -> Over 60 år | I5: ='[1]Tabel 4(Br) B DATA'!Q4 -> I alt
A7: ='[1]Tabel 4(Br) B DATA'!I6 -> Civ. ing. | C7: ='[1]Tabel 4(Br) B DATA'!K6 -> 0 | D7: ='[1]Tabel 4(Br) B DATA'!L6 -> 1.999625772 | E7: ='[1]Tabel 4(Br) B DATA'!M6 -> 0.374851868 | F7: ='[1]Tabel 4(Br) B DATA'!N6 -> 0 | G7: ='[1]Tabel 4(Br) B DATA'!O6 -> 0 | I7: ='[1]Tabel 4(Br) B DATA'!Q6 -> 2.37447764
A8: ='[1]Tabel 4(Br) B DATA'!I7 -> Diplom ing. | C8: ='[1]Tabel 4(Br) B DATA'!K7 -> 0 | D8: ='[1]Tabel 4(Br) B DATA'!L7 -> 0 | E8: ='[1]Tabel 4(Br) B DATA'!M7 -> 1.09087507 | F8: ='[1]Tabel 4(Br) B DATA'!N7 -> 1.934135845 | G8: ='[1]Tabel 4(Br) B DATA'!O7 -> 0.9998128859 | I8: ='[1]Tabel 4(Br) B DATA'!Q7 -> 4.024823801
A9: ='[1]Tabel 4(Br) B DATA'!I8 -> Cand. Scient. Tek | C9: ='[1]Tabel 4(Br) B DATA'!K8 -> 0 | D9: ='[1]Tabel 4(Br) B DATA'!L8 -> 2.366369363 | E9: ='[1]Tabel 4(Br) B DATA'!M8 -> 0.1989646354 | F9: ='[1]Tabel 4(Br) B DATA'!N8 -> 0 | G9: ='[1]Tabel 4(Br) B DATA'!O8 -> 0 | I9: ='[1]Tabel 4(Br) B DATA'!Q8 -> 2.565333999
A10: ='[1]Tabel 4(Br) B DATA'!I9 -> MA. Hum. | C10: ='[1]Tabel 4(Br) B DATA'!K9 -> 0.3698621593 | D10: ='[1]Tabel 4(Br) B DATA'!L9 -> 5.883490301 | E10: ='[1]Tabel 4(Br) B DATA'!M9 -> 4.216927587 | F10: ='[1]Tabel 4(Br) B DATA'!N9 -> 0.9998128859 | G10: ='[1]Tabel 4(Br) B DATA'!O9 -> 3.42543504 | I10: ='[1]Tabel 4(Br) B DATA'!Q9 -> 14.89552797
A11: ='[1]Tabel 4(Br) B DATA'!I10 -> MA. Nat. | C11: ='[1]Tabel 4(Br) B DATA'!K10 -> 0 | D11: ='[1]Tabel 4(Br) B DATA'!L10 -> 0 | E11: ='[1]Tabel 4(Br) B DATA'!M10 -> 1.26114888 | F11: ='[1]Tabel 4(Br) B DATA'!N10 -> 0 | G11: ='[1]Tabel 4(Br) B DATA'!O10 -> 0.9187301191 | I11: ='[1]Tabel 4(Br) B DATA'!Q10 -> 2.179879
A12: ='[1]Tabel 4(Br) B DATA'!I11 -> MA. Ph.d. | C12: ='[1]Tabel 4(Br) B DATA'!K11 -> 0 | D12: ='[1]Tabel 4(Br) B DATA'!L11 -> 0 | E12: ='[1]Tabel 4(Br) B DATA'!M11 -> 0.9998128859 | F12: ='[1]Tabel 4(Br) B DATA'!N11 -> 0 | G12: ='[1]Tabel 4(Br) B DATA'!O11 -> 0 | I12: ='[1]Tabel 4(Br) B DATA'!Q11 -> 0.9998128859
A13: ='[1]Tabel 4(Br) B DATA'!I12 -> MA. Samf. | C13: ='[1]Tabel 4(Br) B DATA'!K12 -> 0 | D13: ='[1]Tabel 4(Br) B DATA'!L12 -> 0 | E13: ='[1]Tabel 4(Br) B DATA'!M12 -> 0 | F13: ='[1]Tabel 4(Br) B DATA'!N12 -> 0.9998128859 | G13: ='[1]Tabel 4(Br) B DATA'!O12 -> 0 | I13: ='[1]Tabel 4(Br) B DATA'!Q12 -> 0.9998128859
A14: ='[1]Tabel 4(Br) B DATA'!I13 -> Øvrige Mag. | C14: ='[1]Tabel 4(Br) B DATA'!K13 -> 0 | D14: ='[1]Tabel 4(Br) B DATA'!L13 -> 2.676355018 | E14: ='[1]Tabel 4(Br) B DATA'!M13 -> 1.999625772 | F14: ='[1]Tabel 4(Br) B DATA'!N13 -> 0 | G14: ='[1]Tabel 4(Br) B DATA'!O13 -> 0 | I14: ='[1]Tabel 4(Br) B DATA'!Q13 -> 4.67598079
A15: ='[1]Tabel 4(Br) B DATA'!I14 -> Agronom | C15: ='[1]Tabel 4(Br) B DATA'!K14 -> 0 | D15: ='[1]Tabel 4(Br) B DATA'!L14 -> 0 | E15: ='[1]Tabel 4(Br) B DATA'!M14 -> 0 | F15: ='[1]Tabel 4(Br) B DATA'!N14 -> 0 | G15: ='[1]Tabel 4(Br) B DATA'!O14 -> 0 | I15: ='[1]Tabel 4(Br) B DATA'!Q14 -> 0
A16: ='[1]Tabel 4(Br) B DATA'!I15 -> Landsk. Arkt. | C16: ='[1]Tabel 4(Br) B DATA'!K15 -> 0 | D16: ='[1]Tabel 4(Br) B DATA'!L15 -> 0 | E16: ='[1]Tabel 4(Br) B DATA'!M15 -> 0 | F16: ='[1]Tabel 4(Br) B DATA'!N15 -> 0 | G16: ='[1]Tabel 4(Br) B DATA'!O15 -> 0 | I16: ='[1]Tabel 4(Br) B DATA'!Q15 -> 0
A17: ='[1]Tabel 4(Br) B DATA'!I16 -> Hortonom | C17: ='[1]Tabel 4(Br) B DATA'!K16 -> 0 | D17: ='[1]Tabel 4(Br) B DATA'!L16 -> 0 | E17: ='[1]Tabel 4(Br) B DATA'!M16 -> 0 | F17: ='[1]Tabel 4(Br) B DATA'!N16 -> 0 | G17: ='[1]Tabel 4(Br) B DATA'!O16 -> 0 | I17: ='[1]Tabel 4(Br) B DATA'!Q16 -> 0
A18: ='[1]Tabel 4(Br) B DATA'!I17 -> Forstkand. | C18: ='[1]Tabel 4(Br) B DATA'!K17 -> 0 | D18: ='[1]Tabel 4(Br) B DATA'!L17 -> 0 | E18: ='[1]Tabel 4(Br) B DATA'!M17 -> 0 | F18: ='[1]Tabel 4(Br) B DATA'!N17 -> 0 | G18: ='[1]Tabel 4(Br) B DATA'!O17 -> 0 | I18: ='[1]Tabel 4(Br) B DATA'!Q17 -> 0
A19: ='[1]Tabel 4(Br) B DATA'!I18 -> Jordbrugsakad. | C19: ='[1]Tabel 4(Br) B DATA'!K18 -> 0 | D19: ='[1]Tabel 4(Br) B DATA'!L18 -> 0 | E19: ='[1]Tabel 4(Br) B DATA'!M18 -> 0 | F19: ='[1]Tabel 4(Br) B DATA'!N18 -> 0 | G19: ='[1]Tabel 4(Br) B DATA'!O18 -> 0 | I19: ='[1]Tabel 4(Br) B DATA'!Q18 -> 0
A20: ='[1]Tabel 4(Br) B DATA'!I19 -> Mejeriing. | C20: ='[1]Tabel 4(Br) B DATA'!K19 -> 0 | D20: ='[1]Tabel 4(Br) B DATA'!L19 -> 0 | E20: ='[1]Tabel 4(Br) B DATA'!M19 -> 0 | F20: ='[1]Tabel 4(Br) B DATA'!N19 -> 0 | G20: ='[1]Tabel 4(Br) B DATA'!O19 -> 0 | I20: ='[1]Tabel 4(Br) B DATA'!Q19 -> 0
A21: ='[1]Tabel 4(Br) B DATA'!I20 -> Levn.m.kand. | C21: ='[1]Tabel 4(Br) B DATA'!K20 -> 0 | D21: ='[1]Tabel 4(Br) B DATA'!L20 -> 0.9998128859 | E21: ='[1]Tabel 4(Br) B DATA'!M20 -> 0 | F21: ='[1]Tabel 4(Br) B DATA'!N20 -> 0 | G21: ='[1]Tabel 4(Br) B DATA'!O20 -> 0 | I21: ='[1]Tabel 4(Br) B DATA'!Q20 -> 0.9998128859
A22: ='[1]Tabel 4(Br) B DATA'!I21 -> Dyrlæge | C22: ='[1]Tabel 4(Br) B DATA'!K21 -> 0 | D22: ='[1]Tabel 4(Br) B DATA'!L21 -> 0 | E22: ='[1]Tabel 4(Br) B DATA'!M21 -> 0 | F22: ='[1]Tabel 4(Br) B DATA'!N21 -> 0 | G22: ='[1]Tabel 4(Br) B DATA'!O21 -> 0 | I22: ='[1]Tabel 4(Br) B DATA'!Q21 -> 0
A23: ='[1]Tabel 4(Br) B DATA'!I22 -> Farmaceut | C23: ='[1]Tabel 4(Br) B DATA'!K22 -> 0 | D23: ='[1]Tabel 4(Br) B DATA'!L22 -> 0 | E23: ='[1]Tabel 4(Br) B DATA'!M22 -> 0 | F23: ='[1]Tabel 4(Br) B DATA'!N22 -> 0 | G23: ='[1]Tabel 4(Br) B DATA'!O22 -> 0 | I23: ='[1]Tabel 4(Br) B DATA'!Q22 -> 0
A24: ='[1]Tabel 4(Br) B DATA'!I23 -> Læge | C24: ='[1]Tabel 4(Br) B DATA'!K23 -> 0.9998128859 | D24: ='[1]Tabel 4(Br) B DATA'!L23 -> 0 | E24: ='[1]Tabel 4(Br) B DATA'!M23 -> 0 | F24: ='[1]Tabel 4(Br) B DATA'!N23 -> 0 | G24: ='[1]Tabel 4(Br) B DATA'!O23 -> 0 | I24: ='[1]Tabel 4(Br) B DATA'!Q23 -> 0.9998128859
A25: ='[1]Tabel 4(Br) B DATA'!I24 -> Tandlæge | C25: ='[1]Tabel 4(Br) B DATA'!K24 -> 0 | D25: ='[1]Tabel 4(Br) B DATA'!L24 -> 0 | E25: ='[1]Tabel 4(Br) B DATA'!M24 -> 0 | F25: ='[1]Tabel 4(Br) B DATA'!N24 -> 0 | G25: ='[1]Tabel 4(Br) B DATA'!O24 -> 0 | I25: ='[1]Tabel 4(Br) B DATA'!Q24 -> 0
A26: ='[1]Tabel 4(Br) B DATA'!I25 -> Arkitekt | C26: ='[1]Tabel 4(Br) B DATA'!K25 -> 0 | D26: ='[1]Tabel 4(Br) B DATA'!L25 -> 0 | E26: ='[1]Tabel 4(Br) B DATA'!M25 -> 0 | F26: ='[1]Tabel 4(Br) B DATA'!N25 -> 0.4259963825 | G26: ='[1]Tabel 4(Br) B DATA'!O25 -> 0 | I26: ='[1]Tabel 4(Br) B DATA'!Q25 -> 0.4259963825
A27: ='[1]Tabel 4(Br) B DATA'!I26 -> Landinspek. | C27: ='[1]Tabel 4(Br) B DATA'!K26 -> 0 | D27: ='[1]Tabel 4(Br) B DATA'!L26 -> 0 | E27: ='[1]Tabel 4(Br) B DATA'!M26 -> 0 | F27: ='[1]Tabel 4(Br) B DATA'!N26 -> 0 | G27: ='[1]Tabel 4(Br) B DATA'!O26 -> 0 | I27: ='[1]Tabel 4(Br) B DATA'!Q26 -> 0
A28: ='[1]Tabel 4(Br) B DATA'!I27 -> Bibliotekar | C28: ='[1]Tabel 4(Br) B DATA'!K27 -> 0 | D28: ='[1]Tabel 4(Br) B DATA'!L27 -> 0 | E28: ='[1]Tabel 4(Br) B DATA'!M27 -> 0 | F28: ='[1]Tabel 4(Br) B DATA'!N27 -> 0 | G28: ='[1]Tabel 4(Br) B DATA'!O27 -> 0.9998128859 | I28: ='[1]Tabel 4(Br) B DATA'!Q27 -> 0.9998128859
A29: ='[1]Tabel 4(Br) B DATA'!I28 -> Musikudd. | C29: ='[1]Tabel 4(Br) B DATA'!K28 -> 0 | D29: ='[1]Tabel 4(Br) B DATA'!L28 -> 0 | E29: ='[1]Tabel 4(Br) B DATA'!M28 -> 0 | F29: ='[1]Tabel 4(Br) B DATA'!N28 -> 0.9998128859 | G29: ='[1]Tabel 4(Br) B DATA'!O28 -> 0 | I29: ='[1]Tabel 4(Br) B DATA'!Q28 -> 0.9998128859
A30: ='[1]Tabel 4(Br) B DATA'!I29 -> Teolog | C30: ='[1]Tabel 4(Br) B DATA'!K29 -> 0 | D30: ='[1]Tabel 4(Br) B DATA'!L29 -> 0 | E30: ='[1]Tabel 4(Br) B DATA'!M29 -> 0 | F30: ='[1]Tabel 4(Br) B DATA'!N29 -> 0 | G30: ='[1]Tabel 4(Br) B DATA'!O29 -> 0 | I30: ='[1]Tabel 4(Br) B DATA'!Q29 -> 0
A31: ='[1]Tabel 4(Br) B DATA'!I30 -> Psykolog | C31: ='[1]Tabel 4(Br) B DATA'!K30 -> 0 | D31: ='[1]Tabel 4(Br) B DATA'!L30 -> 0.8501216242 | E31: ='[1]Tabel 4(Br) B DATA'!M30 -> 0 | F31: ='[1]Tabel 4(Br) B DATA'!N30 -> 0 | G31: ='[1]Tabel 4(Br) B DATA'!O30 -> 0 | I31: ='[1]Tabel 4(Br) B DATA'!Q30 -> 0.8501216242
A32: ='[1]Tabel 4(Br) B DATA'!I31 -> Jurist | C32: ='[1]Tabel 4(Br) B DATA'!K31 -> 0 | D32: ='[1]Tabel 4(Br) B DATA'!L31 -> 0 | E32: ='[1]Tabel 4(Br) B DATA'!M31 -> 0 | F32: ='[1]Tabel 4(Br) B DATA'!N31 -> 0 | G32: ='[1]Tabel 4(Br) B DATA'!O31 -> 0 | I32: ='[1]Tabel 4(Br) B DATA'!Q31 -> 0
A33: ='[1]Tabel 4(Br) B DATA'!I32 -> Økonom | C33: ='[1]Tabel 4(Br) B DATA'!K32 -> 0 | D33: ='[1]Tabel 4(Br) B DATA'!L32 -> 0 | E33: ='[1]Tabel 4(Br) B DATA'!M32 -> 0 | F33: ='[1]Tabel 4(Br) B DATA'!N32 -> 0 | G33: ='[1]Tabel 4(Br) B DATA'!O32 -> 0 | I33: ='[1]Tabel 4(Br) B DATA'!Q32 -> 0
A34: ='[1]Tabel 4(Br) B DATA'!I33 -> Samf. Adm. | C34: ='[1]Tabel 4(Br) B DATA'!K33 -> 0 | D34: ='[1]Tabel 4(Br) B DATA'!L33 -> 0 | E34: ='[1]Tabel 4(Br) B DATA'!M33 -> 0.9998128859 | F34: ='[1]Tabel 4(Br) B DATA'!N33 -> 1.999625772 | G34: ='[1]Tabel 4(Br) B DATA'!O33 -> 0 | I34: ='[1]Tabel 4(Br) B DATA'!Q33 -> 2.999438658
A35: ='[1]Tabel 4(Br) B DATA'!I34 -> Cand. Merc. | C35: ='[1]Tabel 4(Br) B DATA'!K34 -> 0 | D35: ='[1]Tabel 4(Br) B DATA'!L34 -> 0 | E35: ='[1]Tabel 4(Br) B DATA'!M34 -> 2.537890601 | F35: ='[1]Tabel 4(Br) B DATA'!N34 -> 0.9998128859 | G35: ='[1]Tabel 4(Br) B DATA'!O34 -> 0 | I35: ='[1]Tabel 4(Br) B DATA'!Q34 -> 3.537703487
A36: ='[1]Tabel 4(Br) B DATA'!I35 -> HA | C36: ='[1]Tabel 4(Br) B DATA'!K35 -> 0 | D36: ='[1]Tabel 4(Br) B DATA'!L35 -> 0 | E36: ='[1]Tabel 4(Br) B DATA'!M35 -> 0 | F36: ='[1]Tabel 4(Br) B DATA'!N35 -> 0.2326451693 | G36: ='[1]Tabel 4(Br) B DATA'!O35 -> 0 | I36: ='[1]Tabel 4(Br) B DATA'!Q35 -> 0.2326451693
A37: ='[1]Tabel 4(Br) B DATA'!I36 -> HD | C37: ='[1]Tabel 4(Br) B DATA'!K36 -> 0 | D37: ='[1]Tabel 4(Br) B DATA'!L36 -> 0 | E37: ='[1]Tabel 4(Br) B DATA'!M36 -> 0 | F37: ='[1]Tabel 4(Br) B DATA'!N36 -> 0 | G37: ='[1]Tabel 4(Br) B DATA'!O36 -> 0 | I37: ='[1]Tabel 4(Br) B DATA'!Q36 -> 0
A38: ='[1]Tabel 4(Br) B DATA'!I37 -> Komm. og Sprog | C38: ='[1]Tabel 4(Br) B DATA'!K37 -> 0 | D38: ='[1]Tabel 4(Br) B DATA'!L37 -> 0.8613484688 | E38: ='[1]Tabel 4(Br) B DATA'!M37 -> 0 | F38: ='[1]Tabel 4(Br) B DATA'!N37 -> 1.161354706 | G38: ='[1]Tabel 4(Br) B DATA'!O37 -> 0.9075032745 | I38: ='[1]Tabel 4(Br) B DATA'!Q37 -> 2.930206449
A39: ='[1]Tabel 4(Br) B DATA'!I38 -> Bygningskonst. | C39: ='[1]Tabel 4(Br) B DATA'!K38 -> 0 | D39: ='[1]Tabel 4(Br) B DATA'!L38 -> 0 | E39: ='[1]Tabel 4(Br) B DATA'!M38 -> 0 | F39: ='[1]Tabel 4(Br) B DATA'!N38 -> 0 | G39: ='[1]Tabel 4(Br) B DATA'!O38 -> 0 | I39: ='[1]Tabel 4(Br) B DATA'!Q38 -> 0
A40: ='[1]Tabel 4(Br) B DATA'!I39 -> Cand. IT. | C40: ='[1]Tabel 4(Br) B DATA'!K39 -> 0 | D40: ='[1]Tabel 4(Br) B DATA'!L39 -> 0 | E40: ='[1]Tabel 4(Br) B DATA'!M39 -> 0 | F40: ='[1]Tabel 4(Br) B DATA'!N39 -> 0 | G40: ='[1]Tabel 4(Br) B DATA'!O39 -> 0 | I40: ='[1]Tabel 4(Br) B DATA'!Q39 -> 0
A41: ='[1]Tabel 4(Br) B DATA'!I40 -> Bac. Samf. | C41: ='[1]Tabel 4(Br) B DATA'!K40 -> 0 | D41: ='[1]Tabel 4(Br) B DATA'!L40 -> 0 | E41: ='[1]Tabel 4(Br) B DATA'!M40 -> 0 | F41: ='[1]Tabel 4(Br) B DATA'!N40 -> 0 | G41: ='[1]Tabel 4(Br) B DATA'!O40 -> 0 | I41: ='[1]Tabel 4(Br) B DATA'!Q40 -> 0
A42: ='[1]Tabel 4(Br) B DATA'!I41 -> Bac. Hum. | C42: ='[1]Tabel 4(Br) B DATA'!K41 -> 0.1690263831 | D42: ='[1]Tabel 4(Br) B DATA'!L41 -> 0.9998128859 | E42: ='[1]Tabel 4(Br) B DATA'!M41 -> 0.9998128859 | F42: ='[1]Tabel 4(Br) B DATA'!N41 -> 0 | G42: ='[1]Tabel 4(Br) B DATA'!O41 -> 0 | I42: ='[1]Tabel 4(Br) B DATA'!Q41 -> 2.168652155
A43: ='[1]Tabel 4(Br) B DATA'!I42 -> Bac. Nat. | C43: ='[1]Tabel 4(Br) B DATA'!K42 -> 0 | D43: ='[1]Tabel 4(Br) B DATA'!L42 -> 0.9998128859 | E43: ='[1]Tabel 4(Br) B DATA'!M42 -> 0 | F43: ='[1]Tabel 4(Br) B DATA'!N42 -> 0.9998128859 | G43: ='[1]Tabel 4(Br) B DATA'!O42 -> 0 | I43: ='[1]Tabel 4(Br) B DATA'!Q42 -> 1.999625772
A44: ='[1]Tabel 4(Br) B DATA'!I43 -> Andre | C44: ='[1]Tabel 4(Br) B DATA'!K43 -> 0.9998128859 | D44: ='[1]Tabel 4(Br) B DATA'!L43 -> 1.32539138 | E44: ='[1]Tabel 4(Br) B DATA'!M43 -> 2.970747833 | F44: ='[1]Tabel 4(Br) B DATA'!N43 -> 1.672176137 | G44: ='[1]Tabel 4(Br) B DATA'!O43 -> 1.423938128 | I44: ='[1]Tabel 4(Br) B DATA'!Q43 -> 8.392066363
A46: ='[1]Tabel 4(Br) B DATA'!I45 -> Total | C46: ='[1]Tabel 4(Br) B DATA'!K45 -> 2.538514314 | D46: ='[1]Tabel 4(Br) B DATA'!L45 -> 18.96214059 | E46: ='[1]Tabel 4(Br) B DATA'!M45 -> 17.6504709 | F46: ='[1]Tabel 4(Br) B DATA'!N45 -> 12.42499844 | G46: ='[1]Tabel 4(Br) B DATA'!O45 -> 8.675232333 | I46: ='[1]Tabel 4(Br) B DATA'!Q45 -> 60.25135658
A48: ='[1]Tabel 4(Br) B DATA'!I47 -> Ingeniører i alt | C48: ='[1]Tabel 4(Br) B DATA'!K47 -> 0 | D48: ='[1]Tabel 4(Br) B DATA'!L47 -> 1.999625772 | E48: ='[1]Tabel 4(Br) B DATA'!M47 -> 1.465726938 | F48: ='[1]Tabel 4(Br) B DATA'!N47 -> 1.934135845 | G48: ='[1]Tabel 4(Br) B DATA'!O47 -> 0.9998128859 | I48: ='[1]Tabel 4(Br) B DATA'!Q47 -> 6.399301441
A49: ='[1]Tabel 4(Br) B DATA'!I48 -> Magistre i alt | C49: ='[1]Tabel 4(Br) B DATA'!K48 -> 0.3698621593 | D49: ='[1]Tabel 4(Br) B DATA'!L48 -> 8.559845319 | E49: ='[1]Tabel 4(Br) B DATA'!M48 -> 8.477515125 | F49: ='[1]Tabel 4(Br) B DATA'!N48 -> 1.999625772 | G49: ='[1]Tabel 4(Br) B DATA'!O48 -> 4.344165159 | I49: ='[1]Tabel 4(Br) B DATA'!Q48 -> 23.75101353
A50: ='[1]Tabel 4(Br) B DATA'!I49 -> DJØF'ere i alt | C50: ='[1]Tabel 4(Br) B DATA'!K49 -> 0 | D50: ='[1]Tabel 4(Br) B DATA'!L49 -> 0 | E50: ='[1]Tabel 4(Br) B DATA'!M49 -> 3.537703487 | F50: ='[1]Tabel 4(Br) B DATA'!N49 -> 3.232083827 | G50: ='[1]Tabel 4(Br) B DATA'!O49 -> 0 | I50: ='[1]Tabel 4(Br) B DATA'!Q49 -> 6.769787314
A57: ='[1]Tabel 4(Br) B DATA'!I106 -> Bornholm
C59: ='[1]Tabel 4(Br) B DATA'!K108 -> Under 30 år | D59: ='[1]Tabel 4(Br) B DATA'!L108 -> 30 - 39 år | E59: ='[1]Tabel 4(Br) B DATA'!M108 -> 40 - 49 år | F59: ='[1]Tabel 4(Br) B DATA'!N108 -> 50 - 59 år | G59: ='[1]Tabel 4(Br) B DATA'!O108 -> Over 60 år | I59: ='[1]Tabel 4(Br) B DATA'!Q108 -> I alt
A61: ='[1]Tabel 4(Br) B DATA'!I110 -> Civ. ing. | C61: ='[1]Tabel 4(Br) B DATA'!K110 -> 0 | D61: ='[1]Tabel 4(Br) B DATA'!L110 -> 1.999625772 | E61: ='[1]Tabel 4(Br) B DATA'!M110 -> 0.374851868 | F61: ='[1]Tabel 4(Br) B DATA'!N110 -> 0 | G61: ='[1]Tabel 4(Br) B DATA'!O110 -> 0 | I61: ='[1]Tabel 4(Br) B DATA'!Q110 -> 2.37447764
A62: ='[1]Tabel 4(Br) B DATA'!I111 -> Diplom ing. | C62: ='[1]Tabel 4(Br) B DATA'!K111 -> 0 | D62: ='[1]Tabel 4(Br) B DATA'!L111 -> 0 | E62: ='[1]Tabel 4(Br) B DATA'!M111 -> 1.09087507 | F62: ='[1]Tabel 4(Br) B DATA'!N111 -> 1.934135845 | G62: ='[1]Tabel 4(Br) B DATA'!O111 -> 0.9998128859 | I62: ='[1]Tabel 4(Br) B DATA'!Q111 -> 4.024823801
A63: ='[1]Tabel 4(Br) B DATA'!I112 -> Cand. Scient. Tek | C63: ='[1]Tabel 4(Br) B DATA'!K112 -> 0 | D63: ='[1]Tabel 4(Br) B DATA'!L112 -> 2.366369363 | E63: ='[1]Tabel 4(Br) B DATA'!M112 -> 0.1989646354 | F63: ='[1]Tabel 4(Br) B DATA'!N112 -> 0 | G63: ='[1]Tabel 4(Br) B DATA'!O112 -> 0 | I63: ='[1]Tabel 4(Br) B DATA'!Q112 -> 2.565333999
A64: ='[1]Tabel 4(Br) B DATA'!I113 -> MA. Hum. | C64: ='[1]Tabel 4(Br) B DATA'!K113 -> 0.3698621593 | D64: ='[1]Tabel 4(Br) B DATA'!L113 -> 5.883490301 | E64: ='[1]Tabel 4(Br) B DATA'!M113 -> 4.216927587 | F64: ='[1]Tabel 4(Br) B DATA'!N113 -> 0.9998128859 | G64: ='[1]Tabel 4(Br) B DATA'!O113 -> 3.42543504 | I64: ='[1]Tabel 4(Br) B DATA'!Q113 -> 14.89552797
A65: ='[1]Tabel 4(Br) B DATA'!I114 -> MA. Nat. | C65: ='[1]Tabel 4(Br) B DATA'!K114 -> 0 | D65: ='[1]Tabel 4(Br) B DATA'!L114 -> 0 | E65: ='[1]Tabel 4(Br) B DATA'!M114 -> 1.26114888 | F65: ='[1]Tabel 4(Br) B DATA'!N114 -> 0 | G65: ='[1]Tabel 4(Br) B DATA'!O114 -> 0.9187301191 | I65: ='[1]Tabel 4(Br) B DATA'!Q114 -> 2.179879
A66: ='[1]Tabel 4(Br) B DATA'!I115 -> MA. Ph.d. | C66: ='[1]Tabel 4(Br) B DATA'!K115 -> 0 | D66: ='[1]Tabel 4(Br) B DATA'!L115 -> 0 | E66: ='[1]Tabel 4(Br) B DATA'!M115 -> 0.9998128859 | F66: ='[1]Tabel 4(Br) B DATA'!N115 -> 0 | G66: ='[1]Tabel 4(Br) B DATA'!O115 -> 0 | I66: ='[1]Tabel 4(Br) B DATA'!Q115 -> 0.9998128859
A67: ='[1]Tabel 4(Br) B DATA'!I116 -> MA. Samf. | C67: ='[1]Tabel 4(Br) B DATA'!K116 -> 0 | D67: ='[1]Tabel 4(Br) B DATA'!L116 -> 0 | E67: ='[1]Tabel 4(Br) B DATA'!M116 -> 0 | F67: ='[1]Tabel 4(Br) B DATA'!N116 -> 0.9998128859 | G67: ='[1]Tabel 4(Br) B DATA'!O116 -> 0 | I67: ='[1]Tabel 4(Br) B DATA'!Q116 -> 0.9998128859
A68: ='[1]Tabel 4(Br) B DATA'!I117 -> Øvrige Mag. | C68: ='[1]Tabel 4(Br) B DATA'!K117 -> 0 | D68: ='[1]Tabel 4(Br) B DATA'!L117 -> 2.676355018 | E68: ='[1]Tabel 4(Br) B DATA'!M117 -> 1.999625772 | F68: ='[1]Tabel 4(Br) B DATA'!N117 -> 0 | G68: ='[1]Tabel 4(Br) B DATA'!O117 -> 0 | I68: ='[1]Tabel 4(Br) B DATA'!Q117 -> 4.67598079
A69: ='[1]Tabel 4(Br) B DATA'!I118 -> Agronom | C69: ='[1]Tabel 4(Br) B DATA'!K118 -> 0 | D69: ='[1]Tabel 4(Br) B DATA'!L118 -> 0 | E69: ='[1]Tabel 4(Br) B DATA'!M118 -> 0 | F69: ='[1]Tabel 4(Br) B DATA'!N118 -> 0 | G69: ='[1]Tabel 4(Br) B DATA'!O118 -> 0 | I69: ='[1]Tabel 4(Br) B DATA'!Q118 -> 0
A70: ='[1]Tabel 4(Br) B DATA'!I119 -> Landsk. Arkt. | C70: ='[1]Tabel 4(Br) B DATA'!K119 -> 0 | D70: ='[1]Tabel 4(Br) B DATA'!L119 -> 0 | E70: ='[1]Tabel 4(Br) B DATA'!M119 -> 0 | F70: ='[1]Tabel 4(Br) B DATA'!N119 -> 0 | G70: ='[1]Tabel 4(Br) B DATA'!O119 -> 0 | I70: ='[1]Tabel 4(Br) B DATA'!Q119 -> 0
A71: ='[1]Tabel 4(Br) B DATA'!I120 -> Hortonom | C71: ='[1]Tabel 4(Br) B DATA'!K120 -> 0 | D71: ='[1]Tabel 4(Br) B DATA'!L120 -> 0 | E71: ='[1]Tabel 4(Br) B DATA'!M120 -> 0 | F71: ='[1]Tabel 4(Br) B DATA'!N120 -> 0 | G71: ='[1]Tabel 4(Br) B DATA'!O120 -> 0 | I71: ='[1]Tabel 4(Br) B DATA'!Q120 -> 0
A72: ='[1]Tabel 4(Br) B DATA'!I121 -> Forstkand. | C72: ='[1]Tabel 4(Br) B DATA'!K121 -> 0 | D72: ='[1]Tabel 4(Br) B DATA'!L121 -> 0 | E72: ='[1]Tabel 4(Br) B DATA'!M121 -> 0 | F72: ='[1]Tabel 4(Br) B DATA'!N121 -> 0 | G72: ='[1]Tabel 4(Br) B DATA'!O121 -> 0 | I72: ='[1]Tabel 4(Br) B DATA'!Q121 -> 0
A73: ='[1]Tabel 4(Br) B DATA'!I122 -> Jordbrugsakad. | C73: ='[1]Tabel 4(Br) B DATA'!K122 -> 0 | D73: ='[1]Tabel 4(Br) B DATA'!L122 -> 0 | E73: ='[1]Tabel 4(Br) B DATA'!M122 -> 0 | F73: ='[1]Tabel 4(Br) B DATA'!N122 -> 0 | G73: ='[1]Tabel 4(Br) B DATA'!O122 -> 0 | I73: ='[1]Tabel 4(Br) B DATA'!Q122 -> 0
A74: ='[1]Tabel 4(Br) B DATA'!I123 -> Mejeriing. | C74: ='[1]Tabel 4(Br) B DATA'!K123 -> 0 | D74: ='[1]Tabel 4(Br) B DATA'!L123 -> 0 | E74: ='[1]Tabel 4(Br) B DATA'!M123 -> 0 | F74: ='[1]Tabel 4(Br) B DATA'!N123 -> 0 | G74: ='[1]Tabel 4(Br) B DATA'!O123 -> 0 | I74: ='[1]Tabel 4(Br) B DATA'!Q123 -> 0
A75: ='[1]Tabel 4(Br) B DATA'!I124 -> Levn.m.kand. | C75: ='[1]Tabel 4(Br) B DATA'!K124 -> 0 | D75: ='[1]Tabel 4(Br) B DATA'!L124 -> 0.9998128859 | E75: ='[1]Tabel 4(Br) B DATA'!M124 -> 0 | F75: ='[1]Tabel 4(Br) B DATA'!N124 -> 0 | G75: ='[1]Tabel 4(Br) B DATA'!O124 -> 0 | I75: ='[1]Tabel 4(Br) B DATA'!Q124 -> 0.9998128859
A76: ='[1]Tabel 4(Br) B DATA'!I125 -> Dyrlæge | C76: ='[1]Tabel 4(Br) B DATA'!K125 -> 0 | D76: ='[1]Tabel 4(Br) B DATA'!L125 -> 0 | E76: ='[1]Tabel 4(Br) B DATA'!M125 -> 0 | F76: ='[1]Tabel 4(Br) B DATA'!N125 -> 0 | G76: ='[1]Tabel 4(Br) B DATA'!O125 -> 0 | I76: ='[1]Tabel 4(Br) B DATA'!Q125 -> 0
A77: ='[1]Tabel 4(Br) B DATA'!I126 -> Farmaceut | C77: ='[1]Tabel 4(Br) B DATA'!K126 -> 0 | D77: ='[1]Tabel 4(Br) B DATA'!L126 -> 0 | E77: ='[1]Tabel 4(Br) B DATA'!M126 -> 0 | F77: ='[1]Tabel 4(Br) B DATA'!N126 -> 0 | G77: ='[1]Tabel 4(Br) B DATA'!O126 -> 0 | I77: ='[1]Tabel 4(Br) B DATA'!Q126 -> 0
A78: ='[1]Tabel 4(Br) B DATA'!I127 -> Læge | C78: ='[1]Tabel 4(Br) B DATA'!K127 -> 0.9998128859 | D78: ='[1]Tabel 4(Br) B DATA'!L127 -> 0 | E78: ='[1]Tabel 4(Br) B DATA'!M127 -> 0 | F78: ='[1]Tabel 4(Br) B DATA'!N127 -> 0 | G78: ='[1]Tabel 4(Br) B DATA'!O127 -> 0 | I78: ='[1]Tabel 4(Br) B DATA'!Q127 -> 0.9998128859
A79: ='[1]Tabel 4(Br) B DATA'!I128 -> Tandlæge | C79: ='[1]Tabel 4(Br) B DATA'!K128 -> 0 | D79: ='[1]Tabel 4(Br) B DATA'!L128 -> 0 | E79: ='[1]Tabel 4(Br) B DATA'!M128 -> 0 | F79: ='[1]Tabel 4(Br) B DATA'!N128 -> 0 | G79: ='[1]Tabel 4(Br) B DATA'!O128 -> 0 | I79: ='[1]Tabel 4(Br) B DATA'!Q128 -> 0
A80: ='[1]Tabel 4(Br) B DATA'!I129 -> Arkitekt | C80: ='[1]Tabel 4(Br) B DATA'!K129 -> 0 | D80: ='[1]Tabel 4(Br) B DATA'!L129 -> 0 | E80: ='[1]Tabel 4(Br) B DATA'!M129 -> 0 | F80: ='[1]Tabel 4(Br) B DATA'!N129 -> 0.4259963825 | G80: ='[1]Tabel 4(Br) B DATA'!O129 -> 0 | I80: ='[1]Tabel 4(Br) B DATA'!Q129 -> 0.4259963825
A81: ='[1]Tabel 4(Br) B DATA'!I130 -> Landinspek. | C81: ='[1]Tabel 4(Br) B DATA'!K130 -> 0 | D81: ='[1]Tabel 4(Br) B DATA'!L130 -> 0 | E81: ='[1]Tabel 4(Br) B DATA'!M130 -> 0 | F81: ='[1]Tabel 4(Br) B DATA'!N130 -> 0 | G81: ='[1]Tabel 4(Br) B DATA'!O130 -> 0 | I81: ='[1]Tabel 4(Br) B DATA'!Q130 -> 0
A82: ='[1]Tabel 4(Br) B DATA'!I131 -> Bibliotekar | C82: ='[1]Tabel 4(Br) B DATA'!K131 -> 0 | D82: ='[1]Tabel 4(Br) B DATA'!L131 -> 0 | E82: ='[1]Tabel 4(Br) B DATA'!M131 -> 0 | F82: ='[1]Tabel 4(Br) B DATA'!N131 -> 0 | G82: ='[1]Tabel 4(Br) B DATA'!O131 -> 0.9998128859 | I82: ='[1]Tabel 4(Br) B DATA'!Q131 -> 0.9998128859
A83: ='[1]Tabel 4(Br) B DATA'!I132 -> Musikudd. | C83: ='[1]Tabel 4(Br) B DATA'!K132 -> 0 | D83: ='[1]Tabel 4(Br) B DATA'!L132 -> 0 | E83: ='[1]Tabel 4(Br) B DATA'!M132 -> 0 | F83: ='[1]Tabel 4(Br) B DATA'!N132 -> 0.9998128859 | G83: ='[1]Tabel 4(Br) B DATA'!O132 -> 0 | I83: ='[1]Tabel 4(Br) B DATA'!Q132 -> 0.9998128859
A84: ='[1]Tabel 4(Br) B DATA'!I133 -> Teolog | C84: ='[1]Tabel 4(Br) B DATA'!K133 -> 0 | D84: ='[1]Tabel 4(Br) B DATA'!L133 -> 0 | E84: ='[1]Tabel 4(Br) B DATA'!M133 -> 0 | F84: ='[1]Tabel 4(Br) B DATA'!N133 -> 0 | G84: ='[1]Tabel 4(Br) B DATA'!O133 -> 0 | I84: ='[1]Tabel 4(Br) B DATA'!Q133 -> 0
A85: ='[1]Tabel 4(Br) B DATA'!I134 -> Psykolog | C85: ='[1]Tabel 4(Br) B DATA'!K134 -> 0 | D85: ='[1]Tabel 4(Br) B DATA'!L134 -> 0.8501216242 | E85: ='[1]Tabel 4(Br) B DATA'!M134 -> 0 | F85: ='[1]Tabel 4(Br) B DATA'!N134 -> 0 | G85: ='[1]Tabel 4(Br) B DATA'!O134 -> 0 | I85: ='[1]Tabel 4(Br) B DATA'!Q134 -> 0.8501216242
A86: ='[1]Tabel 4(Br) B DATA'!I135 -> Jurist | C86: ='[1]Tabel 4(Br) B DATA'!K135 -> 0 | D86: ='[1]Tabel 4(Br) B DATA'!L135 -> 0 | E86: ='[1]Tabel 4(Br) B DATA'!M135 -> 0 | F86: ='[1]Tabel 4(Br) B DATA'!N135 -> 0 | G86: ='[1]Tabel 4(Br) B DATA'!O135 -> 0 | I86: ='[1]Tabel 4(Br) B DATA'!Q135 -> 0
A87: ='[1]Tabel 4(Br) B DATA'!I136 -> Økonom | C87: ='[1]Tabel 4(Br) B DATA'!K136 -> 0 | D87: ='[1]Tabel 4(Br) B DATA'!L136 -> 0 | E87: ='[1]Tabel 4(Br) B DATA'!M136 -> 0 | F87: ='[1]Tabel 4(Br) B DATA'!N136 -> 0 | G87: ='[1]Tabel 4(Br) B DATA'!O136 -> 0 | I87: ='[1]Tabel 4(Br) B DATA'!Q136 -> 0
A88: ='[1]Tabel 4(Br) B DATA'!I137 -> Samf. Adm. | C88: ='[1]Tabel 4(Br) B DATA'!K137 -> 0 | D88: ='[1]Tabel 4(Br) B DATA'!L137 -> 0 | E88: ='[1]Tabel 4(Br) B DATA'!M137 -> 0.9998128859 | F88: ='[1]Tabel 4(Br) B DATA'!N137 -> 1.999625772 | G88: ='[1]Tabel 4(Br) B DATA'!O137 -> 0 | I88: ='[1]Tabel 4(Br) B DATA'!Q137 -> 2.999438658
A89: ='[1]Tabel 4(Br) B DATA'!I138 -> Cand. Merc. | C89: ='[1]Tabel 4(Br) B DATA'!K138 -> 0 | D89: ='[1]Tabel 4(Br) B DATA'!L138 -> 0 | E89: ='[1]Tabel 4(Br) B DATA'!M138 -> 2.537890601 | F89: ='[1]Tabel 4(Br) B DATA'!N138 -> 0.9998128859 | G89: ='[1]Tabel 4(Br) B DATA'!O138 -> 0 | I89: ='[1]Tabel 4(Br) B DATA'!Q138 -> 3.537703487
A90: ='[1]Tabel 4(Br) B DATA'!I139 -> HA | C90: ='[1]Tabel 4(Br) B DATA'!K139 -> 0 | D90: ='[1]Tabel 4(Br) B DATA'!L139 -> 0 | E90: ='[1]Tabel 4(Br) B DATA'!M139 -> 0 | F90: ='[1]Tabel 4(Br) B DATA'!N139 -> 0.2326451693 | G90: ='[1]Tabel 4(Br) B DATA'!O139 -> 0 | I90: ='[1]Tabel 4(Br) B DATA'!Q139 -> 0.2326451693
A91: ='[1]Tabel 4(Br) B DATA'!I140 -> HD | C91: ='[1]Tabel 4(Br) B DATA'!K140 -> 0 | D91: ='[1]Tabel 4(Br) B DATA'!L140 -> 0 | E91: ='[1]Tabel 4(Br) B DATA'!M140 -> 0 | F91: ='[1]Tabel 4(Br) B DATA'!N140 -> 0 | G91: ='[1]Tabel 4(Br) B DATA'!O140 -> 0 | I91: ='[1]Tabel 4(Br) B DATA'!Q140 -> 0
A92: ='[1]Tabel 4(Br) B DATA'!I141 -> Komm. og Sprog | C92: ='[1]Tabel 4(Br) B DATA'!K141 -> 0 | D92: ='[1]Tabel 4(Br) B DATA'!L141 -> 0.8613484688 | E92: ='[1]Tabel 4(Br) B DATA'!M141 -> 0 | F92: ='[1]Tabel 4(Br) B DATA'!N141 -> 1.161354706 | G92: ='[1]Tabel 4(Br) B DATA'!O141 -> 0.9075032745 | I92: ='[1]Tabel 4(Br) B DATA'!Q141 -> 2.930206449
A93: ='[1]Tabel 4(Br) B DATA'!I142 -> Bygningskonst. | C93: ='[1]Tabel 4(Br) B DATA'!K142 -> 0 | D93: ='[1]Tabel 4(Br) B DATA'!L142 -> 0 | E93: ='[1]Tabel 4(Br) B DATA'!M142 -> 0 | F93: ='[1]Tabel 4(Br) B DATA'!N142 -> 0 | G93: ='[1]Tabel 4(Br) B DATA'!O142 -> 0 | I93: ='[1]Tabel 4(Br) B DATA'!Q142 -> 0
A94: ='[1]Tabel 4(Br) B DATA'!I143 -> Cand. IT. | C94: ='[1]Tabel 4(Br) B DATA'!K143 -> 0 | D94: ='[1]Tabel 4(Br) B DATA'!L143 -> 0 | E94: ='[1]Tabel 4(Br) B DATA'!M143 -> 0 | F94: ='[1]Tabel 4(Br) B DATA'!N143 -> 0 | G94: ='[1]Tabel 4(Br) B DATA'!O143 -> 0 | I94: ='[1]Tabel 4(Br) B DATA'!Q143 -> 0
A95: ='[1]Tabel 4(Br) B DATA'!I144 -> Bac. Samf. | C95: ='[1]Tabel 4(Br) B DATA'!K144 -> 0 | D95: ='[1]Tabel 4(Br) B DATA'!L144 -> 0 | E95: ='[1]Tabel 4(Br) B DATA'!M144 -> 0 | F95: ='[1]Tabel 4(Br) B DATA'!N144 -> 0 | G95: ='[1]Tabel 4(Br) B DATA'!O144 -> 0 | I95: ='[1]Tabel 4(Br) B DATA'!Q144 -> 0
A96: ='[1]Tabel 4(Br) B DATA'!I145 -> Bac. Hum. | C96: ='[1]Tabel 4(Br) B DATA'!K145 -> 0.1690263831 | D96: ='[1]Tabel 4(Br) B DATA'!L145 -> 0.9998128859 | E96: ='[1]Tabel 4(Br) B DATA'!M145 -> 0.9998128859 | F96: ='[1]Tabel 4(Br) B DATA'!N145 -> 0 | G96: ='[1]Tabel 4(Br) B DATA'!O145 -> 0 | I96: ='[1]Tabel 4(Br) B DATA'!Q145 -> 2.168652155
A97: ='[1]Tabel 4(Br) B DATA'!I146 -> Bac. Nat. | C97: ='[1]Tabel 4(Br) B DATA'!K146 -> 0 | D97: ='[1]Tabel 4(Br) B DATA'!L146 -> 0.9998128859 | E97: ='[1]Tabel 4(Br) B DATA'!M146 -> 0 | F97: ='[1]Tabel 4(Br) B DATA'!N146 -> 0.9998128859 | G97: ='[1]Tabel 4(Br) B DATA'!O146 -> 0 | I97: ='[1]Tabel 4(Br) B DATA'!Q146 -> 1.999625772
A98: ='[1]Tabel 4(Br) B DATA'!I147 -> Andre | C98: ='[1]Tabel 4(Br) B DATA'!K147 -> 0.9998128859 | D98: ='[1]Tabel 4(Br) B DATA'!L147 -> 1.32539138 | E98: ='[1]Tabel 4(Br) B DATA'!M147 -> 2.970747833 | F98: ='[1]Tabel 4(Br) B DATA'!N147 -> 1.672176137 | G98: ='[1]Tabel 4(Br) B DATA'!O147 -> 1.423938128 | I98: ='[1]Tabel 4(Br) B DATA'!Q147 -> 8.392066363
A100: ='[1]Tabel 4(Br) B DATA'!I149 -> Total | C100: ='[1]Tabel 4(Br) B DATA'!K149 -> 2.538514314 | D100: ='[1]Tabel 4(Br) B DATA'!L149 -> 18.96214059 | E100: ='[1]Tabel 4(Br) B DATA'!M149 -> 17.6504709 | F100: ='[1]Tabel 4(Br) B DATA'!N149 -> 12.42499844 | G100: ='[1]Tabel 4(Br) B DATA'!O149 -> 8.675232333 | I100: ='[1]Tabel 4(Br) B DATA'!Q149 -> 60.25135658
A102: ='[1]Tabel 4(Br) B DATA'!I151 -> Ingeniører i alt | C102: ='[1]Tabel 4(Br) B DATA'!K151 -> 0 | D102: ='[1]Tabel 4(Br) B DATA'!L151 -> 1.999625772 | E102: ='[1]Tabel 4(Br) B DATA'!M151 -> 1.465726938 | F102: ='[1]Tabel 4(Br) B DATA'!N151 -> 1.934135845 | G102: ='[1]Tabel 4(Br) B DATA'!O151 -> 0.9998128859 | I102: ='[1]Tabel 4(Br) B DATA'!Q151 -> 6.399301441
A103: ='[1]Tabel 4(Br) B DATA'!I152 -> Magistre i alt | C103: ='[1]Tabel 4(Br) B DATA'!K152 -> 0.3698621593 | D103: ='[1]Tabel 4(Br) B DATA'!L152 -> 8.559845319 | E103: ='[1]Tabel 4(Br) B DATA'!M152 -> 8.477515125 | F103: ='[1]Tabel 4(Br) B DATA'!N152 -> 1.999625772 | G103: ='[1]Tabel 4(Br) B DATA'!O152 -> 4.344165159 | I103: ='[1]Tabel 4(Br) B DATA'!Q152 -> 23.75101353
A104: ='[1]Tabel 4(Br) B DATA'!I153 -> DJØF'ere i alt | C104: ='[1]Tabel 4(Br) B DATA'!K153 -> 0 | D104: ='[1]Tabel 4(Br) B DATA'!L153 -> 0 | E104: ='[1]Tabel 4(Br) B DATA'!M153 -> 3.537703487 | F104: ='[1]Tabel 4(Br) B DATA'!N153 -> 3.232083827 | G104: ='[1]Tabel 4(Br) B DATA'!O153 -> 0 | I104: ='[1]Tabel 4(Br) B DATA'!Q153 -> 6.769787314
A111: ='[1]Tabel 4(Br) B DATA'!I158 -> Christiansø
C113: ='[1]Tabel 4(Br) B DATA'!K160 -> Under 30 år | D113: ='[1]Tabel 4(Br) B DATA'!L160 -> 30 - 39 år | E113: ='[1]Tabel 4(Br) B DATA'!M160 -> 40 - 49 år | F113: ='[1]Tabel 4(Br) B DATA'!N160 -> 50 - 59 år | G113: ='[1]Tabel 4(Br) B DATA'!O160 -> Over 60 år | I113: ='[1]Tabel 4(Br) B DATA'!Q160 -> I alt
A115: ='[1]Tabel 4(Br) B DATA'!I162 -> Civ. ing. | C115: ='[1]Tabel 4(Br) B DATA'!K162 -> 0 | D115: ='[1]Tabel 4(Br) B DATA'!L162 -> 0 | E115: ='[1]Tabel 4(Br) B DATA'!M162 -> 0 | F115: ='[1]Tabel 4(Br) B DATA'!N162 -> 0 | G115: ='[1]Tabel 4(Br) B DATA'!O162 -> 0 | I115: ='[1]Tabel 4(Br) B DATA'!Q162 -> 0
A116: ='[1]Tabel 4(Br) B DATA'!I163 -> Diplom ing. | C116: ='[1]Tabel 4(Br) B DATA'!K163 -> 0 | D116: ='[1]Tabel 4(Br) B DATA'!L163 -> 0 | E116: ='[1]Tabel 4(Br) B DATA'!M163 -> 0 | F116: ='[1]Tabel 4(Br) B DATA'!N163 -> 0 | G116: ='[1]Tabel 4(Br) B DATA'!O163 -> 0 | I116: ='[1]Tabel 4(Br) B DATA'!Q163 -> 0
A117: ='[1]Tabel 4(Br) B DATA'!I164 -> Cand. Scient. Tek | C117: ='[1]Tabel 4(Br) B DATA'!K164 -> 0 | D117: ='[1]Tabel 4(Br) B DATA'!L164 -> 0 | E117: ='[1]Tabel 4(Br) B DATA'!M164 -> 0 | F117: ='[1]Tabel 4(Br) B DATA'!N164 -> 0 | G117: ='[1]Tabel 4(Br) B DATA'!O164 -> 0 | I117: ='[1]Tabel 4(Br) B DATA'!Q164 -> 0
A118: ='[1]Tabel 4(Br) B DATA'!I165 -> MA. Hum. | C118: ='[1]Tabel 4(Br) B DATA'!K165 -> 0 | D118: ='[1]Tabel 4(Br) B DATA'!L165 -> 0 | E118: ='[1]Tabel 4(Br) B DATA'!M165 -> 0 | F118: ='[1]Tabel 4(Br) B DATA'!N165 -> 0 | G118: ='[1]Tabel 4(Br) B DATA'!O165 -> 0 | I118: ='[1]Tabel 4(Br) B DATA'!Q165 -> 0
A119: ='[1]Tabel 4(Br) B DATA'!I166 -> MA. Nat. | C119: ='[1]Tabel 4(Br) B DATA'!K166 -> 0 | D119: ='[1]Tabel 4(Br) B DATA'!L166 -> 0 | E119: ='[1]Tabel 4(Br) B DATA'!M166 -> 0 | F119: ='[1]Tabel 4(Br) B DATA'!N166 -> 0 | G119: ='[1]Tabel 4(Br) B DATA'!O166 -> 0 | I119: ='[1]Tabel 4(Br) B DATA'!Q166 -> 0
A120: ='[1]Tabel 4(Br) B DATA'!I167 -> MA. Ph.d. | C120: ='[1]Tabel 4(Br) B DATA'!K167 -> 0 | D120: ='[1]Tabel 4(Br) B DATA'!L167 -> 0 | E120: ='[1]Tabel 4(Br) B DATA'!M167 -> 0 | F120: ='[1]Tabel 4(Br) B DATA'!N167 -> 0 | G120: ='[1]Tabel 4(Br) B DATA'!O167 -> 0 | I120: ='[1]Tabel 4(Br) B DATA'!Q167 -> 0
A121: ='[1]Tabel 4(Br) B DATA'!I168 -> MA. Samf. | C121: ='[1]Tabel 4(Br) B DATA'!K168 -> 0 | D121: ='[1]Tabel 4(Br) B DATA'!L168 -> 0 | E121: ='[1]Tabel 4(Br) B DATA'!M168 -> 0 | F121: ='[1]Tabel 4(Br) B DATA'!N168 -> 0 | G121: ='[1]Tabel 4(Br) B DATA'!O168 -> 0 | I121: ='[1]Tabel 4(Br) B DATA'!Q168 -> 0
A122: ='[1]Tabel 4(Br) B DATA'!I169 -> Øvrige Mag. | C122: ='[1]Tabel 4(Br) B DATA'!K169 -> 0 | D122: ='[1]Tabel 4(Br) B DATA'!L169 -> 0 | E122: ='[1]Tabel 4(Br) B DATA'!M169 -> 0 | F122: ='[1]Tabel 4(Br) B DATA'!N169 -> 0 | G122: ='[1]Tabel 4(Br) B DATA'!O169 -> 0 | I122: ='[1]Tabel 4(Br) B DATA'!Q169 -> 0
A123: ='[1]Tabel 4(Br) B DATA'!I170 -> Agronom | C123: ='[1]Tabel 4(Br) B DATA'!K170 -> 0 | D123: ='[1]Tabel 4(Br) B DATA'!L170 -> 0 | E123: ='[1]Tabel 4(Br) B DATA'!M170 -> 0 | F123: ='[1]Tabel 4(Br) B DATA'!N170 -> 0 | G123: ='[1]Tabel 4(Br) B DATA'!O170 -> 0 | I123: ='[1]Tabel 4(Br) B DATA'!Q170 -> 0
A124: ='[1]Tabel 4(Br) B DATA'!I171 -> Landsk. Arkt. | C124: ='[1]Tabel 4(Br) B DATA'!K171 -> 0 | D124: ='[1]Tabel 4(Br) B DATA'!L171 -> 0 | E124: ='[1]Tabel 4(Br) B DATA'!M171 -> 0 | F124: ='[1]Tabel 4(Br) B DATA'!N171 -> 0 | G124: ='[1]Tabel 4(Br) B DATA'!O171 -> 0 | I124: ='[1]Tabel 4(Br) B DATA'!Q171 -> 0
A125: ='[1]Tabel 4(Br) B DATA'!I172 -> Hortonom | C125: ='[1]Tabel 4(Br) B DATA'!K172 -> 0 | D125: ='[1]Tabel 4(Br) B DATA'!L172 -> 0 | E125: ='[1]Tabel 4(Br) B DATA'!M172 -> 0 | F125: ='[1]Tabel 4(Br) B DATA'!N172 -> 0 | G125: ='[1]Tabel 4(Br) B DATA'!O172 -> 0 | I125: ='[1]Tabel 4(Br) B DATA'!Q172 -> 0
A126: ='[1]Tabel 4(Br) B DATA'!I173 -> Forstkand. | C126: ='[1]Tabel 4(Br) B DATA'!K173 -> 0 | D126: ='[1]Tabel 4(Br) B DATA'!L173 -> 0 | E126: ='[1]Tabel 4(Br) B DATA'!M173 -> 0 | F126: ='[1]Tabel 4(Br) B DATA'!N173 -> 0 | G126: ='[1]Tabel 4(Br) B DATA'!O173 -> 0 | I126: ='[1]Tabel 4(Br) B DATA'!Q173 -> 0
A127: ='[1]Tabel 4(Br) B DATA'!I174 -> Jordbrugsakad. | C127: ='[1]Tabel 4(Br) B DATA'!K174 -> 0 | D127: ='[1]Tabel 4(Br) B DATA'!L174 -> 0 | E127: ='[1]Tabel 4(Br) B DATA'!M174 -> 0 | F127: ='[1]Tabel 4(Br) B DATA'!N174 -> 0 | G127: ='[1]Tabel 4(Br) B DATA'!O174 -> 0 | I127: ='[1]Tabel 4(Br) B DATA'!Q174 -> 0
A128: ='[1]Tabel 4(Br) B DATA'!I175 -> Mejeriing. | C128: ='[1]Tabel 4(Br) B DATA'!K175 -> 0 | D128: ='[1]Tabel 4(Br) B DATA'!L175 -> 0 | E128: ='[1]Tabel 4(Br) B DATA'!M175 -> 0 | F128: ='[1]Tabel 4(Br) B DATA'!N175 -> 0 | G128: ='[1]Tabel 4(Br) B DATA'!O175 -> 0 | I128: ='[1]Tabel 4(Br) B DATA'!Q175 -> 0
A129: ='[1]Tabel 4(Br) B DATA'!I176 -> Levn.m.kand. | C129: ='[1]Tabel 4(Br) B DATA'!K176 -> 0 | D129: ='[1]Tabel 4(Br) B DATA'!L176 -> 0 | E129: ='[1]Tabel 4(Br) B DATA'!M176 -> 0 | F129: ='[1]Tabel 4(Br) B DATA'!N176 -> 0 | G129: ='[1]Tabel 4(Br) B DATA'!O176 -> 0 | I129: ='[1]Tabel 4(Br) B DATA'!Q176 -> 0
A130: ='[1]Tabel 4(Br) B DATA'!I177 -> Dyrlæge | C130: ='[1]Tabel 4(Br) B DATA'!K177 -> 0 | D130: ='[1]Tabel 4(Br) B DATA'!L177 -> 0 | E130: ='[1]Tabel 4(Br) B DATA'!M177 -> 0 | F130: ='[1]Tabel 4(Br) B DATA'!N177 -> 0 | G130: ='[1]Tabel 4(Br) B DATA'!O177 -> 0 | I130: ='[1]Tabel 4(Br) B DATA'!Q177 -> 0
A131: ='[1]Tabel 4(Br) B DATA'!I178 -> Farmaceut | C131: ='[1]Tabel 4(Br) B DATA'!K178 -> 0 | D131: ='[1]Tabel 4(Br) B DATA'!L178 -> 0 | E131: ='[1]Tabel 4(Br) B DATA'!M178 -> 0 | F131: ='[1]Tabel 4(Br) B DATA'!N178 -> 0 | G131: ='[1]Tabel 4(Br) B DATA'!O178 -> 0 | I131: ='[1]Tabel 4(Br) B DATA'!Q178 -> 0
A132: ='[1]Tabel 4(Br) B DATA'!I179 -> Læge | C132: ='[1]Tabel 4(Br) B DATA'!K179 -> 0 | D132: ='[1]Tabel 4(Br) B DATA'!L179 -> 0 | E132: ='[1]Tabel 4(Br) B DATA'!M179 -> 0 | F132: ='[1]Tabel 4(Br) B DATA'!N179 -> 0 | G132: ='[1]Tabel 4(Br) B DATA'!O179 -> 0 | I132: ='[1]Tabel 4(Br) B DATA'!Q179 -> 0
A133: ='[1]Tabel 4(Br) B DATA'!I180 -> Tandlæge | C133: ='[1]Tabel 4(Br) B DATA'!K180 -> 0 | D133: ='[1]Tabel 4(Br) B DATA'!L180 -> 0 | E133: ='[1]Tabel 4(Br) B DATA'!M180 -> 0 | F133: ='[1]Tabel 4(Br) B DATA'!N180 -> 0 | G133: ='[1]Tabel 4(Br) B DATA'!O180 -> 0 | I133: ='[1]Tabel 4(Br) B DATA'!Q180 -> 0
A134: ='[1]Tabel 4(Br) B DATA'!I181 -> Arkitekt | C134: ='[1]Tabel 4(Br) B DATA'!K181 -> 0 | D134: ='[1]Tabel 4(Br) B DATA'!L181 -> 0 | E134: ='[1]Tabel 4(Br) B DATA'!M181 -> 0 | F134: ='[1]Tabel 4(Br) B DATA'!N181 -> 0 | G134: ='[1]Tabel 4(Br) B DATA'!O181 -> 0 | I134: ='[1]Tabel 4(Br) B DATA'!Q181 -> 0
A135: ='[1]Tabel 4(Br) B DATA'!I182 -> Landinspek. | C135: ='[1]Tabel 4(Br) B DATA'!K182 -> 0 | D135: ='[1]Tabel 4(Br) B DATA'!L182 -> 0 | E135: ='[1]Tabel 4(Br) B DATA'!M182 -> 0 | F135: ='[1]Tabel 4(Br) B DATA'!N182 -> 0 | G135: ='[1]Tabel 4(Br) B DATA'!O182 -> 0 | I135: ='[1]Tabel 4(Br) B DATA'!Q182 -> 0
A136: ='[1]Tabel 4(Br) B DATA'!I183 -> Bibliotekar | C136: ='[1]Tabel 4(Br) B DATA'!K183 -> 0 | D136: ='[1]Tabel 4(Br) B DATA'!L183 -> 0 | E136: ='[1]Tabel 4(Br) B DATA'!M183 -> 0 | F136: ='[1]Tabel 4(Br) B DATA'!N183 -> 0 | G136: ='[1]Tabel 4(Br) B DATA'!O183 -> 0 | I136: ='[1]Tabel 4(Br) B DATA'!Q183 -> 0
A137: ='[1]Tabel 4(Br) B DATA'!I184 -> Musikudd. | C137: ='[1]Tabel 4(Br) B DATA'!K184 -> 0 | D137: ='[1]Tabel 4(Br) B DATA'!L184 -> 0 | E137: ='[1]Tabel 4(Br) B DATA'!M184 -> 0 | F137: ='[1]Tabel 4(Br) B DATA'!N184 -> 0 | G137: ='[1]Tabel 4(Br) B DATA'!O184 -> 0 | I137: ='[1]Tabel 4(Br) B DATA'!Q184 -> 0
A138: ='[1]Tabel 4(Br) B DATA'!I185 -> Teolog | C138: ='[1]Tabel 4(Br) B DATA'!K185 -> 0 | D138: ='[1]Tabel 4(Br) B DATA'!L185 -> 0 | E138: ='[1]Tabel 4(Br) B DATA'!M185 -> 0 | F138: ='[1]Tabel 4(Br) B DATA'!N185 -> 0 | G138: ='[1]Tabel 4(Br) B DATA'!O185 -> 0 | I138: ='[1]Tabel 4(Br) B DATA'!Q185 -> 0
A139: ='[1]Tabel 4(Br) B DATA'!I186 -> Psykolog | C139: ='[1]Tabel 4(Br) B DATA'!K186 -> 0 | D139: ='[1]Tabel 4(Br) B DATA'!L186 -> 0 | E139: ='[1]Tabel 4(Br) B DATA'!M186 -> 0 | F139: ='[1]Tabel 4(Br) B DATA'!N186 -> 0 | G139: ='[1]Tabel 4(Br) B DATA'!O186 -> 0 | I139: ='[1]Tabel 4(Br) B DATA'!Q186 -> 0
A140: ='[1]Tabel 4(Br) B DATA'!I187 -> Jurist | C140: ='[1]Tabel 4(Br) B DATA'!K187 -> 0 | D140: ='[1]Tabel 4(Br) B DATA'!L187 -> 0 | E140: ='[1]Tabel 4(Br) B DATA'!M187 -> 0 | F140: ='[1]Tabel 4(Br) B DATA'!N187 -> 0 | G140: ='[1]Tabel 4(Br) B DATA'!O187 -> 0 | I140: ='[1]Tabel 4(Br) B DATA'!Q187 -> 0
A141: ='[1]Tabel 4(Br) B DATA'!I188 -> Økonom | C141: ='[1]Tabel 4(Br) B DATA'!K188 -> 0 | D141: ='[1]Tabel 4(Br) B DATA'!L188 -> 0 | E141: ='[1]Tabel 4(Br) B DATA'!M188 -> 0 | F141: ='[1]Tabel 4(Br) B DATA'!N188 -> 0 | G141: ='[1]Tabel 4(Br) B DATA'!O188 -> 0 | I141: ='[1]Tabel 4(Br) B DATA'!Q188 -> 0
A142: ='[1]Tabel 4(Br) B DATA'!I189 -> Samf. Adm. | C142: ='[1]Tabel 4(Br) B DATA'!K189 -> 0 | D142: ='[1]Tabel 4(Br) B DATA'!L189 -> 0 | E142: ='[1]Tabel 4(Br) B DATA'!M189 -> 0 | F142: ='[1]Tabel 4(Br) B DATA'!N189 -> 0 | G142: ='[1]Tabel 4(Br) B DATA'!O189 -> 0 | I142: ='[1]Tabel 4(Br) B DATA'!Q189 -> 0
A143: ='[1]Tabel 4(Br) B DATA'!I190 -> Cand. Merc. | C143: ='[1]Tabel 4(Br) B DATA'!K190 -> 0 | D143: ='[1]Tabel 4(Br) B DATA'!L190 -> 0 | E143: ='[1]Tabel 4(Br) B DATA'!M190 -> 0 | F143: ='[1]Tabel 4(Br) B DATA'!N190 -> 0 | G143: ='[1]Tabel 4(Br) B DATA'!O190 -> 0 | I143: ='[1]Tabel 4(Br) B DATA'!Q190 -> 0
A144: ='[1]Tabel 4(Br) B DATA'!I191 -> HA | C144: ='[1]Tabel 4(Br) B DATA'!K191 -> 0 | D144: ='[1]Tabel 4(Br) B DATA'!L191 -> 0 | E144: ='[1]Tabel 4(Br) B DATA'!M191 -> 0 | F144: ='[1]Tabel 4(Br) B DATA'!N191 -> 0 | G144: ='[1]Tabel 4(Br) B DATA'!O191 -> 0 | I144: ='[1]Tabel 4(Br) B DATA'!Q191 -> 0
A145: ='[1]Tabel 4(Br) B DATA'!I192 -> HD | C145: ='[1]Tabel 4(Br) B DATA'!K192 -> 0 | D145: ='[1]Tabel 4(Br) B DATA'!L192 -> 0 | E145: ='[1]Tabel 4(Br) B DATA'!M192 -> 0 | F145: ='[1]Tabel 4(Br) B DATA'!N192 -> 0 | G145: ='[1]Tabel 4(Br) B DATA'!O192 -> 0 | I145: ='[1]Tabel 4(Br) B DATA'!Q192 -> 0
A146: ='[1]Tabel 4(Br) B DATA'!I193 -> Komm. og Sprog | C146: ='[1]Tabel 4(Br) B DATA'!K193 -> 0 | D146: ='[1]Tabel 4(Br) B DATA'!L193 -> 0 | E146: ='[1]Tabel 4(Br) B DATA'!M193 -> 0 | F146: ='[1]Tabel 4(Br) B DATA'!N193 -> 0 | G146: ='[1]Tabel 4(Br) B DATA'!O193 -> 0 | I146: ='[1]Tabel 4(Br) B DATA'!Q193 -> 0
A147: ='[1]Tabel 4(Br) B DATA'!I194 -> Bygningskonst. | C147: ='[1]Tabel 4(Br) B DATA'!K194 -> 0 | D147: ='[1]Tabel 4(Br) B DATA'!L194 -> 0 | E147: ='[1]Tabel 4(Br) B DATA'!M194 -> 0 | F147: ='[1]Tabel 4(Br) B DATA'!N194 -> 0 | G147: ='[1]Tabel 4(Br) B DATA'!O194 -> 0 | I147: ='[1]Tabel 4(Br) B DATA'!Q194 -> 0
A148: ='[1]Tabel 4(Br) B DATA'!I195 -> Cand. IT. | C148: ='[1]Tabel 4(Br) B DATA'!K195 -> 0 | D148: ='[1]Tabel 4(Br) B DATA'!L195 -> 0 | E148: ='[1]Tabel 4(Br) B DATA'!M195 -> 0 | F148: ='[1]Tabel 4(Br) B DATA'!N195 -> 0 | G148: ='[1]Tabel 4(Br) B DATA'!O195 -> 0 | I148: ='[1]Tabel 4(Br) B DATA'!Q195 -> 0
A149: ='[1]Tabel 4(Br) B DATA'!I196 -> Bac. Samf. | C149: ='[1]Tabel 4(Br) B DATA'!K196 -> 0 | D149: ='[1]Tabel 4(Br) B DATA'!L196 -> 0 | E149: ='[1]Tabel 4(Br) B DATA'!M196 -> 0 | F149: ='[1]Tabel 4(Br) B DATA'!N196 -> 0 | G149: ='[1]Tabel 4(Br) B DATA'!O196 -> 0 | I149: ='[1]Tabel 4(Br) B DATA'!Q196 -> 0
A150: ='[1]Tabel 4(Br) B DATA'!I197 -> Bac. Hum. | C150: ='[1]Tabel 4(Br) B DATA'!K197 -> 0 | D150: ='[1]Tabel 4(Br) B DATA'!L197 -> 0 | E150: ='[1]Tabel 4(Br) B DATA'!M197 -> 0 | F150: ='[1]Tabel 4(Br) B DATA'!N197 -> 0 | G150: ='[1]Tabel 4(Br) B DATA'!O197 -> 0 | I150: ='[1]Tabel 4(Br) B DATA'!Q197 -> 0
A151: ='[1]Tabel 4(Br) B DATA'!I198 -> Bac. Nat. | C151: ='[1]Tabel 4(Br) B DATA'!K198 -> 0 | D151: ='[1]Tabel 4(Br) B DATA'!L198 -> 0 | E151: ='[1]Tabel 4(Br) B DATA'!M198 -> 0 | F151: ='[1]Tabel 4(Br) B DATA'!N198 -> 0 | G151: ='[1]Tabel 4(Br) B DATA'!O198 -> 0 | I151: ='[1]Tabel 4(Br) B DATA'!Q198 -> 0
A152: ='[1]Tabel 4(Br) B DATA'!I199 -> Andre | C152: ='[1]Tabel 4(Br) B DATA'!K199 -> 0 | D152: ='[1]Tabel 4(Br) B DATA'!L199 -> 0 | E152: ='[1]Tabel 4(Br) B DATA'!M199 -> 0 | F152: ='[1]Tabel 4(Br) B DATA'!N199 -> 0 | G152: ='[1]Tabel 4(Br) B DATA'!O199 -> 0 | I152: ='[1]Tabel 4(Br) B DATA'!Q199 -> 0
A154: ='[1]Tabel 4(Br) B DATA'!I201 -> Total | C154: ='[1]Tabel 4(Br) B DATA'!K201 -> 0 | D154: ='[1]Tabel 4(Br) B DATA'!L201 -> 0 | E154: ='[1]Tabel 4(Br) B DATA'!M201 -> 0 | F154: ='[1]Tabel 4(Br) B DATA'!N201 -> 0 | G154: ='[1]Tabel 4(Br) B DATA'!O201 -> 0 | I154: ='[1]Tabel 4(Br) B DATA'!Q201 -> 0
A156: ='[1]Tabel 4(Br) B DATA'!I203 -> Ingeniører i alt | C156: ='[1]Tabel 4(Br) B DATA'!K203 -> 0 | D156: ='[1]Tabel 4(Br) B DATA'!L203 -> 0 | E156: ='[1]Tabel 4(Br) B DATA'!M203 -> 0 | F156: ='[1]Tabel 4(Br) B DATA'!N203 -> 0 | G156: ='[1]Tabel 4(Br) B DATA'!O203 -> 0 | I156: ='[1]Tabel 4(Br) B DATA'!Q203 -> 0
A157: ='[1]Tabel 4(Br) B DATA'!I204 -> Magistre i alt | C157: ='[1]Tabel 4(Br) B DATA'!K204 -> 0 | D157: ='[1]Tabel 4(Br) B DATA'!L204 -> 0 | E157: ='[1]Tabel 4(Br) B DATA'!M204 -> 0 | F157: ='[1]Tabel 4(Br) B DATA'!N204 -> 0 | G157: ='[1]Tabel 4(Br) B DATA'!O204 -> 0 | I157: ='[1]Tabel 4(Br) B DATA'!Q204 -> 0
A158: ='[1]Tabel 4(Br) B DATA'!I205 -> DJØF'ere i alt | C158: ='[1]Tabel 4(Br) B DATA'!K205 -> 0 | D158: ='[1]Tabel 4(Br) B DATA'!L205 -> 0 | E158: ='[1]Tabel 4(Br) B DATA'!M205 -> 0 | F158: ='[1]Tabel 4(Br) B DATA'!N205 -> 0 | G158: ='[1]Tabel 4(Br) B DATA'!O205 -> 0 | I158: ='[1]Tabel 4(Br) B DATA'!Q205 -> 0

Sheet Tabel 4P B
A1: ='[1]Tabel 4 B DATA'!I1 -> Tabel 4. Ledighedsberørte - aldersfordelt
A3: ='[1]Tabel 4 B DATA'!I2 -> Bornholm
C5: ='[1]Tabel 4 B DATA'!K4 -> Under 30 år | D5: ='[1]Tabel 4 B DATA'!L4 -> 30 - 39 år | E5: ='[1]Tabel 4 B DATA'!M4 -> 40 - 49 år | F5: ='[1]Tabel 4 B DATA'!N4 -> 50 - 59 år | G5: ='[1]Tabel 4 B DATA'!O4 -> Over 60 år | I5: ='[1]Tabel 4 B DATA'!Q4 -> I alt
A7: ='[1]Tabel 4 B DATA'!I6 -> Civ. ing. | C7: =IF(OR('Tabel 4F B'!C7<5, 'Tabel 4 B'!C7<0.5),"-",IFERROR('Tabel 4 B'!C7/'Tabel 4F B'!C7*100,"-")) -> - | D7: =IF(OR('Tabel 4F B'!D7<5, 'Tabel 4 B'!D7<0.5),"-",IFERROR('Tabel 4 B'!D7/'Tabel 4F B'!D7*100,"-")) -> 15.38461538 | E7: =IF(OR('Tabel 4F B'!E7<5, 'Tabel 4 B'!E7<0.5),"-",IFERROR('Tabel 4 B'!E7/'Tabel 4F B'!E7*100,"-")) -> 12.5 | F7: =IF(OR('Tabel 4F B'!F7<5, 'Tabel 4 B'!F7<0.5),"-",IFERROR('Tabel 4 B'!F7/'Tabel 4F B'!F7*100,"-")) -> - | G7: =IF(OR('Tabel 4F B'!G7<5, 'Tabel 4 B'!G7<0.5),"-",IFERROR('Tabel 4 B'!G7/'Tabel 4F B'!G7*100,"-")) -> - | I7: =IF(OR('Tabel 4F B'!I7<5, 'Tabel 4 B'!I7<0.5),"-",IFERROR('Tabel 4 B'!I7/'Tabel 4F B'!I7*100,"-")) -> 8.823529412
A8: ='[1]Tabel 4 B DATA'!I7 -> Diplom ing. | C8: =IF(OR('Tabel 4F B'!C8<5, 'Tabel 4 B'!C8<0.5),"-",IFERROR('Tabel 4 B'!C8/'Tabel 4F B'!C8*100,"-")) -> - | D8: =IF(OR('Tabel 4F B'!D8<5, 'Tabel 4 B'!D8<0.5),"-",IFERROR('Tabel 4 B'!D8/'Tabel 4F B'!D8*100,"-")) -> - | E8: =IF(OR('Tabel 4F B'!E8<5, 'Tabel 4 B'!E8<0.5),"-",IFERROR('Tabel 4 B'!E8/'Tabel 4F B'!E8*100,"-")) -> 11.76470588 | F8: =IF(OR('Tabel 4F B'!F8<5, 'Tabel 4 B'!F8<0.5),"-",IFERROR('Tabel 4 B'!F8/'Tabel 4F B'!F8*100,"-")) -> 9.523809524 | G8: =IF(OR('Tabel 4F B'!G8<5, 'Tabel 4 B'!G8<0.5),"-",IFERROR('Tabel 4 B'!G8/'Tabel 4F B'!G8*100,"-")) -> 10 | I8: =IF(OR('Tabel 4F B'!I8<5, 'Tabel 4 B'!I8<0.5),"-",IFERROR('Tabel 4 B'!I8/'Tabel 4F B'!I8*100,"-")) -> 7.936507937
A9: ='[1]Tabel 4 B DATA'!I8 -> Cand. Scient. Tek | C9: =IF(OR('Tabel 4F B'!C9<5, 'Tabel 4 B'!C9<0.5),"-",IFERROR('Tabel 4 B'!C9/'Tabel 4F B'!C9*100,"-")) -> - | D9: =IF(OR('Tabel 4F B'!D9<5, 'Tabel 4 B'!D9<0.5),"-",IFERROR('Tabel 4 B'!D9/'Tabel 4F B'!D9*100,"-")) -> 23.52941176 | E9: =IF(OR('Tabel 4F B'!E9<5, 'Tabel 4 B'!E9<0.5),"-",IFERROR('Tabel 4 B'!E9/'Tabel 4F B'!E9*100,"-")) -> 12.5 | F9: =IF(OR('Tabel 4F B'!F9<5, 'Tabel 4 B'!F9<0.5),"-",IFERROR('Tabel 4 B'!F9/'Tabel 4F B'!F9*100,"-")) -> - | G9: =IF(OR('Tabel 4F B'!G9<5, 'Tabel 4 B'!G9<0.5),"-",IFERROR('Tabel 4 B'!G9/'Tabel 4F B'!G9*100,"-")) -> - | I9: =IF(OR('Tabel 4F B'!I9<5, 'Tabel 4 B'!I9<0.5),"-",IFERROR('Tabel 4 B'!I9/'Tabel 4F B'!I9*100,"-")) -> 15.625
A10: ='[1]Tabel 4 B DATA'!I9 -> MA. Hum. | C10: =IF(OR('Tabel 4F B'!C10<5, 'Tabel 4 B'!C10<0.5),"-",IFERROR('Tabel 4 B'!C10/'Tabel 4F B'!C10*100,"-")) -> 20 | D10: =IF(OR('Tabel 4F B'!D10<5, 'Tabel 4 B'!D10<0.5),"-",IFERROR('Tabel 4 B'!D10/'Tabel 4F B'!D10*100,"-")) -> 12.96296296 | E10: =IF(OR('Tabel 4F B'!E10<5, 'Tabel 4 B'!E10<0.5),"-",IFERROR('Tabel 4 B'!E10/'Tabel 4F B'!E10*100,"-")) -> 16.66666667 | F10: =IF(OR('Tabel 4F B'!F10<5, 'Tabel 4 B'!F10<0.5),"-",IFERROR('Tabel 4 B'!F10/'Tabel 4F B'!F10*100,"-")) -> 5 | G10: =IF(OR('Tabel 4F B'!G10<5, 'Tabel 4 B'!G10<0.5),"-",IFERROR('Tabel 4 B'!G10/'Tabel 4F B'!G10*100,"-")) -> 25 | I10: =IF(OR('Tabel 4F B'!I10<5, 'Tabel 4 B'!I10<0.5),"-",IFERROR('Tabel 4 B'!I10/'Tabel 4F B'!I10*100,"-")) -> 14.4
A11: ='[1]Tabel 4 B DATA'!I10 -> MA. Nat. | C11: =IF(OR('Tabel 4F B'!C11<5, 'Tabel 4 B'!C11<0.5),"-",IFERROR('Tabel 4 B'!C11/'Tabel 4F B'!C11*100,"-")) -> - | D11: =IF(OR('Tabel 4F B'!D11<5, 'Tabel 4 B'!D11<0.5),"-",IFERROR('Tabel 4 B'!D11/'Tabel 4F B'!D11*100,"-")) -> - | E11: =IF(OR('Tabel 4F B'!E11<5, 'Tabel 4 B'!E11<0.5),"-",IFERROR('Tabel 4 B'!E11/'Tabel 4F B'!E11*100,"-")) -> 12.5 | F11: =IF(OR('Tabel 4F B'!F11<5, 'Tabel 4 B'!F11<0.5),"-",IFERROR('Tabel 4 B'!F11/'Tabel 4F B'!F11*100,"-")) -> - | G11: =IF(OR('Tabel 4F B'!G11<5, 'Tabel 4 B'!G11<0.5),"-",IFERROR('Tabel 4 B'!G11/'Tabel 4F B'!G11*100,"-")) -> 16.66666667 | I11: =IF(OR('Tabel 4F B'!I11<5, 'Tabel 4 B'!I11<0.5),"-",IFERROR('Tabel 4 B'!I11/'Tabel 4F B'!I11*100,"-")) -> 6.52173913
A12: ='[1]Tabel 4 B DATA'!I11 -> MA. Ph.d. | C12: =IF(OR('Tabel 4F B'!C12<5, 'Tabel 4 B'!C12<0.5),"-",IFERROR('Tabel 4 B'!C12/'Tabel 4F B'!C12*100,"-")) -> - | D12: =IF(OR('Tabel 4F B'!D12<5, 'Tabel 4 B'!D12<0.5),"-",IFERROR('Tabel 4 B'!D12/'Tabel 4F B'!D12*100,"-")) -> - | E12: =IF(OR('Tabel 4F B'!E12<5, 'Tabel 4 B'!E12<0.5),"-",IFERROR('Tabel 4 B'!E12/'Tabel 4F B'!E12*100,"-")) -> - | F12: =IF(OR('Tabel 4F B'!F12<5, 'Tabel 4 B'!F12<0.5),"-",IFERROR('Tabel 4 B'!F12/'Tabel 4F B'!F12*100,"-")) -> - | G12: =IF(OR('Tabel 4F B'!G12<5, 'Tabel 4 B'!G12<0.5),"-",IFERROR('Tabel 4 B'!G12/'Tabel 4F B'!G12*100,"-")) -> - | I12: =IF(OR('Tabel 4F B'!I12<5, 'Tabel 4 B'!I12<0.5),"-",IFERROR('Tabel 4 B'!I12/'Tabel 4F B'!I12*100,"-")) -> 14.28571429
A13: ='[1]Tabel 4 B DATA'!I12 -> MA. Samf. | C13: =IF(OR('Tabel 4F B'!C13<5, 'Tabel 4 B'!C13<0.5),"-",IFERROR('Tabel 4 B'!C13/'Tabel 4F B'!C13*100,"-")) -> - | D13: =IF(OR('Tabel 4F B'!D13<5, 'Tabel 4 B'!D13<0.5),"-",IFERROR('Tabel 4 B'!D13/'Tabel 4F B'!D13*100,"-")) -> - | E13: =IF(OR('Tabel 4F B'!E13<5, 'Tabel 4 B'!E13<0.5),"-",IFERROR('Tabel 4 B'!E13/'Tabel 4F B'!E13*100,"-")) -> - | F13: =IF(OR('Tabel 4F B'!F13<5, 'Tabel 4 B'!F13<0.5),"-",IFERROR('Tabel 4 B'!F13/'Tabel 4F B'!F13*100,"-")) -> - | G13: =IF(OR('Tabel 4F B'!G13<5, 'Tabel 4 B'!G13<0.5),"-",IFERROR('Tabel 4 B'!G13/'Tabel 4F B'!G13*100,"-")) -> - | I13: =IF(OR('Tabel 4F B'!I13<5, 'Tabel 4 B'!I13<0.5),"-",IFERROR('Tabel 4 B'!I13/'Tabel 4F B'!I13*100,"-")) -> 6.666666667
A14: ='[1]Tabel 4 B DATA'!I13 -> Øvrige Mag. | C14: =IF(OR('Tabel 4F B'!C14<5, 'Tabel 4 B'!C14<0.5),"-",IFERROR('Tabel 4 B'!C14/'Tabel 4F B'!C14*100,"-")) -> - | D14: =IF(OR('Tabel 4F B'!D14<5, 'Tabel 4 B'!D14<0.5),"-",IFERROR('Tabel 4 B'!D14/'Tabel 4F B'!D14*100,"-")) -> 50 | E14: =IF(OR('Tabel 4F B'!E14<5, 'Tabel 4 B'!E14<0.5),"-",IFERROR('Tabel 4 B'!E14/'Tabel 4F B'!E14*100,"-")) -> 40 | F14: =IF(OR('Tabel 4F B'!F14<5, 'Tabel 4 B'!F14<0.5),"-",IFERROR('Tabel 4 B'!F14/'Tabel 4F B'!F14*100,"-")) -> - | G14: =IF(OR('Tabel 4F B'!G14<5, 'Tabel 4 B'!G14<0.5),"-",IFERROR('Tabel 4 B'!G14/'Tabel 4F B'!G14*100,"-")) -> - | I14: =IF(OR('Tabel 4F B'!I14<5, 'Tabel 4 B'!I14<0.5),"-",IFERROR('Tabel 4 B'!I14/'Tabel 4F B'!I14*100,"-")) -> 31.25
A15: ='[1]Tabel 4 B DATA'!I14 -> Agronom | C15: =IF(OR('Tabel 4F B'!C15<5, 'Tabel 4 B'!C15<0.5),"-",IFERROR('Tabel 4 B'!C15/'Tabel 4F B'!C15*100,"-")) -> - | D15: =IF(OR('Tabel 4F B'!D15<5, 'Tabel 4 B'!D15<0.5),"-",IFERROR('Tabel 4 B'!D15/'Tabel 4F B'!D15*100,"-")) -> - | E15: =IF(OR('Tabel 4F B'!E15<5, 'Tabel 4 B'!E15<0.5),"-",IFERROR('Tabel 4 B'!E15/'Tabel 4F B'!E15*100,"-")) -> - | F15: =IF(OR('Tabel 4F B'!F15<5, 'Tabel 4 B'!F15<0.5),"-",IFERROR('Tabel 4 B'!F15/'Tabel 4F B'!F15*100,"-")) -> - | G15: =IF(OR('Tabel 4F B'!G15<5, 'Tabel 4 B'!G15<0.5),"-",IFERROR('Tabel 4 B'!G15/'Tabel 4F B'!G15*100,"-")) -> - | I15: =IF(OR('Tabel 4F B'!I15<5, 'Tabel 4 B'!I15<0.5),"-",IFERROR('Tabel 4 B'!I15/'Tabel 4F B'!I15*100,"-")) -> -
A16: ='[1]Tabel 4 B DATA'!I15 -> Landsk. Arkt. | C16: =IF(OR('Tabel 4F B'!C16<5, 'Tabel 4 B'!C16<0.5),"-",IFERROR('Tabel 4 B'!C16/'Tabel 4F B'!C16*100,"-")) -> - | D16: =IF(OR('Tabel 4F B'!D16<5, 'Tabel 4 B'!D16<0.5),"-",IFERROR('Tabel 4 B'!D16/'Tabel 4F B'!D16*100,"-")) -> - | E16: =IF(OR('Tabel 4F B'!E16<5, 'Tabel 4 B'!E16<0.5),"-",IFERROR('Tabel 4 B'!E16/'Tabel 4F B'!E16*100,"-")) -> - | F16: =IF(OR('Tabel 4F B'!F16<5, 'Tabel 4 B'!F16<0.5),"-",IFERROR('Tabel 4 B'!F16/'Tabel 4F B'!F16*100,"-")) -> - | G16: =IF(OR('Tabel 4F B'!G16<5, 'Tabel 4 B'!G16<0.5),"-",IFERROR('Tabel 4 B'!G16/'Tabel 4F B'!G16*100,"-")) -> - | I16: =IF(OR('Tabel 4F B'!I16<5, 'Tabel 4 B'!I16<0.5),"-",IFERROR('Tabel 4 B'!I16/'Tabel 4F B'!I16*100,"-")) -> -
A17: ='[1]Tabel 4 B DATA'!I16 -> Hortonom | C17: =IF(OR('Tabel 4F B'!C17<5, 'Tabel 4 B'!C17<0.5),"-",IFERROR('Tabel 4 B'!C17/'Tabel 4F B'!C17*100,"-")) -> - | D17: =IF(OR('Tabel 4F B'!D17<5, 'Tabel 4 B'!D17<0.5),"-",IFERROR('Tabel 4 B'!D17/'Tabel 4F B'!D17*100,"-")) -> - | E17: =IF(OR('Tabel 4F B'!E17<5, 'Tabel 4 B'!E17<0.5),"-",IFERROR('Tabel 4 B'!E17/'Tabel 4F B'!E17*100,"-")) -> - | F17: =IF(OR('Tabel 4F B'!F17<5, 'Tabel 4 B'!F17<0.5),"-",IFERROR('Tabel 4 B'!F17/'Tabel 4F B'!F17*100,"-")) -> - | G17: =IF(OR('Tabel 4F B'!G17<5, 'Tabel 4 B'!G17<0.5),"-",IFERROR('Tabel 4 B'!G17/'Tabel 4F B'!G17*100,"-")) -> - | I17: =IF(OR('Tabel 4F B'!I17<5, 'Tabel 4 B'!I17<0.5),"-",IFERROR('Tabel 4 B'!I17/'Tabel 4F B'!I17*100,"-")) -> -
A18: ='[1]Tabel 4 B DATA'!I17 -> Forstkand. | C18: =IF(OR('Tabel 4F B'!C18<5, 'Tabel 4 B'!C18<0.5),"-",IFERROR('Tabel 4 B'!C18/'Tabel 4F B'!C18*100,"-")) -> - | D18: =IF(OR('Tabel 4F B'!D18<5, 'Tabel 4 B'!D18<0.5),"-",IFERROR('Tabel 4 B'!D18/'Tabel 4F B'!D18*100,"-")) -> - | E18: =IF(OR('Tabel 4F B'!E18<5, 'Tabel 4 B'!E18<0.5),"-",IFERROR('Tabel 4 B'!E18/'Tabel 4F B'!E18*100,"-")) -> - | F18: =IF(OR('Tabel 4F B'!F18<5, 'Tabel 4 B'!F18<0.5),"-",IFERROR('Tabel 4 B'!F18/'Tabel 4F B'!F18*100,"-")) -> - | G18: =IF(OR('Tabel 4F B'!G18<5, 'Tabel 4 B'!G18<0.5),"-",IFERROR('Tabel 4 B'!G18/'Tabel 4F B'!G18*100,"-")) -> - | I18: =IF(OR('Tabel 4F B'!I18<5, 'Tabel 4 B'!I18<0.5),"-",IFERROR('Tabel 4 B'!I18/'Tabel 4F B'!I18*100,"-")) -> -
A19: ='[1]Tabel 4 B DATA'!I18 -> Jordbrugsakad. | C19: =IF(OR('Tabel 4F B'!C19<5, 'Tabel 4 B'!C19<0.5),"-",IFERROR('Tabel 4 B'!C19/'Tabel 4F B'!C19*100,"-")) -> - | D19: =IF(OR('Tabel 4F B'!D19<5, 'Tabel 4 B'!D19<0.5),"-",IFERROR('Tabel 4 B'!D19/'Tabel 4F B'!D19*100,"-")) -> - | E19: =IF(OR('Tabel 4F B'!E19<5, 'Tabel 4 B'!E19<0.5),"-",IFERROR('Tabel 4 B'!E19/'Tabel 4F B'!E19*100,"-")) -> - | F19: =IF(OR('Tabel 4F B'!F19<5, 'Tabel 4 B'!F19<0.5),"-",IFERROR('Tabel 4 B'!F19/'Tabel 4F B'!F19*100,"-")) -> - | G19: =IF(OR('Tabel 4F B'!G19<5, 'Tabel 4 B'!G19<0.5),"-",IFERROR('Tabel 4 B'!G19/'Tabel 4F B'!G19*100,"-")) -> - | I19: =IF(OR('Tabel 4F B'!I19<5, 'Tabel 4 B'!I19<0.5),"-",IFERROR('Tabel 4 B'!I19/'Tabel 4F B'!I19*100,"-")) -> -
A20: ='[1]Tabel 4 B DATA'!I19 -> Mejeriing. | C20: =IF(OR('Tabel 4F B'!C20<5, 'Tabel 4 B'!C20<0.5),"-",IFERROR('Tabel 4 B'!C20/'Tabel 4F B'!C20*100,"-")) -> - | D20: =IF(OR('Tabel 4F B'!D20<5, 'Tabel 4 B'!D20<0.5),"-",IFERROR('Tabel 4 B'!D20/'Tabel 4F B'!D20*100,"-")) -> - | E20: =IF(OR('Tabel 4F B'!E20<5, 'Tabel 4 B'!E20<0.5),"-",IFERROR('Tabel 4 B'!E20/'Tabel 4F B'!E20*100,"-")) -> - | F20: =IF(OR('Tabel 4F B'!F20<5, 'Tabel 4 B'!F20<0.5),"-",IFERROR('Tabel 4 B'!F20/'Tabel 4F B'!F20*100,"-")) -> - | G20: =IF(OR('Tabel 4F B'!G20<5, 'Tabel 4 B'!G20<0.5),"-",IFERROR('Tabel 4 B'!G20/'Tabel 4F B'!G20*100,"-")) -> - | I20: =IF(OR('Tabel 4F B'!I20<5, 'Tabel 4 B'!I20<0.5),"-",IFERROR('Tabel 4 B'!I20/'Tabel 4F B'!I20*100,"-")) -> -
A21: ='[1]Tabel 4 B DATA'!I20 -> Levn.m.kand. | C21: =IF(OR('Tabel 4F B'!C21<5, 'Tabel 4 B'!C21<0.5),"-",IFERROR('Tabel 4 B'!C21/'Tabel 4F B'!C21*100,"-")) -> - | D21: =IF(OR('Tabel 4F B'!D21<5, 'Tabel 4 B'!D21<0.5),"-",IFERROR('Tabel 4 B'!D21/'Tabel 4F B'!D21*100,"-")) -> - | E21: =IF(OR('Tabel 4F B'!E21<5, 'Tabel 4 B'!E21<0.5),"-",IFERROR('Tabel 4 B'!E21/'Tabel 4F B'!E21*100,"-")) -> - | F21: =IF(OR('Tabel 4F B'!F21<5, 'Tabel 4 B'!F21<0.5),"-",IFERROR('Tabel 4 B'!F21/'Tabel 4F B'!F21*100,"-")) -> - | G21: =IF(OR('Tabel 4F B'!G21<5, 'Tabel 4 B'!G21<0.5),"-",IFERROR('Tabel 4 B'!G21/'Tabel 4F B'!G21*100,"-")) -> - | I21: =IF(OR('Tabel 4F B'!I21<5, 'Tabel 4 B'!I21<0.5),"-",IFERROR('Tabel 4 B'!I21/'Tabel 4F B'!I21*100,"-")) -> -
A22: ='[1]Tabel 4 B DATA'!I21 -> Dyrlæge | C22: =IF(OR('Tabel 4F B'!C22<5, 'Tabel 4 B'!C22<0.5),"-",IFERROR('Tabel 4 B'!C22/'Tabel 4F B'!C22*100,"-")) -> - | D22: =IF(OR('Tabel 4F B'!D22<5, 'Tabel 4 B'!D22<0.5),"-",IFERROR('Tabel 4 B'!D22/'Tabel 4F B'!D22*100,"-")) -> - | E22: =IF(OR('Tabel 4F B'!E22<5, 'Tabel 4 B'!E22<0.5),"-",IFERROR('Tabel 4 B'!E22/'Tabel 4F B'!E22*100,"-")) -> - | F22: =IF(OR('Tabel 4F B'!F22<5, 'Tabel 4 B'!F22<0.5),"-",IFERROR('Tabel 4 B'!F22/'Tabel 4F B'!F22*100,"-")) -> - | G22: =IF(OR('Tabel 4F B'!G22<5, 'Tabel 4 B'!G22<0.5),"-",IFERROR('Tabel 4 B'!G22/'Tabel 4F B'!G22*100,"-")) -> - | I22: =IF(OR('Tabel 4F B'!I22<5, 'Tabel 4 B'!I22<0.5),"-",IFERROR('Tabel 4 B'!I22/'Tabel 4F B'!I22*100,"-")) -> -
A23: ='[1]Tabel 4 B DATA'!I22 -> Farmaceut | C23: =IF(OR('Tabel 4F B'!C23<5, 'Tabel 4 B'!C23<0.5),"-",IFERROR('Tabel 4 B'!C23/'Tabel 4F B'!C23*100,"-")) -> - | D23: =IF(OR('Tabel 4F B'!D23<5, 'Tabel 4 B'!D23<0.5),"-",IFERROR('Tabel 4 B'!D23/'Tabel 4F B'!D23*100,"-")) -> - | E23: =IF(OR('Tabel 4F B'!E23<5, 'Tabel 4 B'!E23<0.5),"-",IFERROR('Tabel 4 B'!E23/'Tabel 4F B'!E23*100,"-")) -> - | F23: =IF(OR('Tabel 4F B'!F23<5, 'Tabel 4 B'!F23<0.5),"-",IFERROR('Tabel 4 B'!F23/'Tabel 4F B'!F23*100,"-")) -> - | G23: =IF(OR('Tabel 4F B'!G23<5, 'Tabel 4 B'!G23<0.5),"-",IFERROR('Tabel 4 B'!G23/'Tabel 4F B'!G23*100,"-")) -> - | I23: =IF(OR('Tabel 4F B'!I23<5, 'Tabel 4 B'!I23<0.5),"-",IFERROR('Tabel 4 B'!I23/'Tabel 4F B'!I23*100,"-")) -> -
A24: ='[1]Tabel 4 B DATA'!I23 -> Læge | C24: =IF(OR('Tabel 4F B'!C24<5, 'Tabel 4 B'!C24<0.5),"-",IFERROR('Tabel 4 B'!C24/'Tabel 4F B'!C24*100,"-")) -> 14.28571429 | D24: =IF(OR('Tabel 4F B'!D24<5, 'Tabel 4 B'!D24<0.5),"-",IFERROR('Tabel 4 B'!D24/'Tabel 4F B'!D24*100,"-")) -> - | E24: =IF(OR('Tabel 4F B'!E24<5, 'Tabel 4 B'!E24<0.5),"-",IFERROR('Tabel 4 B'!E24/'Tabel 4F B'!E24*100,"-")) -> - | F24: =IF(OR('Tabel 4F B'!F24<5, 'Tabel 4 B'!F24<0.5),"-",IFERROR('Tabel 4 B'!F24/'Tabel 4F B'!F24*100,"-")) -> - | G24: =IF(OR('Tabel 4F B'!G24<5, 'Tabel 4 B'!G24<0.5),"-",IFERROR('Tabel 4 B'!G24/'Tabel 4F B'!G24*100,"-")) -> - | I24: =IF(OR('Tabel 4F B'!I24<5, 'Tabel 4 B'!I24<0.5),"-",IFERROR('Tabel 4 B'!I24/'Tabel 4F B'!I24*100,"-")) -> 3.225806452
A25: ='[1]Tabel 4 B DATA'!I24 -> Tandlæge | C25: =IF(OR('Tabel 4F B'!C25<5, 'Tabel 4 B'!C25<0.5),"-",IFERROR('Tabel 4 B'!C25/'Tabel 4F B'!C25*100,"-")) -> - | D25: =IF(OR('Tabel 4F B'!D25<5, 'Tabel 4 B'!D25<0.5),"-",IFERROR('Tabel 4 B'!D25/'Tabel 4F B'!D25*100,"-")) -> - | E25: =IF(OR('Tabel 4F B'!E25<5, 'Tabel 4 B'!E25<0.5),"-",IFERROR('Tabel 4 B'!E25/'Tabel 4F B'!E25*100,"-")) -> - | F25: =IF(OR('Tabel 4F B'!F25<5, 'Tabel 4 B'!F25<0.5),"-",IFERROR('Tabel 4 B'!F25/'Tabel 4F B'!F25*100,"-")) -> - | G25: =IF(OR('Tabel 4F B'!G25<5, 'Tabel 4 B'!G25<0.5),"-",IFERROR('Tabel 4 B'!G25/'Tabel 4F B'!G25*100,"-")) -> - | I25: =IF(OR('Tabel 4F B'!I25<5, 'Tabel 4 B'!I25<0.5),"-",IFERROR('Tabel 4 B'!I25/'Tabel 4F B'!I25*100,"-")) -> -
A26: ='[1]Tabel 4 B DATA'!I25 -> Arkitekt | C26: =IF(OR('Tabel 4F B'!C26<5, 'Tabel 4 B'!C26<0.5),"-",IFERROR('Tabel 4 B'!C26/'Tabel 4F B'!C26*100,"-")) -> - | D26: =IF(OR('Tabel 4F B'!D26<5, 'Tabel 4 B'!D26<0.5),"-",IFERROR('Tabel 4 B'!D26/'Tabel 4F B'!D26*100,"-")) -> - | E26: =IF(OR('Tabel 4F B'!E26<5, 'Tabel 4 B'!E26<0.5),"-",IFERROR('Tabel 4 B'!E26/'Tabel 4F B'!E26*100,"-")) -> - | F26: =IF(OR('Tabel 4F B'!F26<5, 'Tabel 4 B'!F26<0.5),"-",IFERROR('Tabel 4 B'!F26/'Tabel 4F B'!F26*100,"-")) -> - | G26: =IF(OR('Tabel 4F B'!G26<5, 'Tabel 4 B'!G26<0.5),"-",IFERROR('Tabel 4 B'!G26/'Tabel 4F B'!G26*100,"-")) -> - | I26: =IF(OR('Tabel 4F B'!I26<5, 'Tabel 4 B'!I26<0.5),"-",IFERROR('Tabel 4 B'!I26/'Tabel 4F B'!I26*100,"-")) -> 7.142857143
A27: ='[1]Tabel 4 B DATA'!I26 -> Landinspek. | C27: =IF(OR('Tabel 4F B'!C27<5, 'Tabel 4 B'!C27<0.5),"-",IFERROR('Tabel 4 B'!C27/'Tabel 4F B'!C27*100,"-")) -> - | D27: =IF(OR('Tabel 4F B'!D27<5, 'Tabel 4 B'!D27<0.5),"-",IFERROR('Tabel 4 B'!D27/'Tabel 4F B'!D27*100,"-")) -> - | E27: =IF(OR('Tabel 4F B'!E27<5, 'Tabel 4 B'!E27<0.5),"-",IFERROR('Tabel 4 B'!E27/'Tabel 4F B'!E27*100,"-")) -> - | F27: =IF(OR('Tabel 4F B'!F27<5, 'Tabel 4 B'!F27<0.5),"-",IFERROR('Tabel 4 B'!F27/'Tabel 4F B'!F27*100,"-")) -> - | G27: =IF(OR('Tabel 4F B'!G27<5, 'Tabel 4 B'!G27<0.5),"-",IFERROR('Tabel 4 B'!G27/'Tabel 4F B'!G27*100,"-")) -> - | I27: =IF(OR('Tabel 4F B'!I27<5, 'Tabel 4 B'!I27<0.5),"-",IFERROR('Tabel 4 B'!I27/'Tabel 4F B'!I27*100,"-")) -> -
A28: ='[1]Tabel 4 B DATA'!I27 -> Bibliotekar | C28: =IF(OR('Tabel 4F B'!C28<5, 'Tabel 4 B'!C28<0.5),"-",IFERROR('Tabel 4 B'!C28/'Tabel 4F B'!C28*100,"-")) -> - | D28: =IF(OR('Tabel 4F B'!D28<5, 'Tabel 4 B'!D28<0.5),"-",IFERROR('Tabel 4 B'!D28/'Tabel 4F B'!D28*100,"-")) -> - | E28: =IF(OR('Tabel 4F B'!E28<5, 'Tabel 4 B'!E28<0.5),"-",IFERROR('Tabel 4 B'!E28/'Tabel 4F B'!E28*100,"-")) -> - | F28: =IF(OR('Tabel 4F B'!F28<5, 'Tabel 4 B'!F28<0.5),"-",IFERROR('Tabel 4 B'!F28/'Tabel 4F B'!F28*100,"-")) -> - | G28: =IF(OR('Tabel 4F B'!G28<5, 'Tabel 4 B'!G28<0.5),"-",IFERROR('Tabel 4 B'!G28/'Tabel 4F B'!G28*100,"-")) -> - | I28: =IF(OR('Tabel 4F B'!I28<5, 'Tabel 4 B'!I28<0.5),"-",IFERROR('Tabel 4 B'!I28/'Tabel 4F B'!I28*100,"-")) -> 6.25
A29: ='[1]Tabel 4 B DATA'!I28 -> Musikudd. | C29: =IF(OR('Tabel 4F B'!C29<5, 'Tabel 4 B'!C29<0.5),"-",IFERROR('Tabel 4 B'!C29/'Tabel 4F B'!C29*100,"-")) -> - | D29: =IF(OR('Tabel 4F B'!D29<5, 'Tabel 4 B'!D29<0.5),"-",IFERROR('Tabel 4 B'!D29/'Tabel 4F B'!D29*100,"-")) -> - | E29: =IF(OR('Tabel 4F B'!E29<5, 'Tabel 4 B'!E29<0.5),"-",IFERROR('Tabel 4 B'!E29/'Tabel 4F B'!E29*100,"-")) -> - | F29: =IF(OR('Tabel 4F B'!F29<5, 'Tabel 4 B'!F29<0.5),"-",IFERROR('Tabel 4 B'!F29/'Tabel 4F B'!F29*100,"-")) -> - | G29: =IF(OR('Tabel 4F B'!G29<5, 'Tabel 4 B'!G29<0.5),"-",IFERROR('Tabel 4 B'!G29/'Tabel 4F B'!G29*100,"-")) -> - | I29: =IF(OR('Tabel 4F B'!I29<5, 'Tabel 4 B'!I29<0.5),"-",IFERROR('Tabel 4 B'!I29/'Tabel 4F B'!I29*100,"-")) -> -
A30: ='[1]Tabel 4 B DATA'!I29 -> Teolog | C30: =IF(OR('Tabel 4F B'!C30<5, 'Tabel 4 B'!C30<0.5),"-",IFERROR('Tabel 4 B'!C30/'Tabel 4F B'!C30*100,"-")) -> - | D30: =IF(OR('Tabel 4F B'!D30<5, 'Tabel 4 B'!D30<0.5),"-",IFERROR('Tabel 4 B'!D30/'Tabel 4F B'!D30*100,"-")) -> - | E30: =IF(OR('Tabel 4F B'!E30<5, 'Tabel 4 B'!E30<0.5),"-",IFERROR('Tabel 4 B'!E30/'Tabel 4F B'!E30*100,"-")) -> - | F30: =IF(OR('Tabel 4F B'!F30<5, 'Tabel 4 B'!F30<0.5),"-",IFERROR('Tabel 4 B'!F30/'Tabel 4F B'!F30*100,"-")) -> - | G30: =IF(OR('Tabel 4F B'!G30<5, 'Tabel 4 B'!G30<0.5),"-",IFERROR('Tabel 4 B'!G30/'Tabel 4F B'!G30*100,"-")) -> - | I30: =IF(OR('Tabel 4F B'!I30<5, 'Tabel 4 B'!I30<0.5),"-",IFERROR('Tabel 4 B'!I30/'Tabel 4F B'!I30*100,"-")) -> -
A31: ='[1]Tabel 4 B DATA'!I30 -> Psykolog | C31: =IF(OR('Tabel 4F B'!C31<5, 'Tabel 4 B'!C31<0.5),"-",IFERROR('Tabel 4 B'!C31/'Tabel 4F B'!C31*100,"-")) -> - | D31: =IF(OR('Tabel 4F B'!D31<5, 'Tabel 4 B'!D31<0.5),"-",IFERROR('Tabel 4 B'!D31/'Tabel 4F B'!D31*100,"-")) -> 11.11111111 | E31: =IF(OR('Tabel 4F B'!E31<5, 'Tabel 4 B'!E31<0.5),"-",IFERROR('Tabel 4 B'!E31/'Tabel 4F B'!E31*100,"-")) -> - | F31: =IF(OR('Tabel 4F B'!F31<5, 'Tabel 4 B'!F31<0.5),"-",IFERROR('Tabel 4 B'!F31/'Tabel 4F B'!F31*100,"-")) -> - | G31: =IF(OR('Tabel 4F B'!G31<5, 'Tabel 4 B'!G31<0.5),"-",IFERROR('Tabel 4 B'!G31/'Tabel 4F B'!G31*100,"-")) -> - | I31: =IF(OR('Tabel 4F B'!I31<5, 'Tabel 4 B'!I31<0.5),"-",IFERROR('Tabel 4 B'!I31/'Tabel 4F B'!I31*100,"-")) -> 3.225806452
A32: ='[1]Tabel 4 B DATA'!I31 -> Jurist | C32: =IF(OR('Tabel 4F B'!C32<5, 'Tabel 4 B'!C32<0.5),"-",IFERROR('Tabel 4 B'!C32/'Tabel 4F B'!C32*100,"-")) -> - | D32: =IF(OR('Tabel 4F B'!D32<5, 'Tabel 4 B'!D32<0.5),"-",IFERROR('Tabel 4 B'!D32/'Tabel 4F B'!D32*100,"-")) -> - | E32: =IF(OR('Tabel 4F B'!E32<5, 'Tabel 4 B'!E32<0.5),"-",IFERROR('Tabel 4 B'!E32/'Tabel 4F B'!E32*100,"-")) -> - | F32: =IF(OR('Tabel 4F B'!F32<5, 'Tabel 4 B'!F32<0.5),"-",IFERROR('Tabel 4 B'!F32/'Tabel 4F B'!F32*100,"-")) -> - | G32: =IF(OR('Tabel 4F B'!G32<5, 'Tabel 4 B'!G32<0.5),"-",IFERROR('Tabel 4 B'!G32/'Tabel 4F B'!G32*100,"-")) -> - | I32: =IF(OR('Tabel 4F B'!I32<5, 'Tabel 4 B'!I32<0.5),"-",IFERROR('Tabel 4 B'!I32/'Tabel 4F B'!I32*100,"-")) -> -
A33: ='[1]Tabel 4 B DATA'!I32 -> Økonom | C33: =IF(OR('Tabel 4F B'!C33<5, 'Tabel 4 B'!C33<0.5),"-",IFERROR('Tabel 4 B'!C33/'Tabel 4F B'!C33*100,"-")) -> - | D33: =IF(OR('Tabel 4F B'!D33<5, 'Tabel 4 B'!D33<0.5),"-",IFERROR('Tabel 4 B'!D33/'Tabel 4F B'!D33*100,"-")) -> - | E33: =IF(OR('Tabel 4F B'!E33<5, 'Tabel 4 B'!E33<0.5),"-",IFERROR('Tabel 4 B'!E33/'Tabel 4F B'!E33*100,"-")) -> - | F33: =IF(OR('Tabel 4F B'!F33<5, 'Tabel 4 B'!F33<0.5),"-",IFERROR('Tabel 4 B'!F33/'Tabel 4F B'!F33*100,"-")) -> - | G33: =IF(OR('Tabel 4F B'!G33<5, 'Tabel 4 B'!G33<0.5),"-",IFERROR('Tabel 4 B'!G33/'Tabel 4F B'!G33*100,"-")) -> - | I33: =IF(OR('Tabel 4F B'!I33<5, 'Tabel 4 B'!I33<0.5),"-",IFERROR('Tabel 4 B'!I33/'Tabel 4F B'!I33*100,"-")) -> -
A34: ='[1]Tabel 4 B DATA'!I33 -> Samf. Adm. | C34: =IF(OR('Tabel 4F B'!C34<5, 'Tabel 4 B'!C34<0.5),"-",IFERROR('Tabel 4 B'!C34/'Tabel 4F B'!C34*100,"-")) -> - | D34: =IF(OR('Tabel 4F B'!D34<5, 'Tabel 4 B'!D34<0.5),"-",IFERROR('Tabel 4 B'!D34/'Tabel 4F B'!D34*100,"-")) -> - | E34: =IF(OR('Tabel 4F B'!E34<5, 'Tabel 4 B'!E34<0.5),"-",IFERROR('Tabel 4 B'!E34/'Tabel 4F B'!E34*100,"-")) -> 4.545454545 | F34: =IF(OR('Tabel 4F B'!F34<5, 'Tabel 4 B'!F34<0.5),"-",IFERROR('Tabel 4 B'!F34/'Tabel 4F B'!F34*100,"-")) -> 20 | G34: =IF(OR('Tabel 4F B'!G34<5, 'Tabel 4 B'!G34<0.5),"-",IFERROR('Tabel 4 B'!G34/'Tabel 4F B'!G34*100,"-")) -> - | I34: =IF(OR('Tabel 4F B'!I34<5, 'Tabel 4 B'!I34<0.5),"-",IFERROR('Tabel 4 B'!I34/'Tabel 4F B'!I34*100,"-")) -> 5.454545455
A35: ='[1]Tabel 4 B DATA'!I34 -> Cand. Merc. | C35: =IF(OR('Tabel 4F B'!C35<5, 'Tabel 4 B'!C35<0.5),"-",IFERROR('Tabel 4 B'!C35/'Tabel 4F B'!C35*100,"-")) -> - | D35: =IF(OR('Tabel 4F B'!D35<5, 'Tabel 4 B'!D35<0.5),"-",IFERROR('Tabel 4 B'!D35/'Tabel 4F B'!D35*100,"-")) -> - | E35: =IF(OR('Tabel 4F B'!E35<5, 'Tabel 4 B'!E35<0.5),"-",IFERROR('Tabel 4 B'!E35/'Tabel 4F B'!E35*100,"-")) -> 27.27272727 | F35: =IF(OR('Tabel 4F B'!F35<5, 'Tabel 4 B'!F35<0.5),"-",IFERROR('Tabel 4 B'!F35/'Tabel 4F B'!F35*100,"-")) -> 10 | G35: =IF(OR('Tabel 4F B'!G35<5, 'Tabel 4 B'!G35<0.5),"-",IFERROR('Tabel 4 B'!G35/'Tabel 4F B'!G35*100,"-")) -> - | I35: =IF(OR('Tabel 4F B'!I35<5, 'Tabel 4 B'!I35<0.5),"-",IFERROR('Tabel 4 B'!I35/'Tabel 4F B'!I35*100,"-")) -> 12.5
A36: ='[1]Tabel 4 B DATA'!I35 -> HA | C36: =IF(OR('Tabel 4F B'!C36<5, 'Tabel 4 B'!C36<0.5),"-",IFERROR('Tabel 4 B'!C36/'Tabel 4F B'!C36*100,"-")) -> - | D36: =IF(OR('Tabel 4F B'!D36<5, 'Tabel 4 B'!D36<0.5),"-",IFERROR('Tabel 4 B'!D36/'Tabel 4F B'!D36*100,"-")) -> - | E36: =IF(OR('Tabel 4F B'!E36<5, 'Tabel 4 B'!E36<0.5),"-",IFERROR('Tabel 4 B'!E36/'Tabel 4F B'!E36*100,"-")) -> - | F36: =IF(OR('Tabel 4F B'!F36<5, 'Tabel 4 B'!F36<0.5),"-",IFERROR('Tabel 4 B'!F36/'Tabel 4F B'!F36*100,"-")) -> 14.28571429 | G36: =IF(OR('Tabel 4F B'!G36<5, 'Tabel 4 B'!G36<0.5),"-",IFERROR('Tabel 4 B'!G36/'Tabel 4F B'!G36*100,"-")) -> - | I36: =IF(OR('Tabel 4F B'!I36<5, 'Tabel 4 B'!I36<0.5),"-",IFERROR('Tabel 4 B'!I36/'Tabel 4F B'!I36*100,"-")) -> 8.333333333
A37: ='[1]Tabel 4 B DATA'!I36 -> HD | C37: =IF(OR('Tabel 4F B'!C37<5, 'Tabel 4 B'!C37<0.5),"-",IFERROR('Tabel 4 B'!C37/'Tabel 4F B'!C37*100,"-")) -> - | D37: =IF(OR('Tabel 4F B'!D37<5, 'Tabel 4 B'!D37<0.5),"-",IFERROR('Tabel 4 B'!D37/'Tabel 4F B'!D37*100,"-")) -> - | E37: =IF(OR('Tabel 4F B'!E37<5, 'Tabel 4 B'!E37<0.5),"-",IFERROR('Tabel 4 B'!E37/'Tabel 4F B'!E37*100,"-")) -> - | F37: =IF(OR('Tabel 4F B'!F37<5, 'Tabel 4 B'!F37<0.5),"-",IFERROR('Tabel 4 B'!F37/'Tabel 4F B'!F37*100,"-")) -> - | G37: =IF(OR('Tabel 4F B'!G37<5, 'Tabel 4 B'!G37<0.5),"-",IFERROR('Tabel 4 B'!G37/'Tabel 4F B'!G37*100,"-")) -> - | I37: =IF(OR('Tabel 4F B'!I37<5, 'Tabel 4 B'!I37<0.5),"-",IFERROR('Tabel 4 B'!I37/'Tabel 4F B'!I37*100,"-")) -> -
A38: ='[1]Tabel 4 B DATA'!I37 -> Komm. og Sprog | C38: =IF(OR('Tabel 4F B'!C38<5, 'Tabel 4 B'!C38<0.5),"-",IFERROR('Tabel 4 B'!C38/'Tabel 4F B'!C38*100,"-")) -> - | D38: =IF(OR('Tabel 4F B'!D38<5, 'Tabel 4 B'!D38<0.5),"-",IFERROR('Tabel 4 B'!D38/'Tabel 4F B'!D38*100,"-")) -> 14.28571429 | E38: =IF(OR('Tabel 4F B'!E38<5, 'Tabel 4 B'!E38<0.5),"-",IFERROR('Tabel 4 B'!E38/'Tabel 4F B'!E38*100,"-")) -> - | F38: =IF(OR('Tabel 4F B'!F38<5, 'Tabel 4 B'!F38<0.5),"-",IFERROR('Tabel 4 B'!F38/'Tabel 4F B'!F38*100,"-")) -> - | G38: =IF(OR('Tabel 4F B'!G38<5, 'Tabel 4 B'!G38<0.5),"-",IFERROR('Tabel 4 B'!G38/'Tabel 4F B'!G38*100,"-")) -> - | I38: =IF(OR('Tabel 4F B'!I38<5, 'Tabel 4 B'!I38<0.5),"-",IFERROR('Tabel 4 B'!I38/'Tabel 4F B'!I38*100,"-")) -> 26.66666667
A39: Bygningskonst. | C39: =IF(OR('Tabel 4F B'!C39<5, 'Tabel 4 B'!C39<0.5),"-",IFERROR('Tabel 4 B'!C39/'Tabel 4F B'!C39*100,"-")) -> - | D39: =IF(OR('Tabel 4F B'!D39<5, 'Tabel 4 B'!D39<0.5),"-",IFERROR('Tabel 4 B'!D39/'Tabel 4F B'!D39*100,"-")) -> - | E39: =IF(OR('Tabel 4F B'!E39<5, 'Tabel 4 B'!E39<0.5),"-",IFERROR('Tabel 4 B'!E39/'Tabel 4F B'!E39*100,"-")) -> - | F39: =IF(OR('Tabel 4F B'!F39<5, 'Tabel 4 B'!F39<0.5),"-",IFERROR('Tabel 4 B'!F39/'Tabel 4F B'!F39*100,"-")) -> - | G39: =IF(OR('Tabel 4F B'!G39<5, 'Tabel 4 B'!G39<0.5),"-",IFERROR('Tabel 4 B'!G39/'Tabel 4F B'!G39*100,"-")) -> - | I39: =IF(OR('Tabel 4F B'!I39<5, 'Tabel 4 B'!I39<0.5),"-",IFERROR('Tabel 4 B'!I39/'Tabel 4F B'!I39*100,"-")) -> -
A40: ='[1]Tabel 4 B DATA'!I39 -> Cand. IT. | C40: =IF(OR('Tabel 4F B'!C40<5, 'Tabel 4 B'!C40<0.5),"-",IFERROR('Tabel 4 B'!C40/'Tabel 4F B'!C40*100,"-")) -> - | D40: =IF(OR('Tabel 4F B'!D40<5, 'Tabel 4 B'!D40<0.5),"-",IFERROR('Tabel 4 B'!D40/'Tabel 4F B'!D40*100,"-")) -> - | E40: =IF(OR('Tabel 4F B'!E40<5, 'Tabel 4 B'!E40<0.5),"-",IFERROR('Tabel 4 B'!E40/'Tabel 4F B'!E40*100,"-")) -> - | F40: =IF(OR('Tabel 4F B'!F40<5, 'Tabel 4 B'!F40<0.5),"-",IFERROR('Tabel 4 B'!F40/'Tabel 4F B'!F40*100,"-")) -> - | G40: =IF(OR('Tabel 4F B'!G40<5, 'Tabel 4 B'!G40<0.5),"-",IFERROR('Tabel 4 B'!G40/'Tabel 4F B'!G40*100,"-")) -> - | I40: =IF(OR('Tabel 4F B'!I40<5, 'Tabel 4 B'!I40<0.5),"-",IFERROR('Tabel 4 B'!I40/'Tabel 4F B'!I40*100,"-")) -> -
A41: ='[1]Tabel 4 B DATA'!I40 -> Bac. Samf. | C41: =IF(OR('Tabel 4F B'!C41<5, 'Tabel 4 B'!C41<0.5),"-",IFERROR('Tabel 4 B'!C41/'Tabel 4F B'!C41*100,"-")) -> - | D41: =IF(OR('Tabel 4F B'!D41<5, 'Tabel 4 B'!D41<0.5),"-",IFERROR('Tabel 4 B'!D41/'Tabel 4F B'!D41*100,"-")) -> - | E41: =IF(OR('Tabel 4F B'!E41<5, 'Tabel 4 B'!E41<0.5),"-",IFERROR('Tabel 4 B'!E41/'Tabel 4F B'!E41*100,"-")) -> - | F41: =IF(OR('Tabel 4F B'!F41<5, 'Tabel 4 B'!F41<0.5),"-",IFERROR('Tabel 4 B'!F41/'Tabel 4F B'!F41*100,"-")) -> - | G41: =IF(OR('Tabel 4F B'!G41<5, 'Tabel 4 B'!G41<0.5),"-",IFERROR('Tabel 4 B'!G41/'Tabel 4F B'!G41*100,"-")) -> - | I41: =IF(OR('Tabel 4F B'!I41<5, 'Tabel 4 B'!I41<0.5),"-",IFERROR('Tabel 4 B'!I41/'Tabel 4F B'!I41*100,"-")) -> -
A42: ='[1]Tabel 4 B DATA'!I41 -> Bac. Hum. | C42: =IF(OR('Tabel 4F B'!C42<5, 'Tabel 4 B'!C42<0.5),"-",IFERROR('Tabel 4 B'!C42/'Tabel 4F B'!C42*100,"-")) -> - | D42: =IF(OR('Tabel 4F B'!D42<5, 'Tabel 4 B'!D42<0.5),"-",IFERROR('Tabel 4 B'!D42/'Tabel 4F B'!D42*100,"-")) -> - | E42: =IF(OR('Tabel 4F B'!E42<5, 'Tabel 4 B'!E42<0.5),"-",IFERROR('Tabel 4 B'!E42/'Tabel 4F B'!E42*100,"-")) -> - | F42: =IF(OR('Tabel 4F B'!F42<5, 'Tabel 4 B'!F42<0.5),"-",IFERROR('Tabel 4 B'!F42/'Tabel 4F B'!F42*100,"-")) -> - | G42: =IF(OR('Tabel 4F B'!G42<5, 'Tabel 4 B'!G42<0.5),"-",IFERROR('Tabel 4 B'!G42/'Tabel 4F B'!G42*100,"-")) -> - | I42: =IF(OR('Tabel 4F B'!I42<5, 'Tabel 4 B'!I42<0.5),"-",IFERROR('Tabel 4 B'!I42/'Tabel 4F B'!I42*100,"-")) -> 23.07692308
A43: ='[1]Tabel 4 B DATA'!I42 -> Bac. Nat. | C43: =IF(OR('Tabel 4F B'!C43<5, 'Tabel 4 B'!C43<0.5),"-",IFERROR('Tabel 4 B'!C43/'Tabel 4F B'!C43*100,"-")) -> - | D43: =IF(OR('Tabel 4F B'!D43<5, 'Tabel 4 B'!D43<0.5),"-",IFERROR('Tabel 4 B'!D43/'Tabel 4F B'!D43*100,"-")) -> - | E43: =IF(OR('Tabel 4F B'!E43<5, 'Tabel 4 B'!E43<0.5),"-",IFERROR('Tabel 4 B'!E43/'Tabel 4F B'!E43*100,"-")) -> - | F43: =IF(OR('Tabel 4F B'!F43<5, 'Tabel 4 B'!F43<0.5),"-",IFERROR('Tabel 4 B'!F43/'Tabel 4F B'!F43*100,"-")) -> - | G43: =IF(OR('Tabel 4F B'!G43<5, 'Tabel 4 B'!G43<0.5),"-",IFERROR('Tabel 4 B'!G43/'Tabel 4F B'!G43*100,"-")) -> - | I43: =IF(OR('Tabel 4F B'!I43<5, 'Tabel 4 B'!I43<0.5),"-",IFERROR('Tabel 4 B'!I43/'Tabel 4F B'!I43*100,"-")) -> 20
A44: ='[1]Tabel 4 B DATA'!I43 -> Andre | C44: =IF(OR('Tabel 4F B'!C44<5, 'Tabel 4 B'!C44<0.5),"-",IFERROR('Tabel 4 B'!C44/'Tabel 4F B'!C44*100,"-")) -> - | D44: =IF(OR('Tabel 4F B'!D44<5, 'Tabel 4 B'!D44<0.5),"-",IFERROR('Tabel 4 B'!D44/'Tabel 4F B'!D44*100,"-")) -> 16.66666667 | E44: =IF(OR('Tabel 4F B'!E44<5, 'Tabel 4 B'!E44<0.5),"-",IFERROR('Tabel 4 B'!E44/'Tabel 4F B'!E44*100,"-")) -> 14.81481481 | F44: =IF(OR('Tabel 4F B'!F44<5, 'Tabel 4 B'!F44<0.5),"-",IFERROR('Tabel 4 B'!F44/'Tabel 4F B'!F44*100,"-")) -> 5.714285714 | G44: =IF(OR('Tabel 4F B'!G44<5, 'Tabel 4 B'!G44<0.5),"-",IFERROR('Tabel 4 B'!G44/'Tabel 4F B'!G44*100,"-")) -> 8 | I44: =IF(OR('Tabel 4F B'!I44<5, 'Tabel 4 B'!I44<0.5),"-",IFERROR('Tabel 4 B'!I44/'Tabel 4F B'!I44*100,"-")) -> 11.00917431
A46: ='[1]Tabel 4 B DATA'!I45 -> Total | C46: =IF(OR('Tabel 4F B'!C46<5, 'Tabel 4 B'!C46<0.5),"-",IFERROR('Tabel 4 B'!C46/'Tabel 4F B'!C46*100,"-")) -> 7.272727273 | D46: =IF(OR('Tabel 4F B'!D46<5, 'Tabel 4 B'!D46<0.5),"-",IFERROR('Tabel 4 B'!D46/'Tabel 4F B'!D46*100,"-")) -> 10.12658228 | E46: =IF(OR('Tabel 4F B'!E46<5, 'Tabel 4 B'!E46<0.5),"-",IFERROR('Tabel 4 B'!E46/'Tabel 4F B'!E46*100,"-")) -> 10.22222222 | F46: =IF(OR('Tabel 4F B'!F46<5, 'Tabel 4 B'!F46<0.5),"-",IFERROR('Tabel 4 B'!F46/'Tabel 4F B'!F46*100,"-")) -> 7.5 | G46: =IF(OR('Tabel 4F B'!G46<5, 'Tabel 4 B'!G46<0.5),"-",IFERROR('Tabel 4 B'!G46/'Tabel 4F B'!G46*100,"-")) -> 9.174311927 | I46: =IF(OR('Tabel 4F B'!I46<5, 'Tabel 4 B'!I46<0.5),"-",IFERROR('Tabel 4 B'!I46/'Tabel 4F B'!I46*100,"-")) -> 9.200968523
A48: ='[1]Tabel 4 B DATA'!I47 -> Ingeniører i alt | C48: =IF(OR('Tabel 4F B'!C48<5, 'Tabel 4 B'!C48<0.5),"-",IFERROR('Tabel 4 B'!C48/'Tabel 4F B'!C48*100,"-")) -> - | D48: =IF(OR('Tabel 4F B'!D48<5, 'Tabel 4 B'!D48<0.5),"-",IFERROR('Tabel 4 B'!D48/'Tabel 4F B'!D48*100,"-")) -> 8 | E48: =IF(OR('Tabel 4F B'!E48<5, 'Tabel 4 B'!E48<0.5),"-",IFERROR('Tabel 4 B'!E48/'Tabel 4F B'!E48*100,"-")) -> 12 | F48: =IF(OR('Tabel 4F B'!F48<5, 'Tabel 4 B'!F48<0.5),"-",IFERROR('Tabel 4 B'!F48/'Tabel 4F B'!F48*100,"-")) -> 6.896551724 | G48: =IF(OR('Tabel 4F B'!G48<5, 'Tabel 4 B'!G48<0.5),"-",IFERROR('Tabel 4 B'!G48/'Tabel 4F B'!G48*100,"-")) -> 8.333333333 | I48: =IF(OR('Tabel 4F B'!I48<5, 'Tabel 4 B'!I48<0.5),"-",IFERROR('Tabel 4 B'!I48/'Tabel 4F B'!I48*100,"-")) -> 8.24742268
A49: ='[1]Tabel 4 B DATA'!I48 -> Magistre i alt | C49: =IF(OR('Tabel 4F B'!C49<5, 'Tabel 4 B'!C49<0.5),"-",IFERROR('Tabel 4 B'!C49/'Tabel 4F B'!C49*100,"-")) -> 12.5 | D49: =IF(OR('Tabel 4F B'!D49<5, 'Tabel 4 B'!D49<0.5),"-",IFERROR('Tabel 4 B'!D49/'Tabel 4F B'!D49*100,"-")) -> 13.88888889 | E49: =IF(OR('Tabel 4F B'!E49<5, 'Tabel 4 B'!E49<0.5),"-",IFERROR('Tabel 4 B'!E49/'Tabel 4F B'!E49*100,"-")) -> 18.18181818 | F49: =IF(OR('Tabel 4F B'!F49<5, 'Tabel 4 B'!F49<0.5),"-",IFERROR('Tabel 4 B'!F49/'Tabel 4F B'!F49*100,"-")) -> 4.255319149 | G49: =IF(OR('Tabel 4F B'!G49<5, 'Tabel 4 B'!G49<0.5),"-",IFERROR('Tabel 4 B'!G49/'Tabel 4F B'!G49*100,"-")) -> 18.51851852 | I49: =IF(OR('Tabel 4F B'!I49<5, 'Tabel 4 B'!I49<0.5),"-",IFERROR('Tabel 4 B'!I49/'Tabel 4F B'!I49*100,"-")) -> 13.39712919
A50: ='[1]Tabel 4 B DATA'!I49 -> DJØF'ere i alt | C50: =IF(OR('Tabel 4F B'!C50<5, 'Tabel 4 B'!C50<0.5),"-",IFERROR('Tabel 4 B'!C50/'Tabel 4F B'!C50*100,"-")) -> - | D50: =IF(OR('Tabel 4F B'!D50<5, 'Tabel 4 B'!D50<0.5),"-",IFERROR('Tabel 4 B'!D50/'Tabel 4F B'!D50*100,"-")) -> - | E50: =IF(OR('Tabel 4F B'!E50<5, 'Tabel 4 B'!E50<0.5),"-",IFERROR('Tabel 4 B'!E50/'Tabel 4F B'!E50*100,"-")) -> 8.888888889 | F50: =IF(OR('Tabel 4F B'!F50<5, 'Tabel 4 B'!F50<0.5),"-",IFERROR('Tabel 4 B'!F50/'Tabel 4F B'!F50*100,"-")) -> 10 | G50: =IF(OR('Tabel 4F B'!G50<5, 'Tabel 4 B'!G50<0.5),"-",IFERROR('Tabel 4 B'!G50/'Tabel 4F B'!G50*100,"-")) -> - | I50: =IF(OR('Tabel 4F B'!I50<5, 'Tabel 4 B'!I50<0.5),"-",IFERROR('Tabel 4 B'!I50/'Tabel 4F B'!I50*100,"-")) -> 5.673758865
A57: ='[1]Tabel 4 B DATA'!I106 -> Bornholm
C59: ='[1]Tabel 4 B DATA'!K108 -> Under 30 år | D59: ='[1]Tabel 4 B DATA'!L108 -> 30 - 39 år | E59: ='[1]Tabel 4 B DATA'!M108 -> 40 - 49 år | F59: ='[1]Tabel 4 B DATA'!N108 -> 50 - 59 år | G59: ='[1]Tabel 4 B DATA'!O108 -> Over 60 år | I59: ='[1]Tabel 4 B DATA'!Q108 -> I alt
A61: ='[1]Tabel 4 B DATA'!I110 -> Civ. ing. | C61: =IF(OR('Tabel 4F B'!C61<5, 'Tabel 4 B'!C61<0.5),"-",IFERROR('Tabel 4 B'!C61/'Tabel 4F B'!C61*100,"-")) -> - | D61: =IF(OR('Tabel 4F B'!D61<5, 'Tabel 4 B'!D61<0.5),"-",IFERROR('Tabel 4 B'!D61/'Tabel 4F B'!D61*100,"-")) -> 15.38461538 | E61: =IF(OR('Tabel 4F B'!E61<5, 'Tabel 4 B'!E61<0.5),"-",IFERROR('Tabel 4 B'!E61/'Tabel 4F B'!E61*100,"-")) -> 12.5 | F61: =IF(OR('Tabel 4F B'!F61<5, 'Tabel 4 B'!F61<0.5),"-",IFERROR('Tabel 4 B'!F61/'Tabel 4F B'!F61*100,"-")) -> - | G61: =IF(OR('Tabel 4F B'!G61<5, 'Tabel 4 B'!G61<0.5),"-",IFERROR('Tabel 4 B'!G61/'Tabel 4F B'!G61*100,"-")) -> - | I61: =IF(OR('Tabel 4F B'!I61<5, 'Tabel 4 B'!I61<0.5),"-",IFERROR('Tabel 4 B'!I61/'Tabel 4F B'!I61*100,"-")) -> 8.823529412
A62: ='[1]Tabel 4 B DATA'!I111 -> Diplom ing. | C62: =IF(OR('Tabel 4F B'!C62<5, 'Tabel 4 B'!C62<0.5),"-",IFERROR('Tabel 4 B'!C62/'Tabel 4F B'!C62*100,"-")) -> - | D62: =IF(OR('Tabel 4F B'!D62<5, 'Tabel 4 B'!D62<0.5),"-",IFERROR('Tabel 4 B'!D62/'Tabel 4F B'!D62*100,"-")) -> - | E62: =IF(OR('Tabel 4F B'!E62<5, 'Tabel 4 B'!E62<0.5),"-",IFERROR('Tabel 4 B'!E62/'Tabel 4F B'!E62*100,"-")) -> 11.76470588 | F62: =IF(OR('Tabel 4F B'!F62<5, 'Tabel 4 B'!F62<0.5),"-",IFERROR('Tabel 4 B'!F62/'Tabel 4F B'!F62*100,"-")) -> 9.523809524 | G62: =IF(OR('Tabel 4F B'!G62<5, 'Tabel 4 B'!G62<0.5),"-",IFERROR('Tabel 4 B'!G62/'Tabel 4F B'!G62*100,"-")) -> 10 | I62: =IF(OR('Tabel 4F B'!I62<5, 'Tabel 4 B'!I62<0.5),"-",IFERROR('Tabel 4 B'!I62/'Tabel 4F B'!I62*100,"-")) -> 7.936507937
A63: ='[1]Tabel 4 B DATA'!I112 -> Cand. Scient. Tek | C63: =IF(OR('Tabel 4F B'!C63<5, 'Tabel 4 B'!C63<0.5),"-",IFERROR('Tabel 4 B'!C63/'Tabel 4F B'!C63*100,"-")) -> - | D63: =IF(OR('Tabel 4F B'!D63<5, 'Tabel 4 B'!D63<0.5),"-",IFERROR('Tabel 4 B'!D63/'Tabel 4F B'!D63*100,"-")) -> 23.52941176 | E63: =IF(OR('Tabel 4F B'!E63<5, 'Tabel 4 B'!E63<0.5),"-",IFERROR('Tabel 4 B'!E63/'Tabel 4F B'!E63*100,"-")) -> 12.5 | F63: =IF(OR('Tabel 4F B'!F63<5, 'Tabel 4 B'!F63<0.5),"-",IFERROR('Tabel 4 B'!F63/'Tabel 4F B'!F63*100,"-")) -> - | G63: =IF(OR('Tabel 4F B'!G63<5, 'Tabel 4 B'!G63<0.5),"-",IFERROR('Tabel 4 B'!G63/'Tabel 4F B'!G63*100,"-")) -> - | I63: =IF(OR('Tabel 4F B'!I63<5, 'Tabel 4 B'!I63<0.5),"-",IFERROR('Tabel 4 B'!I63/'Tabel 4F B'!I63*100,"-")) -> 15.625
A64: ='[1]Tabel 4 B DATA'!I113 -> MA. Hum. | C64: =IF(OR('Tabel 4F B'!C64<5, 'Tabel 4 B'!C64<0.5),"-",IFERROR('Tabel 4 B'!C64/'Tabel 4F B'!C64*100,"-")) -> 20 | D64: =IF(OR('Tabel 4F B'!D64<5, 'Tabel 4 B'!D64<0.5),"-",IFERROR('Tabel 4 B'!D64/'Tabel 4F B'!D64*100,"-")) -> 12.96296296 | E64: =IF(OR('Tabel 4F B'!E64<5, 'Tabel 4 B'!E64<0.5),"-",IFERROR('Tabel 4 B'!E64/'Tabel 4F B'!E64*100,"-")) -> 16.66666667 | F64: =IF(OR('Tabel 4F B'!F64<5, 'Tabel 4 B'!F64<0.5),"-",IFERROR('Tabel 4 B'!F64/'Tabel 4F B'!F64*100,"-")) -> 5 | G64: =IF(OR('Tabel 4F B'!G64<5, 'Tabel 4 B'!G64<0.5),"-",IFERROR('Tabel 4 B'!G64/'Tabel 4F B'!G64*100,"-")) -> 25 | I64: =IF(OR('Tabel 4F B'!I64<5, 'Tabel 4 B'!I64<0.5),"-",IFERROR('Tabel 4 B'!I64/'Tabel 4F B'!I64*100,"-")) -> 14.4
A65: ='[1]Tabel 4 B DATA'!I114 -> MA. Nat. | C65: =IF(OR('Tabel 4F B'!C65<5, 'Tabel 4 B'!C65<0.5),"-",IFERROR('Tabel 4 B'!C65/'Tabel 4F B'!C65*100,"-")) -> - | D65: =IF(OR('Tabel 4F B'!D65<5, 'Tabel 4 B'!D65<0.5),"-",IFERROR('Tabel 4 B'!D65/'Tabel 4F B'!D65*100,"-")) -> - | E65: =IF(OR('Tabel 4F B'!E65<5, 'Tabel 4 B'!E65<0.5),"-",IFERROR('Tabel 4 B'!E65/'Tabel 4F B'!E65*100,"-")) -> 12.5 | F65: =IF(OR('Tabel 4F B'!F65<5, 'Tabel 4 B'!F65<0.5),"-",IFERROR('Tabel 4 B'!F65/'Tabel 4F B'!F65*100,"-")) -> - | G65: =IF(OR('Tabel 4F B'!G65<5, 'Tabel 4 B'!G65<0.5),"-",IFERROR('Tabel 4 B'!G65/'Tabel 4F B'!G65*100,"-")) -> 16.66666667 | I65: =IF(OR('Tabel 4F B'!I65<5, 'Tabel 4 B'!I65<0.5),"-",IFERROR('Tabel 4 B'!I65/'Tabel 4F B'!I65*100,"-")) -> 6.52173913
A66: ='[1]Tabel 4 B DATA'!I115 -> MA. Ph.d. | C66: =IF(OR('Tabel 4F B'!C66<5, 'Tabel 4 B'!C66<0.5),"-",IFERROR('Tabel 4 B'!C66/'Tabel 4F B'!C66*100,"-")) -> - | D66: =IF(OR('Tabel 4F B'!D66<5, 'Tabel 4 B'!D66<0.5),"-",IFERROR('Tabel 4 B'!D66/'Tabel 4F B'!D66*100,"-")) -> - | E66: =IF(OR('Tabel 4F B'!E66<5, 'Tabel 4 B'!E66<0.5),"-",IFERROR('Tabel 4 B'!E66/'Tabel 4F B'!E66*100,"-")) -> - | F66: =IF(OR('Tabel 4F B'!F66<5, 'Tabel 4 B'!F66<0.5),"-",IFERROR('Tabel 4 B'!F66/'Tabel 4F B'!F66*100,"-")) -> - | G66: =IF(OR('Tabel 4F B'!G66<5, 'Tabel 4 B'!G66<0.5),"-",IFERROR('Tabel 4 B'!G66/'Tabel 4F B'!G66*100,"-")) -> - | I66: =IF(OR('Tabel 4F B'!I66<5, 'Tabel 4 B'!I66<0.5),"-",IFERROR('Tabel 4 B'!I66/'Tabel 4F B'!I66*100,"-")) -> 14.28571429
A67: ='[1]Tabel 4 B DATA'!I116 -> MA. Samf. | C67: =IF(OR('Tabel 4F B'!C67<5, 'Tabel 4 B'!C67<0.5),"-",IFERROR('Tabel 4 B'!C67/'Tabel 4F B'!C67*100,"-")) -> - | D67: =IF(OR('Tabel 4F B'!D67<5, 'Tabel 4 B'!D67<0.5),"-",IFERROR('Tabel 4 B'!D67/'Tabel 4F B'!D67*100,"-")) -> - | E67: =IF(OR('Tabel 4F B'!E67<5, 'Tabel 4 B'!E67<0.5),"-",IFERROR('Tabel 4 B'!E67/'Tabel 4F B'!E67*100,"-")) -> - | F67: =IF(OR('Tabel 4F B'!F67<5, 'Tabel 4 B'!F67<0.5),"-",IFERROR('Tabel 4 B'!F67/'Tabel 4F B'!F67*100,"-")) -> - | G67: =IF(OR('Tabel 4F B'!G67<5, 'Tabel 4 B'!G67<0.5),"-",IFERROR('Tabel 4 B'!G67/'Tabel 4F B'!G67*100,"-")) -> - | I67: =IF(OR('Tabel 4F B'!I67<5, 'Tabel 4 B'!I67<0.5),"-",IFERROR('Tabel 4 B'!I67/'Tabel 4F B'!I67*100,"-")) -> 6.666666667
A68: ='[1]Tabel 4 B DATA'!I117 -> Øvrige Mag. | C68: =IF(OR('Tabel 4F B'!C68<5, 'Tabel 4 B'!C68<0.5),"-",IFERROR('Tabel 4 B'!C68/'Tabel 4F B'!C68*100,"-")) -> - | D68: =IF(OR('Tabel 4F B'!D68<5, 'Tabel 4 B'!D68<0.5),"-",IFERROR('Tabel 4 B'!D68/'Tabel 4F B'!D68*100,"-")) -> 50 | E68: =IF(OR('Tabel 4F B'!E68<5, 'Tabel 4 B'!E68<0.5),"-",IFERROR('Tabel 4 B'!E68/'Tabel 4F B'!E68*100,"-")) -> 40 | F68: =IF(OR('Tabel 4F B'!F68<5, 'Tabel 4 B'!F68<0.5),"-",IFERROR('Tabel 4 B'!F68/'Tabel 4F B'!F68*100,"-")) -> - | G68: =IF(OR('Tabel 4F B'!G68<5, 'Tabel 4 B'!G68<0.5),"-",IFERROR('Tabel 4 B'!G68/'Tabel 4F B'!G68*100,"-")) -> - | I68: =IF(OR('Tabel 4F B'!I68<5, 'Tabel 4 B'!I68<0.5),"-",IFERROR('Tabel 4 B'!I68/'Tabel 4F B'!I68*100,"-")) -> 31.25
A69: ='[1]Tabel 4 B DATA'!I118 -> Agronom | C69: =IF(OR('Tabel 4F B'!C69<5, 'Tabel 4 B'!C69<0.5),"-",IFERROR('Tabel 4 B'!C69/'Tabel 4F B'!C69*100,"-")) -> - | D69: =IF(OR('Tabel 4F B'!D69<5, 'Tabel 4 B'!D69<0.5),"-",IFERROR('Tabel 4 B'!D69/'Tabel 4F B'!D69*100,"-")) -> - | E69: =IF(OR('Tabel 4F B'!E69<5, 'Tabel 4 B'!E69<0.5),"-",IFERROR('Tabel 4 B'!E69/'Tabel 4F B'!E69*100,"-")) -> - | F69: =IF(OR('Tabel 4F B'!F69<5, 'Tabel 4 B'!F69<0.5),"-",IFERROR('Tabel 4 B'!F69/'Tabel 4F B'!F69*100,"-")) -> - | G69: =IF(OR('Tabel 4F B'!G69<5, 'Tabel 4 B'!G69<0.5),"-",IFERROR('Tabel 4 B'!G69/'Tabel 4F B'!G69*100,"-")) -> - | I69: =IF(OR('Tabel 4F B'!I69<5, 'Tabel 4 B'!I69<0.5),"-",IFERROR('Tabel 4 B'!I69/'Tabel 4F B'!I69*100,"-")) -> -
